{"text_format":"1","workbook":"xlsx","n_sheets":19,"sheets":["Cotizador","FORM","CERT","COB","SOLIC","DECLARACION","AUT CAR","Adhesión","CE DER","TAB AMORT","COM VEND","CO RE DOM 48","PAG ORD","HUNTER","DAT","TRACKLINK CONTROL","MARESA SATELITAL","SHERLOC","DESGRAV"],"not_rendered":{"charts":0,"images":25,"macros":1,"external_links":4,"defined_names":115,"comments":0,"pivot_tables":0},"unopened":[],"bounds":{"document_bytes":16777216,"sheet_cells":100000,"rows_first":2000,"rows_last":500,"rows_between":2000,"halvings":0,"cell_chars":16384,"cell_head_chars":4096},"cells_cut":0,"cells_raw":0,"read":"whole","date_system":"1900"}

{"sheet":"Cotizador","index":0,"n_rows":679,"n_cols":55,"rows_kept":679,"cut":false,"hidden":false,"merged":[[164,2,164,3],[152,2,152,3],[157,2,157,3],[16,2,16,3],[16,5,16,8],[26,5,26,14],[22,2,22,14],[24,2,24,3],[24,5,24,14],[30,2,30,3],[30,5,30,14],[36,2,36,3],[36,5,36,14],[42,2,42,3],[42,5,42,14],[38,2,38,3],[16,11,16,14],[34,2,34,3],[34,5,34,14],[18,2,18,3],[18,5,18,8],[18,11,18,14],[32,2,32,3],[32,5,32,14],[20,2,20,3],[20,5,20,8],[20,11,20,14],[28,2,28,3],[28,5,28,14],[26,2,26,3],[12,2,12,3],[12,5,12,14],[6,2,6,14],[8,2,8,3],[14,2,14,14],[38,5,38,14],[40,2,40,3],[40,5,40,14],[46,2,46,3],[46,5,46,14],[48,2,48,3],[48,5,48,14],[44,2,44,3],[44,5,44,14],[62,2,62,3],[68,2,68,3],[50,2,50,3],[50,5,50,14],[54,2,54,3],[54,5,54,14],[81,2,81,3],[66,11,66,14],[60,2,60,3],[60,5,60,14],[52,2,52,3],[52,5,52,14],[80,2,80,3],[56,2,56,3],[56,5,56,14],[58,2,58,3],[58,5,58,14],[64,2,64,14],[62,5,62,14],[68,5,68,8],[66,2,66,3],[66,5,66,8],[88,74,88,80],[82,74,82,80],[83,74,83,80],[84,74,84,80],[85,74,85,80],[86,74,86,80],[87,74,87,80]]}
[]
[]
[]
[]
[]
[]
[null,null,"COTIZACION FINANCIAMIENTO VEHICULAR DINERS CLUB "]
[]
[null,null,"FECHA COMPRA / VENTA",null,null,"2018-05-21","AAAA/MM/DD"]
[]
[]
[]
[null,null,"NOMBRE DEL VENDEDOR:",null,null,"PEDRO SALINAS"]
[]
[null,null,"DATOS INFORMATIVOS DEL CLIENTE"]
[]
[null,null,"APELLIDOS:",null,null,"DOMINGUEZ",null,null,null,null,null,"RUALES"]
[]
[null,null,"NOMBRES:",null,null,"ANA ",null,null,null,null,null,"CAROLINA",null,null,null,null,{"$f":"CONCATENATE(F19,\" \",L19)","v":"ANA  CAROLINA"}]
[]
[null,null,"TELEFONOS:",null,null,"3188179",null,null,null,null,null,"0985352479"]
[]
[null,null,"DATOS DEL VEHICULO"]
[]
[null,null,"MARCA:",null,null,"MAZDA"]
[]
[null,null,"MODELO:",null,null,"CX3"]
[]
[null,null,"AÑO:",null,null,2019]
[]
[null,null,"VALOR DE COMPRA / VENTA:",null,null,34483.5]
[null,null,null,null,null,{"$f":"+F35/F31","v":0.23199501210723969}]
[null,null,"VALIDACION % DE ENTRADA:",null,null,{"$f":"IF(F32>=25%,F32,\"ENTRADA MENOR AL 25%\")","v":"ENTRADA MENOR AL 25%"}]
[]
[null,null,"VALOR DE ENTRADA:",null,null,8000]
[]
[null,null,"PLAZO FINANCIAMIENTO:",null,null,4]
[]
[null,null,"TIPO DE CLIENTE:",null,null,"PERSONAL"]
[]
[null,null,"TIPO DEL VEHICULO:",null,null,"LIVIANO"]
[]
[null,null,"TASA DE INTERES VIGENTE:",null,null,{"$f":"IF(F39=AR89,AR83,AR84)","v":0.16059999999999999}]
[]
[null,null,"REQUIERE DISPOSITIVO",null,null,{"$f":"IF(F31>=20000,\"REQUIERE DISPOSITIVO DE RASTREO\",\"NO APLICA DISPOSITIVO\")","v":"REQUIERE DISPOSITIVO DE RASTREO"}]
[]
[null,null,"DISPOSITIVO",null,null,"MARESA SATELITAL BY HUNTER"]
[]
[null,null,"PLAZO GASTOS LEGALES",null,null,"3 MESES SIN INTERESES"]
[]
[null,null,"CUOTA SEGURO VEHICULO MES:",null,null,{"$f":"IF(Cotizador!$F$41=\"PESADO HASTA 7.5 TN\",$AC$83,VLOOKUP($F$31,$T$84:$AC$86,10,TRUE))","v":100.460376}]
[]
[null,null,"CUOTA GASTOS LEGALES",null,null,{"$f":"IF($F$49=\"3 MESES SIN INTERESES\",FORM!$F$132/3,FORM!$F$132)","v":139.93916666666667}]
[]
[null,null,"CUOTA MENSUAL DISPOSITIVO",null,null,{"$f":"+FORM!F138","v":35.583333333333336}]
[]
[null,null,"CUOTA MENSUAL SEGURO DESGRAVAMEN",null,null,"0,099% MENSUAL SOBRE EL SALDO DE LA TARJETA DE CREDITO"]
[]
[null,null,"CUOTA MENSUALVEHICULO",null,null,{"$f":"+FORM!F142","v":754.35305704893517}]
[]
[null,null,"VALOR A PAGAR MENSUALMENTE SIN G. LEGALES",null,null,{"$f":"F51+F55+F59","v":890.39676638226854}]
[]
[null,null,"CONTRIBUCION 0.5%",null,null,{"$f":"IF(F49=\"3 MESES SIN INTERESES\",$D$161*((0.5%/12)*3)+(0.5%*F67),(0.5%*F67))","v":132.94227187499999}]
[]
[null,null,"DATOS PARA LLENAR EL VOUCHER"]
[]
[null,null,"CAPITAL",null,null,{"$f":"+F31-F35","v":26483.5}]
[]
[null,null,"INTERES",null,null,{"$f":"+'PAG ORD'!D5-Cotizador!F67","v":9725.4467383488882}]
[]
[]
[]
[]
[]
[]
[]
[]
[]
[]
[]
[]
[null,null,"DISPOSITIVOS",null,null,null,"AÑO",null,"VALOR LEGALES",null,"CIUDAD",null,null,"MES",null,null,"COLOR",null,"CÓDIGO COLOR","Min","Max","TASA","TASA","PRIMA US $","SÚPER BANCOS","S.S. Campesino","IVA","DERECHOS EMISIÓN","PRIMA TOTAL","MARCA SISE","CÓDIGO MARCA SISE","MARCA","CÓDIGO MARCA SISE","MODELO","CÓDIGO MODELO SISE","TIPO","GENERO","DIA","ESTADO CIVIL","% USO","AÑOS","GASTOS LEGALES",null,"tasa por producto","PAÍS DE ORIGEN",null,"% ENTRADA","% RESTANTE","VALOR RESTANTE","CALCULO DÍAS",null,"BIN","FECHA PAGO","EXTRAER1","EXTRAER 2"]
[null,null,"TRACKLINK INTERACTIVO 12",46.573333333333345,469.28,null,2018,null,37.184000000000005,null,"QUITO",null,null,"ENERO",null,null,"AMARILLO",null,1,0,0,4.3,{"$f":"+(V83/12)/100","v":3.5833333333333333E-3},{"$f":"ROUND((FORM!$F$100*$W$83),2)","v":123.57},{"$f":"ROUND(($X$83*3.5%),2)","v":4.32},{"$f":"+X83*0.5%","v":0.61785000000000001},{"$f":"SUM(X83:Z83)*12%","v":15.420941999999998},0.04,{"$f":"SUM(X83:AB83)","v":143.96879199999998},"ALFA ROMEO",24,"ALFA ROMEO",24,146,1,"SEDAN","MASCULINO",1,"SOLTERO",5,1,"CORRIENTE",null,0.16059999999999999,"ALEMANIA",null,{"$f":"+F35/F31","v":0.23199501210723969},{"$f":"100%-AU83","v":0.76800498789276028},{"$f":"+F31-F35","v":26483.5},{"$f":"+F37/12","v":0.33333333333333331},null,360041,16,{"$f":"MID(F60,1,6)","v":""},{"$f":"MID(F60,7,8)","v":""}]
[null,null,"TRACKLINK INTERACTIVO 24",33.553333333333335,592.48,null,2019,null,17.920000000000002,null,"GUAYAQUIL",null,null,"FEBRERO",null,null,"AZUL",null,2,0,24999,3.5,{"$f":"+(V84/12)/100","v":2.9166666666666668E-3},{"$f":"ROUND((FORM!$F$100*$W$84),2)","v":100.58},{"$f":"ROUND(($X$84*3.5%),2)","v":3.52},{"$f":"+X84*0.5%","v":0.50290000000000001},{"$f":"SUM(X84:Z84)*12%","v":12.552347999999999},0.04,{"$f":"SUM(X84:AB84)","v":117.19524799999999},"AUDI",1,"ALFA ROMEO",24,155,2,"SEDAN","FEMENINO",2,"CASADO",10,2,"3 MESES SIN INTERESES",null,0.1123,"ARGENTINA",null,null,null,null,null,null,361329,16]
[null,null,"TRACKLINK INTERACTIVO 36",29.213333333333335,715.68,null,2020,null,1.2,null,"CUENCA",null,null,"MARZO",null,null,"BEIGE",null,3,{"$f":"+U84+0.01","v":24999.01},39999,3,{"$f":"+(V85/12)/100","v":2.5000000000000001E-3},{"$f":"ROUND((FORM!$F$100*$W$85),2)","v":86.21},{"$f":"ROUND(($X$85*3.5%),2)","v":3.02},{"$f":"+X85*0.5%","v":0.43104999999999999},{"$f":"SUM(X85:Z85)*12%","v":10.759325999999998},0.04,{"$f":"SUM(X85:AB85)","v":100.460376},"AUSTIN",26,"ALFA ROMEO",24,156,3,"SEDAN",null,3,"VIUDO",15,3,null,null,0.1123,"BRASIL",null,null,null,null,null,null,361349,1]
[null,null,"TRACKLINK INTERACTIVO 48",27.043333333333337,962.08,null,2021,null,1000,null,"AMBATO",null,null,"ABRIL",null,null,"BLANCO",null,4,{"$f":"+U85+0.01","v":39999.01},200000,2.5,{"$f":"+(V86/12)/100","v":2.0833333333333333E-3},{"$f":"ROUND((FORM!$F$100*$W$86),2)","v":71.84},{"$f":"ROUND(($X$86*3.5%),2)","v":2.5099999999999998},{"$f":"+X86*0.5%","v":0.35920000000000002},{"$f":"SUM(X86:Z86)*12%","v":8.9651040000000002},0.04,{"$f":"SUM(X86:AB86)","v":83.714304000000013},"BMW",2,"ALFA ROMEO",24,165,4,"SEDAN",null,4,"DIVORCIADO",20,4,null,null,0.1123,"CANADÁ",null,null,null,null,null,null,362062,1]
[null,null,"TRACKLINK INTERACTIVO 60",25.741333333333337,1208.48,null,2022,null,1.1200000000000001,null,"IBARRA",null,null,"MAYO",null,null,"CAFÉ",null,5,null,null,null,null,null,null,null,null,null,null,"BUICK",81,"ALFA ROMEO",24,166,5,"SEDAN",null,5,"UNIÓN LIBRE",25,5,null,null,null,"CHINA",null,null,null,null,null,null,362620,1]
[null,null,"TRACKLINK CONTROL 12",54.04,388.64,419,null,null,44.8,null,"MANTA",null,null,"JUNIO",null,null,"CELESTE",null,6,null,null,null,null,null,null,null,null,null,null,"CHANGAN",83,"ALFA ROMEO",24,"SPIDER",6,"SEDAN",null,6,null,30,null,null,null,"tipo de cliente","CHILE",null,null,null,null,null,null,362621,1]
[null,null,"TRACKLINK CONTROL 24",39.620000000000005,511.84,null,null,null,{"$f":"IF(F10>4000,F10-4000,44.8)","v":44.8},null,"PORTOVIEJO",null,null,"JULIO",null,null,"CREMA",null,7,null,null,null,null,null,null,null,null,null,null,"CHEVROLET",3,"ALFA ROMEO",24,33,7,"SEDAN",null,7,null,35,null,null,null,"PERSONAL","COLOMBIA",null,null,null,null,null,null,362622,16]
[null,null,"TRACKLINK CONTROL 36",34.81333333333334,635.04,null,null,null,22.4,null,"MACHALA",null,null,"AGOSTO",null,null,"FUCSIA",null,8,null,null,null,null,null,null,null,null,null,null,"CHRYSLER",4,"ALFA ROMEO",24,"GIO",8,"SEDAN",null,8,null,40,null,null,null,"CORPORATIVO","ECUADOR",null,null,null,null,null,null,363999,16]
[null,null,"TRACKLINK CONTROL 48",32.410000000000004,881.44,null,null,null,56,null,"LOJA",null,null,"SEPTIEMBRE",null,null,"GRIS",null,9,"TIPO DE VEHÍCLO",null,null,null,null,null,null,null,null,null,"CITROEN",28,"ALFA ROMEO",24,164,9,"SEDAN",null,9,null,45,null,null,null,"EMPRESARIAL","ESPAÑA",null,null,null,null,null,null,364170,16]
[null,null,"TRACKLINK CONTROL 60",30.968000000000004,1127.8399999999999,{"$f":"+E87/48","v":25.176666666666666},null,null,null,null,"ALAMOR",null,null,"OCTUBRE",null,null,"LILA",null,10,"LIVIANO",null,null,null,null,null,null,null,null,null,"DACIA",29,"ALFA ROMEO",24,"GTV3",10,"SEDAN",null,10,null,50,null,null,null,"PYME","ESTADOS UNIDOS",null,null,null,null,null,null,364171,1]
[null,null,"TRACKLINK CONTROL PLUS 12",69.90666666666668,586.88,{"$f":"+(E88*1.05)","v":408.072},null,null,null,null,"ALAUSI",null,null,"NOVIEMBRE",null,null,"MORADO",null,11,"PESADO HASTA 7.5 TN",null,null,null,null,null,null,null,null,null,"DAEWOO",5,"ALFA ROMEO",24,145,11,"COUPE",null,11,null,55,null,null,null,null,"NORUEGA",null,null,null,null,null,null,364172,16]
[null,null,"TRACKLINK CONTROL PLUS 24",47.506666666666668,736.96,null,null,null,null,null,"AMBUQUI",null,null,"DICIEMBRE",null,null,"NARANJA",null,12,null,null,null,null,null,null,null,null,null,null,"DAIHATSU",6,"ALFA ROMEO",24,147,12,"SEDAN",null,12,null,60,null,null,null,null,"HONG KONG",null,null,null,null,null,null,364173,1]
[null,null,"TRACKLINK CONTROL PLUS 36",40.04,887.04,null,null,null,null,null,"ANTONIO ANTE",null,null,null,null,null,"NEGRO",null,13,null,null,null,null,null,null,null,null,null,null,"DATSUN",30,"AUDI",1,80,1,"SEDAN",null,13,null,65,null,null,null,null,"FRANCIA",null,null,null,null,null,null,364190,16]
[null,null,"TRACKLINK CONTROL PLUS 48",36.306666666666672,1187.2,null,null,null,null,null,"ANTONIO ANTE",null,null,null,null,null,"PLATA",null,14,null,null,null,null,null,null,null,null,null,null,"DEER",111,"AUDI",1,"A3",2,"SEDAN",null,14,null,70,null,null,null,null,"INGLATERRA",null,null,null,null,null,null,364234,16]
[null,null,"TRACKLINK CONTROL PLUS 60",34.06666666666667,1487.36,{"$f":"+E92/48","v":23.496666666666666},null,null,null,null,"ARCHIDONA",null,null,null,null,null,"PLATEADO",null,15,null,null,null,null,null,null,null,null,null,null,"DODGE",31,"AUDI",1,"TT COUPE 1.8 QUATTRO",3,"SEDAN",null,15,null,75,null,null,null,null,"ITALIA",null,null,null,null,null,null,364261,16]
[null,null,"TRACKLINK CONTROL TOTAL 12",88.573333333333338,null,null,null,null,null,null,"ARENILLAS",null,null,null,null,null,"PLOMO",null,16,null,null,null,null,null,null,null,null,null,null,"FIAT",7,"AUDI",1,"A4",4,"SEDAN",null,16,null,80,null,null,null,null,"JAPÓN",null,null,null,null,null,null,364444,1]
[null,null,"TRACKLINK CONTROL TOTAL 24",60.153333333333336,null,null,null,null,null,null,"ATACAMES",null,null,null,null,null,"ROJO",null,17,null,null,null,null,null,null,null,null,null,null,"FORD",8,"AUDI",1,"A6",5,"SEDAN",null,17,null,85,null,null,null,null,"COREA",null,null,null,null,null,null,364522,16]
[null,null,"TRACKLINK CONTROL TOTAL 36",50.680000000000007,null,null,null,null,null,null,"ATUNTAQUI",null,null,null,null,null,"VERDE",null,18,null,null,null,null,null,null,null,null,null,null,"FSO",77,"AUDI",1,808,6,"SEDAN",null,18,null,90,null,null,null,null,"MÉXICO",null,null,null,null,null,null,364700,1]
[null,null,"TRACKLINK CONTROL TOTAL 48",45.943333333333335,null,null,null,null,null,null,"AZOGUEZ",null,null,null,null,null,"VINO",null,19,null,null,null,null,null,null,null,null,null,null,"GMC",70,"AUDI",1,"A 62.8",7,"SEDAN",null,19,null,95,null,null,null,null,"PERU",null,null,null,null,null,null,364701,16]
[null,null,"TRACKLINK CONTROL TOTAL 60",43.101333333333336,null,null,null,null,null,null,"BABAHOYO",null,null,null,null,null,"BRONCE",null,20,null,null,null,null,null,null,null,null,null,null,"GREAT WALL",108,"AUDI",1,"ALLROAD",8,"SEDAN",null,20,null,100,null,null,null,null,"REPUBLICA CHECA",null,null,null,null,null,null,364702,16]
[null,null,"SHERLOC 12",53.2,null,{"$f":"+(E98*1.05)","v":0},null,null,870,null,"BAHÍA DE CARÁQUEZ",null,null,null,null,null,"CHAMPAGNE",null,21,null,null,null,null,null,null,null,null,null,null,"HONDA",9,"AUDI",1,"A8",9,"SEDAN",null,21,null,null,null,null,null,null,"RUSIA",null,null,null,null,null,null,364703,1]
[null,null,"SHERLOC 24",40.549999999999997,null,null,null,null,null,null,"BALAO",null,null,null,null,null,"DORADO",null,22,null,null,null,null,null,null,null,null,null,null,"HUMMER",115,"AUSTIN",26,"MINI 1000",1,"COUPE",null,22,null,null,null,null,null,null,"SUECIA",null,null,null,null,null,null,364716,1]
[null,null,"SHERLOC 36",36.340000000000003,null,null,null,null,null,null,"BALSAS",null,null,null,null,null,"HABANO",null,23,null,null,null,null,null,null,null,null,null,null,"HYUNDAI",10,"AUSTIN",26,"MINI CORD",2,"COUPE",null,23,null,null,null,null,null,null,"VENEZUELA",null,null,null,null,null,null,364717,1]
[null,null,"SHERLOC 48",31.9,null,null,null,null,null,null,"BALZAR",null,null,null,null,null,"MARRÓN",null,24,null,null,null,null,null,null,null,null,null,null,"INTERNATIONAL",44,"BMW",2,318,1,"SEDAN",null,24,null,null,null,null,null,null,"YUGOSLAVIA",null,null,null,null,null,null,364719,16]
[null,null,"SHERLOC 60",29.23,null,{"$f":"+E102/48","v":0},null,null,null,null,"BAÑOS",null,null,null,null,null,"STRATO",null,25,null,null,null,null,null,null,null,null,null,null,"ISUZU",34,"BMW",2,"330I",2,"SEDAN",null,25,null,null,null,null,null,null,null,null,null,null,null,null,null,365001,16]
[null,null,"HUNTER LOJACK 12",41.887999999999998,null,null,null,null,null,null,"BIBLIAN",null,null,null,null,null,"VIOLETA",null,26,null,null,null,null,null,null,null,null,null,null,"JAGUAR",35,"BMW",2,"328I",3,"SEDAN",null,26,null,null,null,null,null,null,null,null,null,null,null,null,null,365147,16]
[null,null,"HUNTER LOJACK 24",33.6,null,null,null,null,null,null,"BOLÍVAR",null,null,null,null,null,"TURQUESA",null,27,null,null,null,null,null,null,null,null,null,null,"JEEP",71,"BMW",2,"325I",4,"SEDAN",null,27,null,null,null,null,null,null,null,null,null,null,null,null,null,365166,1]
[null,null,"HUNTER LOJACK 36",30.24,null,null,null,null,null,null,"BUENA FE",null,null,null,null,null,"ROSADO",null,28,null,null,null,null,null,null,null,null,null,null,"KIA",11,"BMW",2,"X5 4X4 5P",5,"JEEP",null,28,null,null,null,null,null,null,null,null,null,null,null,null,null,365167,1]
[null,null,"HUNTER LOJACK 48",29.12,null,null,null,null,null,null,"CALUMA",null,null,null,null,null,"ARENA",null,29,null,null,null,null,null,null,null,null,null,null,"LADA",13,"BMW",2,"528I",6,"SEDAN",null,29,null,null,null,null,null,null,null,null,null,null,null,null,null,365168,16]
[null,null,"HUNTER LOJACK 60",28,null,null,null,null,null,null,"CAÑAR",null,null,null,null,null,"ILUSIÓN",null,30,null,null,null,null,null,null,null,null,null,null,"LANCIA",36,"BMW",2,"316I",7,"SEDAN",null,30,null,null,null,null,null,null,null,null,null,null,null,null,null,365169,1]
[null,null,"H. MONITOREO BASICO 12",51.519999999999996,null,null,null,null,null,null,"CARIAMANGA",null,null,null,null,null,"ROBLE",null,31,null,null,null,null,null,null,null,null,null,null,"LAND ROVER",12,"BMW",2,"320I",8,"SEDAN",null,31,null,null,null,null,null,null,null,null,null,null,null,null,null,365181,1]
[null,null,"H. MONITOREO BASICO 24",39.200000000000003,null,null,null,null,null,null,"CATAMAYO",null,null,null,null,null,"MOSTAZA",null,32,null,null,null,null,null,null,null,null,null,null,"LEXUS",37,"BMW",2,"323I",9,"SEDAN",null,null,null,null,null,null,null,null,null,null,null,null,null,null,null,365420,1]
[null,null,"H. MONITOREO BASICO 36",35.840000000000003,null,null,null,null,null,null,"CAYAMBE",null,null,null,null,null,null,null,null,null,null,null,null,null,null,null,null,null,null,"LINCOLN",38,"BMW",2,"523I",10,"SEDAN",null,null,null,null,null,null,null,null,null,null,null,null,null,null,null,365421,16]
[null,null,"H. MONITOREO BASICO 48",33.6,null,null,null,null,null,null,"CELICA",null,null,null,null,null,null,null,null,null,null,null,null,null,null,null,null,null,null,"MAHINDRA",101,"BMW",2,"525I",11,"SEDAN",null,null,null,null,null,null,null,null,null,null,null,null,null,null,null,365422,1]
[null,null,"H. MONITOREO BASICO 60",32.479999999999997,null,null,null,null,null,null,"CHICA",null,null,null,null,null,null,null,null,null,null,null,null,null,null,null,null,null,null,"MAZDA",14,"BMW",2,"Z3",12,"COUPE",null,null,null,null,null,null,null,null,null,null,null,null,null,null,null,365423,16]
[null,null,"H. MONITOREO BÁSICO GOLDEN 12",63.84,null,null,null,null,null,null,"CHIMBO",null,null,null,null,null,null,null,null,null,null,null,null,null,null,null,null,null,null,"MERCEDES BENZ",15,"BMW",2,"Z8",13,"COUPE",null,null,null,null,null,null,null,null,null,null,null,null,null,null,null,365424,16]
[null,null,"H. MONITOREO BÁSICO GOLDEN 24",45.92,null,null,null,null,null,null,"CHONE",null,null,null,null,null,null,null,null,null,null,null,null,null,null,null,null,null,null,"MITSUBISHI",16,"BMW",2,"M3",14,"COUPE",null,null,null,null,null,null,null,null,null,null,null,null,null,null,null,365425,1]
[null,null,"H. MONITOREO BÁSICO GOLDEN 36",40.32,null,null,null,null,null,null,"COCA",null,null,null,null,null,null,null,null,null,null,null,null,null,null,null,null,null,null,"NISSAN",17,"BMW",2,"M5",15,"COUPE",null,null,null,null,null,null,null,null,null,null,null,null,null,null,null,365427,1]
[null,null,"H. MONITOREO BÁSICO GOLDEN 48",36.96,null,null,null,null,null,null,"CONCORDIA",null,null,null,null,null,null,null,null,null,null,null,null,null,null,null,null,null,null,"OLDSMOBIL",73,"BMW",2,520,16,"SEDAN",null,null,null,null,null,null,null,null,null,null,null,null,null,null,null,365428,1]
[null,null,"H. MONITOREO BÁSICO GOLDEN 60",35.167999999999999,null,null,null,null,null,null,"COTACACHI",null,null,null,null,null,null,null,null,null,null,null,null,null,null,null,null,null,null,"OLTCIT",40,"BMW",2,"530IA",17,"SEDAN",null,null,null,null,null,null,null,null,null,null,null,null,null,null,null,365429,16]
[null,null,"MARESA SATELITAL BY HUNTER 12",49.933333333333337,null,null,null,null,null,null,"CUMBAYÁ",null,null,null,null,null,null,null,null,null,null,null,null,null,null,null,null,null,null,"PEUGEOT",18,"BMW",2,"318TI",18,"COUPE",null,null,null,null,null,null,null,null,null,null,null,null,null,null,null,365453,16]
[null,null,"MARESA SATELITAL BY HUNTER 24",40.366666666666667,null,null,null,null,null,null,"DAULE",null,null,null,null,null,null,null,null,null,null,null,null,null,null,null,null,null,null,"PLYMOUTH",54,"BMW",2,740,19,"SEDAN",null,null,null,null,null,null,null,null,null,null,null,null,null,null,null,365454,16]
[null,null,"MARESA SATELITAL BY HUNTER 36",37.177777777777777,null,null,null,null,null,null,"DURAN",null,null,null,null,null,null,null,null,null,null,null,null,null,null,null,null,null,null,"PORCHE",56,"BMW",2,1602,21,"SEDAN"]
[null,null,"MARESA SATELITAL BY HUNTER 48",35.583333333333336,null,null,null,null,null,null,"EL ÁNGEL",null,null,null,null,null,null,null,null,null,null,null,null,null,null,null,null,null,null,"RENAULT",19,"BMW",2,366,22,"SEDAN"]
[null,null,"MARESA SATELITAL BY HUNTER 60",34.626666666666665,null,null,null,null,null,null,"EL CARMEN",null,null,null,null,null,null,null,null,null,null,null,null,null,null,null,null,null,null,"SAAB",45,"BMW",2,530,23,"SEDAN"]
[null,null,null,null,null,null,null,null,null,null,"EL CORAZÓN",null,null,null,null,null,null,null,null,null,null,null,null,null,null,null,null,null,null,"SAEHAN",57,"BMW",2,540,25,"SEDAN"]
[null,null,null,null,null,null,null,null,null,null,"EL EMPALME",null,null,null,null,null,null,null,null,null,null,null,null,null,null,null,null,null,null,"SAMSUNG",74,"BMW",2,"318IS",26,"SEDAN"]
[null,null,null,null,null,null,null,null,null,null,"EL GUABO",null,null,null,null,null,null,null,null,null,null,null,null,null,null,null,null,null,null,"SANGYONG",42,"BMW",2,"318I LIMUSIN",27,"SEDAN"]
[null,null,null,null,null,null,null,null,null,null,"EL NARANJAL",null,null,null,null,null,null,null,null,null,null,null,null,null,null,null,null,null,null,"SEAT",105,"BMW",2,"Z4",29,"COUPE"]
[null,null,"Sin Dispositivo",null,null,null,null,null,null,null,"EL TAMBO",null,null,null,null,null,null,null,null,null,null,null,null,null,null,null,null,null,null,"SKODA",20,"BMW",2,"X3",31,"JEEP"]
[null,null,"TRACKLINK INTERACTIVO",null,null,null,null,null,null,null,"EL TRIUNFO",null,null,null,null,null,null,null,null,null,null,null,null,null,null,null,null,null,null,"SUBARU",58,"BUICK",81,"CENTURY",1,"SEDAN"]
[null,null,"TRACKLINK CONTROL",null,null,null,null,null,null,null,"ESMERALDAS",null,null,null,null,null,null,null,null,null,null,null,null,null,null,null,null,null,null,"SUZUKI",60,"CHANGAN",83,"SC1011CG",1,"PICK-UP"]
[null,null,"TRACKLINK CONTROL PLUS",null,null,null,null,null,null,null,"FLAVIO ALFARO",null,null,null,null,null,null,null,null,null,null,null,null,null,null,null,null,null,null,"TALBOT",59,"CHANGAN",83,"MINI VAN",2,"MINI VAN"]
[null,null,"TRACKLINK CONTROL TOTAL",null,null,null,null,null,null,null,"GIRÓN",null,null,null,null,null,null,null,null,null,null,null,null,null,null,null,null,null,null,"TATA",75,"CHANGAN",83,"SC1018AA100",3,"PICK-UP"]
[null,null,"SHERLOC",null,null,null,null,null,null,null,"GONZALO PIZARRO",null,null,null,null,null,null,null,null,null,null,null,null,null,null,null,null,null,null,"TOYOTA",21,"CHEVROLET",3,"FORSA",1,"COUPE"]
[null,null,"HUNTER LOJACK",null,null,null,null,null,null,null,"GUALACEO",null,null,null,null,null,null,null,null,null,null,null,null,null,null,null,null,null,null,"VOLKSWAGEN",22,"CHEVROLET",3,"CORSA 3P",2,"COUPE"]
[null,null,"H. MONITOREO BASICO",null,null,null,null,null,null,null,"GUALAQUIZA",null,null,null,null,null,null,null,null,null,null,null,null,null,null,null,null,null,null,"VOLVO",23,"CHEVROLET",3,"CORSA 4P",3,"SEDAN"]
[null,null,"H. MONITOREO BÁSICO GOLDEN",null,null,null,null,null,null,null,"GUAMOTE",null,null,null,null,null,null,null,null,null,null,null,null,null,null,null,null,null,null,"WORLDSTAR",99,"CHEVROLET",3,"CORSA 5P",4,"SEDAN"]
[null,null,"MARESA SATELITAL BY HUNTER",null,null,null,null,null,null,null,"GUANO",null,null,null,null,null,null,null,null,null,null,null,null,null,null,null,null,null,null,"ZASTAVA",61,"CHEVROLET",3,"CORSA SPORT",5,"SEDAN"]
[null,null,null,null,null,null,null,null,null,null,"GUARANDA",null,null,null,null,null,null,null,null,null,null,null,null,null,null,null,null,null,null,null,null,"CHEVROLET",3,"CORSA P/U 1600",6,"PICK-UP"]
[null,null,null,null,null,null,null,null,null,null,"GUAYLLABAMBA",null,null,null,null,null,null,null,null,null,null,null,null,null,null,null,null,null,null,null,null,"CHEVROLET",3,"SAN REMO",7,"SEDAN"]
[null,null,null,null,null,null,null,null,null,null,"HUAQUILLAS",null,null,null,null,null,null,null,null,null,null,null,null,null,null,null,null,null,null,null,null,"CHEVROLET",3,"MONZA",8,"SEDAN"]
[null,null,null,null,null,null,null,null,null,null,"JIPIJAPA",null,null,null,null,null,null,null,null,null,null,null,null,null,null,null,null,null,null,null,null,"CHEVROLET",3,"SWIFT",9,"SEDAN"]
[null,null,null,null,null,null,null,null,null,null,"JUNIN",null,null,null,null,null,null,null,null,null,null,null,null,null,null,null,null,null,null,null,null,"CHEVROLET",3,"SWIFT EMOTION",10,"SEDAN"]
[null,null,null,null,null,null,null,null,null,null,"LA CONCORDIA",null,null,null,null,null,null,null,null,null,null,null,null,null,null,null,null,null,null,null,null,"CHEVROLET",3,"ESTEEM 4P",11,"SEDAN"]
[null,null,null,null,null,null,null,null,null,null,"LA MANA",null,null,null,null,null,null,null,null,null,null,null,null,null,null,null,null,null,null,null,null,"CHEVROLET",3,"ESTEEM S. WAGON",12,"STATION WAGON"]
[null,null,null,null,null,null,null,null,null,null,"LA UNIÓN",null,null,null,null,null,null,null,null,null,null,null,null,null,null,null,null,null,null,null,null,"CHEVROLET",3,"LUV 4X2 C/S",13,"PICK-UP"]
[null,null,null,null,null,null,null,null,null,null,"LAGO AGRIO",null,null,null,null,null,null,null,null,null,null,null,null,null,null,null,null,null,null,null,null,"CHEVROLET",3,"LUV 4X2 D/C",14,"PICK-UP"]
[null,null,null,null,null,null,null,null,null,null,"LAS LAJAS",null,null,null,null,null,null,null,null,null,null,null,null,null,null,null,null,null,null,null,null,"CHEVROLET",3,"LUV 4X4 C/S",15,"PICK-UP"]
[null,null,"Valor del vehículo",{"$f":"+$F$31","v":34483.5},null,null,null,null,null,null,"LASSO",null,null,null,null,null,null,null,null,null,null,null,null,null,null,null,null,null,null,null,null,"CHEVROLET",3,"LUV 4X4 D/C",16,"PICK-UP"]
[null,null,"INSCRIPCIÓN EN REGISTRO MERCANTIL",null,null,null,null,null,null,null,"LATACUNGA",null,null,null,null,null,null,null,null,null,null,null,null,null,null,null,null,null,null,null,null,"CHEVROLET",3,"VITARA 3P",17,"JEEP"]
[null,null,"VALOR BASE POR CONTRATO",25,null,null,null,null,null,null,"LIBERTAD",null,null,null,null,null,null,null,null,null,null,null,null,null,null,null,null,null,null,null,null,"CHEVROLET",3,"VITARA 5P",18,"JEEP"]
[null,null,"CESIÓN DE DERECHOS",30,null,null,null,null,null,null,"LIMÓN",null,null,null,null,null,null,null,null,null,null,null,null,null,null,null,null,null,null,null,null,"CHEVROLET",3,"RODEO 4X2",19,"JEEP"]
[null,null,"0.5% SOBRE LA CUANTÍA DEL CONTRATO (PRECIO DE VENTA).",{"$f":"D152*0.5%","v":172.41749999999999},null,null,null,null,null,null,"QUEVEDO",null,null,null,null,null,null,null,null,null,null,null,null,null,null,null,null,null,null,null,null,"CHEVROLET",3,"RODEO 4X4",20,"JEEP"]
[null,null,"TOTAL",{"$f":"SUM(D154:D156)","v":227.41749999999999},null,null,null,null,null,null,"LOS BANCOS",null,null,null,null,null,null,null,null,null,null,null,null,null,null,null,null,null,null,null,null,"CHEVROLET",3,"CAVALIER STD",21,"SEDAN"]
[null,null,"OTROS GASTOS",null,null,null,null,null,null,null,"MACARA",null,null,null,null,null,null,null,null,null,null,null,null,null,null,null,null,null,null,null,null,"CHEVROLET",3,"CAVALIER DLX",22,"SEDAN"]
[null,null,"TRAMITACIÓN LEGAL, SERVICIO DE TERCERO",{"$f":"162.4+30","v":192.4},null,null,null,null,null,null,"MACAS",null,null,null,null,null,null,null,null,null,null,null,null,null,null,null,null,null,null,null,null,"CHEVROLET",3,"SÚPER CARRY PICK UP",23,"PICK-UP"]
[null,null,null,null,null,null,null,null,null,null,"MACHACHI",null,null,null,null,null,null,null,null,null,null,null,null,null,null,null,null,null,null,null,null,"CHEVROLET",3,"GRAND BLAZER 3P",26,"JEEP"]
[null,null,"Tarifa gastos legales",{"$f":"+D157+D159","v":419.8175},null,null,null,null,null,null,"MÉNDEZ",null,null,null,null,null,null,null,null,null,null,null,null,null,null,null,null,null,null,null,null,"CHEVROLET",3,"GRAND BLAZER 5P",27,"JEEP"]
[null,null,null,null,null,null,null,null,null,null,"MILAGRO",null,null,null,null,null,null,null,null,null,null,null,null,null,null,null,null,null,null,null,null,"CHEVROLET",3,"TAHOE 5P. USA",28,"JEEP"]
[null,null,null,null,null,null,null,null,null,null,"MIRA",null,null,null,null,null,null,null,null,null,null,null,null,null,null,null,null,null,null,null,null,"CHEVROLET",3,"BLAZER 4X4",29,"JEEP"]
[null,null,null,null,null,null,null,null,null,null,"MOCACHE",null,null,null,null,null,null,null,null,null,null,null,null,null,null,null,null,null,null,null,null,"CHEVROLET",3,"BLAZER 4X2",30,"JEEP"]
[null,null,"Declaración unico vehículo",null,null,null,null,null,null,null,"MONTALVO",null,null,null,null,null,null,null,null,null,null,null,null,null,null,null,null,null,null,null,null,"CHEVROLET",3,"SILVERADO",31,"PICK-UP"]
[null,null,"Si",null,null,null,null,null,null,null,"MONTECRISTI",null,null,null,null,null,null,null,null,null,null,null,null,null,null,null,null,null,null,null,null,"CHEVROLET",3,"CHEYENNE",32,"PICK-UP"]
[null,null,"No",null,null,null,null,null,null,null,"MONTUFAR",null,null,null,null,null,null,null,null,null,null,null,null,null,null,null,null,null,null,null,null,"CHEVROLET",3,"TROOPER 2.300 3P.",33,"JEEP"]
[null,null,null,null,null,null,null,null,null,null,"MUISNE",null,null,null,null,null,null,null,null,null,null,null,null,null,null,null,null,null,null,null,null,"CHEVROLET",3,"TROOPER 3P",34,"JEEP"]
[null,null,null,null,null,null,null,null,null,null,"NARANJITO",null,null,null,null,null,null,null,null,null,null,null,null,null,null,null,null,null,null,null,null,"CHEVROLET",3,"TROOPER 5P",35,"JEEP"]
[null,null,null,null,null,null,null,null,null,null,"NUEVA LOJA",null,null,null,null,null,null,null,null,null,null,null,null,null,null,null,null,null,null,null,null,"CHEVROLET",3,"GRAND VITARA 3P",36,"JEEP"]
[null,null,null,null,null,null,null,null,null,null,"OTAVALO",null,null,null,null,null,null,null,null,null,null,null,null,null,null,null,null,null,null,null,null,"CHEVROLET",3,"GRAND VITARA 5P",37,"JEEP"]
[null,null,null,null,null,null,null,null,null,null,"PAJAN",null,null,null,null,null,null,null,null,null,null,null,null,null,null,null,null,null,null,null,null,"CHEVROLET",3,"ALTO 5P",38,"SEDAN"]
[null,null,null,null,null,null,null,null,null,null,"PALENQUE",null,null,null,null,null,null,null,null,null,null,null,null,null,null,null,null,null,null,null,null,"CHEVROLET",3,"ASTRA 2P",39,"COUPE"]
[null,null,null,null,null,null,null,null,null,null,"PALESTINA",null,null,null,null,null,null,null,null,null,null,null,null,null,null,null,null,null,null,null,null,"CHEVROLET",3,"ASTRA 4P",40,"SEDAN"]
[null,null,null,null,null,null,null,null,null,null,"PALLATANGA",null,null,null,null,null,null,null,null,null,null,null,null,null,null,null,null,null,null,null,null,"CHEVROLET",3,"ASKA",41,"SEDAN"]
[null,null,null,null,null,null,null,null,null,null,"PASAJE",null,null,null,null,null,null,null,null,null,null,null,null,null,null,null,null,null,null,null,null,"CHEVROLET",3,"ASTROVAN",42,"MINI VAN"]
[null,null,null,null,null,null,null,null,null,null,"PASTAZA",null,null,null,null,null,null,null,null,null,null,null,null,null,null,null,null,null,null,null,null,"CHEVROLET",3,"CHEVETTE",44,"COUPE"]
[null,null,null,null,null,null,null,null,null,null,"PATATE",null,null,null,null,null,null,null,null,null,null,null,null,null,null,null,null,null,null,null,null,"CHEVROLET",3,"CONDOR",45,"COUPE"]
[null,null,null,null,null,null,null,null,null,null,"PAUTE",null,null,null,null,null,null,null,null,null,null,null,null,null,null,null,null,null,null,null,null,"CHEVROLET",3,"CORSICA",46,"SEDAN"]
[null,null,null,null,null,null,null,null,null,null,"PEDERNALES",null,null,null,null,null,null,null,null,null,null,null,null,null,null,null,null,null,null,null,null,"CHEVROLET",3,"GEMINI",47,"SEDAN"]
[null,null,null,null,null,null,null,null,null,null,"PEDRO CARBO",null,null,null,null,null,null,null,null,null,null,null,null,null,null,null,null,null,null,null,null,"CHEVROLET",3,"IMPALA",48,"SEDAN"]
[null,null,null,null,null,null,null,null,null,null,"PELILEO",null,null,null,null,null,null,null,null,null,null,null,null,null,null,null,null,null,null,null,null,"CHEVROLET",3,"VEGA",49,"SEDAN"]
[null,null,null,null,null,null,null,null,null,null,"PIFO",null,null,null,null,null,null,null,null,null,null,null,null,null,null,null,null,null,null,null,null,"CHEVROLET",3,"ZAFIRA 5P",51,"MINI VAN"]
[null,null,null,null,null,null,null,null,null,null,"PILLARO",null,null,null,null,null,null,null,null,null,null,null,null,null,null,null,null,null,null,null,null,"CHEVROLET",3,"CARGO",52,"PICK-UP"]
[null,null,null,null,null,null,null,null,null,null,"PIMAMPIRO",null,null,null,null,null,null,null,null,null,null,null,null,null,null,null,null,null,null,null,null,"CHEVROLET",3,"CHEVY VAN",53,"MINI VAN"]
[null,null,null,null,null,null,null,null,null,null,"PINDAL",null,null,null,null,null,null,null,null,null,null,null,null,null,null,null,null,null,null,null,null,"CHEVROLET",3,"MINI BLAZER 4X2",55,"JEEP"]
[null,null,null,null,null,null,null,null,null,null,"PIÑAS",null,null,null,null,null,null,null,null,null,null,null,null,null,null,null,null,null,null,null,null,"CHEVROLET",3,"MINI BLAZER 4X4",56,"JEEP"]
[null,null,null,null,null,null,null,null,null,null,"PLAYAS",null,null,null,null,null,null,null,null,null,null,null,null,null,null,null,null,null,null,null,null,"CHEVROLET",3,"CITATION",57,"SEDAN"]
[null,null,null,null,null,null,null,null,null,null,"PORTOVELO",null,null,null,null,null,null,null,null,null,null,null,null,null,null,null,null,null,null,null,null,"CHEVROLET",3,"C10",60,"PICK-UP"]
[null,null,null,null,null,null,null,null,null,null,"PUEBLO VIEJO",null,null,null,null,null,null,null,null,null,null,null,null,null,null,null,null,null,null,null,null,"CHEVROLET",3,"CREW CAB 4X4",65,"PICK-UP"]
[null,null,null,null,null,null,null,null,null,null,"PUEMBO",null,null,null,null,null,null,null,null,null,null,null,null,null,null,null,null,null,null,null,null,"CHEVROLET",3,"C1500",66,"PICK-UP"]
[null,null,null,null,null,null,null,null,null,null,"PUERTO CAYO",null,null,null,null,null,null,null,null,null,null,null,null,null,null,null,null,null,null,null,null,"CHEVROLET",3,"AVALANCHE",68,"PICK-UP"]
[null,null,null,null,null,null,null,null,null,null,"PUERTO LOPEZ",null,null,null,null,null,null,null,null,null,null,null,null,null,null,null,null,null,null,null,null,"CHEVROLET",3,"CORSA EVOLUTION",70,"SEDAN"]
[null,null,null,null,null,null,null,null,null,null,"PUERTO QUITO",null,null,null,null,null,null,null,null,null,null,null,null,null,null,null,null,null,null,null,null,"CHEVROLET",3,"TRAIL BLAZER 4X4",71,"JEEP"]
[null,null,null,null,null,null,null,null,null,null,"PUJILI",null,null,null,null,null,null,null,null,null,null,null,null,null,null,null,null,null,null,null,null,"CHEVROLET",3,"TRAIL BLAZER 4X2",72,"JEEP"]
[null,null,null,null,null,null,null,null,null,null,"PUYANGO",null,null,null,null,null,null,null,null,null,null,null,null,null,null,null,null,null,null,null,null,"CHEVROLET",3,"ASTRA 3P",73,"COUPE"]
[null,null,null,null,null,null,null,null,null,null,"PUYO",null,null,null,null,null,null,null,null,null,null,null,null,null,null,null,null,null,null,null,null,"CHEVROLET",3,"CORSA WIND",74,"SEDAN"]
[null,null,null,null,null,null,null,null,null,null,"QUERO",null,null,null,null,null,null,null,null,null,null,null,null,null,null,null,null,null,null,null,null,"CHEVROLET",3,"JIMNY 4X4",75,"JEEP"]
[null,null,null,null,null,null,null,null,null,null,"QUININDE",null,null,null,null,null,null,null,null,null,null,null,null,null,null,null,null,null,null,null,null,"CHEVROLET",3,"SPARK",76,"SEDAN"]
[null,null,null,null,null,null,null,null,null,null,"QUITO",null,null,null,null,null,null,null,null,null,null,null,null,null,null,null,null,null,null,null,null,"CHEVROLET",3,"CHEYENNE 4X2",77,"PICK-UP"]
[null,null,null,null,null,null,null,null,null,null,"RIOBAMBA",null,null,null,null,null,null,null,null,null,null,null,null,null,null,null,null,null,null,null,null,"CHEVROLET",3,"CHEYENNE 4X4",78,"PICK-UP"]
[null,null,null,null,null,null,null,null,null,null,"ROCAFUERTE",null,null,null,null,null,null,null,null,null,null,null,null,null,null,null,null,null,null,null,null,"CHEVROLET",3,"OPTRA",79,"SEDAN"]
[null,null,null,null,null,null,null,null,null,null,"SALCEDO",null,null,null,null,null,null,null,null,null,null,null,null,null,null,null,null,null,null,null,null,"CHEVROLET",3,"GRAND VITARA 5P XL7 4X4",80,"JEEP"]
[null,null,null,null,null,null,null,null,null,null,"SALINAS",null,null,null,null,null,null,null,null,null,null,null,null,null,null,null,null,null,null,null,null,"CHEVROLET",3,"GRAND VITARA 5P XL7 4X2",81,"JEEP"]
[null,null,null,null,null,null,null,null,null,null,"SAMBORONDON",null,null,null,null,null,null,null,null,null,null,null,null,null,null,null,null,null,null,null,null,"CHEVROLET",3,"LUV D-MAX C/S 4X2",82,"PICK-UP"]
[null,null,null,null,null,null,null,null,null,null,"SAME",null,null,null,null,null,null,null,null,null,null,null,null,null,null,null,null,null,null,null,null,"CHEVROLET",3,"LUV D-MAX C/D 4X2",83,"PICK-UP"]
[null,null,null,null,null,null,null,null,null,null,"SAN CAMILO",null,null,null,null,null,null,null,null,null,null,null,null,null,null,null,null,null,null,null,null,"CHEVROLET",3,"LUV D-MAX C/S 4X4",84,"PICK-UP"]
[null,null,null,null,null,null,null,null,null,null,"SAN GABRIEL",null,null,null,null,null,null,null,null,null,null,null,null,null,null,null,null,null,null,null,null,"CHEVROLET",3,"LUV D-MAX C/D 4X4",85,"PICK-UP"]
[null,null,null,null,null,null,null,null,null,null,"SAN LORENZO",null,null,null,null,null,null,null,null,null,null,null,null,null,null,null,null,null,null,null,null,"CHRYSLER",4,"GRAND CHEROKEE LAREDO 4X4",1,"JEEP"]
[null,null,null,null,null,null,null,null,null,null,"SAN MIGUEL",null,null,null,null,null,null,null,null,null,null,null,null,null,null,null,null,null,null,null,null,"CHRYSLER",4,"GRAND CHEROKEE LIMITED 4X4",2,"JEEP"]
[null,null,null,null,null,null,null,null,null,null,"SAN RAFAEL",null,null,null,null,null,null,null,null,null,null,null,null,null,null,null,null,null,null,null,null,"CHRYSLER",4,"CHEROKEE LAREDO",3,"JEEP"]
[null,null,null,null,null,null,null,null,null,null,"SAN VICENTE",null,null,null,null,null,null,null,null,null,null,null,null,null,null,null,null,null,null,null,null,"CHRYSLER",4,"NEON 2000CC",4,"SEDAN"]
[null,null,null,null,null,null,null,null,null,null,"SANGOLQUI",null,null,null,null,null,null,null,null,null,null,null,null,null,null,null,null,null,null,null,null,"CHRYSLER",4,"CARAVAN",5,"MINI VAN"]
[null,null,null,null,null,null,null,null,null,null,"SANTA ANA",null,null,null,null,null,null,null,null,null,null,null,null,null,null,null,null,null,null,null,null,"CHRYSLER",4,"GRAND CARAVAN",6,"MINI VAN"]
[null,null,null,null,null,null,null,null,null,null,"SANTA CRUZ",null,null,null,null,null,null,null,null,null,null,null,null,null,null,null,null,null,null,null,null,"CHRYSLER",4,"LEBARON",7,"SEDAN"]
[null,null,null,null,null,null,null,null,null,null,"SANTA ELENA",null,null,null,null,null,null,null,null,null,null,null,null,null,null,null,null,null,null,null,null,"CHRYSLER",4,"LIBERTY",8,"JEEP"]
[null,null,null,null,null,null,null,null,null,null,"SANTA ISABEL",null,null,null,null,null,null,null,null,null,null,null,null,null,null,null,null,null,null,null,null,"CHRYSLER",4,"STRATUS",9,"SEDAN"]
[null,null,null,null,null,null,null,null,null,null,"SANTA ISABEL",null,null,null,null,null,null,null,null,null,null,null,null,null,null,null,null,null,null,null,null,"CHRYSLER",4,"RENEGADO",10,"JEEP"]
[null,null,null,null,null,null,null,null,null,null,"SANTA ROSA",null,null,null,null,null,null,null,null,null,null,null,null,null,null,null,null,null,null,null,null,"CHRYSLER",4,"TOWN & COUNTRY",11,"PICK-UP"]
[null,null,null,null,null,null,null,null,null,null,"SANTO DOMINGO",null,null,null,null,null,null,null,null,null,null,null,null,null,null,null,null,null,null,null,null,"CITROEN",28,"AX GT",1,"SEDAN"]
[null,null,null,null,null,null,null,null,null,null,"SAQUISILI",null,null,null,null,null,null,null,null,null,null,null,null,null,null,null,null,null,null,null,null,"CITROEN",28,"BERLINGO",2,"SEDAN"]
[null,null,null,null,null,null,null,null,null,null,"SARAGURO",null,null,null,null,null,null,null,null,null,null,null,null,null,null,null,null,null,null,null,null,"CITROEN",28,"SAXO SX",3,"SEDAN"]
[null,null,null,null,null,null,null,null,null,null,"SHUSHUFINDI",null,null,null,null,null,null,null,null,null,null,null,null,null,null,null,null,null,null,null,null,"CITROEN",28,"XANTIA",4,"SEDAN"]
[null,null,null,null,null,null,null,null,null,null,"SIGCHOS",null,null,null,null,null,null,null,null,null,null,null,null,null,null,null,null,null,null,null,null,"CITROEN",28,"XSARA VTS",5,"SEDAN"]
[null,null,null,null,null,null,null,null,null,null,"SIGSIG",null,null,null,null,null,null,null,null,null,null,null,null,null,null,null,null,null,null,null,null,"CITROEN",28,"ZX VOLCANE",6,"SEDAN"]
[null,null,null,null,null,null,null,null,null,null,"SUCRE",null,null,null,null,null,null,null,null,null,null,null,null,null,null,null,null,null,null,null,null,"CITROEN",28,"ALLUER 5P",7,"STATION WAGON"]
[null,null,null,null,null,null,null,null,null,null,"SUCUA",null,null,null,null,null,null,null,null,null,null,null,null,null,null,null,null,null,null,null,null,"CITROEN",28,"XSARA PICASSO",8,"SEDAN"]
[null,null,null,null,null,null,null,null,null,null,"SUCUMBIOS",null,null,null,null,null,null,null,null,null,null,null,null,null,null,null,null,null,null,null,null,"CITROEN",28,"C3 SX 14I",9,"SEDAN"]
[null,null,null,null,null,null,null,null,null,null,"TABABELA",null,null,null,null,null,null,null,null,null,null,null,null,null,null,null,null,null,null,null,null,"DACIA",29,"1304 DROP-SIDE",1,"PICK-UP"]
[null,null,null,null,null,null,null,null,null,null,"TABACUNDO",null,null,null,null,null,null,null,null,null,null,null,null,null,null,null,null,null,null,null,null,"DACIA",29,"BREAK",2,"SEDAN"]
[null,null,null,null,null,null,null,null,null,null,"TAMBILLO",null,null,null,null,null,null,null,null,null,null,null,null,null,null,null,null,null,null,null,null,"DACIA",29,"RAPSODIE",3,"SEDAN"]
[null,null,null,null,null,null,null,null,null,null,"TENA",null,null,null,null,null,null,null,null,null,null,null,null,null,null,null,null,null,null,null,null,"DAEWOO",5,"TICO 5P. SX",1,"SEDAN"]
[null,null,null,null,null,null,null,null,null,null,"TONSUPA",null,null,null,null,null,null,null,null,null,null,null,null,null,null,null,null,null,null,null,null,"DAEWOO",5,"MATIZ",2,"SEDAN"]
[null,null,null,null,null,null,null,null,null,null,"TOSAGUA",null,null,null,null,null,null,null,null,null,null,null,null,null,null,null,null,null,null,null,null,"DAEWOO",5,"LANOS 4P",3,"SEDAN"]
[null,null,null,null,null,null,null,null,null,null,"TULCAN",null,null,null,null,null,null,null,null,null,null,null,null,null,null,null,null,null,null,null,null,"DAEWOO",5,"LANOS 5P",4,"SEDAN"]
[null,null,null,null,null,null,null,null,null,null,"TUMBACO",null,null,null,null,null,null,null,null,null,null,null,null,null,null,null,null,null,null,null,null,"DAEWOO",5,"LANOS 3P",5,"SEDAN"]
[null,null,null,null,null,null,null,null,null,null,"URCUQUI",null,null,null,null,null,null,null,null,null,null,null,null,null,null,null,null,null,null,null,null,"DAEWOO",5,"NUBIRA",6,"SEDAN"]
[null,null,null,null,null,null,null,null,null,null,"URDANETA",null,null,null,null,null,null,null,null,null,null,null,null,null,null,null,null,null,null,null,null,"DAEWOO",5,"TACUMA",7,"MINI VAN"]
[null,null,null,null,null,null,null,null,null,null,"VENTANAS",null,null,null,null,null,null,null,null,null,null,null,null,null,null,null,null,null,null,null,null,"DAEWOO",5,"ESPERO",8,"SEDAN"]
[null,null,null,null,null,null,null,null,null,null,"VINCES",null,null,null,null,null,null,null,null,null,null,null,null,null,null,null,null,null,null,null,null,"DAEWOO",5,"RACER",9,"SEDAN"]
[null,null,null,null,null,null,null,null,null,null,"YAGUACHI",null,null,null,null,null,null,null,null,null,null,null,null,null,null,null,null,null,null,null,null,"DAEWOO",5,"CIELO",10,"SEDAN"]
[null,null,null,null,null,null,null,null,null,null,"ZAMORA",null,null,null,null,null,null,null,null,null,null,null,null,null,null,null,null,null,null,null,null,"DAEWOO",5,"COACH",11,"SEDAN"]
[null,null,null,null,null,null,null,null,null,null,"ZAPOTILLO",null,null,null,null,null,null,null,null,null,null,null,null,null,null,null,null,null,null,null,null,"DAEWOO",5,"DAMAS",12,"SEDAN"]
[null,null,null,null,null,null,null,null,null,null,"ZARUMA",null,null,null,null,null,null,null,null,null,null,null,null,null,null,null,null,null,null,null,null,"DAEWOO",5,"KORANDO",13,"JEEP"]
[null,null,null,null,null,null,null,null,null,null,null,null,null,null,null,null,null,null,null,null,null,null,null,null,null,null,null,null,null,null,null,"DAEWOO",5,"MUSSO",14,"JEEP"]
[null,null,null,null,null,null,null,null,null,null,null,null,null,null,null,null,null,null,null,null,null,null,null,null,null,null,null,null,null,null,null,"DAEWOO",5,"LEGANZA",15,"SEDAN"]
[null,null,null,null,null,null,null,null,null,null,null,null,null,null,null,null,null,null,null,null,null,null,null,null,null,null,null,null,null,null,null,"DAIHATSU",6,"TERIOS",1,"JEEP"]
[null,null,null,null,null,null,null,null,null,null,null,null,null,null,null,null,null,null,null,null,null,null,null,null,null,null,null,null,null,null,null,"DAIHATSU",6,"APLAUSSE",2,"SEDAN"]
[null,null,null,null,null,null,null,null,null,null,null,null,null,null,null,null,null,null,null,null,null,null,null,null,null,null,null,null,null,null,null,"DAIHATSU",6,"CHARADE",3,"SEDAN"]
[null,null,null,null,null,null,null,null,null,null,null,null,null,null,null,null,null,null,null,null,null,null,null,null,null,null,null,null,null,null,null,"DAIHATSU",6,"FEROZA",5,"JEEP"]
[null,null,null,null,null,null,null,null,null,null,null,null,null,null,null,null,null,null,null,null,null,null,null,null,null,null,null,null,null,null,null,"DAIHATSU",6,"GRAND MOVE",6,"SEDAN"]
[null,null,null,null,null,null,null,null,null,null,null,null,null,null,null,null,null,null,null,null,null,null,null,null,null,null,null,null,null,null,null,"DAIHATSU",6,"ROCKY",7,"JEEP"]
[null,null,null,null,null,null,null,null,null,null,null,null,null,null,null,null,null,null,null,null,null,null,null,null,null,null,null,null,null,null,null,"DAIHATSU",6,"A45 L",8,"SEDAN"]
[null,null,null,null,null,null,null,null,null,null,null,null,null,null,null,null,null,null,null,null,null,null,null,null,null,null,null,null,null,null,null,"DAIHATSU",6,"COURE",9,"SEDAN"]
[null,null,null,null,null,null,null,null,null,null,null,null,null,null,null,null,null,null,null,null,null,null,null,null,null,null,null,null,null,null,null,"DATSUN",30,1200,1,"PICK-UP"]
[null,null,null,null,null,null,null,null,null,null,null,null,null,null,null,null,null,null,null,null,null,null,null,null,null,null,null,null,null,null,null,"DATSUN",30,1500,2,"PICK-UP"]
[null,null,null,null,null,null,null,null,null,null,null,null,null,null,null,null,null,null,null,null,null,null,null,null,null,null,null,null,null,null,null,"DATSUN",30,1800,3,"PICK-UP"]
[null,null,null,null,null,null,null,null,null,null,null,null,null,null,null,null,null,null,null,null,null,null,null,null,null,null,null,null,null,null,null,"DATSUN",30,"120Y",4,"SEDAN"]
[null,null,null,null,null,null,null,null,null,null,null,null,null,null,null,null,null,null,null,null,null,null,null,null,null,null,null,null,null,null,null,"DATSUN",30,"160J",5,"SEDAN"]
[null,null,null,null,null,null,null,null,null,null,null,null,null,null,null,null,null,null,null,null,null,null,null,null,null,null,null,null,null,null,null,"DATSUN",30,"B 210",6,"COUPE"]
[null,null,null,null,null,null,null,null,null,null,null,null,null,null,null,null,null,null,null,null,null,null,null,null,null,null,null,null,null,null,null,"DATSUN",30,1000,7,"PICK-UP"]
[null,null,null,null,null,null,null,null,null,null,null,null,null,null,null,null,null,null,null,null,null,null,null,null,null,null,null,null,null,null,null,"DEER",111,"CC 1020 D",1,"PICK-UP"]
[null,null,null,null,null,null,null,null,null,null,null,null,null,null,null,null,null,null,null,null,null,null,null,null,null,null,null,null,null,null,null,"DODGE",31,"RAM 4X4",1,"PICK-UP"]
[null,null,null,null,null,null,null,null,null,null,null,null,null,null,null,null,null,null,null,null,null,null,null,null,null,null,null,null,null,null,null,"DODGE",31,"RAM 4X2",2,"PICK-UP"]
[null,null,null,null,null,null,null,null,null,null,null,null,null,null,null,null,null,null,null,null,null,null,null,null,null,null,null,null,null,null,null,"DODGE",31,"DAKOTA",3,"PICK-UP"]
[null,null,null,null,null,null,null,null,null,null,null,null,null,null,null,null,null,null,null,null,null,null,null,null,null,null,null,null,null,null,null,"DODGE",31,"DURANGO",4,"JEEP"]
[null,null,null,null,null,null,null,null,null,null,null,null,null,null,null,null,null,null,null,null,null,null,null,null,null,null,null,null,null,null,null,"DODGE",31,"ASPEN",5,"SEDAN"]
[null,null,null,null,null,null,null,null,null,null,null,null,null,null,null,null,null,null,null,null,null,null,null,null,null,null,null,null,null,null,null,"DODGE",31,"CARAVAN",7,"MINI VAN"]
[null,null,null,null,null,null,null,null,null,null,null,null,null,null,null,null,null,null,null,null,null,null,null,null,null,null,null,null,null,null,null,"FIAT",7,"UNO MILLE",1,"SEDAN"]
[null,null,null,null,null,null,null,null,null,null,null,null,null,null,null,null,null,null,null,null,null,null,null,null,null,null,null,null,null,null,null,"FIAT",7,"UNO",2,"COUPE"]
[null,null,null,null,null,null,null,null,null,null,null,null,null,null,null,null,null,null,null,null,null,null,null,null,null,null,null,null,null,null,null,"FIAT",7,"PREMIO",3,"SEDAN"]
[null,null,null,null,null,null,null,null,null,null,null,null,null,null,null,null,null,null,null,null,null,null,null,null,null,null,null,null,null,null,null,"FIAT",7,"FIORINO",4,"PICK-UP"]
[null,null,null,null,null,null,null,null,null,null,null,null,null,null,null,null,null,null,null,null,null,null,null,null,null,null,null,null,null,null,null,"FIAT",7,"PALIO",5,"SEDAN"]
[null,null,null,null,null,null,null,null,null,null,null,null,null,null,null,null,null,null,null,null,null,null,null,null,null,null,null,null,null,null,null,"FIAT",7,"POLSKY",6,"SEDAN"]
[null,null,null,null,null,null,null,null,null,null,null,null,null,null,null,null,null,null,null,null,null,null,null,null,null,null,null,null,null,null,null,"FIAT",7,"SPAZIO",7,"SEDAN"]
[null,null,null,null,null,null,null,null,null,null,null,null,null,null,null,null,null,null,null,null,null,null,null,null,null,null,null,null,null,null,null,"FIAT",7,"WEEKWEND",8,"SEDAN"]
[null,null,null,null,null,null,null,null,null,null,null,null,null,null,null,null,null,null,null,null,null,null,null,null,null,null,null,null,null,null,null,"FIAT",7,"CROMA",9,"SEDAN"]
[null,null,null,null,null,null,null,null,null,null,null,null,null,null,null,null,null,null,null,null,null,null,null,null,null,null,null,null,null,null,null,"FIAT",7,124,10,"COUPE"]
[null,null,null,null,null,null,null,null,null,null,null,null,null,null,null,null,null,null,null,null,null,null,null,null,null,null,null,null,null,null,null,"FIAT",7,132,11,"SEDAN"]
[null,null,null,null,null,null,null,null,null,null,null,null,null,null,null,null,null,null,null,null,null,null,null,null,null,null,null,null,null,null,null,"FIAT",7,"TIPO SX",13,"SEDAN"]
[null,null,null,null,null,null,null,null,null,null,null,null,null,null,null,null,null,null,null,null,null,null,null,null,null,null,null,null,null,null,null,"FIAT",7,"FLARESIDE",14,"SEDAN"]
[null,null,null,null,null,null,null,null,null,null,null,null,null,null,null,null,null,null,null,null,null,null,null,null,null,null,null,null,null,null,null,"FIAT",7,"SIENA",15,"SEDAN"]
[null,null,null,null,null,null,null,null,null,null,null,null,null,null,null,null,null,null,null,null,null,null,null,null,null,null,null,null,null,null,null,"FIAT",7,"STRADA",16,"PICK-UP"]
[null,null,null,null,null,null,null,null,null,null,null,null,null,null,null,null,null,null,null,null,null,null,null,null,null,null,null,null,null,null,null,"FIAT",7,"STILO CONFORT",17,"SEDAN"]
[null,null,null,null,null,null,null,null,null,null,null,null,null,null,null,null,null,null,null,null,null,null,null,null,null,null,null,null,null,null,null,"FIAT",7,"STILO",18,"SEDAN"]
[null,null,null,null,null,null,null,null,null,null,null,null,null,null,null,null,null,null,null,null,null,null,null,null,null,null,null,null,null,null,null,"FORD",8,"FESTIVA",1,"SEDAN"]
[null,null,null,null,null,null,null,null,null,null,null,null,null,null,null,null,null,null,null,null,null,null,null,null,null,null,null,null,null,null,null,"FORD",8,"ESCORT",2,"SEDAN"]
[null,null,null,null,null,null,null,null,null,null,null,null,null,null,null,null,null,null,null,null,null,null,null,null,null,null,null,null,null,null,null,"FORD",8,"COURIER",3,"PICK-UP"]
[null,null,null,null,null,null,null,null,null,null,null,null,null,null,null,null,null,null,null,null,null,null,null,null,null,null,null,null,null,null,null,"FORD",8,"RANGER 4X2",4,"PICK-UP"]
[null,null,null,null,null,null,null,null,null,null,null,null,null,null,null,null,null,null,null,null,null,null,null,null,null,null,null,null,null,null,null,"FORD",8,"RANGER 4X4",5,"PICK-UP"]
[null,null,null,null,null,null,null,null,null,null,null,null,null,null,null,null,null,null,null,null,null,null,null,null,null,null,null,null,null,null,null,"FORD",8,"RANGER CREW CAB 4X4",6,"PICK-UP"]
[null,null,null,null,null,null,null,null,null,null,null,null,null,null,null,null,null,null,null,null,null,null,null,null,null,null,null,null,null,null,null,"FORD",8,"F-150 XL 4X2",7,"PICK-UP"]
[null,null,null,null,null,null,null,null,null,null,null,null,null,null,null,null,null,null,null,null,null,null,null,null,null,null,null,null,null,null,null,"FORD",8,"F-150 XL 4X4",8,"PICK-UP"]
[null,null,null,null,null,null,null,null,null,null,null,null,null,null,null,null,null,null,null,null,null,null,null,null,null,null,null,null,null,null,null,"FORD",8,"F-150 LARIAT",9,"PICK-UP"]
[null,null,null,null,null,null,null,null,null,null,null,null,null,null,null,null,null,null,null,null,null,null,null,null,null,null,null,null,null,null,null,"FORD",8,"BRONCO",10,"JEEP"]
[null,null,null,null,null,null,null,null,null,null,null,null,null,null,null,null,null,null,null,null,null,null,null,null,null,null,null,null,null,null,null,"FORD",8,"EXPLORER 4X2 XL 3P",11,"JEEP"]
[null,null,null,null,null,null,null,null,null,null,null,null,null,null,null,null,null,null,null,null,null,null,null,null,null,null,null,null,null,null,null,"FORD",8,"EXPLORER 4X4 3P",12,"JEEP"]
[null,null,null,null,null,null,null,null,null,null,null,null,null,null,null,null,null,null,null,null,null,null,null,null,null,null,null,null,null,null,null,"FORD",8,"EXPLORER 4X4 5P",13,"JEEP"]
[null,null,null,null,null,null,null,null,null,null,null,null,null,null,null,null,null,null,null,null,null,null,null,null,null,null,null,null,null,null,null,"FORD",8,"EXPLORER 4X2 5P",14,"JEEP"]
[null,null,null,null,null,null,null,null,null,null,null,null,null,null,null,null,null,null,null,null,null,null,null,null,null,null,null,null,null,null,null,"FORD",8,"EXPEDITION EDDIE BAUER",15,"JEEP"]
[null,null,null,null,null,null,null,null,null,null,null,null,null,null,null,null,null,null,null,null,null,null,null,null,null,null,null,null,null,null,null,"FORD",8,"ESCAPE",16,"JEEP"]
[null,null,null,null,null,null,null,null,null,null,null,null,null,null,null,null,null,null,null,null,null,null,null,null,null,null,null,null,null,null,null,"FORD",8,"AEROSTAR",17,"MINI VAN"]
[null,null,null,null,null,null,null,null,null,null,null,null,null,null,null,null,null,null,null,null,null,null,null,null,null,null,null,null,null,null,null,"FORD",8,"CLUB WAGON",18,"MINI VAN"]
[null,null,null,null,null,null,null,null,null,null,null,null,null,null,null,null,null,null,null,null,null,null,null,null,null,null,null,null,null,null,null,"FORD",8,"CONTOUR",19,"SEDAN"]
[null,null,null,null,null,null,null,null,null,null,null,null,null,null,null,null,null,null,null,null,null,null,null,null,null,null,null,null,null,null,null,"FORD",8,"ECONOLINE",20,"MINI VAN"]
[null,null,null,null,null,null,null,null,null,null,null,null,null,null,null,null,null,null,null,null,null,null,null,null,null,null,null,null,null,null,null,"FORD",8,"F-250",21,"PICK-UP"]
[null,null,null,null,null,null,null,null,null,null,null,null,null,null,null,null,null,null,null,null,null,null,null,null,null,null,null,null,null,null,null,"FORD",8,"F-350",22,"PICK-UP"]
[null,null,null,null,null,null,null,null,null,null,null,null,null,null,null,null,null,null,null,null,null,null,null,null,null,null,null,null,null,null,null,"FORD",8,"F-470",23,"PICK-UP"]
[null,null,null,null,null,null,null,null,null,null,null,null,null,null,null,null,null,null,null,null,null,null,null,null,null,null,null,null,null,null,null,"FORD",8,"F-600",24,"PICK-UP"]
[null,null,null,null,null,null,null,null,null,null,null,null,null,null,null,null,null,null,null,null,null,null,null,null,null,null,null,null,null,null,null,"FORD",8,"F-700",25,"PICK-UP"]
[null,null,null,null,null,null,null,null,null,null,null,null,null,null,null,null,null,null,null,null,null,null,null,null,null,null,null,null,null,null,null,"FORD",8,"FIESTA",26,"COUPE"]
[null,null,null,null,null,null,null,null,null,null,null,null,null,null,null,null,null,null,null,null,null,null,null,null,null,null,null,null,null,null,null,"FORD",8,"MAVERICK",27,"SEDAN"]
[null,null,null,null,null,null,null,null,null,null,null,null,null,null,null,null,null,null,null,null,null,null,null,null,null,null,null,null,null,null,null,"FORD",8,"MONDEO",28,"SEDAN"]
[null,null,null,null,null,null,null,null,null,null,null,null,null,null,null,null,null,null,null,null,null,null,null,null,null,null,null,null,null,null,null,"FORD",8,"TAURUS",29,"SEDAN"]
[null,null,null,null,null,null,null,null,null,null,null,null,null,null,null,null,null,null,null,null,null,null,null,null,null,null,null,null,null,null,null,"FORD",8,"SIERRA",30,"PICK-UP"]
[null,null,null,null,null,null,null,null,null,null,null,null,null,null,null,null,null,null,null,null,null,null,null,null,null,null,null,null,null,null,null,"FORD",8,"SUPER DUTY",31,"MINI VAN"]
[null,null,null,null,null,null,null,null,null,null,null,null,null,null,null,null,null,null,null,null,null,null,null,null,null,null,null,null,null,null,null,"FORD",8,"TEMPO",32,"SEDAN"]
[null,null,null,null,null,null,null,null,null,null,null,null,null,null,null,null,null,null,null,null,null,null,null,null,null,null,null,null,null,null,null,"FORD",8,"WINDSTAR",33,"MINI VAN"]
[null,null,null,null,null,null,null,null,null,null,null,null,null,null,null,null,null,null,null,null,null,null,null,null,null,null,null,null,null,null,null,"FORD",8,"FUERTE",34,"JEEP"]
[null,null,null,null,null,null,null,null,null,null,null,null,null,null,null,null,null,null,null,null,null,null,null,null,null,null,null,null,null,null,null,"FORD",8,"F-100",35,"PICK-UP"]
[null,null,null,null,null,null,null,null,null,null,null,null,null,null,null,null,null,null,null,null,null,null,null,null,null,null,null,null,null,null,null,"FORD",8,"LASER",36,"SEDAN"]
[null,null,null,null,null,null,null,null,null,null,null,null,null,null,null,null,null,null,null,null,null,null,null,null,null,null,null,null,null,null,null,"FORD",8,"MUSTANG",38,"COUPE"]
[null,null,null,null,null,null,null,null,null,null,null,null,null,null,null,null,null,null,null,null,null,null,null,null,null,null,null,null,null,null,null,"FORD",8,"RANGER 4X2 D/C",40,"PICK-UP"]
[null,null,null,null,null,null,null,null,null,null,null,null,null,null,null,null,null,null,null,null,null,null,null,null,null,null,null,null,null,null,null,"FORD",8,"RANGER 4X4 D/C",41,"PICK-UP"]
[null,null,null,null,null,null,null,null,null,null,null,null,null,null,null,null,null,null,null,null,null,null,null,null,null,null,null,null,null,null,null,"FORD",8,"CUSTOM",42,"PICK-UP"]
[null,null,null,null,null,null,null,null,null,null,null,null,null,null,null,null,null,null,null,null,null,null,null,null,null,null,null,null,null,null,null,"FORD",8,"F-500",45,"PICK-UP"]
[null,null,null,null,null,null,null,null,null,null,null,null,null,null,null,null,null,null,null,null,null,null,null,null,null,null,null,null,null,null,null,"FORD",8,"F-650",46,"PICK-UP"]
[null,null,null,null,null,null,null,null,null,null,null,null,null,null,null,null,null,null,null,null,null,null,null,null,null,null,null,null,null,null,null,"FORD",8,"F-750",47,"PICK-UP"]
[null,null,null,null,null,null,null,null,null,null,null,null,null,null,null,null,null,null,null,null,null,null,null,null,null,null,null,null,null,null,null,"FORD",8,"FIESTA 4P",48,"SEDAN"]
[null,null,null,null,null,null,null,null,null,null,null,null,null,null,null,null,null,null,null,null,null,null,null,null,null,null,null,null,null,null,null,"FORD",8,"LTD",49,"SEDAN"]
[null,null,null,null,null,null,null,null,null,null,null,null,null,null,null,null,null,null,null,null,null,null,null,null,null,null,null,null,null,null,null,"FORD",8,"EXCURSION 4X4",50,"JEEP"]
[null,null,null,null,null,null,null,null,null,null,null,null,null,null,null,null,null,null,null,null,null,null,null,null,null,null,null,null,null,null,null,"FORD",8,"ECOSPORT 4X2",51,"JEEP"]
[null,null,null,null,null,null,null,null,null,null,null,null,null,null,null,null,null,null,null,null,null,null,null,null,null,null,null,null,null,null,null,"FORD",8,"ECOSPORT 4X4",52,"JEEP"]
[null,null,null,null,null,null,null,null,null,null,null,null,null,null,null,null,null,null,null,null,null,null,null,null,null,null,null,null,null,null,null,"FORD",8,"FOCUS",53,"SEDAN"]
[null,null,null,null,null,null,null,null,null,null,null,null,null,null,null,null,null,null,null,null,null,null,null,null,null,null,null,null,null,null,null,"FORD",8,"EXPLORER SPORT TRACK",54,"JEEP"]
[null,null,null,null,null,null,null,null,null,null,null,null,null,null,null,null,null,null,null,null,null,null,null,null,null,null,null,null,null,null,null,"FORD",8,"GRANADA",55,"SEDAN"]
[null,null,null,null,null,null,null,null,null,null,null,null,null,null,null,null,null,null,null,null,null,null,null,null,null,null,null,null,null,null,null,"FORD",8,"EXPLORER SPORT TRACK 4X2",56,"JEEP"]
[null,null,null,null,null,null,null,null,null,null,null,null,null,null,null,null,null,null,null,null,null,null,null,null,null,null,null,null,null,null,null,"FSO",77,"GLE 1600CC",1,"SEDAN"]
[null,null,null,null,null,null,null,null,null,null,null,null,null,null,null,null,null,null,null,null,null,null,null,null,null,null,null,null,null,null,null,"GMC",70,"SIERRA",1,"JEEP"]
[null,null,null,null,null,null,null,null,null,null,null,null,null,null,null,null,null,null,null,null,null,null,null,null,null,null,null,null,null,null,null,"GMC",70,"BLAZER",2,"JEEP"]
[null,null,null,null,null,null,null,null,null,null,null,null,null,null,null,null,null,null,null,null,null,null,null,null,null,null,null,null,null,null,null,"GMC",70,"SAFARY",3,"PICK-UP"]
[null,null,null,null,null,null,null,null,null,null,null,null,null,null,null,null,null,null,null,null,null,null,null,null,null,null,null,null,null,null,null,"GREAT WALL",108,"CC1020C C/S",1,"PICK-UP"]
[null,null,null,null,null,null,null,null,null,null,null,null,null,null,null,null,null,null,null,null,null,null,null,null,null,null,null,null,null,null,null,"GREAT WALL",108,"CC1020D",2,"PICK-UP"]
[null,null,null,null,null,null,null,null,null,null,null,null,null,null,null,null,null,null,null,null,null,null,null,null,null,null,null,null,null,null,null,"HONDA",9,"CRV 4X4",1,"JEEP"]
[null,null,null,null,null,null,null,null,null,null,null,null,null,null,null,null,null,null,null,null,null,null,null,null,null,null,null,null,null,null,null,"HONDA",9,"CIVIC",2,"SEDAN"]
[null,null,null,null,null,null,null,null,null,null,null,null,null,null,null,null,null,null,null,null,null,null,null,null,null,null,null,null,null,null,null,"HONDA",9,"ACCORD",3,"SEDAN"]
[null,null,null,null,null,null,null,null,null,null,null,null,null,null,null,null,null,null,null,null,null,null,null,null,null,null,null,null,null,null,null,"HONDA",9,"INTEGRA",6,"SEDAN"]
[null,null,null,null,null,null,null,null,null,null,null,null,null,null,null,null,null,null,null,null,null,null,null,null,null,null,null,null,null,null,null,"HONDA",9,"PRELUDE",7,"COUPE"]
[null,null,null,null,null,null,null,null,null,null,null,null,null,null,null,null,null,null,null,null,null,null,null,null,null,null,null,null,null,null,null,"HONDA",9,"ACURA",9,"SEDAN"]
[null,null,null,null,null,null,null,null,null,null,null,null,null,null,null,null,null,null,null,null,null,null,null,null,null,null,null,null,null,null,null,"HONDA",9,"ODYSSEY",11,"MINI VAN"]
[null,null,null,null,null,null,null,null,null,null,null,null,null,null,null,null,null,null,null,null,null,null,null,null,null,null,null,null,null,null,null,"HONDA",9,"CIVIC DEL SOL",14,"COUPE"]
[null,null,null,null,null,null,null,null,null,null,null,null,null,null,null,null,null,null,null,null,null,null,null,null,null,null,null,null,null,null,null,"HONDA",9,"FIT",17,"SEDAN"]
[null,null,null,null,null,null,null,null,null,null,null,null,null,null,null,null,null,null,null,null,null,null,null,null,null,null,null,null,null,null,null,"HONDA",9,"PILOT",20,"SEDAN"]
[null,null,null,null,null,null,null,null,null,null,null,null,null,null,null,null,null,null,null,null,null,null,null,null,null,null,null,null,null,null,null,"HONDA",9,"LEGEND",21,"SEDAN"]
[null,null,null,null,null,null,null,null,null,null,null,null,null,null,null,null,null,null,null,null,null,null,null,null,null,null,null,null,null,null,null,"HONDA",9,"CRV 4X2",28,"JEEP"]
[null,null,null,null,null,null,null,null,null,null,null,null,null,null,null,null,null,null,null,null,null,null,null,null,null,null,null,null,null,null,null,"HUMMER",115,"H2 UTILITY WAGON 4WD",1,"JEEP"]
[null,null,null,null,null,null,null,null,null,null,null,null,null,null,null,null,null,null,null,null,null,null,null,null,null,null,null,null,null,null,null,"HYUNDAI",10,"ACCENT",1,"SEDAN"]
[null,null,null,null,null,null,null,null,null,null,null,null,null,null,null,null,null,null,null,null,null,null,null,null,null,null,null,null,null,null,null,"HYUNDAI",10,"ACCENT VERNA",2,"SEDAN"]
[null,null,null,null,null,null,null,null,null,null,null,null,null,null,null,null,null,null,null,null,null,null,null,null,null,null,null,null,null,null,null,"HYUNDAI",10,"SANTA FE 4X4",3,"JEEP"]
[null,null,null,null,null,null,null,null,null,null,null,null,null,null,null,null,null,null,null,null,null,null,null,null,null,null,null,null,null,null,null,"HYUNDAI",10,"EXCEL 4P",4,"SEDAN"]
[null,null,null,null,null,null,null,null,null,null,null,null,null,null,null,null,null,null,null,null,null,null,null,null,null,null,null,null,null,null,null,"HYUNDAI",10,"EXCEL 5P",5,"SEDAN"]
[null,null,null,null,null,null,null,null,null,null,null,null,null,null,null,null,null,null,null,null,null,null,null,null,null,null,null,null,null,null,null,"HYUNDAI",10,"ELANTRA",6,"SEDAN"]
[null,null,null,null,null,null,null,null,null,null,null,null,null,null,null,null,null,null,null,null,null,null,null,null,null,null,null,null,null,null,null,"HYUNDAI",10,"ATOS",7,"SEDAN"]
[null,null,null,null,null,null,null,null,null,null,null,null,null,null,null,null,null,null,null,null,null,null,null,null,null,null,null,null,null,null,null,"HYUNDAI",10,"ATOS SEMIFULL",8,"SEDAN"]
[null,null,null,null,null,null,null,null,null,null,null,null,null,null,null,null,null,null,null,null,null,null,null,null,null,null,null,null,null,null,null,"HYUNDAI",10,"ELANTRA AVANTE",9,"SEDAN"]
[null,null,null,null,null,null,null,null,null,null,null,null,null,null,null,null,null,null,null,null,null,null,null,null,null,null,null,null,null,null,null,"HYUNDAI",10,"GALLOPER",10,"JEEP"]
[null,null,null,null,null,null,null,null,null,null,null,null,null,null,null,null,null,null,null,null,null,null,null,null,null,null,null,null,null,null,null,"HYUNDAI",10,"PONNY",14,"COUPE"]
[null,null,null,null,null,null,null,null,null,null,null,null,null,null,null,null,null,null,null,null,null,null,null,null,null,null,null,null,null,null,null,"HYUNDAI",10,"SCOUPE",15,"COUPE"]
[null,null,null,null,null,null,null,null,null,null,null,null,null,null,null,null,null,null,null,null,null,null,null,null,null,null,null,null,null,null,null,"HYUNDAI",10,"SONATA",16,"SEDAN"]
[null,null,null,null,null,null,null,null,null,null,null,null,null,null,null,null,null,null,null,null,null,null,null,null,null,null,null,null,null,null,null,"HYUNDAI",10,"GRAND SALOON",19,"SEDAN"]
[null,null,null,null,null,null,null,null,null,null,null,null,null,null,null,null,null,null,null,null,null,null,null,null,null,null,null,null,null,null,null,"HYUNDAI",10,"TERRACAN",20,"JEEP"]
[null,null,null,null,null,null,null,null,null,null,null,null,null,null,null,null,null,null,null,null,null,null,null,null,null,null,null,null,null,null,null,"HYUNDAI",10,"MATRIX",21,"MINI VAN"]
[null,null,null,null,null,null,null,null,null,null,null,null,null,null,null,null,null,null,null,null,null,null,null,null,null,null,null,null,null,null,null,"HYUNDAI",10,"SANTAMO",24,"SEDAN"]
[null,null,null,null,null,null,null,null,null,null,null,null,null,null,null,null,null,null,null,null,null,null,null,null,null,null,null,null,null,null,null,"HYUNDAI",10,"GETZ",25,"SEDAN"]
[null,null,null,null,null,null,null,null,null,null,null,null,null,null,null,null,null,null,null,null,null,null,null,null,null,null,null,null,null,null,null,"HYUNDAI",10,"TRAJET",26,"SEDAN"]
[null,null,null,null,null,null,null,null,null,null,null,null,null,null,null,null,null,null,null,null,null,null,null,null,null,null,null,null,null,null,null,"HYUNDAI",10,"HI",27,"SEDAN"]
[null,null,null,null,null,null,null,null,null,null,null,null,null,null,null,null,null,null,null,null,null,null,null,null,null,null,null,null,null,null,null,"HYUNDAI",10,"WINDOW VAN",28,"MINI VAN"]
[null,null,null,null,null,null,null,null,null,null,null,null,null,null,null,null,null,null,null,null,null,null,null,null,null,null,null,null,null,null,null,"HYUNDAI",10,"SANTA FE 4X2",29,"JEEP"]
[null,null,null,null,null,null,null,null,null,null,null,null,null,null,null,null,null,null,null,null,null,null,null,null,null,null,null,null,null,null,null,"HYUNDAI",10,"TUCSON",30,"JEEP"]
[null,null,null,null,null,null,null,null,null,null,null,null,null,null,null,null,null,null,null,null,null,null,null,null,null,null,null,null,null,null,null,"INTERNATIONAL",44,"SCOUT II",3,"JEEP"]
[null,null,null,null,null,null,null,null,null,null,null,null,null,null,null,null,null,null,null,null,null,null,null,null,null,null,null,null,null,null,null,"ISUZU",34,"NPR NLD",1,"PICK-UP"]
[null,null,null,null,null,null,null,null,null,null,null,null,null,null,null,null,null,null,null,null,null,null,null,null,null,null,null,null,null,null,null,"ISUZU",34,"RODEO",2,"JEEP"]
[null,null,null,null,null,null,null,null,null,null,null,null,null,null,null,null,null,null,null,null,null,null,null,null,null,null,null,null,null,null,null,"ISUZU",34,"TROOPER",3,"JEEP"]
[null,null,null,null,null,null,null,null,null,null,null,null,null,null,null,null,null,null,null,null,null,null,null,null,null,null,null,null,null,null,null,"JAGUAR",35,"J6",1,"SEDAN"]
[null,null,null,null,null,null,null,null,null,null,null,null,null,null,null,null,null,null,null,null,null,null,null,null,null,null,null,null,null,null,null,"JEEP",71,"WILLYS",1,"JEEP"]
[null,null,null,null,null,null,null,null,null,null,null,null,null,null,null,null,null,null,null,null,null,null,null,null,null,null,null,null,null,null,null,"JEEP",71,"WRANGLER",2,"JEEP"]
[null,null,null,null,null,null,null,null,null,null,null,null,null,null,null,null,null,null,null,null,null,null,null,null,null,null,null,null,null,null,null,"JEEP",71,"WRANGLER SAHARA",3,"JEEP"]
[null,null,null,null,null,null,null,null,null,null,null,null,null,null,null,null,null,null,null,null,null,null,null,null,null,null,null,null,null,null,null,"JEEP",71,"CHEROKEE RENEGADE",4,"JEEP"]
[null,null,null,null,null,null,null,null,null,null,null,null,null,null,null,null,null,null,null,null,null,null,null,null,null,null,null,null,null,null,null,"JEEP",71,"CHEROKEE",5,"JEEP"]
[null,null,null,null,null,null,null,null,null,null,null,null,null,null,null,null,null,null,null,null,null,null,null,null,null,null,null,null,null,null,null,"JEEP",71,"GRAND CHEROKEE",6,"JEEP"]
[null,null,null,null,null,null,null,null,null,null,null,null,null,null,null,null,null,null,null,null,null,null,null,null,null,null,null,null,null,null,null,"JEEP",71,"LIBERTY LIMITED",7,"JEEP"]
[null,null,null,null,null,null,null,null,null,null,null,null,null,null,null,null,null,null,null,null,null,null,null,null,null,null,null,null,null,null,null,"JEEP",71,"GRAND WAGONER",8,"JEEP"]
[null,null,null,null,null,null,null,null,null,null,null,null,null,null,null,null,null,null,null,null,null,null,null,null,null,null,null,null,null,null,null,"KIA",11,"SPORTAGE 4X4",1,"JEEP"]
[null,null,null,null,null,null,null,null,null,null,null,null,null,null,null,null,null,null,null,null,null,null,null,null,null,null,null,null,null,null,null,"KIA",11,"CARENS",2,"MINI VAN"]
[null,null,null,null,null,null,null,null,null,null,null,null,null,null,null,null,null,null,null,null,null,null,null,null,null,null,null,null,null,null,null,"KIA",11,"RIO 4P",3,"SEDAN"]
[null,null,null,null,null,null,null,null,null,null,null,null,null,null,null,null,null,null,null,null,null,null,null,null,null,null,null,null,null,null,null,"KIA",11,"CARNIVAL",4,"MINI VAN"]
[null,null,null,null,null,null,null,null,null,null,null,null,null,null,null,null,null,null,null,null,null,null,null,null,null,null,null,null,null,null,null,"KIA",11,"PRIDE POP",8,"COUPE"]
[null,null,null,null,null,null,null,null,null,null,null,null,null,null,null,null,null,null,null,null,null,null,null,null,null,null,null,null,null,null,null,"KIA",11,"SHEPIA",9,"SEDAN"]
[null,null,null,null,null,null,null,null,null,null,null,null,null,null,null,null,null,null,null,null,null,null,null,null,null,null,null,null,null,null,null,"KIA",11,"CERES 4X2",10,"PICK-UP"]
[null,null,null,null,null,null,null,null,null,null,null,null,null,null,null,null,null,null,null,null,null,null,null,null,null,null,null,null,null,null,null,"KIA",11,"K2700 C/S",11,"PICK-UP"]
[null,null,null,null,null,null,null,null,null,null,null,null,null,null,null,null,null,null,null,null,null,null,null,null,null,null,null,null,null,null,null,"KIA",11,"K2400 C/S",12,"PICK-UP"]
[null,null,null,null,null,null,null,null,null,null,null,null,null,null,null,null,null,null,null,null,null,null,null,null,null,null,null,null,null,null,null,"KIA",11,"K3600",13,"PICK-UP"]
[null,null,null,null,null,null,null,null,null,null,null,null,null,null,null,null,null,null,null,null,null,null,null,null,null,null,null,null,null,null,null,"KIA",11,"SPECTRA",14,"SEDAN"]
[null,null,null,null,null,null,null,null,null,null,null,null,null,null,null,null,null,null,null,null,null,null,null,null,null,null,null,null,null,null,null,"KIA",11,"SORENTO",17,"JEEP"]
[null,null,null,null,null,null,null,null,null,null,null,null,null,null,null,null,null,null,null,null,null,null,null,null,null,null,null,null,null,null,null,"KIA",11,"RIO STYLUS",18,"SEDAN"]
[null,null,null,null,null,null,null,null,null,null,null,null,null,null,null,null,null,null,null,null,null,null,null,null,null,null,null,null,null,null,null,"KIA",11,"PICANTO",19,"SEDAN"]
[null,null,null,null,null,null,null,null,null,null,null,null,null,null,null,null,null,null,null,null,null,null,null,null,null,null,null,null,null,null,null,"KIA",11,"CERATO",20,"SEDAN"]
[null,null,null,null,null,null,null,null,null,null,null,null,null,null,null,null,null,null,null,null,null,null,null,null,null,null,null,null,null,null,null,"LADA",13,2107,1,"SEDAN"]
[null,null,null,null,null,null,null,null,null,null,null,null,null,null,null,null,null,null,null,null,null,null,null,null,null,null,null,null,null,null,null,"LADA",13,"NIVA",2,"JEEP"]
[null,null,null,null,null,null,null,null,null,null,null,null,null,null,null,null,null,null,null,null,null,null,null,null,null,null,null,null,null,null,null,"LADA",13,2104,3,"SEDAN"]
[null,null,null,null,null,null,null,null,null,null,null,null,null,null,null,null,null,null,null,null,null,null,null,null,null,null,null,null,null,null,null,"LADA",13,2106,4,"SEDAN"]
[null,null,null,null,null,null,null,null,null,null,null,null,null,null,null,null,null,null,null,null,null,null,null,null,null,null,null,null,null,null,null,"LADA",13,2109,5,"SEDAN"]
[null,null,null,null,null,null,null,null,null,null,null,null,null,null,null,null,null,null,null,null,null,null,null,null,null,null,null,null,null,null,null,"LADA",13,1600,6,"SEDAN"]
[null,null,null,null,null,null,null,null,null,null,null,null,null,null,null,null,null,null,null,null,null,null,null,null,null,null,null,null,null,null,null,"LADA",13,2105,7,"SEDAN"]
[null,null,null,null,null,null,null,null,null,null,null,null,null,null,null,null,null,null,null,null,null,null,null,null,null,null,null,null,null,null,null,"LADA",13,2101,8,"SEDAN"]
[null,null,null,null,null,null,null,null,null,null,null,null,null,null,null,null,null,null,null,null,null,null,null,null,null,null,null,null,null,null,null,"LADA",13,"100 SEDAN",9,"SEDAN"]
[null,null,null,null,null,null,null,null,null,null,null,null,null,null,null,null,null,null,null,null,null,null,null,null,null,null,null,null,null,null,null,"LADA",13,2110,10,"SEDAN"]
[null,null,null,null,null,null,null,null,null,null,null,null,null,null,null,null,null,null,null,null,null,null,null,null,null,null,null,null,null,null,null,"LADA",13,110,11,"SEDAN"]
[null,null,null,null,null,null,null,null,null,null,null,null,null,null,null,null,null,null,null,null,null,null,null,null,null,null,null,null,null,null,null,"LADA",13,2112,12,"STATION WAGON"]
[null,null,null,null,null,null,null,null,null,null,null,null,null,null,null,null,null,null,null,null,null,null,null,null,null,null,null,null,null,null,null,"LADA",13,"100 STATION WAGON",13,"STATION WAGON"]
[null,null,null,null,null,null,null,null,null,null,null,null,null,null,null,null,null,null,null,null,null,null,null,null,null,null,null,null,null,null,null,"LADA",13,21102,14,"SEDAN"]
[null,null,null,null,null,null,null,null,null,null,null,null,null,null,null,null,null,null,null,null,null,null,null,null,null,null,null,null,null,null,null,"LADA",13,115,15,"SEDAN"]
[null,null,null,null,null,null,null,null,null,null,null,null,null,null,null,null,null,null,null,null,null,null,null,null,null,null,null,null,null,null,null,"LADA",13,21122,16,"SEDAN"]
[null,null,null,null,null,null,null,null,null,null,null,null,null,null,null,null,null,null,null,null,null,null,null,null,null,null,null,null,null,null,null,"LANCIA",36,"AUTOBIANCHI",1,"COUPE"]
[null,null,null,null,null,null,null,null,null,null,null,null,null,null,null,null,null,null,null,null,null,null,null,null,null,null,null,null,null,null,null,"LAND ROVER",12,"FREELANDER",1,"JEEP"]
[null,null,null,null,null,null,null,null,null,null,null,null,null,null,null,null,null,null,null,null,null,null,null,null,null,null,null,null,null,null,null,"LAND ROVER",12,"DISCOVERY",2,"JEEP"]
[null,null,null,null,null,null,null,null,null,null,null,null,null,null,null,null,null,null,null,null,null,null,null,null,null,null,null,null,null,null,null,"LAND ROVER",12,"RANGE ROVER",3,"JEEP"]
[null,null,null,null,null,null,null,null,null,null,null,null,null,null,null,null,null,null,null,null,null,null,null,null,null,null,null,null,null,null,null,"LAND ROVER",12,"ROVER 400",4,"JEEP"]
[null,null,null,null,null,null,null,null,null,null,null,null,null,null,null,null,null,null,null,null,null,null,null,null,null,null,null,null,null,null,null,"LAND ROVER",12,"DEFENDER",5,"JEEP"]
[null,null,null,null,null,null,null,null,null,null,null,null,null,null,null,null,null,null,null,null,null,null,null,null,null,null,null,null,null,null,null,"LAND ROVER",12,"VOGUE",6,"JEEP"]
[null,null,null,null,null,null,null,null,null,null,null,null,null,null,null,null,null,null,null,null,null,null,null,null,null,null,null,null,null,null,null,"LEXUS",37,"LX 470",1,"JEEP"]
[null,null,null,null,null,null,null,null,null,null,null,null,null,null,null,null,null,null,null,null,null,null,null,null,null,null,null,null,null,null,null,"LINCOLN",38,"NAVIGATOR",1,"JEEP"]
[null,null,null,null,null,null,null,null,null,null,null,null,null,null,null,null,null,null,null,null,null,null,null,null,null,null,null,null,null,null,null,"MAHINDRA",101,"SCORPIO LHD",1,"JEEP"]
[null,null,null,null,null,null,null,null,null,null,null,null,null,null,null,null,null,null,null,null,null,null,null,null,null,null,null,null,null,null,null,"MAZDA",14,"323 3P",1,"COUPE"]
[null,null,null,null,null,null,null,null,null,null,null,null,null,null,null,null,null,null,null,null,null,null,null,null,null,null,null,null,null,null,null,"MAZDA",14,"323 4P",2,"SEDAN"]
[null,null,null,null,null,null,null,null,null,null,null,null,null,null,null,null,null,null,null,null,null,null,null,null,null,null,null,null,null,null,null,"MAZDA",14,"323 5P",3,"STATION WAGON"]
[null,null,null,null,null,null,null,null,null,null,null,null,null,null,null,null,null,null,null,null,null,null,null,null,null,null,null,null,null,null,null,"MAZDA",14,"323 ALLEGRO 4P",4,"SEDAN"]
[null,null,null,null,null,null,null,null,null,null,null,null,null,null,null,null,null,null,null,null,null,null,null,null,null,null,null,null,null,null,null,"MAZDA",14,"323 ALLEGRO 5P",5,"STATION WAGON"]
[null,null,null,null,null,null,null,null,null,null,null,null,null,null,null,null,null,null,null,null,null,null,null,null,null,null,null,null,null,null,null,"MAZDA",14,626,6,"SEDAN"]
[null,null,null,null,null,null,null,null,null,null,null,null,null,null,null,null,null,null,null,null,null,null,null,null,null,null,null,null,null,null,null,"MAZDA",14,"B2200I C/S 4X2",7,"PICK-UP"]
[null,null,null,null,null,null,null,null,null,null,null,null,null,null,null,null,null,null,null,null,null,null,null,null,null,null,null,null,null,null,null,"MAZDA",14,"B2200I D/C 4X2",8,"PICK-UP"]
[null,null,null,null,null,null,null,null,null,null,null,null,null,null,null,null,null,null,null,null,null,null,null,null,null,null,null,null,null,null,null,"MAZDA",14,"B2600I C/S 4X4",9,"PICK-UP"]
[null,null,null,null,null,null,null,null,null,null,null,null,null,null,null,null,null,null,null,null,null,null,null,null,null,null,null,null,null,null,null,"MAZDA",14,"B2600I D/C 4X4",10,"PICK-UP"]
[null,null,null,null,null,null,null,null,null,null,null,null,null,null,null,null,null,null,null,null,null,null,null,null,null,null,null,null,null,null,null,"MAZDA",14,"B2000 C/S 4X2",11,"PICK-UP"]
[null,null,null,null,null,null,null,null,null,null,null,null,null,null,null,null,null,null,null,null,null,null,null,null,null,null,null,null,null,null,null,"MAZDA",14,"B2000 D/C 4X2",12,"PICK-UP"]
[null,null,null,null,null,null,null,null,null,null,null,null,null,null,null,null,null,null,null,null,null,null,null,null,null,null,null,null,null,null,null,"MAZDA",14,"PROTEGE",13,"COUPE"]
[null,null,null,null,null,null,null,null,null,null,null,null,null,null,null,null,null,null,null,null,null,null,null,null,null,null,null,null,null,null,null,"MAZDA",14,"MATSURI",14,"SEDAN"]
[null,null,null,null,null,null,null,null,null,null,null,null,null,null,null,null,null,null,null,null,null,null,null,null,null,null,null,null,null,null,null,"MAZDA",14,"MX3",15,"COUPE"]
[null,null,null,null,null,null,null,null,null,null,null,null,null,null,null,null,null,null,null,null,null,null,null,null,null,null,null,null,null,null,null,"MAZDA",14,"MPV VAN",16,"MINI VAN"]
[null,null,null,null,null,null,null,null,null,null,null,null,null,null,null,null,null,null,null,null,null,null,null,null,null,null,null,null,null,null,null,"MAZDA",14,"B2500 C/S",17,"PICK-UP"]
[null,null,null,null,null,null,null,null,null,null,null,null,null,null,null,null,null,null,null,null,null,null,null,null,null,null,null,null,null,null,null,"MAZDA",14,"B2500 C/D",18,"PICK-UP"]
[null,null,null,null,null,null,null,null,null,null,null,null,null,null,null,null,null,null,null,null,null,null,null,null,null,null,null,null,null,null,null,"MAZDA",14,"TRIBUTE AT SDX",20,"JEEP"]
[null,null,null,null,null,null,null,null,null,null,null,null,null,null,null,null,null,null,null,null,null,null,null,null,null,null,null,null,null,null,null,"MAZDA",14,"CIAO TEMPO 1.3 CC",21,"SEDAN"]
[null,null,null,null,null,null,null,null,null,null,null,null,null,null,null,null,null,null,null,null,null,null,null,null,null,null,null,null,null,null,null,"MAZDA",14,929,22,"SEDAN"]
[null,null,null,null,null,null,null,null,null,null,null,null,null,null,null,null,null,null,null,null,null,null,null,null,null,null,null,null,null,null,null,"MAZDA",14,"B29DCP",23,"PICK-UP"]
[null,null,null,null,null,null,null,null,null,null,null,null,null,null,null,null,null,null,null,null,null,null,null,null,null,null,null,null,null,null,null,"MAZDA",14,"MIATA MX5",24,"COUPE"]
[null,null,null,null,null,null,null,null,null,null,null,null,null,null,null,null,null,null,null,null,null,null,null,null,null,null,null,null,null,null,null,"MAZDA",14,"6 2.0",25,"SEDAN"]
[null,null,null,null,null,null,null,null,null,null,null,null,null,null,null,null,null,null,null,null,null,null,null,null,null,null,null,null,null,null,null,"MAZDA",14,"RX8",26,"COUPE"]
[null,null,null,null,null,null,null,null,null,null,null,null,null,null,null,null,null,null,null,null,null,null,null,null,null,null,null,null,null,null,null,"MERCEDES BENZ",15,"190E",1,"SEDAN"]
[null,null,null,null,null,null,null,null,null,null,null,null,null,null,null,null,null,null,null,null,null,null,null,null,null,null,null,null,null,null,null,"MERCEDES BENZ",15,"A160 CLASSIC",2,"SEDAN"]
[null,null,null,null,null,null,null,null,null,null,null,null,null,null,null,null,null,null,null,null,null,null,null,null,null,null,null,null,null,null,null,"MERCEDES BENZ",15,"C200 KOMPRESOR",3,"SEDAN"]
[null,null,null,null,null,null,null,null,null,null,null,null,null,null,null,null,null,null,null,null,null,null,null,null,null,null,null,null,null,null,null,"MERCEDES BENZ",15,"C240",4,"SEDAN"]
[null,null,null,null,null,null,null,null,null,null,null,null,null,null,null,null,null,null,null,null,null,null,null,null,null,null,null,null,null,null,null,"MERCEDES BENZ",15,"C320",5,"SEDAN"]
[null,null,null,null,null,null,null,null,null,null,null,null,null,null,null,null,null,null,null,null,null,null,null,null,null,null,null,null,null,null,null,"MERCEDES BENZ",15,"E320",6,"SEDAN"]
[null,null,null,null,null,null,null,null,null,null,null,null,null,null,null,null,null,null,null,null,null,null,null,null,null,null,null,null,null,null,null,"MERCEDES BENZ",15,"ML 320 (4X4)",7,"JEEP"]
[null,null,null,null,null,null,null,null,null,null,null,null,null,null,null,null,null,null,null,null,null,null,null,null,null,null,null,null,null,null,null,"MERCEDES BENZ",15,"ML 430 (4X4)",8,"JEEP"]
[null,null,null,null,null,null,null,null,null,null,null,null,null,null,null,null,null,null,null,null,null,null,null,null,null,null,null,null,null,null,null,"MERCEDES BENZ",15,"C230 KOMPRESOR",9,"SEDAN"]
[null,null,null,null,null,null,null,null,null,null,null,null,null,null,null,null,null,null,null,null,null,null,null,null,null,null,null,null,null,null,null,"MERCEDES BENZ",15,260,10,"SEDAN"]
[null,null,null,null,null,null,null,null,null,null,null,null,null,null,null,null,null,null,null,null,null,null,null,null,null,null,null,null,null,null,null,"MERCEDES BENZ",15,"SERIE G (4X4) 5P.",11,"SEDAN"]
[null,null,null,null,null,null,null,null,null,null,null,null,null,null,null,null,null,null,null,null,null,null,null,null,null,null,null,null,null,null,null,"MERCEDES BENZ",15,"C280 - 280",12,"SEDAN"]
[null,null,null,null,null,null,null,null,null,null,null,null,null,null,null,null,null,null,null,null,null,null,null,null,null,null,null,null,null,null,null,"MERCEDES BENZ",15,"200E",13,"SEDAN"]
[null,null,null,null,null,null,null,null,null,null,null,null,null,null,null,null,null,null,null,null,null,null,null,null,null,null,null,null,null,null,null,"MERCEDES BENZ",15,"280E",14,"SEDAN"]
[null,null,null,null,null,null,null,null,null,null,null,null,null,null,null,null,null,null,null,null,null,null,null,null,null,null,null,null,null,null,null,"MERCEDES BENZ",15,"250E",15,"SEDAN"]
[null,null,null,null,null,null,null,null,null,null,null,null,null,null,null,null,null,null,null,null,null,null,null,null,null,null,null,null,null,null,null,"MERCEDES BENZ",15,"260E",16,"SEDAN"]
[null,null,null,null,null,null,null,null,null,null,null,null,null,null,null,null,null,null,null,null,null,null,null,null,null,null,null,null,null,null,null,"MERCEDES BENZ",15,"300E",17,"SEDAN"]
[null,null,null,null,null,null,null,null,null,null,null,null,null,null,null,null,null,null,null,null,null,null,null,null,null,null,null,null,null,null,null,"MERCEDES BENZ",15,"C220",18,"SEDAN"]
[null,null,null,null,null,null,null,null,null,null,null,null,null,null,null,null,null,null,null,null,null,null,null,null,null,null,null,null,null,null,null,"MERCEDES BENZ",15,430,19,"SEDAN"]
[null,null,null,null,null,null,null,null,null,null,null,null,null,null,null,null,null,null,null,null,null,null,null,null,null,null,null,null,null,null,null,"MERCEDES BENZ",15,"230 F",20,"SEDAN"]
[null,null,null,null,null,null,null,null,null,null,null,null,null,null,null,null,null,null,null,null,null,null,null,null,null,null,null,null,null,null,null,"MERCEDES BENZ",15,"300SE",21,"SEDAN"]
[null,null,null,null,null,null,null,null,null,null,null,null,null,null,null,null,null,null,null,null,null,null,null,null,null,null,null,null,null,null,null,"MERCEDES BENZ",15,"C200",22,"SEDAN"]
[null,null,null,null,null,null,null,null,null,null,null,null,null,null,null,null,null,null,null,null,null,null,null,null,null,null,null,null,null,null,null,"MERCEDES BENZ",15,"SLK 230",23,"COUPE"]
[null,null,null,null,null,null,null,null,null,null,null,null,null,null,null,null,null,null,null,null,null,null,null,null,null,null,null,null,null,null,null,"MERCEDES BENZ",15,"C230",24,"SEDAN"]
[null,null,null,null,null,null,null,null,null,null,null,null,null,null,null,null,null,null,null,null,null,null,null,null,null,null,null,null,null,null,null,"MERCEDES BENZ",15,220,25,"SEDAN"]
[null,null,null,null,null,null,null,null,null,null,null,null,null,null,null,null,null,null,null,null,null,null,null,null,null,null,null,null,null,null,null,"MERCEDES BENZ",15,"230E",26,"SEDAN"]
[null,null,null,null,null,null,null,null,null,null,null,null,null,null,null,null,null,null,null,null,null,null,null,null,null,null,null,null,null,null,null,"MERCEDES BENZ",15,"500SEL",28,"SEDAN"]
[null,null,null,null,null,null,null,null,null,null,null,null,null,null,null,null,null,null,null,null,null,null,null,null,null,null,null,null,null,null,null,"MERCEDES BENZ",15,"240E",29,"SEDAN"]
[null,null,null,null,null,null,null,null,null,null,null,null,null,null,null,null,null,null,null,null,null,null,null,null,null,null,null,null,null,null,null,"MERCEDES BENZ",15,"ML 500",30,"SEDAN"]
[null,null,null,null,null,null,null,null,null,null,null,null,null,null,null,null,null,null,null,null,null,null,null,null,null,null,null,null,null,null,null,"MERCEDES BENZ",15,"C230K",31,"SEDAN"]
[null,null,null,null,null,null,null,null,null,null,null,null,null,null,null,null,null,null,null,null,null,null,null,null,null,null,null,null,null,null,null,"MERCEDES BENZ",15,"ML230",32,"JEEP"]
[null,null,null,null,null,null,null,null,null,null,null,null,null,null,null,null,null,null,null,null,null,null,null,null,null,null,null,null,null,null,null,"MERCEDES BENZ",15,"C180",35,"SEDAN"]
[null,null,null,null,null,null,null,null,null,null,null,null,null,null,null,null,null,null,null,null,null,null,null,null,null,null,null,null,null,null,null,"MERCEDES BENZ",15,"ML 350",37,"JEEP"]
[null,null,null,null,null,null,null,null,null,null,null,null,null,null,null,null,null,null,null,null,null,null,null,null,null,null,null,null,null,null,null,"MERCEDES BENZ",15,"CLK320",38,"SEDAN"]
[null,null,null,null,null,null,null,null,null,null,null,null,null,null,null,null,null,null,null,null,null,null,null,null,null,null,null,null,null,null,null,"MITSUBISHI",16,"L-200 4X2 C/S",1,"PICK-UP"]
[null,null,null,null,null,null,null,null,null,null,null,null,null,null,null,null,null,null,null,null,null,null,null,null,null,null,null,null,null,null,null,"MITSUBISHI",16,"L-200 4X2 D/C",2,"PICK-UP"]
[null,null,null,null,null,null,null,null,null,null,null,null,null,null,null,null,null,null,null,null,null,null,null,null,null,null,null,null,null,null,null,"MITSUBISHI",16,"L-200 4X4 C/S",3,"PICK-UP"]
[null,null,null,null,null,null,null,null,null,null,null,null,null,null,null,null,null,null,null,null,null,null,null,null,null,null,null,null,null,null,null,"MITSUBISHI",16,"L-200 4X4 D/C",4,"PICK-UP"]
[null,null,null,null,null,null,null,null,null,null,null,null,null,null,null,null,null,null,null,null,null,null,null,null,null,null,null,null,null,null,null,"MITSUBISHI",16,"LANCER",5,"SEDAN"]
[null,null,null,null,null,null,null,null,null,null,null,null,null,null,null,null,null,null,null,null,null,null,null,null,null,null,null,null,null,null,null,"MITSUBISHI",16,"SPACE WAGON 5P",6,"MINI VAN"]
[null,null,null,null,null,null,null,null,null,null,null,null,null,null,null,null,null,null,null,null,null,null,null,null,null,null,null,null,null,null,null,"MITSUBISHI",16,"MONTERO 3P",7,"JEEP"]
[null,null,null,null,null,null,null,null,null,null,null,null,null,null,null,null,null,null,null,null,null,null,null,null,null,null,null,null,null,null,null,"MITSUBISHI",16,"MONTERO 5P",8,"JEEP"]
[null,null,null,null,null,null,null,null,null,null,null,null,null,null,null,null,null,null,null,null,null,null,null,null,null,null,null,null,null,null,null,"MITSUBISHI",16,"MONTERO SPORT",9,"JEEP"]
[null,null,null,null,null,null,null,null,null,null,null,null,null,null,null,null,null,null,null,null,null,null,null,null,null,null,null,null,null,null,null,"MITSUBISHI",16,"GALANT",11,"SEDAN"]
[null,null,null,null,null,null,null,null,null,null,null,null,null,null,null,null,null,null,null,null,null,null,null,null,null,null,null,null,null,null,null,"MITSUBISHI",16,"ECLIPSE SPYDER",12,"COUPE"]
[null,null,null,null,null,null,null,null,null,null,null,null,null,null,null,null,null,null,null,null,null,null,null,null,null,null,null,null,null,null,null,"MITSUBISHI",16,"L300 C/D",14,"PICK-UP"]
[null,null,null,null,null,null,null,null,null,null,null,null,null,null,null,null,null,null,null,null,null,null,null,null,null,null,null,null,null,null,null,"MITSUBISHI",16,"L400 C/S",15,"PICK-UP"]
[null,null,null,null,null,null,null,null,null,null,null,null,null,null,null,null,null,null,null,null,null,null,null,null,null,null,null,null,null,null,null,"MITSUBISHI",16,"L400 D/C",16,"PICK-UP"]
[null,null,null,null,null,null,null,null,null,null,null,null,null,null,null,null,null,null,null,null,null,null,null,null,null,null,null,null,null,null,null,"MITSUBISHI",16,"MONTERO IO",17,"JEEP"]
[null,null,null,null,null,null,null,null,null,null,null,null,null,null,null,null,null,null,null,null,null,null,null,null,null,null,null,null,null,null,null,"MITSUBISHI",16,"OUTLANDER",18,"MINI VAN"]
[null,null,null,null,null,null,null,null,null,null,null,null,null,null,null,null,null,null,null,null,null,null,null,null,null,null,null,null,null,null,null,"NISSAN",17,"1200 P/U",1,"PICK-UP"]
[null,null,null,null,null,null,null,null,null,null,null,null,null,null,null,null,null,null,null,null,null,null,null,null,null,null,null,null,null,null,null,"NISSAN",17,"2400 C/S 4X2",2,"PICK-UP"]
[null,null,null,null,null,null,null,null,null,null,null,null,null,null,null,null,null,null,null,null,null,null,null,null,null,null,null,null,null,null,null,"NISSAN",17,"2400 D/C 4X2",3,"PICK-UP"]
[null,null,null,null,null,null,null,null,null,null,null,null,null,null,null,null,null,null,null,null,null,null,null,null,null,null,null,null,null,null,null,"NISSAN",17,"2400 D/C 4X4",4,"PICK-UP"]
[null,null,null,null,null,null,null,null,null,null,null,null,null,null,null,null,null,null,null,null,null,null,null,null,null,null,null,null,null,null,null,"NISSAN",17,"PATHFINDER",5,"JEEP"]
[null,null,null,null,null,null,null,null,null,null,null,null,null,null,null,null,null,null,null,null,null,null,null,null,null,null,null,null,null,null,null,"NISSAN",17,"PATHFINDER FULL",6,"JEEP"]
[null,null,null,null,null,null,null,null,null,null,null,null,null,null,null,null,null,null,null,null,null,null,null,null,null,null,null,null,null,null,null,"NISSAN",17,"PATROL 3P",7,"JEEP"]
[null,null,null,null,null,null,null,null,null,null,null,null,null,null,null,null,null,null,null,null,null,null,null,null,null,null,null,null,null,null,null,"NISSAN",17,"PATROL 5P",8,"JEEP"]
[null,null,null,null,null,null,null,null,null,null,null,null,null,null,null,null,null,null,null,null,null,null,null,null,null,null,null,null,null,null,null,"NISSAN",17,"SENTRA I",9,"SEDAN"]
[null,null,null,null,null,null,null,null,null,null,null,null,null,null,null,null,null,null,null,null,null,null,null,null,null,null,null,null,null,null,null,"NISSAN",17,"SENTRA II",10,"SEDAN"]
[null,null,null,null,null,null,null,null,null,null,null,null,null,null,null,null,null,null,null,null,null,null,null,null,null,null,null,null,null,null,null,"NISSAN",17,"ALMERA",11,"SEDAN"]
[null,null,null,null,null,null,null,null,null,null,null,null,null,null,null,null,null,null,null,null,null,null,null,null,null,null,null,null,null,null,null,"NISSAN",17,"ALTIMA",12,"SEDAN"]
[null,null,null,null,null,null,null,null,null,null,null,null,null,null,null,null,null,null,null,null,null,null,null,null,null,null,null,null,null,null,null,"NISSAN",17,"BLUEBIRD",14,"SEDAN"]
[null,null,null,null,null,null,null,null,null,null,null,null,null,null,null,null,null,null,null,null,null,null,null,null,null,null,null,null,null,null,null,"NISSAN",17,"INFINITY",19,"SEDAN"]
[null,null,null,null,null,null,null,null,null,null,null,null,null,null,null,null,null,null,null,null,null,null,null,null,null,null,null,null,null,null,null,"NISSAN",17,"LB120",21,"PICK-UP"]
[null,null,null,null,null,null,null,null,null,null,null,null,null,null,null,null,null,null,null,null,null,null,null,null,null,null,null,null,null,null,null,"NISSAN",17,"MAXIMA",22,"SEDAN"]
[null,null,null,null,null,null,null,null,null,null,null,null,null,null,null,null,null,null,null,null,null,null,null,null,null,null,null,null,null,null,null,"NISSAN",17,"PRIMERA",23,"SEDAN"]
[null,null,null,null,null,null,null,null,null,null,null,null,null,null,null,null,null,null,null,null,null,null,null,null,null,null,null,null,null,null,null,"NISSAN",17,"QUEST",24,"MINI VAN"]
[null,null,null,null,null,null,null,null,null,null,null,null,null,null,null,null,null,null,null,null,null,null,null,null,null,null,null,null,null,null,null,"NISSAN",17,"SUNNY",25,"SEDAN"]
[null,null,null,null,null,null,null,null,null,null,null,null,null,null,null,null,null,null,null,null,null,null,null,null,null,null,null,null,null,null,null,"NISSAN",17,"1800 C/S",27,"PICK-UP"]
[null,null,null,null,null,null,null,null,null,null,null,null,null,null,null,null,null,null,null,null,null,null,null,null,null,null,null,null,null,null,null,"NISSAN",17,"1800 D/C",28,"PICK-UP"]
[null,null,null,null,null,null,null,null,null,null,null,null,null,null,null,null,null,null,null,null,null,null,null,null,null,null,null,null,null,null,null,"NISSAN",17,"TERRANO",29,"JEEP"]
[null,null,null,null,null,null,null,null,null,null,null,null,null,null,null,null,null,null,null,null,null,null,null,null,null,null,null,null,null,null,null,"NISSAN",17,"X.TRAIL",30,"JEEP"]
[null,null,null,null,null,null,null,null,null,null,null,null,null,null,null,null,null,null,null,null,null,null,null,null,null,null,null,null,null,null,null,"NISSAN",17,"SENTRA SWA",31,"STATION WAGON"]
[null,null,null,null,null,null,null,null,null,null,null,null,null,null,null,null,null,null,null,null,null,null,null,null,null,null,null,null,null,null,null,"NISSAN",17,"2000 C/S",32,"PICK-UP"]
[null,null,null,null,null,null,null,null,null,null,null,null,null,null,null,null,null,null,null,null,null,null,null,null,null,null,null,null,null,null,null,"NISSAN",17,"PICKUP 4X2 D/C",33,"PICK-UP"]
[null,null,null,null,null,null,null,null,null,null,null,null,null,null,null,null,null,null,null,null,null,null,null,null,null,null,null,null,null,null,null,"NISSAN",17,"FRONTIER C/D 4X4",34,"PICK-UP"]
[null,null,null,null,null,null,null,null,null,null,null,null,null,null,null,null,null,null,null,null,null,null,null,null,null,null,null,null,null,null,null,"NISSAN",17,"MURANO",36,"JEEP"]
[null,null,null,null,null,null,null,null,null,null,null,null,null,null,null,null,null,null,null,null,null,null,null,null,null,null,null,null,null,null,null,"NISSAN",17,"FRONTIER C/D 4X2",37,"PICK-UP"]
[null,null,null,null,null,null,null,null,null,null,null,null,null,null,null,null,null,null,null,null,null,null,null,null,null,null,null,null,null,null,null,"NISSAN",17,"CLD 211 S",38,"PICK-UP"]
[null,null,null,null,null,null,null,null,null,null,null,null,null,null,null,null,null,null,null,null,null,null,null,null,null,null,null,null,null,null,null,"NISSAN",17,"PICKUP 4X2 C/S",39,"PICK-UP"]
[null,null,null,null,null,null,null,null,null,null,null,null,null,null,null,null,null,null,null,null,null,null,null,null,null,null,null,null,null,null,null,"OLDSMOBIL",73,"SILHOUETTE",1,"SEDAN"]
[null,null,null,null,null,null,null,null,null,null,null,null,null,null,null,null,null,null,null,null,null,null,null,null,null,null,null,null,null,null,null,"OLTCIT",40,"CLUB 12TRS",1,"SEDAN"]
[null,null,null,null,null,null,null,null,null,null,null,null,null,null,null,null,null,null,null,null,null,null,null,null,null,null,null,null,null,null,null,"PEUGEOT",18,"306 5P",1,"SEDAN"]
[null,null,null,null,null,null,null,null,null,null,null,null,null,null,null,null,null,null,null,null,null,null,null,null,null,null,null,null,null,null,null,"PEUGEOT",18,"206 3P",2,"COUPE"]
[null,null,null,null,null,null,null,null,null,null,null,null,null,null,null,null,null,null,null,null,null,null,null,null,null,null,null,null,null,null,null,"PEUGEOT",18,"206 5P",3,"SEDAN"]
[null,null,null,null,null,null,null,null,null,null,null,null,null,null,null,null,null,null,null,null,null,null,null,null,null,null,null,null,null,null,null,"PEUGEOT",18,"406 4P",4,"SEDAN"]
[null,null,null,null,null,null,null,null,null,null,null,null,null,null,null,null,null,null,null,null,null,null,null,null,null,null,null,null,null,null,null,"PEUGEOT",18,405,5,"SEDAN"]
[null,null,null,null,null,null,null,null,null,null,null,null,null,null,null,null,null,null,null,null,null,null,null,null,null,null,null,null,null,null,null,"PEUGEOT",18,305,6,"SEDAN"]
[null,null,null,null,null,null,null,null,null,null,null,null,null,null,null,null,null,null,null,null,null,null,null,null,null,null,null,null,null,null,null,"PEUGEOT",18,504,7,"SEDAN"]
[null,null,null,null,null,null,null,null,null,null,null,null,null,null,null,null,null,null,null,null,null,null,null,null,null,null,null,null,null,null,null,"PEUGEOT",18,505,8,"SEDAN"]
[null,null,null,null,null,null,null,null,null,null,null,null,null,null,null,null,null,null,null,null,null,null,null,null,null,null,null,null,null,null,null,"PEUGEOT",18,604,9,"SEDAN"]
[null,null,null,null,null,null,null,null,null,null,null,null,null,null,null,null,null,null,null,null,null,null,null,null,null,null,null,null,null,null,null,"PEUGEOT",18,605,10,"SEDAN"]
[null,null,null,null,null,null,null,null,null,null,null,null,null,null,null,null,null,null,null,null,null,null,null,null,null,null,null,null,null,null,null,"PEUGEOT",18,806,11,"SEDAN"]
[null,null,null,null,null,null,null,null,null,null,null,null,null,null,null,null,null,null,null,null,null,null,null,null,null,null,null,null,null,null,null,"PEUGEOT",18,"BERLINA",12,"SEDAN"]
[null,null,null,null,null,null,null,null,null,null,null,null,null,null,null,null,null,null,null,null,null,null,null,null,null,null,null,null,null,null,null,"PEUGEOT",18,404,13,"PICK-UP"]
[null,null,null,null,null,null,null,null,null,null,null,null,null,null,null,null,null,null,null,null,null,null,null,null,null,null,null,null,null,null,null,"PEUGEOT",18,"106 XR",14,"SEDAN"]
[null,null,null,null,null,null,null,null,null,null,null,null,null,null,null,null,null,null,null,null,null,null,null,null,null,null,null,null,null,null,null,"PEUGEOT",18,"BREAK",15,"SEDAN"]
[null,null,null,null,null,null,null,null,null,null,null,null,null,null,null,null,null,null,null,null,null,null,null,null,null,null,null,null,null,null,null,"PEUGEOT",18,1600,16,"PICK-UP"]
[null,null,null,null,null,null,null,null,null,null,null,null,null,null,null,null,null,null,null,null,null,null,null,null,null,null,null,null,null,null,null,"PEUGEOT",18,"BREAK 307",17,"SEDAN"]
[null,null,null,null,null,null,null,null,null,null,null,null,null,null,null,null,null,null,null,null,null,null,null,null,null,null,null,null,null,null,null,"PEUGEOT",18,"S16 3P",18,"COUPE"]
[null,null,null,null,null,null,null,null,null,null,null,null,null,null,null,null,null,null,null,null,null,null,null,null,null,null,null,null,null,null,null,"PEUGEOT",18,307,19,"SEDAN"]
[null,null,null,null,null,null,null,null,null,null,null,null,null,null,null,null,null,null,null,null,null,null,null,null,null,null,null,null,null,null,null,"PEUGEOT",18,"807 ST 2.0 AT",20,"SEDAN"]
[null,null,null,null,null,null,null,null,null,null,null,null,null,null,null,null,null,null,null,null,null,null,null,null,null,null,null,null,null,null,null,"PLYMOUTH",54,"VOYAGER",1,"MINI VAN"]
[null,null,null,null,null,null,null,null,null,null,null,null,null,null,null,null,null,null,null,null,null,null,null,null,null,null,null,null,null,null,null,"PLYMOUTH",54,"GRAND VOYAGER",3,"MINI VAN"]
[null,null,null,null,null,null,null,null,null,null,null,null,null,null,null,null,null,null,null,null,null,null,null,null,null,null,null,null,null,null,null,"PORCHE",56,"BOXSTER 986",1,"COUPE"]
[null,null,null,null,null,null,null,null,null,null,null,null,null,null,null,null,null,null,null,null,null,null,null,null,null,null,null,null,null,null,null,"PORCHE",56,"CAYENNE",2,"JEEP"]
[null,null,null,null,null,null,null,null,null,null,null,null,null,null,null,null,null,null,null,null,null,null,null,null,null,null,null,null,null,null,null,"RENAULT",19,"TWINGO",1,"COUPE"]
[null,null,null,null,null,null,null,null,null,null,null,null,null,null,null,null,null,null,null,null,null,null,null,null,null,null,null,null,null,null,null,"RENAULT",19,"CLIO",2,"SEDAN"]
[null,null,null,null,null,null,null,null,null,null,null,null,null,null,null,null,null,null,null,null,null,null,null,null,null,null,null,null,null,null,null,"RENAULT",19,"CLIO FULL",3,"SEDAN"]
[null,null,null,null,null,null,null,null,null,null,null,null,null,null,null,null,null,null,null,null,null,null,null,null,null,null,null,null,null,null,null,"RENAULT",19,"SCENIC",4,"SEDAN"]
[null,null,null,null,null,null,null,null,null,null,null,null,null,null,null,null,null,null,null,null,null,null,null,null,null,null,null,null,null,null,null,"RENAULT",19,"MEGANE",5,"SEDAN"]
[null,null,null,null,null,null,null,null,null,null,null,null,null,null,null,null,null,null,null,null,null,null,null,null,null,null,null,null,null,null,null,"RENAULT",19,"KANGOO",6,"STATION WAGON"]
[null,null,null,null,null,null,null,null,null,null,null,null,null,null,null,null,null,null,null,null,null,null,null,null,null,null,null,null,null,null,null,"RENAULT",19,"LAGUNA",7,"SEDAN"]
[null,null,null,null,null,null,null,null,null,null,null,null,null,null,null,null,null,null,null,null,null,null,null,null,null,null,null,null,null,null,null,"RENAULT",19,"19 TRICORPS",8,"SEDAN"]
[null,null,null,null,null,null,null,null,null,null,null,null,null,null,null,null,null,null,null,null,null,null,null,null,null,null,null,null,null,null,null,"RENAULT",19,"SYMBOL",9,"SEDAN"]
[null,null,null,null,null,null,null,null,null,null,null,null,null,null,null,null,null,null,null,null,null,null,null,null,null,null,null,null,null,null,null,"SAAB",45,900,1,"SEDAN"]
[null,null,null,null,null,null,null,null,null,null,null,null,null,null,null,null,null,null,null,null,null,null,null,null,null,null,null,null,null,null,null,"SAAB",45,950,2,"SEDAN"]
[null,null,null,null,null,null,null,null,null,null,null,null,null,null,null,null,null,null,null,null,null,null,null,null,null,null,null,null,null,null,null,"SAEHAN",57,"N/D",1,"SEDAN"]
[null,null,null,null,null,null,null,null,null,null,null,null,null,null,null,null,null,null,null,null,null,null,null,null,null,null,null,null,null,null,null,"SAMSUNG",74,"SV-110",1,"SEDAN"]
[null,null,null,null,null,null,null,null,null,null,null,null,null,null,null,null,null,null,null,null,null,null,null,null,null,null,null,null,null,null,null,"SANGYONG",42,"MUSSO",1,"JEEP"]
[null,null,null,null,null,null,null,null,null,null,null,null,null,null,null,null,null,null,null,null,null,null,null,null,null,null,null,null,null,null,null,"SANGYONG",42,"REXTON RX320",2,"JEEP"]
[null,null,null,null,null,null,null,null,null,null,null,null,null,null,null,null,null,null,null,null,null,null,null,null,null,null,null,null,null,null,null,"SEAT",105,"COUPE",1,"COUPE"]
[null,null,null,null,null,null,null,null,null,null,null,null,null,null,null,null,null,null,null,null,null,null,null,null,null,null,null,null,null,null,null,"SKODA",20,"FELICIA",1,"SEDAN"]
[null,null,null,null,null,null,null,null,null,null,null,null,null,null,null,null,null,null,null,null,null,null,null,null,null,null,null,null,null,null,null,"SKODA",20,"1300 PICK UP",2,"PICK-UP"]
[null,null,null,null,null,null,null,null,null,null,null,null,null,null,null,null,null,null,null,null,null,null,null,null,null,null,null,null,null,null,null,"SKODA",20,"FABIA",3,"SEDAN"]
[null,null,null,null,null,null,null,null,null,null,null,null,null,null,null,null,null,null,null,null,null,null,null,null,null,null,null,null,null,null,null,"SKODA",20,"OCTAVIA",4,"SEDAN"]
[null,null,null,null,null,null,null,null,null,null,null,null,null,null,null,null,null,null,null,null,null,null,null,null,null,null,null,null,null,null,null,"SKODA",20,"FAVORIT",5,"SEDAN"]
[null,null,null,null,null,null,null,null,null,null,null,null,null,null,null,null,null,null,null,null,null,null,null,null,null,null,null,null,null,null,null,"SKODA",20,"FORMAN",6,"SEDAN"]
[null,null,null,null,null,null,null,null,null,null,null,null,null,null,null,null,null,null,null,null,null,null,null,null,null,null,null,null,null,null,null,"SKODA",20,"SUPERB COMFORT",7,"SEDAN"]
[null,null,null,null,null,null,null,null,null,null,null,null,null,null,null,null,null,null,null,null,null,null,null,null,null,null,null,null,null,null,null,"SUBARU",58,"IMPREZA",1,"SEDAN"]
[null,null,null,null,null,null,null,null,null,null,null,null,null,null,null,null,null,null,null,null,null,null,null,null,null,null,null,null,null,null,null,"SUBARU",58,"LEGACY",2,"STATION WAGON"]
[null,null,null,null,null,null,null,null,null,null,null,null,null,null,null,null,null,null,null,null,null,null,null,null,null,null,null,null,null,null,null,"SUBARU",58,"GL10",3,"SEDAN"]
[null,null,null,null,null,null,null,null,null,null,null,null,null,null,null,null,null,null,null,null,null,null,null,null,null,null,null,null,null,null,null,"SUBARU",58,"A22L",4,"SEDAN"]
[null,null,null,null,null,null,null,null,null,null,null,null,null,null,null,null,null,null,null,null,null,null,null,null,null,null,null,null,null,null,null,"SUBARU",58,"FORESTER",5,"SEDAN"]
[null,null,null,null,null,null,null,null,null,null,null,null,null,null,null,null,null,null,null,null,null,null,null,null,null,null,null,null,null,null,null,"SUZUKI",60,"FORSA",11,"COUPE"]
[null,null,null,null,null,null,null,null,null,null,null,null,null,null,null,null,null,null,null,null,null,null,null,null,null,null,null,null,null,null,null,"SUZUKI",60,"GRAND VITARA",12,"JEEP"]
[null,null,null,null,null,null,null,null,null,null,null,null,null,null,null,null,null,null,null,null,null,null,null,null,null,null,null,null,null,null,null,"SUZUKI",60,"INTRUDER",13,"SEDAN"]
[null,null,null,null,null,null,null,null,null,null,null,null,null,null,null,null,null,null,null,null,null,null,null,null,null,null,null,null,null,null,null,"SUZUKI",60,"SAMURAI",16,"JEEP"]
[null,null,null,null,null,null,null,null,null,null,null,null,null,null,null,null,null,null,null,null,null,null,null,null,null,null,null,null,null,null,null,"SUZUKI",60,"SIDERICK",17,"JEEP"]
[null,null,null,null,null,null,null,null,null,null,null,null,null,null,null,null,null,null,null,null,null,null,null,null,null,null,null,null,null,null,null,"SUZUKI",60,"SJ 413",18,"JEEP"]
[null,null,null,null,null,null,null,null,null,null,null,null,null,null,null,null,null,null,null,null,null,null,null,null,null,null,null,null,null,null,null,"SUZUKI",60,"VITARA",22,"JEEP"]
[null,null,null,null,null,null,null,null,null,null,null,null,null,null,null,null,null,null,null,null,null,null,null,null,null,null,null,null,null,null,null,"SUZUKI",60,"LJ80",29,"JEEP"]
[null,null,null,null,null,null,null,null,null,null,null,null,null,null,null,null,null,null,null,null,null,null,null,null,null,null,null,null,null,null,null,"SUZUKI",60,"JIMNY 4X4",30,"JEEP"]
[null,null,null,null,null,null,null,null,null,null,null,null,null,null,null,null,null,null,null,null,null,null,null,null,null,null,null,null,null,null,null,"TALBOT",59,"ORIZONT",1,"SEDAN"]
[null,null,null,null,null,null,null,null,null,null,null,null,null,null,null,null,null,null,null,null,null,null,null,null,null,null,null,null,null,null,null,"TATA",75,"SAFARI",2,"JEEP"]
[null,null,null,null,null,null,null,null,null,null,null,null,null,null,null,null,null,null,null,null,null,null,null,null,null,null,null,null,null,null,null,"TATA",75,"INDICA",3,"SEDAN"]
[null,null,null,null,null,null,null,null,null,null,null,null,null,null,null,null,null,null,null,null,null,null,null,null,null,null,null,null,null,null,null,"TOYOTA",21,"TERCEL",1,"SEDAN"]
[null,null,null,null,null,null,null,null,null,null,null,null,null,null,null,null,null,null,null,null,null,null,null,null,null,null,null,null,null,null,null,"TOYOTA",21,"YARIS",2,"SEDAN"]
[null,null,null,null,null,null,null,null,null,null,null,null,null,null,null,null,null,null,null,null,null,null,null,null,null,null,null,null,null,null,null,"TOYOTA",21,"YARIS HATCHBACK 1.3",3,"STATION WAGON"]
[null,null,null,null,null,null,null,null,null,null,null,null,null,null,null,null,null,null,null,null,null,null,null,null,null,null,null,null,null,null,null,"TOYOTA",21,"COROLLA",4,"SEDAN"]
[null,null,null,null,null,null,null,null,null,null,null,null,null,null,null,null,null,null,null,null,null,null,null,null,null,null,null,null,null,null,null,"TOYOTA",21,"STOUT II",5,"PICK-UP"]
[null,null,null,null,null,null,null,null,null,null,null,null,null,null,null,null,null,null,null,null,null,null,null,null,null,null,null,null,null,null,null,"TOYOTA",21,"STOUT 2200 CHASIS",6,"PICK-UP"]
[null,null,null,null,null,null,null,null,null,null,null,null,null,null,null,null,null,null,null,null,null,null,null,null,null,null,null,null,null,null,null,"TOYOTA",21,"HILUX C/S 2.4 4X2",7,"PICK-UP"]
[null,null,null,null,null,null,null,null,null,null,null,null,null,null,null,null,null,null,null,null,null,null,null,null,null,null,null,null,null,null,null,"TOYOTA",21,"HILUX D/C 2.4 4X2",8,"PICK-UP"]
[null,null,null,null,null,null,null,null,null,null,null,null,null,null,null,null,null,null,null,null,null,null,null,null,null,null,null,null,null,null,null,"TOYOTA",21,"HILUX D/C 2.4 4X4",9,"PICK-UP"]
[null,null,null,null,null,null,null,null,null,null,null,null,null,null,null,null,null,null,null,null,null,null,null,null,null,null,null,null,null,null,null,"TOYOTA",21,"HILUX D/C 2.4 4X4 FULL",10,"PICK-UP"]
[null,null,null,null,null,null,null,null,null,null,null,null,null,null,null,null,null,null,null,null,null,null,null,null,null,null,null,null,null,null,null,"TOYOTA",21,"LAND CRUSIER 3P",11,"JEEP"]
[null,null,null,null,null,null,null,null,null,null,null,null,null,null,null,null,null,null,null,null,null,null,null,null,null,null,null,null,null,null,null,"TOYOTA",21,"LAND CRUSIER 5P",12,"JEEP"]
[null,null,null,null,null,null,null,null,null,null,null,null,null,null,null,null,null,null,null,null,null,null,null,null,null,null,null,null,null,null,null,"TOYOTA",21,"LAND CRUSIER PRADO 3P",13,"JEEP"]
[null,null,null,null,null,null,null,null,null,null,null,null,null,null,null,null,null,null,null,null,null,null,null,null,null,null,null,null,null,null,null,"TOYOTA",21,"LAND CRUSIER PRADO 5P",14,"JEEP"]
[null,null,null,null,null,null,null,null,null,null,null,null,null,null,null,null,null,null,null,null,null,null,null,null,null,null,null,null,null,null,null,"TOYOTA",21,"4 RUNNER",15,"JEEP"]
[null,null,null,null,null,null,null,null,null,null,null,null,null,null,null,null,null,null,null,null,null,null,null,null,null,null,null,null,null,null,null,"TOYOTA",21,"RAV4 3P",16,"JEEP"]
[null,null,null,null,null,null,null,null,null,null,null,null,null,null,null,null,null,null,null,null,null,null,null,null,null,null,null,null,null,null,null,"TOYOTA",21,"RAV4 5P",17,"JEEP"]
[null,null,null,null,null,null,null,null,null,null,null,null,null,null,null,null,null,null,null,null,null,null,null,null,null,null,null,null,null,null,null,"TOYOTA",21,"CAMRY",20,"SEDAN"]
[null,null,null,null,null,null,null,null,null,null,null,null,null,null,null,null,null,null,null,null,null,null,null,null,null,null,null,null,null,null,null,"TOYOTA",21,"CORONA",21,"SEDAN"]
[null,null,null,null,null,null,null,null,null,null,null,null,null,null,null,null,null,null,null,null,null,null,null,null,null,null,null,null,null,null,null,"TOYOTA",21,"CRESSIDA",22,"SEDAN"]
[null,null,null,null,null,null,null,null,null,null,null,null,null,null,null,null,null,null,null,null,null,null,null,null,null,null,null,null,null,null,null,"TOYOTA",21,"CROWN",23,"SEDAN"]
[null,null,null,null,null,null,null,null,null,null,null,null,null,null,null,null,null,null,null,null,null,null,null,null,null,null,null,null,null,null,null,"TOYOTA",21,"TACOMA",26,"STATION WAGON"]
[null,null,null,null,null,null,null,null,null,null,null,null,null,null,null,null,null,null,null,null,null,null,null,null,null,null,null,null,null,null,null,"TOYOTA",21,"STOUT C/S",27,"PICK-UP"]
[null,null,null,null,null,null,null,null,null,null,null,null,null,null,null,null,null,null,null,null,null,null,null,null,null,null,null,null,null,null,null,"TOYOTA",21,800,28,"PICK-UP"]
[null,null,null,null,null,null,null,null,null,null,null,null,null,null,null,null,null,null,null,null,null,null,null,null,null,null,null,null,null,null,null,"TOYOTA",21,"HILUX C/S 2.4 4X4",29,"PICK-UP"]
[null,null,null,null,null,null,null,null,null,null,null,null,null,null,null,null,null,null,null,null,null,null,null,null,null,null,null,null,null,null,null,"TOYOTA",21,"LAND CRUISER FZJ C/S",30,"PICK-UP"]
[null,null,null,null,null,null,null,null,null,null,null,null,null,null,null,null,null,null,null,null,null,null,null,null,null,null,null,null,null,null,null,"TOYOTA",21,"HIGHLANDER",32,"JEEP"]
[null,null,null,null,null,null,null,null,null,null,null,null,null,null,null,null,null,null,null,null,null,null,null,null,null,null,null,null,null,null,null,"TOYOTA",21,"1000 P/U",35,"PICK-UP"]
[null,null,null,null,null,null,null,null,null,null,null,null,null,null,null,null,null,null,null,null,null,null,null,null,null,null,null,null,null,null,null,"TOYOTA",21,"YARIS SPORT",36,"SEDAN"]
[null,null,null,null,null,null,null,null,null,null,null,null,null,null,null,null,null,null,null,null,null,null,null,null,null,null,null,null,null,null,null,"TOYOTA",21,"NITRO 3P",37,"COUPE"]
[null,null,null,null,null,null,null,null,null,null,null,null,null,null,null,null,null,null,null,null,null,null,null,null,null,null,null,null,null,null,null,"VOLKSWAGEN",22,"GOL 3P",1,"COUPE"]
[null,null,null,null,null,null,null,null,null,null,null,null,null,null,null,null,null,null,null,null,null,null,null,null,null,null,null,null,null,null,null,"VOLKSWAGEN",22,"GOL 5P",2,"SEDAN"]
[null,null,null,null,null,null,null,null,null,null,null,null,null,null,null,null,null,null,null,null,null,null,null,null,null,null,null,null,null,null,null,"VOLKSWAGEN",22,"GOL SPORT",3,"SEDAN"]
[null,null,null,null,null,null,null,null,null,null,null,null,null,null,null,null,null,null,null,null,null,null,null,null,null,null,null,null,null,null,null,"VOLKSWAGEN",22,"SAVEIRO",4,"PICK-UP"]
[null,null,null,null,null,null,null,null,null,null,null,null,null,null,null,null,null,null,null,null,null,null,null,null,null,null,null,null,null,null,null,"VOLKSWAGEN",22,"GOLF",5,"SEDAN"]
[null,null,null,null,null,null,null,null,null,null,null,null,null,null,null,null,null,null,null,null,null,null,null,null,null,null,null,null,null,null,null,"VOLKSWAGEN",22,"POLO HATCHBACK",6,"STATION WAGON"]
[null,null,null,null,null,null,null,null,null,null,null,null,null,null,null,null,null,null,null,null,null,null,null,null,null,null,null,null,null,null,null,"VOLKSWAGEN",22,"POLO",7,"SEDAN"]
[null,null,null,null,null,null,null,null,null,null,null,null,null,null,null,null,null,null,null,null,null,null,null,null,null,null,null,null,null,null,null,"VOLKSWAGEN",22,"JETTA 4P",8,"SEDAN"]
[null,null,null,null,null,null,null,null,null,null,null,null,null,null,null,null,null,null,null,null,null,null,null,null,null,null,null,null,null,null,null,"VOLKSWAGEN",22,"VENTO",9,"SEDAN"]
[null,null,null,null,null,null,null,null,null,null,null,null,null,null,null,null,null,null,null,null,null,null,null,null,null,null,null,null,null,null,null,"VOLKSWAGEN",22,"PARATI",10,"SEDAN"]
[null,null,null,null,null,null,null,null,null,null,null,null,null,null,null,null,null,null,null,null,null,null,null,null,null,null,null,null,null,null,null,"VOLKSWAGEN",22,"SANTANA 4P",11,"SEDAN"]
[null,null,null,null,null,null,null,null,null,null,null,null,null,null,null,null,null,null,null,null,null,null,null,null,null,null,null,null,null,null,null,"VOLKSWAGEN",22,"AMAZON",12,"SEDAN"]
[null,null,null,null,null,null,null,null,null,null,null,null,null,null,null,null,null,null,null,null,null,null,null,null,null,null,null,null,null,null,null,"VOLKSWAGEN",22,"BRASILIA",13,"SEDAN"]
[null,null,null,null,null,null,null,null,null,null,null,null,null,null,null,null,null,null,null,null,null,null,null,null,null,null,null,null,null,null,null,"VOLKSWAGEN",22,"ESCARABAJO",15,"COUPE"]
[null,null,null,null,null,null,null,null,null,null,null,null,null,null,null,null,null,null,null,null,null,null,null,null,null,null,null,null,null,null,null,"VOLKSWAGEN",22,"POLO SPORT",17,"SEDAN"]
[null,null,null,null,null,null,null,null,null,null,null,null,null,null,null,null,null,null,null,null,null,null,null,null,null,null,null,null,null,null,null,"VOLKSWAGEN",22,"QUAMTUM",18,"STATION WAGON"]
[null,null,null,null,null,null,null,null,null,null,null,null,null,null,null,null,null,null,null,null,null,null,null,null,null,null,null,null,null,null,null,"VOLKSWAGEN",22,"PASSAT",19,"SEDAN"]
[null,null,null,null,null,null,null,null,null,null,null,null,null,null,null,null,null,null,null,null,null,null,null,null,null,null,null,null,null,null,null,"VOLKSWAGEN",22,"GOLF GTI",20,"COUPE"]
[null,null,null,null,null,null,null,null,null,null,null,null,null,null,null,null,null,null,null,null,null,null,null,null,null,null,null,null,null,null,null,"VOLKSWAGEN",22,"BETTLE",21,"COUPE"]
[null,null,null,null,null,null,null,null,null,null,null,null,null,null,null,null,null,null,null,null,null,null,null,null,null,null,null,null,null,null,null,"VOLKSWAGEN",22,"BORA",22,"SEDAN"]
[null,null,null,null,null,null,null,null,null,null,null,null,null,null,null,null,null,null,null,null,null,null,null,null,null,null,null,null,null,null,null,"VOLKSWAGEN",22,"FOX SPORT",23,"SEDAN"]
[null,null,null,null,null,null,null,null,null,null,null,null,null,null,null,null,null,null,null,null,null,null,null,null,null,null,null,null,null,null,null,"VOLKSWAGEN",22,"FOX 2P",24,"COUPE"]
[null,null,null,null,null,null,null,null,null,null,null,null,null,null,null,null,null,null,null,null,null,null,null,null,null,null,null,null,null,null,null,"VOLKSWAGEN",22,"FOX 4P",25,"SEDAN"]
[null,null,null,null,null,null,null,null,null,null,null,null,null,null,null,null,null,null,null,null,null,null,null,null,null,null,null,null,null,null,null,"VOLVO",23,460,1,"SEDAN"]
[null,null,null,null,null,null,null,null,null,null,null,null,null,null,null,null,null,null,null,null,null,null,null,null,null,null,null,null,null,null,null,"VOLVO",23,"V70",2,"SEDAN"]
[null,null,null,null,null,null,null,null,null,null,null,null,null,null,null,null,null,null,null,null,null,null,null,null,null,null,null,null,null,null,null,"VOLVO",23,"S60",3,"SEDAN"]
[null,null,null,null,null,null,null,null,null,null,null,null,null,null,null,null,null,null,null,null,null,null,null,null,null,null,null,null,null,null,null,"VOLVO",23,240,4,"SEDAN"]
[null,null,null,null,null,null,null,null,null,null,null,null,null,null,null,null,null,null,null,null,null,null,null,null,null,null,null,null,null,null,null,"VOLVO",23,850,5,"SEDAN"]
[null,null,null,null,null,null,null,null,null,null,null,null,null,null,null,null,null,null,null,null,null,null,null,null,null,null,null,null,null,null,null,"VOLVO",23,240,6,"SEDAN"]
[null,null,null,null,null,null,null,null,null,null,null,null,null,null,null,null,null,null,null,null,null,null,null,null,null,null,null,null,null,null,null,"VOLVO",23,"122 S",7,"SEDAN"]
[null,null,null,null,null,null,null,null,null,null,null,null,null,null,null,null,null,null,null,null,null,null,null,null,null,null,null,null,null,null,null,"VOLVO",23,244,8,"SEDAN"]
[null,null,null,null,null,null,null,null,null,null,null,null,null,null,null,null,null,null,null,null,null,null,null,null,null,null,null,null,null,null,null,"VOLVO",23,"940 GL",9,"SEDAN"]
[null,null,null,null,null,null,null,null,null,null,null,null,null,null,null,null,null,null,null,null,null,null,null,null,null,null,null,null,null,null,null,"VOLVO",23,"430SE",10,"SEDAN"]
[null,null,null,null,null,null,null,null,null,null,null,null,null,null,null,null,null,null,null,null,null,null,null,null,null,null,null,null,null,null,null,"VOLVO",23,440,11,"SEDAN"]
[null,null,null,null,null,null,null,null,null,null,null,null,null,null,null,null,null,null,null,null,null,null,null,null,null,null,null,null,null,null,null,"VOLVO",23,740,12,"SEDAN"]
[null,null,null,null,null,null,null,null,null,null,null,null,null,null,null,null,null,null,null,null,null,null,null,null,null,null,null,null,null,null,null,"VOLVO",23,960,13,"SEDAN"]
[null,null,null,null,null,null,null,null,null,null,null,null,null,null,null,null,null,null,null,null,null,null,null,null,null,null,null,null,null,null,null,"VOLVO",23,760,14,"SEDAN"]
[null,null,null,null,null,null,null,null,null,null,null,null,null,null,null,null,null,null,null,null,null,null,null,null,null,null,null,null,null,null,null,"VOLVO",23,"S40",15,"SEDAN"]
[null,null,null,null,null,null,null,null,null,null,null,null,null,null,null,null,null,null,null,null,null,null,null,null,null,null,null,null,null,null,null,"VOLVO",23,"S80",16,"SEDAN"]
[null,null,null,null,null,null,null,null,null,null,null,null,null,null,null,null,null,null,null,null,null,null,null,null,null,null,null,null,null,null,null,"VOLVO",23,"S70",17,"SEDAN"]
[null,null,null,null,null,null,null,null,null,null,null,null,null,null,null,null,null,null,null,null,null,null,null,null,null,null,null,null,null,null,null,"VOLVO",23,"S90",19,"SEDAN"]
[null,null,null,null,null,null,null,null,null,null,null,null,null,null,null,null,null,null,null,null,null,null,null,null,null,null,null,null,null,null,null,"WORLDSTAR",99,"1300 CC",1,"PICK-UP"]
[null,null,null,null,null,null,null,null,null,null,null,null,null,null,null,null,null,null,null,null,null,null,null,null,null,null,null,null,null,null,null,"ZASTAVA",61,"SEDAN",1,"SEDAN"]
[null,null,null,null,null,null,null,null,null,null,null,null,null,null,null,null,null,null,null,null,null,null,null,null,null,null,null,null,null,null,null,"ZASTAVA",61,1100,2,"SEDAN"]

{"sheet":"FORM","index":1,"n_rows":764,"n_cols":52,"rows_kept":764,"cut":false,"hidden":false,"merged":[[78,2,78,3],[78,5,78,14],[74,2,74,14],[76,5,76,14],[72,2,72,3],[137,2,137,3],[338,2,338,3],[165,2,165,3],[166,70,166,76],[167,70,167,76],[168,70,168,76],[169,70,169,76],[170,70,170,76],[171,70,171,76],[172,70,172,76],[333,2,333,3],[80,2,80,3],[80,5,80,14],[139,5,139,14],[147,5,147,8],[143,2,143,14],[145,2,145,3],[145,5,145,8],[145,11,145,14],[123,11,123,12],[129,5,129,14],[105,2,105,3],[119,8,119,9],[141,5,141,14],[147,2,147,3],[91,2,91,3],[87,2,87,3],[87,5,87,14],[121,8,121,9],[122,8,122,9],[119,11,119,12],[115,2,115,3],[109,2,109,3],[109,5,109,14],[111,2,111,3],[111,5,111,14],[113,2,113,3],[113,5,113,14],[117,2,117,14],[121,11,121,12],[101,2,101,3],[137,5,137,14],[125,5,125,6],[156,5,156,8],[139,2,139,3],[141,2,141,3],[107,2,107,3],[125,8,125,9],[125,11,125,12],[125,2,125,3],[122,11,122,12],[124,8,124,9],[123,5,123,6],[123,8,123,9],[131,2,131,3],[131,5,131,14],[124,2,124,3],[133,2,133,3],[122,2,122,3],[123,2,123,3],[121,5,121,6],[107,5,107,14],[115,5,115,14],[122,5,122,6],[119,2,119,3],[121,2,121,3],[119,5,119,6],[38,5,38,14],[44,2,44,3],[40,2,40,3],[40,5,40,14],[50,2,50,3],[54,2,54,3],[54,5,54,14],[36,11,36,14],[32,5,32,8],[34,5,34,8],[36,5,36,8],[36,2,36,3],[34,11,34,14],[32,2,32,3],[34,2,34,3],[44,5,44,14],[38,2,38,3],[42,2,42,3],[42,5,42,14],[46,2,46,3],[32,11,32,14],[52,2,52,3],[46,5,46,14],[50,5,50,14],[5,2,5,14],[30,2,30,14],[12,2,12,3],[12,5,12,14],[24,2,24,3],[16,2,16,3],[24,5,24,14],[28,2,28,3],[22,5,22,14],[26,2,26,3],[26,5,26,14],[22,2,22,3],[7,2,7,3],[20,2,20,3],[20,5,20,14],[10,2,10,14],[18,5,18,14],[16,5,16,14],[14,2,14,3],[14,5,14,14],[18,2,18,3],[28,5,28,14],[64,5,64,8],[62,5,62,8],[105,5,105,14],[83,5,83,14],[48,5,48,14],[103,2,103,3],[93,2,93,3],[93,5,93,14],[89,2,89,3],[48,2,48,3],[70,2,70,3],[70,5,70,14],[56,2,56,3],[56,5,56,14],[58,2,58,3],[58,5,58,14],[68,5,68,14],[68,2,68,3],[76,2,76,3],[62,11,62,14],[95,5,95,14],[103,5,103,14],[97,2,97,3],[101,5,101,14],[135,2,135,3],[135,5,135,14],[124,11,124,12],[133,5,133,14],[124,5,124,6],[129,2,129,3],[127,2,127,14],[66,5,66,14],[52,5,52,14],[83,2,83,3],[91,5,91,14],[97,5,97,14],[85,2,85,3],[85,5,85,14],[89,5,89,14],[99,2,99,3],[95,2,95,3],[99,5,99,14],[64,2,64,3],[62,2,62,3],[64,11,64,14],[66,2,66,3],[60,2,60,14],[72,5,72,14]]}
[]
[]
[]
[]
[]
[null,null,"FINANCIAMIENTO VEHICULAR DINERS CLUB "]
[]
[null,null,"FECHA DE COMPRA / VENTA:",null,null,{"$f":"+Cotizador!F9","v":"2018-05-21"},"AAAA/MM/DD"]
[]
[]
[null,null,"DATOS DEL CONCESIONARIO"]
[]
[null,null,"CONCESIONARIO:",null,null,"AUTOMOTORES CONTINENTAL"]
[]
[null,null,"REPRESENTANTE LEGAL:",null,null,"GERARDO DORFFLINGER"]
[]
[null,null,"NACIONALIDAD DEL REPRESENTANTE LEGAL:",null,null,"ECUATORIANO"]
[]
[null,null,"CARGO:",null,null,"GERENTE GENERAL"]
[]
[null,null,"RUC:",null,null,"1713882247001"]
[]
[null,null,"DIRECCIÓN:",null,null,"AV 10 DE AGOSTO Y AV GASPAR DE VILLAROEL ESQUINA"]
[]
[null,null,"CIUDAD:",null,null,"PORTOVIEJO"]
[]
[null,null,"NOMBRE DEL VENDEDOR:",null,null,{"$f":"Cotizador!$F$13","v":"PEDRO SALINAS"}]
[]
[null,null,"CÉDULA DEL VENDEDOR:",null,null,"1524885547"]
[]
[null,null,"DATOS DEL CLIENTE"]
[]
[null,null,"APELLIDOS:",null,null,{"$f":"Cotizador!$F$17","v":"DOMINGUEZ"},null,null,null,null,null,{"$f":"IF(Cotizador!L17=0,\" \",Cotizador!L17)","v":"RUALES"},null,null,null,null,{"$f":"IF(L33=0,F33,CONCATENATE(F33,\" \",L33))","v":"DOMINGUEZ RUALES"}]
[null,null,null,null,null,null,null,null,null,null,null,null,null,null,null,null," "]
[null,null,"NOMBRES:",null,null,{"$f":"Cotizador!$F$19","v":"ANA "},null,null,null,null,null,{"$f":"IF(Cotizador!L19=0,\" \",Cotizador!L19)","v":"CAROLINA"},null,null,null,null,{"$f":"IF(L35=0,F35,CONCATENATE(F35,\" \",L35))","v":"ANA  CAROLINA"}]
[]
[null,null,"TELEFONOS:",null,null,{"$f":"Cotizador!$F$21","v":"3188179"},null,null,null,null,null,{"$f":"Cotizador!$L$21","v":"0985352479"},null,null,null,null,{"$f":"CONCATENATE(Q35,\" \",Q33)","v":"ANA  CAROLINA DOMINGUEZ RUALES"}]
[]
[null,null,"No. CEDULA / RUC:",null,null,"1234567890"]
[]
[null,null,"NACIONALIDAD DEL CLIENTE:",null,null,"ECUATORIANA"]
[]
[null,null,"GENERO:",null,null,"FEMENINO"]
[]
[null,null,"DIRECCION:",null,null,"AV PEDRO DE ALVARADO N56-72 Y CARLOS V"]
[]
[null,null,"CIUDAD:",null,null,"PORTOVIEJO"]
[]
[null,null,"E-MAIL:",null,null,"ANADOMINGE@HOTMAIL.COM"]
[]
[null,null,"LUGAR DE TRABAJO:",null,null,"INTERDIN"]
[]
[null,null,"DIRECCIÓN  DE TRABAJO:",null,null,"AV AMAZONAS 45 45 Y PEREIRA"]
[]
[null,null,"TELEFONO  DE TRABAJO:",null,null,"2981300"]
[]
[null,null,"PROFESIÓN U OCUPACIÓN:",null,null,"INGENIRA"]
[]
[null,null,"ES EL UNICO VEHÍCULO DE USO FAMILIAR:",null,null,"Si"]
[]
[null,null,"DATOS INFORMATIVOS DEL CONYUGE"]
[]
[null,null,"APELLIDOS:",null,null,"CLVACHE",null,null,null,null,null,"ONTANEDA",null,null,null,null,{"$f":"IF(L63=0,F63,CONCATENATE(F63,\" \",L63))","v":"CLVACHE ONTANEDA"}]
[null,null,null,null,null,null,null,null,null,null,null,null,null,null,null,null," "]
[null,null,"NOMBRES:",null,null,"DAVID",null,null,null,null,null,"EDUARDO",null,null,null,null,{"$f":"IF(L65=0,F65,CONCATENATE(F65,\" \",L65))","v":"DAVID EDUARDO"}]
[]
[null,null,"No. CEDULA / RUC:",null,null,"1239876589",null,null,null,null,null,null,null,null,null,null," "]
[]
[null,null,"NACIONALIDAD DEL CONYUGUE:",null,null,"COLOMBIANO"]
[]
[null,null,"LUGAR DE TRABAJO:",null,null,"MARESA"]
[]
[null,null,"PROFESIÓN U OCUPACIÓN:",null,null,"INGENIERO"]
[]
[null,null,"DATOS VEHÍCULO"]
[]
[null,null,"MARCA:",null,null,{"$f":"Cotizador!$F$25","v":"MAZDA"}]
[]
[null,null,"MODELO:",null,null,{"$f":"Cotizador!$F$27","v":"CX3"}]
[]
[null,null,"CLASE:",null,null,"AUTOMOVIL"]
[]
[]
[null,null,"TIPO:",null,null,"SEDAN"]
[]
[null,null,"AÑO:",null,null,{"$f":"Cotizador!$F$29","v":2019}]
[]
[null,null,"COLOR:",null,null,"ROJO"]
[]
[null,null,"No. DE MOTOR:",null,null,"BU456792826RE7"]
[]
[null,null,"No. DE CHASIS:",null,null,"CG5342892U"]
[]
[null,null,"PAIS DE ORIGEN:",null,null,"KOREA"]
[]
[null,null,"TONELAJE:",null,null,"0,45"]
[]
[null,null,"CILINDRAJE:",null,null,"2000"]
[]
[null,null,"VALOR DE COMPRA / VENTA:",null,null,{"$f":"Cotizador!F31","v":34483.5}]
[]
[null,null,"VALOR DE ENTRADA",null,null,{"$f":"Cotizador!F35","v":8000}]
[]
[null,null,"PLAZO FINANCIAMIENTO",null,null,{"$f":"Cotizador!F37","v":4}]
[]
[null,null,"TASA DE INTERES VIGENTE:",null,null,{"$f":"+Cotizador!F43","v":0.16059999999999999}]
[]
[null,null,"CUOTA VEHICULO:",null,null,{"$f":"+'TAB AMORT'!C14","v":754.35305704893517}]
[]
[null,null,"REQUIERE DISPOSITIVO",null,null,{"$f":"IF(F100>15000,\"REQUIERE DISPOSITIVO DE RASTREO\",\"NO APLICA DISPOSITIVO\")","v":"REQUIERE DISPOSITIVO DE RASTREO"}]
[]
[null,null,"DISPOSITIVO",null,null,{"$f":"Cotizador!F47","v":"MARESA SATELITAL BY HUNTER"}]
[]
[null,null,"DISPOSITIVO",null,null,{"$f":"CONCATENATE(F112,\" \",F104*12)","v":"MARESA SATELITAL BY HUNTER 48"}]
[]
[null,null,"TASA GASTOS LEGALIZACIÓN CONTRATOS",null,null,{"$f":"+Cotizador!D161","v":419.8175}]
[]
[null,null,"CONDUCTORES DEL VEHICULO"]
[]
[null,null,"NOMBRE Y APELLIDO",null,null,"FECHA NACIMIENTO",null,null,"GENERO",null,null,"ESTADO CIVIL",null,null,"% DE USO"]
[]
[null,null,"ANA DOMINGUEZ",null,null,"1974-06-25",null,null,"FEMENINO",null,null,"CASADO",null,null,20]
[null,null,"PEDRO CALVACHE",null,null,"2004-03-31",null,null,"MASCULINO",null,null,"SOLTERO",null,null,30]
[null,null,"DAVID CALVACHE",null,null,"1972-08-30",null,null,"MASCULINO",null,null,"CASADO",null,null,50]
[]
[]
[]
[null,null,"VALORES ADICIONALES"]
[]
[null,null,"CUOTA SEGURO VEHICULO:",null,null,{"$f":"+Cotizador!F51","v":100.460376}]
[]
[null,null,"GASTOS LEGALES:",null,null,{"$f":"+Cotizador!$D$161","v":419.8175}]
[]
[null,null,"PLAZO GASTOS LEGALES",null,null,{"$f":"Cotizador!F49","v":"3 MESES SIN INTERESES"}]
[]
[null,null,"CUOTA GASTOS LEGALES",null,null,{"$f":"+Cotizador!F53","v":139.93916666666667}]
[]
[null,null,"CUOTA MENSUAL DISPOSITIVO",null,null,{"$f":"IF(F112=\"SIN DISPOSITIVO\",0,VLOOKUP(F114,Cotizador!$C$83:$D$127,2,FALSE))","v":35.583333333333336}]
[]
[null,null,"CUOTA MENSUAL SEGURO DESGRAVAMEN",null,null,"0,099% MENSUAL SOBRE EL SALDO DE LA TARJETA DE CREDITO"]
[]
[null,null,"CUOTA MENSUALVEHICULO",null,null,{"$f":"+F108","v":754.35305704893517}]
[]
[null,null,"FORMA DE PAGO"]
[]
[null,null,"No. DE TARJETA:",null,null,365023,null,null,null,null,null,"25370040"]
[]
[null,null,"FECHA DE CADUCIDAD:",null,null,"2022-05-01",null,null,null,null,null,{"$f":"TODAY()","v":"2019-10-22"}]
[]
[]
[]
[]
[]
[]
[]
[]
[]
[]
[]
[]
[]
[]
[]
[]
[]
[null,null,"DISPOSITIVOS",null,null,null,"AÑO",null,"VALOR LEGALES",null,"CIUDAD","Rep Legal","CI REP LEG","MES",null,null,"COLOR",null,"CÓDIGO COLOR","TASA","PRIMA NETA","SÚPER BANCOS","DERECHOS EMISIÓN","IVA","PRIMA TOTAL","MARCA SISE","CÓDIGO MARCA SISE","MARCA","CÓDIGO MARCA SISE","MODELO","CÓDIGO MODELO SISE","TIPO","GENERO","DIA","ESTADO CIVIL","% USO","AÑOS","GASTOS LEGALES",null,null,"PAÍS DE ORIGEN",null,"% ENTRADA","% RESTANTE","VALOR RESTANTE","CALCULO DÍAS",null,"BIN","FECHA PAGO","EXTRAER1","EXTRAER 2","ES VEHICULO FAMILIAR"]
[null,null,"TRACKLINK INTERACTIVO 12",46.573333333333345,469.28,null,2008,null,37.184000000000005,null,"QUITO","SILVIA JANNETH LEMA TAIPE",1715916951,"ENERO",null,null,"AMARILLO",null,1,{"$f":"(3.85/12)/100","v":3.2083333333333334E-3},{"$f":"ROUND(([3]FORM!$F$105*$T$167),2)","v":0},{"$f":"ROUND(($U$167*3.5%),2)","v":0},0.04,{"$f":"+[3]CERT!I18","v":4.7999999999999996E-3},{"$f":"+[3]CERT!I20","v":4.48E-2},"ALFA ROMEO",24,"ALFA ROMEO",24,146,1,"SEDAN","MASCULINO",1,"SOLTERO",5,1,"CORRIENTE",null,null,"ALEMANIA",null,{"$f":"+F102/F100","v":0.23199501210723969},{"$f":"100%-AQ167","v":0.76800498789276028},{"$f":"+F100-F102","v":26483.5},{"$f":"+F104/12","v":0.33333333333333331},null,360041,16,{"$f":"MID(F146,1,6)","v":"365023"},{"$f":"MID(F146,7,8)","v":""},"SI"]
[null,null,"TRACKLINK INTERACTIVO 24",33.553333333333335,592.48,null,2009,null,17.920000000000002,null,"GUAYAQUIL","ERNEST FERDINAND VALLEJO COBOS","0926201138","FEBRERO",null,null,"AZUL",null,2,{"$f":"(3.25/12)/100","v":2.708333333333333E-3},{"$f":"ROUND(([3]FORM!$F$105*$T$168),2)","v":0},{"$f":"ROUND(($U$168*3.5%),2)","v":0},0.04,{"$f":"+[3]CERT!I18","v":4.7999999999999996E-3},{"$f":"+Y167","v":4.48E-2},"AUDI",1,"ALFA ROMEO",24,155,2,"SEDAN","FEMENINO",2,"CASADO",10,2,"3 MESES SIN INTERESES",null,null,"ARGENTINA",null,null,null,null,null,null,361329,16,null,null,"NO"]
[null,null,"TRACKLINK INTERACTIVO 36",29.213333333333335,715.68,null,2010,null,1.2,null,"CUENCA","ERNEST FERDINAND VALLEJO COBOS","0926201138","MARZO",null,null,"BEIGE",null,3,{"$f":"(2.5/12)/100","v":2.0833333333333333E-3},{"$f":"ROUND(([3]FORM!$F$105*$T$169),2)","v":0},{"$f":"ROUND(($U$169*3.5%),2)","v":0},0.04,{"$f":"+[3]CERT!I18","v":4.7999999999999996E-3},{"$f":"+Y168","v":4.48E-2},"AUSTIN",26,"ALFA ROMEO",24,156,3,"SEDAN",null,3,"VIUDO",15,3,null,null,null,"BRASIL",null,null,null,null,null,null,361349,1]
[null,null,"TRACKLINK INTERACTIVO 48",27.043333333333337,962.08,null,2011,null,1000,null,"AMBATO","SILVIA JANNETH LEMA TAIPE",1715916951,"ABRIL",null,null,"BLANCO",null,4,null,null,null,null,null,null,"BMW",2,"ALFA ROMEO",24,165,4,"SEDAN",null,4,"DIVORCIADO",20,4,null,null,null,"CANADÁ",null,null,null,null,null,null,362062,1]
[null,null,"TRACKLINK INTERACTIVO 60",25.741333333333337,1208.48,null,2012,null,1.1200000000000001,null,"IBARRA","SILVIA JANNETH LEMA TAIPE",1715916951,"MAYO",null,null,"CAFÉ",null,5,null,null,null,null,null,null,"BUICK",81,"ALFA ROMEO",24,166,5,"SEDAN",null,5,"UNIÓN LIBRE",25,null,null,null,null,"CHINA",null,null,null,null,null,null,362620,1]
[null,null,"TRACKLINK CONTROL 12",54.04,388.64,419,2013,null,44.8,null,"MANTA","ERNEST FERDINAND VALLEJO COBOS","0926201138","JUNIO",null,null,"CELESTE",null,6,null,null,null,null,null,null,"CHANGAN",83,"ALFA ROMEO",24,"SPIDER",6,"SEDAN",null,6,null,30,null,null,null,null,"CHILE",null,null,null,null,null,null,362621,1]
[null,null,"TRACKLINK CONTROL 24",39.620000000000005,511.84,null,2014,null,{"$f":"IF(F100>4000,F100-4000,44.8)","v":30483.5},null,"MACHALA","ERNEST FERDINAND VALLEJO COBOS","0926201138","JULIO",null,null,"CREMA",null,7,null,null,null,null,null,null,"CHEVROLET",3,"ALFA ROMEO",24,33,7,"SEDAN",null,7,null,35,null,null,null,null,"COLOMBIA",null,null,null,null,null,null,362622,16]
[null,null,"TRACKLINK CONTROL 36",34.81333333333334,635.04,null,2015,null,22.4,null,"LOJA","ERNEST FERDINAND VALLEJO COBOS","0926201138","AGOSTO",null,null,"FUCSIA",null,8,null,null,null,null,null,null,"CHRYSLER",4,"ALFA ROMEO",24,"GIO",8,"SEDAN",null,8,null,40,null,null,null,null,"ECUADOR",null,null,null,null,null,null,363999,16]
[null,null,"TRACKLINK CONTROL 48",32.410000000000004,881.44,null,2016,null,56,null,"PORTOVIEJO","ERNEST FERDINAND VALLEJO COBOS","0926201138","SEPTIEMBRE",null,null,"GRIS",null,9,null,null,null,null,null,null,"CITROEN",28,"ALFA ROMEO",24,164,9,"SEDAN",null,9,null,45,null,null,null,null,"ESPAÑA",null,null,null,null,null,null,364170,16]
[null,null,"TRACKLINK CONTROL 60",30.968000000000004,1127.8399999999999,{"$f":"+E171/48","v":25.176666666666666},null,null,null,null,"ALAMOR",null,null,"OCTUBRE",null,null,"LILA",null,10,null,null,null,null,null,null,"DACIA",29,"ALFA ROMEO",24,"GTV3",10,"SEDAN",null,10,null,50,null,null,null,null,"ESTADOS UNIDOS",null,null,null,null,null,null,364171,1]
[null,null,"TRACKLINK CONTROL PLUS 12",69.90666666666668,586.88,{"$f":"+(E172*1.05)","v":408.072},null,null,null,null,"ALAUSI",null,null,"NOVIEMBRE",null,null,"MORADO",null,11,null,null,null,null,null,null,"DAEWOO",5,"ALFA ROMEO",24,145,11,"COUPE",null,11,null,55,null,null,null,null,"NORUEGA",null,null,null,null,null,null,364172,16]
[null,null,"TRACKLINK CONTROL PLUS 24",47.506666666666668,736.96,null,null,null,null,null,"AMBUQUI",null,null,"DICIEMBRE",null,null,"NARANJA",null,12,null,null,null,null,null,null,"DAIHATSU",6,"ALFA ROMEO",24,147,12,"SEDAN",null,12,null,60,null,null,null,null,"HONG KONG",null,null,null,null,null,null,364173,1]
[null,null,"TRACKLINK CONTROL PLUS 36",40.04,887.04,null,null,null,null,null,"ANTONIO ANTE",null,null,null,null,null,"NEGRO",null,13,null,null,null,null,null,null,"DATSUN",30,"AUDI",1,80,1,"SEDAN",null,13,null,65,null,null,null,null,"FRANCIA",null,null,null,null,null,null,364190,16]
[null,null,"TRACKLINK CONTROL PLUS 48",36.306666666666672,1187.2,null,null,null,null,null,"ANTONIO ANTE",null,null,null,null,null,"PLATA",null,14,null,null,null,null,null,null,"DEER",111,"AUDI",1,"A3",2,"SEDAN",null,14,null,70,null,null,null,null,"INGLATERRA",null,null,null,null,null,null,364234,16]
[null,null,"TRACKLINK CONTROL PLUS 60",34.06666666666667,1487.36,{"$f":"+E176/48","v":23.496666666666666},null,null,null,null,"ARCHIDONA",null,null,null,null,null,"PLATEADO",null,15,null,null,null,null,null,null,"DODGE",31,"AUDI",1,"TT COUPE 1.8 QUATTRO",3,"SEDAN",null,15,null,75,null,null,null,null,"ITALIA",null,null,null,null,null,null,364261,16]
[null,null,"TRACKLINK CONTROL TOTAL 12",88.573333333333338,506.24,{"$f":"+(E177*1.05)","v":616.22400000000005},null,null,null,null,"ARENILLAS",null,null,null,null,null,"PLOMO",null,16,null,null,null,null,null,null,"FIAT",7,"AUDI",1,"A4",4,"SEDAN",null,16,null,80,null,null,null,null,"JAPÓN",null,null,null,null,null,null,364444,1]
[null,null,"TRACKLINK CONTROL TOTAL 24",60.153333333333336,656.32,null,null,null,null,null,"ATACAMES",null,null,null,null,null,"ROJO",null,17,null,null,null,null,null,null,"FORD",8,"AUDI",1,"A6",5,"SEDAN",null,17,null,85,null,null,null,null,"COREA",null,null,null,null,null,null,364522,16]
[null,null,"TRACKLINK CONTROL TOTAL 36",50.680000000000007,806.4,null,null,null,null,null,"ATUNTAQUI",null,null,null,null,null,"VERDE",null,18,null,null,null,null,null,null,"FSO",77,"AUDI",1,808,6,"SEDAN",null,18,null,90,null,null,null,null,"MÉXICO",null,null,null,null,null,null,364700,1]
[null,null,"TRACKLINK CONTROL TOTAL 48",45.943333333333335,1106.56,null,null,null,null,null,"AZOGUEZ",null,null,null,null,null,"VINO",null,19,null,null,null,null,null,null,"GMC",70,"AUDI",1,"A 62.8",7,"SEDAN",null,19,null,95,null,null,null,null,"PERU",null,null,null,null,null,null,364701,16]
[null,null,"TRACKLINK CONTROL TOTAL 60",43.101333333333336,1406.72,{"$f":"+E181/48","v":30.986666666666665},null,null,null,null,"BABAHOYO",null,null,null,null,null,"BRONCE",null,20,null,null,null,null,null,null,"GREAT WALL",108,"AUDI",1,"ALLROAD",8,"SEDAN",null,20,null,100,null,null,null,null,"REPUBLICA CHECA",null,null,null,null,null,null,364702,16]
[null,null,"SHERLOC 12",53.2,{"$f":"+D198*24","v":940.80000000000007},{"$f":"+(E182*1.05)","v":531.55200000000002},null,null,870,null,"BAHÍA DE CARÁQUEZ",null,null,null,null,null,"CHAMPAGNE",null,21,null,null,null,null,null,null,"HONDA",9,"AUDI",1,"A8",9,"SEDAN",null,21,null,null,null,null,null,null,"RUSIA",null,null,null,null,null,null,364703,1]
[null,null,"SHERLOC 24",40.549999999999997,{"$f":"+D199*24","v":860.16000000000008},null,null,null,null,null,"BALAO",null,null,null,null,null,"DORADO",null,22,null,null,null,null,null,null,"HUMMER",115,"AUSTIN",26,"MINI 1000",1,"COUPE",null,22,null,null,null,null,null,null,"SUECIA",null,null,null,null,null,null,364716,1]
[null,null,"SHERLOC 36",36.340000000000003,{"$f":"+D200*24","v":806.40000000000009},null,null,null,null,null,"BALSAS",null,null,null,null,null,"HABANO",null,23,null,null,null,null,null,null,"HYUNDAI",10,"AUSTIN",26,"MINI CORD",2,"COUPE",null,23,null,null,null,null,null,null,"VENEZUELA",null,null,null,null,null,null,364717,1]
[null,null,"SHERLOC 48",31.9,{"$f":"+D201*36","v":1169.28},null,null,null,null,null,"BALZAR",null,null,null,null,null,"MARRÓN",null,24,null,null,null,null,null,null,"INTERNATIONAL",44,"BMW",2,318,1,"SEDAN",null,24,null,null,null,null,null,null,"YUGOSLAVIA",null,null,null,null,null,null,364719,16]
[null,null,"SHERLOC 60",29.23,{"$f":"+D202*48","v":3064.32},{"$f":"+E186/48","v":29.306666666666668},null,null,null,null,"BAÑOS",null,null,null,null,null,"STRATO",null,25,null,null,null,null,null,null,"ISUZU",34,"BMW",2,"330I",2,"SEDAN",null,25,null,null,null,null,null,null,null,null,null,null,null,null,null,365001,16]
[null,null,"HUNTER LOJACK 12",41.887999999999998,null,null,null,null,null,null,"BIBLIAN",null,null,null,null,null,"VIOLETA",null,26,null,null,null,null,null,null,"JAGUAR",35,"BMW",2,"328I",3,"SEDAN",null,26,null,null,null,null,null,null,null,null,null,null,null,null,null,365147,16]
[null,null,"HUNTER LOJACK 24",33.6,null,null,null,null,null,null,"BOLÍVAR",null,null,null,null,null,"TURQUESA",null,27,null,null,null,null,null,null,"JEEP",71,"BMW",2,"325I",4,"SEDAN",null,27,null,null,null,null,null,null,null,null,null,null,null,null,null,365166,1]
[null,null,"HUNTER LOJACK 36",30.24,null,null,null,null,null,null,"BUENA FE",null,null,null,null,null,"ROSADO",null,28,null,null,null,null,null,null,"KIA",11,"BMW",2,"X5 4X4 5P",5,"JEEP",null,28,null,null,null,null,null,null,null,null,null,null,null,null,null,365167,1]
[null,null,"HUNTER LOJACK 48",29.12,null,null,null,null,null,null,"CALUMA",null,null,null,null,null,"ARENA",null,29,null,null,null,null,null,null,"LADA",13,"BMW",2,"528I",6,"SEDAN",null,29,null,null,null,null,null,null,null,null,null,null,null,null,null,365168,16]
[null,null,"HUNTER LOJACK 60",28,null,null,null,null,null,null,"CAÑAR",null,null,null,null,null,"ILUSIÓN",null,30,null,null,null,null,null,null,"LANCIA",36,"BMW",2,"316I",7,"SEDAN",null,30,null,null,null,null,null,null,null,null,null,null,null,null,null,365169,1]
[null,null,"H. MONITOREO BASICO 12",51.519999999999996,null,null,null,null,null,null,"CARIAMANGA",null,null,null,null,null,"ROBLE",null,31,null,null,null,null,null,null,"LAND ROVER",12,"BMW",2,"320I",8,"SEDAN",null,31,null,null,null,null,null,null,null,null,null,null,null,null,null,365181,1]
[null,null,"H. MONITOREO BASICO 24",39.200000000000003,null,null,null,null,null,null,"CATAMAYO",null,null,null,null,null,"MOSTAZA",null,32,null,null,null,null,null,null,"LEXUS",37,"BMW",2,"323I",9,"SEDAN",null,null,null,null,null,null,null,null,null,null,null,null,null,null,null,365420,1]
[null,null,"H. MONITOREO BASICO 36",35.840000000000003,null,null,null,null,null,null,"CAYAMBE",null,null,null,null,null,null,null,null,null,null,null,null,null,null,"LINCOLN",38,"BMW",2,"523I",10,"SEDAN",null,null,null,null,null,null,null,null,null,null,null,null,null,null,null,365421,16]
[null,null,"H. MONITOREO BASICO 48",33.6,null,null,null,null,null,null,"CELICA",null,null,null,null,null,null,null,null,null,null,null,null,null,null,"MAHINDRA",101,"BMW",2,"525I",11,"SEDAN",null,null,null,null,null,null,null,null,null,null,null,null,null,null,null,365422,1]
[null,null,"H. MONITOREO BASICO 60",32.479999999999997,null,null,null,null,null,null,"CHICA",null,null,null,null,null,null,null,null,null,null,null,null,null,null,"MAZDA",14,"BMW",2,"Z3",12,"COUPE",null,null,null,null,null,null,null,null,null,null,null,null,null,null,null,365423,16]
[null,null,"H. MONITOREO BÁSICO GOLDEN 12",63.84,null,null,null,null,null,null,"CHIMBO",null,null,null,null,null,null,null,null,null,null,null,null,null,null,"MERCEDES BENZ",15,"BMW",2,"Z8",13,"COUPE",null,null,null,null,null,null,null,null,null,null,null,null,null,null,null,365424,16]
[null,null,"H. MONITOREO BÁSICO GOLDEN 24",45.92]
[null,null,"H. MONITOREO BÁSICO GOLDEN 36",40.32,null,null,null,null,null,null,"CHONE",null,null,null,null,null,null,null,null,null,null,null,null,null,null,"MITSUBISHI",16,"BMW",2,"M3",14,"COUPE",null,null,null,null,null,null,null,null,null,null,null,null,null,null,null,365425,1]
[null,null,"H. MONITOREO BÁSICO GOLDEN 48",36.96,null,null,null,null,null,null,"COCA",null,null,null,null,null,null,null,null,null,null,null,null,null,null,"NISSAN",17,"BMW",2,"M5",15,"COUPE",null,null,null,null,null,null,null,null,null,null,null,null,null,null,null,365427,1]
[null,null,"H. MONITOREO BÁSICO GOLDEN 60",35.167999999999999,null,null,null,null,null,null,"CONCORDIA",null,null,null,null,null,null,null,null,null,null,null,null,null,null,"OLDSMOBIL",73,"BMW",2,520,16,"SEDAN",null,null,null,null,null,null,null,null,null,null,null,null,null,null,null,365428,1]
[null,null,"MARESA SATELITAL BY HUNTER 12",50.4,null,null,null,null,null,null,"COTACACHI",null,null,null,null,null,null,null,null,null,null,null,null,null,null,"OLTCIT",40,"BMW",2,"530IA",17,"SEDAN",null,null,null,null,null,null,null,null,null,null,null,null,null,null,null,365429,16]
[null,null,"MARESA SATELITAL BY HUNTER 24",40.32,null,null,null,null,null,null,"CUMBAYÁ",null,null,null,null,null,null,null,null,null,null,null,null,null,null,"PEUGEOT",18,"BMW",2,"318TI",18,"COUPE",null,null,null,null,null,null,null,null,null,null,null,null,null,null,null,365453,16]
[null,null,"MARESA SATELITAL BY HUNTER 36",36.96,null,null,null,null,null,null,"DAULE",null,null,null,null,null,null,null,null,null,null,null,null,null,null,"PLYMOUTH",54,"BMW",2,740,19,"SEDAN",null,null,null,null,null,null,null,null,null,null,null,null,null,null,null,365454,16]
[null,null,"MARESA SATELITAL BY HUNTER 48",35.840000000000003,null,null,null,null,null,null,"DURAN",null,null,null,null,null,null,null,null,null,null,null,null,null,null,"PORCHE",56,"BMW",2,1602,21,"SEDAN"]
[null,null,"MARESA SATELITAL BY HUNTER 60",34.72,null,null,null,null,null,null,"EL ÁNGEL",null,null,null,null,null,null,null,null,null,null,null,null,null,null,"RENAULT",19,"BMW",2,366,22,"SEDAN"]
[null,null,null,null,null,null,null,null,null,null,"EL CARMEN",null,null,null,null,null,null,null,null,null,null,null,null,null,null,"SAAB",45,"BMW",2,530,23,"SEDAN"]
[null,null,null,null,null,null,null,null,null,null,"EL CORAZÓN",null,null,null,null,null,null,null,null,null,null,null,null,null,null,"SAEHAN",57,"BMW",2,540,25,"SEDAN"]
[null,null,null,null,null,null,null,null,null,null,"EL EMPALME",null,null,null,null,null,null,null,null,null,null,null,null,null,null,"SAMSUNG",74,"BMW",2,"318IS",26,"SEDAN"]
[null,null,null,null,null,null,null,null,null,null,"EL GUABO",null,null,null,null,null,null,null,null,null,null,null,null,null,null,"SANGYONG",42,"BMW",2,"318I LIMUSIN",27,"SEDAN"]
[null,null,"Sin Dispositivo",null,null,null,null,null,null,null,"EL NARANJAL",null,null,null,null,null,null,null,null,null,null,null,null,null,null,"SEAT",105,"BMW",2,"Z4",29,"COUPE"]
[null,null,"TRACKLINK INTERACTIVO",null,null,null,null,null,null,null,"EL TAMBO",null,null,null,null,null,null,null,null,null,null,null,null,null,null,"SKODA",20,"BMW",2,"X3",31,"JEEP"]
[null,null,"TRACKLINK CONTROL",null,null,null,null,null,null,null,"EL TRIUNFO",null,null,null,null,null,null,null,null,null,null,null,null,null,null,"SUBARU",58,"BUICK",81,"CENTURY",1,"SEDAN"]
[null,null,"TRACKLINK CONTROL PLUS",null,null,null,null,null,null,null,"ESMERALDAS",null,null,null,null,null,null,null,null,null,null,null,null,null,null,"SUZUKI",60,"CHANGAN",83,"SC1011CG",1,"PICK-UP"]
[null,null,"TRACKLINK CONTROL TOTAL",null,null,null,null,null,null,null,"FLAVIO ALFARO",null,null,null,null,null,null,null,null,null,null,null,null,null,null,"TALBOT",59,"CHANGAN",83,"MINI VAN",2,"MINI VAN"]
[null,null,"SHERLOC",null,null,null,null,null,null,null,"GIRÓN",null,null,null,null,null,null,null,null,null,null,null,null,null,null,"TATA",75,"CHANGAN",83,"SC1018AA100",3,"PICK-UP"]
[null,null,"HUNTER LOJACK",null,null,null,null,null,null,null,"GONZALO PIZARRO",null,null,null,null,null,null,null,null,null,null,null,null,null,null,"TOYOTA",21,"CHEVROLET",3,"FORSA",1,"COUPE"]
[null,null,"H. MONITOREO BASICO",null,null,null,null,null,null,null,"GUALACEO",null,null,null,null,null,null,null,null,null,null,null,null,null,null,"VOLKSWAGEN",22,"CHEVROLET",3,"CORSA 3P",2,"COUPE"]
[null,null,"H. MONITOREO BÁSICO GOLDEN",null,null,null,null,null,null,null,"GUALAQUIZA",null,null,null,null,null,null,null,null,null,null,null,null,null,null,"VOLVO",23,"CHEVROLET",3,"CORSA 4P",3,"SEDAN"]
[null,null,"MARESA SATELITAL BY HUNTER",null,null,null,null,null,null,null,"GUAMOTE",null,null,null,null,null,null,null,null,null,null,null,null,null,null,"WORLDSTAR",99,"CHEVROLET",3,"CORSA 5P",4,"SEDAN"]
[null,null,null,null,null,null,null,null,null,null,"GUANO",null,null,null,null,null,null,null,null,null,null,null,null,null,null,"ZASTAVA",61,"CHEVROLET",3,"CORSA SPORT",5,"SEDAN"]
[null,null,null,null,null,null,null,null,null,null,"GUARANDA",null,null,null,null,null,null,null,null,null,null,null,null,null,null,null,null,"CHEVROLET",3,"CORSA P/U 1600",6,"PICK-UP"]
[null,null,null,null,null,null,null,null,null,null,"GUAYLLABAMBA",null,null,null,null,null,null,null,null,null,null,null,null,null,null,null,null,"CHEVROLET",3,"SAN REMO",7,"SEDAN"]
[null,null,null,null,null,null,null,null,null,null,"HUAQUILLAS",null,null,null,null,null,null,null,null,null,null,null,null,null,null,null,null,"CHEVROLET",3,"MONZA",8,"SEDAN"]
[null,null,null,null,null,null,null,null,null,null,"JIPIJAPA",null,null,null,null,null,null,null,null,null,null,null,null,null,null,null,null,"CHEVROLET",3,"SWIFT",9,"SEDAN"]
[null,null,null,null,null,null,null,null,null,null,"JUNIN",null,null,null,null,null,null,null,null,null,null,null,null,null,null,null,null,"CHEVROLET",3,"SWIFT EMOTION",10,"SEDAN"]
[null,null,null,null,null,null,null,null,null,null,"LA CONCORDIA",null,null,null,null,null,null,null,null,null,null,null,null,null,null,null,null,"CHEVROLET",3,"ESTEEM 4P",11,"SEDAN"]
[null,null,null,null,null,null,null,null,null,null,"LA MANA",null,null,null,null,null,null,null,null,null,null,null,null,null,null,null,null,"CHEVROLET",3,"ESTEEM S. WAGON",12,"STATION WAGON"]
[null,null,null,null,null,null,null,null,null,null,"LA UNIÓN",null,null,null,null,null,null,null,null,null,null,null,null,null,null,null,null,"CHEVROLET",3,"LUV 4X2 C/S",13,"PICK-UP"]
[null,null,null,null,null,null,null,null,null,null,"LAGO AGRIO",null,null,null,null,null,null,null,null,null,null,null,null,null,null,null,null,"CHEVROLET",3,"LUV 4X2 D/C",14,"PICK-UP"]
[null,null,null,null,null,null,null,null,null,null,"LAS LAJAS",null,null,null,null,null,null,null,null,null,null,null,null,null,null,null,null,"CHEVROLET",3,"LUV 4X4 C/S",15,"PICK-UP"]
[null,null,null,null,null,null,null,null,null,null,"LASSO",null,null,null,null,null,null,null,null,null,null,null,null,null,null,null,null,"CHEVROLET",3,"LUV 4X4 D/C",16,"PICK-UP"]
[null,null,null,null,null,null,null,null,null,null,"LATACUNGA",null,null,null,null,null,null,null,null,null,null,null,null,null,null,null,null,"CHEVROLET",3,"VITARA 3P",17,"JEEP"]
[null,null,null,null,null,null,null,null,null,null,"LIBERTAD",null,null,null,null,null,null,null,null,null,null,null,null,null,null,null,null,"CHEVROLET",3,"VITARA 5P",18,"JEEP"]
[null,null,null,null,null,null,null,null,null,null,"LIMÓN",null,null,null,null,null,null,null,null,null,null,null,null,null,null,null,null,"CHEVROLET",3,"RODEO 4X2",19,"JEEP"]
[null,null,null,null,null,null,null,null,null,null,"QUEVEDO",null,null,null,null,null,null,null,null,null,null,null,null,null,null,null,null,"CHEVROLET",3,"RODEO 4X4",20,"JEEP"]
[null,null,null,null,null,null,null,null,null,null,"LOS BANCOS",null,null,null,null,null,null,null,null,null,null,null,null,null,null,null,null,"CHEVROLET",3,"CAVALIER STD",21,"SEDAN"]
[null,null,null,null,null,null,null,null,null,null,"MACARA",null,null,null,null,null,null,null,null,null,null,null,null,null,null,null,null,"CHEVROLET",3,"CAVALIER DLX",22,"SEDAN"]
[null,null,null,null,null,null,null,null,null,null,"MACAS",null,null,null,null,null,null,null,null,null,null,null,null,null,null,null,null,"CHEVROLET",3,"SÚPER CARRY PICK UP",23,"PICK-UP"]
[null,null,null,null,null,null,null,null,null,null,"MACHACHI",null,null,null,null,null,null,null,null,null,null,null,null,null,null,null,null,"CHEVROLET",3,"GRAND BLAZER 3P",26,"JEEP"]
[null,null,null,null,null,null,null,null,null,null,"MÉNDEZ",null,null,null,null,null,null,null,null,null,null,null,null,null,null,null,null,"CHEVROLET",3,"GRAND BLAZER 5P",27,"JEEP"]
[null,null,null,null,null,null,null,null,null,null,"MILAGRO",null,null,null,null,null,null,null,null,null,null,null,null,null,null,null,null,"CHEVROLET",3,"TAHOE 5P. USA",28,"JEEP"]
[null,null,null,null,null,null,null,null,null,null,"MIRA",null,null,null,null,null,null,null,null,null,null,null,null,null,null,null,null,"CHEVROLET",3,"BLAZER 4X4",29,"JEEP"]
[null,null,null,null,null,null,null,null,null,null,"MOCACHE",null,null,null,null,null,null,null,null,null,null,null,null,null,null,null,null,"CHEVROLET",3,"BLAZER 4X2",30,"JEEP"]
[null,null,null,null,null,null,null,null,null,null,"MONTALVO",null,null,null,null,null,null,null,null,null,null,null,null,null,null,null,null,"CHEVROLET",3,"SILVERADO",31,"PICK-UP"]
[null,null,null,null,null,null,null,null,null,null,"MONTECRISTI",null,null,null,null,null,null,null,null,null,null,null,null,null,null,null,null,"CHEVROLET",3,"CHEYENNE",32,"PICK-UP"]
[null,null,null,null,null,null,null,null,null,null,"MONTUFAR",null,null,null,null,null,null,null,null,null,null,null,null,null,null,null,null,"CHEVROLET",3,"TROOPER 2.300 3P.",33,"JEEP"]
[null,null,null,null,null,null,null,null,null,null,"MUISNE",null,null,null,null,null,null,null,null,null,null,null,null,null,null,null,null,"CHEVROLET",3,"TROOPER 3P",34,"JEEP"]
[null,null,null,null,null,null,null,null,null,null,"NARANJITO",null,null,null,null,null,null,null,null,null,null,null,null,null,null,null,null,"CHEVROLET",3,"TROOPER 5P",35,"JEEP"]
[null,null,null,null,null,null,null,null,null,null,"NUEVA LOJA",null,null,null,null,null,null,null,null,null,null,null,null,null,null,null,null,"CHEVROLET",3,"GRAND VITARA 3P",36,"JEEP"]
[null,null,null,null,null,null,null,null,null,null,"OTAVALO",null,null,null,null,null,null,null,null,null,null,null,null,null,null,null,null,"CHEVROLET",3,"GRAND VITARA 5P",37,"JEEP"]
[null,null,null,null,null,null,null,null,null,null,"PAJAN",null,null,null,null,null,null,null,null,null,null,null,null,null,null,null,null,"CHEVROLET",3,"ALTO 5P",38,"SEDAN"]
[null,null,null,null,null,null,null,null,null,null,"PALENQUE",null,null,null,null,null,null,null,null,null,null,null,null,null,null,null,null,"CHEVROLET",3,"ASTRA 2P",39,"COUPE"]
[null,null,null,null,null,null,null,null,null,null,"PALESTINA",null,null,null,null,null,null,null,null,null,null,null,null,null,null,null,null,"CHEVROLET",3,"ASTRA 4P",40,"SEDAN"]
[null,null,null,null,null,null,null,null,null,null,"PALLATANGA",null,null,null,null,null,null,null,null,null,null,null,null,null,null,null,null,"CHEVROLET",3,"ASKA",41,"SEDAN"]
[null,null,null,null,null,null,null,null,null,null,"PASAJE",null,null,null,null,null,null,null,null,null,null,null,null,null,null,null,null,"CHEVROLET",3,"ASTROVAN",42,"MINI VAN"]
[null,null,null,null,null,null,null,null,null,null,"PASTAZA",null,null,null,null,null,null,null,null,null,null,null,null,null,null,null,null,"CHEVROLET",3,"CHEVETTE",44,"COUPE"]
[null,null,null,null,null,null,null,null,null,null,"PATATE",null,null,null,null,null,null,null,null,null,null,null,null,null,null,null,null,"CHEVROLET",3,"CONDOR",45,"COUPE"]
[null,null,null,null,null,null,null,null,null,null,"PAUTE",null,null,null,null,null,null,null,null,null,null,null,null,null,null,null,null,"CHEVROLET",3,"CORSICA",46,"SEDAN"]
[null,null,null,null,null,null,null,null,null,null,"PEDERNALES",null,null,null,null,null,null,null,null,null,null,null,null,null,null,null,null,"CHEVROLET",3,"GEMINI",47,"SEDAN"]
[null,null,null,null,null,null,null,null,null,null,"PEDRO CARBO",null,null,null,null,null,null,null,null,null,null,null,null,null,null,null,null,"CHEVROLET",3,"IMPALA",48,"SEDAN"]
[null,null,null,null,null,null,null,null,null,null,"PELILEO",null,null,null,null,null,null,null,null,null,null,null,null,null,null,null,null,"CHEVROLET",3,"VEGA",49,"SEDAN"]
[null,null,null,null,null,null,null,null,null,null,"PIFO",null,null,null,null,null,null,null,null,null,null,null,null,null,null,null,null,"CHEVROLET",3,"ZAFIRA 5P",51,"MINI VAN"]
[null,null,null,null,null,null,null,null,null,null,"PILLARO",null,null,null,null,null,null,null,null,null,null,null,null,null,null,null,null,"CHEVROLET",3,"CARGO",52,"PICK-UP"]
[null,null,null,null,null,null,null,null,null,null,"PIMAMPIRO",null,null,null,null,null,null,null,null,null,null,null,null,null,null,null,null,"CHEVROLET",3,"CHEVY VAN",53,"MINI VAN"]
[null,null,null,null,null,null,null,null,null,null,"PINDAL",null,null,null,null,null,null,null,null,null,null,null,null,null,null,null,null,"CHEVROLET",3,"MINI BLAZER 4X2",55,"JEEP"]
[null,null,null,null,null,null,null,null,null,null,"PIÑAS",null,null,null,null,null,null,null,null,null,null,null,null,null,null,null,null,"CHEVROLET",3,"MINI BLAZER 4X4",56,"JEEP"]
[null,null,null,null,null,null,null,null,null,null,"PLAYAS",null,null,null,null,null,null,null,null,null,null,null,null,null,null,null,null,"CHEVROLET",3,"CITATION",57,"SEDAN"]
[null,null,null,null,null,null,null,null,null,null,"PORTOVELO",null,null,null,null,null,null,null,null,null,null,null,null,null,null,null,null,"CHEVROLET",3,"C10",60,"PICK-UP"]
[null,null,null,null,null,null,null,null,null,null,"PUEBLO VIEJO",null,null,null,null,null,null,null,null,null,null,null,null,null,null,null,null,"CHEVROLET",3,"CREW CAB 4X4",65,"PICK-UP"]
[null,null,null,null,null,null,null,null,null,null,"PUEMBO",null,null,null,null,null,null,null,null,null,null,null,null,null,null,null,null,"CHEVROLET",3,"C1500",66,"PICK-UP"]
[null,null,null,null,null,null,null,null,null,null,"PUERTO CAYO",null,null,null,null,null,null,null,null,null,null,null,null,null,null,null,null,"CHEVROLET",3,"AVALANCHE",68,"PICK-UP"]
[null,null,null,null,null,null,null,null,null,null,"PUERTO LOPEZ",null,null,null,null,null,null,null,null,null,null,null,null,null,null,null,null,"CHEVROLET",3,"CORSA EVOLUTION",70,"SEDAN"]
[null,null,null,null,null,null,null,null,null,null,"PUERTO QUITO",null,null,null,null,null,null,null,null,null,null,null,null,null,null,null,null,"CHEVROLET",3,"TRAIL BLAZER 4X4",71,"JEEP"]
[null,null,null,null,null,null,null,null,null,null,"PUJILI",null,null,null,null,null,null,null,null,null,null,null,null,null,null,null,null,"CHEVROLET",3,"TRAIL BLAZER 4X2",72,"JEEP"]
[null,null,null,null,null,null,null,null,null,null,"PUYANGO",null,null,null,null,null,null,null,null,null,null,null,null,null,null,null,null,"CHEVROLET",3,"ASTRA 3P",73,"COUPE"]
[null,null,null,null,null,null,null,null,null,null,"PUYO",null,null,null,null,null,null,null,null,null,null,null,null,null,null,null,null,"CHEVROLET",3,"CORSA WIND",74,"SEDAN"]
[null,null,null,null,null,null,null,null,null,null,"QUERO",null,null,null,null,null,null,null,null,null,null,null,null,null,null,null,null,"CHEVROLET",3,"JIMNY 4X4",75,"JEEP"]
[null,null,null,null,null,null,null,null,null,null,"QUININDE",null,null,null,null,null,null,null,null,null,null,null,null,null,null,null,null,"CHEVROLET",3,"SPARK",76,"SEDAN"]
[null,null,null,null,null,null,null,null,null,null,"QUITO",null,null,null,null,null,null,null,null,null,null,null,null,null,null,null,null,"CHEVROLET",3,"CHEYENNE 4X2",77,"PICK-UP"]
[null,null,null,null,null,null,null,null,null,null,"RIOBAMBA",null,null,null,null,null,null,null,null,null,null,null,null,null,null,null,null,"CHEVROLET",3,"CHEYENNE 4X4",78,"PICK-UP"]
[null,null,null,null,null,null,null,null,null,null,"ROCAFUERTE",null,null,null,null,null,null,null,null,null,null,null,null,null,null,null,null,"CHEVROLET",3,"OPTRA",79,"SEDAN"]
[null,null,null,null,null,null,null,null,null,null,"SALCEDO",null,null,null,null,null,null,null,null,null,null,null,null,null,null,null,null,"CHEVROLET",3,"GRAND VITARA 5P XL7 4X4",80,"JEEP"]
[null,null,null,null,null,null,null,null,null,null,"SALINAS",null,null,null,null,null,null,null,null,null,null,null,null,null,null,null,null,"CHEVROLET",3,"GRAND VITARA 5P XL7 4X2",81,"JEEP"]
[null,null,null,null,null,null,null,null,null,null,"SAMBORONDON",null,null,null,null,null,null,null,null,null,null,null,null,null,null,null,null,"CHEVROLET",3,"LUV D-MAX C/S 4X2",82,"PICK-UP"]
[null,null,null,null,null,null,null,null,null,null,"SAME",null,null,null,null,null,null,null,null,null,null,null,null,null,null,null,null,"CHEVROLET",3,"LUV D-MAX C/D 4X2",83,"PICK-UP"]
[null,null,null,null,null,null,null,null,null,null,"SAN CAMILO",null,null,null,null,null,null,null,null,null,null,null,null,null,null,null,null,"CHEVROLET",3,"LUV D-MAX C/S 4X4",84,"PICK-UP"]
[null,null,null,null,null,null,null,null,null,null,"SAN GABRIEL",null,null,null,null,null,null,null,null,null,null,null,null,null,null,null,null,"CHEVROLET",3,"LUV D-MAX C/D 4X4",85,"PICK-UP"]
[null,null,null,null,null,null,null,null,null,null,"SAN LORENZO",null,null,null,null,null,null,null,null,null,null,null,null,null,null,null,null,"CHRYSLER",4,"GRAND CHEROKEE LAREDO 4X4",1,"JEEP"]
[null,null,null,null,null,null,null,null,null,null,"SAN MIGUEL",null,null,null,null,null,null,null,null,null,null,null,null,null,null,null,null,"CHRYSLER",4,"GRAND CHEROKEE LIMITED 4X4",2,"JEEP"]
[null,null,null,null,null,null,null,null,null,null,"SAN RAFAEL",null,null,null,null,null,null,null,null,null,null,null,null,null,null,null,null,"CHRYSLER",4,"CHEROKEE LAREDO",3,"JEEP"]
[null,null,null,null,null,null,null,null,null,null,"SAN VICENTE",null,null,null,null,null,null,null,null,null,null,null,null,null,null,null,null,"CHRYSLER",4,"NEON 2000CC",4,"SEDAN"]
[null,null,null,null,null,null,null,null,null,null,"SANGOLQUI",null,null,null,null,null,null,null,null,null,null,null,null,null,null,null,null,"CHRYSLER",4,"CARAVAN",5,"MINI VAN"]
[null,null,null,null,null,null,null,null,null,null,"SANTA ANA",null,null,null,null,null,null,null,null,null,null,null,null,null,null,null,null,"CHRYSLER",4,"GRAND CARAVAN",6,"MINI VAN"]
[null,null,null,null,null,null,null,null,null,null,"SANTA CRUZ",null,null,null,null,null,null,null,null,null,null,null,null,null,null,null,null,"CHRYSLER",4,"LEBARON",7,"SEDAN"]
[null,null,null,null,null,null,null,null,null,null,"SANTA ELENA",null,null,null,null,null,null,null,null,null,null,null,null,null,null,null,null,"CHRYSLER",4,"LIBERTY",8,"JEEP"]
[null,null,null,null,null,null,null,null,null,null,"SANTA ISABEL",null,null,null,null,null,null,null,null,null,null,null,null,null,null,null,null,"CHRYSLER",4,"STRATUS",9,"SEDAN"]
[null,null,null,null,null,null,null,null,null,null,"SANTA ISABEL",null,null,null,null,null,null,null,null,null,null,null,null,null,null,null,null,"CHRYSLER",4,"RENEGADO",10,"JEEP"]
[null,null,null,null,null,null,null,null,null,null,"SANTA ROSA",null,null,null,null,null,null,null,null,null,null,null,null,null,null,null,null,"CHRYSLER",4,"TOWN & COUNTRY",11,"PICK-UP"]
[null,null,null,null,null,null,null,null,null,null,"SANTO DOMINGO",null,null,null,null,null,null,null,null,null,null,null,null,null,null,null,null,"CITROEN",28,"AX GT",1,"SEDAN"]
[null,null,null,null,null,null,null,null,null,null,"SAQUISILI",null,null,null,null,null,null,null,null,null,null,null,null,null,null,null,null,"CITROEN",28,"BERLINGO",2,"SEDAN"]
[null,null,null,null,null,null,null,null,null,null,"SARAGURO",null,null,null,null,null,null,null,null,null,null,null,null,null,null,null,null,"CITROEN",28,"SAXO SX",3,"SEDAN"]
[null,null,null,null,null,null,null,null,null,null,"SHUSHUFINDI",null,null,null,null,null,null,null,null,null,null,null,null,null,null,null,null,"CITROEN",28,"XANTIA",4,"SEDAN"]
[null,null,null,null,null,null,null,null,null,null,"SIGCHOS",null,null,null,null,null,null,null,null,null,null,null,null,null,null,null,null,"CITROEN",28,"XSARA VTS",5,"SEDAN"]
[null,null,null,null,null,null,null,null,null,null,"SIGSIG",null,null,null,null,null,null,null,null,null,null,null,null,null,null,null,null,"CITROEN",28,"ZX VOLCANE",6,"SEDAN"]
[null,null,null,null,null,null,null,null,null,null,"SUCRE",null,null,null,null,null,null,null,null,null,null,null,null,null,null,null,null,"CITROEN",28,"ALLUER 5P",7,"STATION WAGON"]
[null,null,null,null,null,null,null,null,null,null,"SUCUA",null,null,null,null,null,null,null,null,null,null,null,null,null,null,null,null,"CITROEN",28,"XSARA PICASSO",8,"SEDAN"]
[null,null,null,null,null,null,null,null,null,null,"SUCUMBIOS",null,null,null,null,null,null,null,null,null,null,null,null,null,null,null,null,"CITROEN",28,"C3 SX 14I",9,"SEDAN"]
[null,null,null,null,null,null,null,null,null,null,"TABABELA",null,null,null,null,null,null,null,null,null,null,null,null,null,null,null,null,"DACIA",29,"1304 DROP-SIDE",1,"PICK-UP"]
[null,null,null,null,null,null,null,null,null,null,"TABACUNDO",null,null,null,null,null,null,null,null,null,null,null,null,null,null,null,null,"DACIA",29,"BREAK",2,"SEDAN"]
[null,null,null,null,null,null,null,null,null,null,"TAMBILLO",null,null,null,null,null,null,null,null,null,null,null,null,null,null,null,null,"DACIA",29,"RAPSODIE",3,"SEDAN"]
[null,null,null,null,null,null,null,null,null,null,"TENA",null,null,null,null,null,null,null,null,null,null,null,null,null,null,null,null,"DAEWOO",5,"TICO 5P. SX",1,"SEDAN"]
[null,null,null,null,null,null,null,null,null,null,"TONSUPA",null,null,null,null,null,null,null,null,null,null,null,null,null,null,null,null,"DAEWOO",5,"MATIZ",2,"SEDAN"]
[null,null,null,null,null,null,null,null,null,null,"TOSAGUA",null,null,null,null,null,null,null,null,null,null,null,null,null,null,null,null,"DAEWOO",5,"LANOS 4P",3,"SEDAN"]
[null,null,null,null,null,null,null,null,null,null,"TULCAN",null,null,null,null,null,null,null,null,null,null,null,null,null,null,null,null,"DAEWOO",5,"LANOS 5P",4,"SEDAN"]
[null,null,null,null,null,null,null,null,null,null,"TUMBACO",null,null,null,null,null,null,null,null,null,null,null,null,null,null,null,null,"DAEWOO",5,"LANOS 3P",5,"SEDAN"]
[null,null,null,null,null,null,null,null,null,null,"URCUQUI",null,null,null,null,null,null,null,null,null,null,null,null,null,null,null,null,"DAEWOO",5,"NUBIRA",6,"SEDAN"]
[null,null,null,null,null,null,null,null,null,null,"URDANETA",null,null,null,null,null,null,null,null,null,null,null,null,null,null,null,null,"DAEWOO",5,"TACUMA",7,"MINI VAN"]
[null,null,null,null,null,null,null,null,null,null,"VENTANAS",null,null,null,null,null,null,null,null,null,null,null,null,null,null,null,null,"DAEWOO",5,"ESPERO",8,"SEDAN"]
[null,null,null,null,null,null,null,null,null,null,"VINCES",null,null,null,null,null,null,null,null,null,null,null,null,null,null,null,null,"DAEWOO",5,"RACER",9,"SEDAN"]
[null,null,null,null,null,null,null,null,null,null,"YAGUACHI",null,null,null,null,null,null,null,null,null,null,null,null,null,null,null,null,"DAEWOO",5,"CIELO",10,"SEDAN"]
[null,null,null,null,null,null,null,null,null,null,"ZAMORA",null,null,null,null,null,null,null,null,null,null,null,null,null,null,null,null,"DAEWOO",5,"COACH",11,"SEDAN"]
[null,null,null,null,null,null,null,null,null,null,"ZAPOTILLO",null,null,null,null,null,null,null,null,null,null,null,null,null,null,null,null,"DAEWOO",5,"DAMAS",12,"SEDAN"]
[null,null,null,null,null,null,null,null,null,null,"ZARUMA",null,null,null,null,null,null,null,null,null,null,null,null,null,null,null,null,"DAEWOO",5,"KORANDO",13,"JEEP"]
[null,null,null,null,null,null,null,null,null,null,null,null,null,null,null,null,null,null,null,null,null,null,null,null,null,null,null,"DAEWOO",5,"MUSSO",14,"JEEP"]
[null,null,null,null,null,null,null,null,null,null,null,null,null,null,null,null,null,null,null,null,null,null,null,null,null,null,null,"DAEWOO",5,"LEGANZA",15,"SEDAN"]
[null,null,null,null,null,null,null,null,null,null,null,null,null,null,null,null,null,null,null,null,null,null,null,null,null,null,null,"DAIHATSU",6,"TERIOS",1,"JEEP"]
[null,null,"Valor del vehículo",{"$f":"$F$100","v":34483.5},null,null,null,null,null,null,null,null,null,null,null,null,null,null,null,null,null,null,null,null,null,null,null,"DAIHATSU",6,"APLAUSSE",2,"SEDAN"]
[null,null,"INSCRIPCIÓN EN REGISTRO MERCANTIL",null,null,null,null,null,null,null,null,null,null,null,null,null,null,null,null,null,null,null,null,null,null,null,null,"DAIHATSU",6,"CHARADE",3,"SEDAN"]
[null,null,"VALOR BASE POR CONTRATO",25,null,null,null,null,null,null,null,null,null,null,null,null,null,null,null,null,null,null,null,null,null,null,null,"DAIHATSU",6,"FEROZA",5,"JEEP"]
[null,null,"CESIÓN DE DERECHOS",25,null,null,null,null,null,null,null,null,null,null,null,null,null,null,null,null,null,null,null,null,null,null,null,"DAIHATSU",6,"GRAND MOVE",6,"SEDAN"]
[null,null,"0.5% SOBRE LA CUANTÍA DEL CONTRATO (PRECIO DE VENTA).",{"$f":"D333*0.5%","v":172.41749999999999},null,null,null,null,null,null,null,null,null,null,null,null,null,null,null,null,null,null,null,null,null,null,null,"DAIHATSU",6,"ROCKY",7,"JEEP"]
[null,null,"TOTAL",{"$f":"SUM(D335:D337)","v":222.41749999999999},null,null,null,null,null,null,null,null,null,null,null,null,null,null,null,null,null,null,null,null,null,null,null,"DAIHATSU",6,"A45 L",8,"SEDAN"]
[null,null,"OTROS GASTOS",null,null,null,null,null,null,null,null,null,null,null,null,null,null,null,null,null,null,null,null,null,null,null,null,"DAIHATSU",6,"COURE",9,"SEDAN"]
[null,null,"TRAMITACIÓN LEGAL, SERVICIO DE TERCERO",40,null,null,null,null,null,null,null,null,null,null,null,null,null,null,null,null,null,null,null,null,null,null,null,"DATSUN",30,1200,1,"PICK-UP"]
[null,null,null,null,null,null,null,null,null,null,null,null,null,null,null,null,null,null,null,null,null,null,null,null,null,null,null,"DATSUN",30,1500,2,"PICK-UP"]
[null,null,"Tarifa gastos legales",{"$f":"+D338+D340","v":262.41750000000002},null,null,null,null,null,null,null,null,null,null,null,null,null,null,null,null,null,null,null,null,null,null,null,"DATSUN",30,1800,3,"PICK-UP"]
[null,null,null,null,null,null,null,null,null,null,null,null,null,null,null,null,null,null,null,null,null,null,null,null,null,null,null,"DATSUN",30,"120Y",4,"SEDAN"]
[null,null,null,null,null,null,null,null,null,null,null,null,null,null,null,null,null,null,null,null,null,null,null,null,null,null,null,"DATSUN",30,"160J",5,"SEDAN"]
[null,null,null,null,null,null,null,null,null,null,null,null,null,null,null,null,null,null,null,null,null,null,null,null,null,null,null,"DATSUN",30,"B 210",6,"COUPE"]
[null,null,null,null,null,null,null,null,null,null,null,null,null,null,null,null,null,null,null,null,null,null,null,null,null,null,null,"DATSUN",30,1000,7,"PICK-UP"]
[null,null,null,null,null,null,null,null,null,null,null,null,null,null,null,null,null,null,null,null,null,null,null,null,null,null,null,"DEER",111,"CC 1020 D",1,"PICK-UP"]
[null,null,null,null,null,null,null,null,null,null,null,null,null,null,null,null,null,null,null,null,null,null,null,null,null,null,null,"DODGE",31,"RAM 4X4",1,"PICK-UP"]
[null,null,null,null,null,null,null,null,null,null,null,null,null,null,null,null,null,null,null,null,null,null,null,null,null,null,null,"DODGE",31,"RAM 4X2",2,"PICK-UP"]
[null,null,null,null,null,null,null,null,null,null,null,null,null,null,null,null,null,null,null,null,null,null,null,null,null,null,null,"DODGE",31,"DAKOTA",3,"PICK-UP"]
[null,null,null,null,null,null,null,null,null,null,null,null,null,null,null,null,null,null,null,null,null,null,null,null,null,null,null,"DODGE",31,"DURANGO",4,"JEEP"]
[null,null,null,null,null,null,null,null,null,null,null,null,null,null,null,null,null,null,null,null,null,null,null,null,null,null,null,"DODGE",31,"ASPEN",5,"SEDAN"]
[null,null,null,null,null,null,null,null,null,null,null,null,null,null,null,null,null,null,null,null,null,null,null,null,null,null,null,"DODGE",31,"CARAVAN",7,"MINI VAN"]
[null,null,null,null,null,null,null,null,null,null,null,null,null,null,null,null,null,null,null,null,null,null,null,null,null,null,null,"FIAT",7,"UNO MILLE",1,"SEDAN"]
[null,null,null,null,null,null,null,null,null,null,null,null,null,null,null,null,null,null,null,null,null,null,null,null,null,null,null,"FIAT",7,"UNO",2,"COUPE"]
[null,null,null,null,null,null,null,null,null,null,null,null,null,null,null,null,null,null,null,null,null,null,null,null,null,null,null,"FIAT",7,"PREMIO",3,"SEDAN"]
[null,null,null,null,null,null,null,null,null,null,null,null,null,null,null,null,null,null,null,null,null,null,null,null,null,null,null,"FIAT",7,"FIORINO",4,"PICK-UP"]
[null,null,null,null,null,null,null,null,null,null,null,null,null,null,null,null,null,null,null,null,null,null,null,null,null,null,null,"FIAT",7,"PALIO",5,"SEDAN"]
[null,null,null,null,null,null,null,null,null,null,null,null,null,null,null,null,null,null,null,null,null,null,null,null,null,null,null,"FIAT",7,"POLSKY",6,"SEDAN"]
[null,null,null,null,null,null,null,null,null,null,null,null,null,null,null,null,null,null,null,null,null,null,null,null,null,null,null,"FIAT",7,"SPAZIO",7,"SEDAN"]
[null,null,null,null,null,null,null,null,null,null,null,null,null,null,null,null,null,null,null,null,null,null,null,null,null,null,null,"FIAT",7,"WEEKWEND",8,"SEDAN"]
[null,null,null,null,null,null,null,null,null,null,null,null,null,null,null,null,null,null,null,null,null,null,null,null,null,null,null,"FIAT",7,"CROMA",9,"SEDAN"]
[null,null,null,null,null,null,null,null,null,null,null,null,null,null,null,null,null,null,null,null,null,null,null,null,null,null,null,"FIAT",7,124,10,"COUPE"]
[null,null,null,null,null,null,null,null,null,null,null,null,null,null,null,null,null,null,null,null,null,null,null,null,null,null,null,"FIAT",7,132,11,"SEDAN"]
[null,null,null,null,null,null,null,null,null,null,null,null,null,null,null,null,null,null,null,null,null,null,null,null,null,null,null,"FIAT",7,"TIPO SX",13,"SEDAN"]
[null,null,null,null,null,null,null,null,null,null,null,null,null,null,null,null,null,null,null,null,null,null,null,null,null,null,null,"FIAT",7,"FLARESIDE",14,"SEDAN"]
[null,null,null,null,null,null,null,null,null,null,null,null,null,null,null,null,null,null,null,null,null,null,null,null,null,null,null,"FIAT",7,"SIENA",15,"SEDAN"]
[null,null,null,null,null,null,null,null,null,null,null,null,null,null,null,null,null,null,null,null,null,null,null,null,null,null,null,"FIAT",7,"STRADA",16,"PICK-UP"]
[null,null,null,null,null,null,null,null,null,null,null,null,null,null,null,null,null,null,null,null,null,null,null,null,null,null,null,"FIAT",7,"STILO CONFORT",17,"SEDAN"]
[null,null,null,null,null,null,null,null,null,null,null,null,null,null,null,null,null,null,null,null,null,null,null,null,null,null,null,"FIAT",7,"STILO",18,"SEDAN"]
[null,null,null,null,null,null,null,null,null,null,null,null,null,null,null,null,null,null,null,null,null,null,null,null,null,null,null,"FORD",8,"FESTIVA",1,"SEDAN"]
[null,null,null,null,null,null,null,null,null,null,null,null,null,null,null,null,null,null,null,null,null,null,null,null,null,null,null,"FORD",8,"ESCORT",2,"SEDAN"]
[null,null,null,null,null,null,null,null,null,null,null,null,null,null,null,null,null,null,null,null,null,null,null,null,null,null,null,"FORD",8,"COURIER",3,"PICK-UP"]
[null,null,null,null,null,null,null,null,null,null,null,null,null,null,null,null,null,null,null,null,null,null,null,null,null,null,null,"FORD",8,"RANGER 4X2",4,"PICK-UP"]
[null,null,null,null,null,null,null,null,null,null,null,null,null,null,null,null,null,null,null,null,null,null,null,null,null,null,null,"FORD",8,"RANGER 4X4",5,"PICK-UP"]
[null,null,null,null,null,null,null,null,null,null,null,null,null,null,null,null,null,null,null,null,null,null,null,null,null,null,null,"FORD",8,"RANGER CREW CAB 4X4",6,"PICK-UP"]
[null,null,null,null,null,null,null,null,null,null,null,null,null,null,null,null,null,null,null,null,null,null,null,null,null,null,null,"FORD",8,"F-150 XL 4X2",7,"PICK-UP"]
[null,null,null,null,null,null,null,null,null,null,null,null,null,null,null,null,null,null,null,null,null,null,null,null,null,null,null,"FORD",8,"F-150 XL 4X4",8,"PICK-UP"]
[null,null,null,null,null,null,null,null,null,null,null,null,null,null,null,null,null,null,null,null,null,null,null,null,null,null,null,"FORD",8,"F-150 LARIAT",9,"PICK-UP"]
[null,null,null,null,null,null,null,null,null,null,null,null,null,null,null,null,null,null,null,null,null,null,null,null,null,null,null,"FORD",8,"BRONCO",10,"JEEP"]
[null,null,null,null,null,null,null,null,null,null,null,null,null,null,null,null,null,null,null,null,null,null,null,null,null,null,null,"FORD",8,"EXPLORER 4X2 XL 3P",11,"JEEP"]
[null,null,null,null,null,null,null,null,null,null,null,null,null,null,null,null,null,null,null,null,null,null,null,null,null,null,null,"FORD",8,"EXPLORER 4X4 3P",12,"JEEP"]
[null,null,null,null,null,null,null,null,null,null,null,null,null,null,null,null,null,null,null,null,null,null,null,null,null,null,null,"FORD",8,"EXPLORER 4X4 5P",13,"JEEP"]
[null,null,null,null,null,null,null,null,null,null,null,null,null,null,null,null,null,null,null,null,null,null,null,null,null,null,null,"FORD",8,"EXPLORER 4X2 5P",14,"JEEP"]
[null,null,null,null,null,null,null,null,null,null,null,null,null,null,null,null,null,null,null,null,null,null,null,null,null,null,null,"FORD",8,"EXPEDITION EDDIE BAUER",15,"JEEP"]
[null,null,null,null,null,null,null,null,null,null,null,null,null,null,null,null,null,null,null,null,null,null,null,null,null,null,null,"FORD",8,"ESCAPE",16,"JEEP"]
[null,null,null,null,null,null,null,null,null,null,null,null,null,null,null,null,null,null,null,null,null,null,null,null,null,null,null,"FORD",8,"AEROSTAR",17,"MINI VAN"]
[null,null,null,null,null,null,null,null,null,null,null,null,null,null,null,null,null,null,null,null,null,null,null,null,null,null,null,"FORD",8,"CLUB WAGON",18,"MINI VAN"]
[null,null,null,null,null,null,null,null,null,null,null,null,null,null,null,null,null,null,null,null,null,null,null,null,null,null,null,"FORD",8,"CONTOUR",19,"SEDAN"]
[null,null,null,null,null,null,null,null,null,null,null,null,null,null,null,null,null,null,null,null,null,null,null,null,null,null,null,"FORD",8,"ECONOLINE",20,"MINI VAN"]
[null,null,null,null,null,null,null,null,null,null,null,null,null,null,null,null,null,null,null,null,null,null,null,null,null,null,null,"FORD",8,"F-250",21,"PICK-UP"]
[null,null,null,null,null,null,null,null,null,null,null,null,null,null,null,null,null,null,null,null,null,null,null,null,null,null,null,"FORD",8,"F-350",22,"PICK-UP"]
[null,null,null,null,null,null,null,null,null,null,null,null,null,null,null,null,null,null,null,null,null,null,null,null,null,null,null,"FORD",8,"F-470",23,"PICK-UP"]
[null,null,null,null,null,null,null,null,null,null,null,null,null,null,null,null,null,null,null,null,null,null,null,null,null,null,null,"FORD",8,"F-600",24,"PICK-UP"]
[null,null,null,null,null,null,null,null,null,null,null,null,null,null,null,null,null,null,null,null,null,null,null,null,null,null,null,"FORD",8,"F-700",25,"PICK-UP"]
[null,null,null,null,null,null,null,null,null,null,null,null,null,null,null,null,null,null,null,null,null,null,null,null,null,null,null,"FORD",8,"FIESTA",26,"COUPE"]
[null,null,null,null,null,null,null,null,null,null,null,null,null,null,null,null,null,null,null,null,null,null,null,null,null,null,null,"FORD",8,"MAVERICK",27,"SEDAN"]
[null,null,null,null,null,null,null,null,null,null,null,null,null,null,null,null,null,null,null,null,null,null,null,null,null,null,null,"FORD",8,"MONDEO",28,"SEDAN"]
[null,null,null,null,null,null,null,null,null,null,null,null,null,null,null,null,null,null,null,null,null,null,null,null,null,null,null,"FORD",8,"TAURUS",29,"SEDAN"]
[null,null,null,null,null,null,null,null,null,null,null,null,null,null,null,null,null,null,null,null,null,null,null,null,null,null,null,"FORD",8,"SIERRA",30,"PICK-UP"]
[null,null,null,null,null,null,null,null,null,null,null,null,null,null,null,null,null,null,null,null,null,null,null,null,null,null,null,"FORD",8,"SUPER DUTY",31,"MINI VAN"]
[null,null,null,null,null,null,null,null,null,null,null,null,null,null,null,null,null,null,null,null,null,null,null,null,null,null,null,"FORD",8,"TEMPO",32,"SEDAN"]
[null,null,null,null,null,null,null,null,null,null,null,null,null,null,null,null,null,null,null,null,null,null,null,null,null,null,null,"FORD",8,"WINDSTAR",33,"MINI VAN"]
[null,null,null,null,null,null,null,null,null,null,null,null,null,null,null,null,null,null,null,null,null,null,null,null,null,null,null,"FORD",8,"FUERTE",34,"JEEP"]
[null,null,null,null,null,null,null,null,null,null,null,null,null,null,null,null,null,null,null,null,null,null,null,null,null,null,null,"FORD",8,"F-100",35,"PICK-UP"]
[null,null,null,null,null,null,null,null,null,null,null,null,null,null,null,null,null,null,null,null,null,null,null,null,null,null,null,"FORD",8,"LASER",36,"SEDAN"]
[null,null,null,null,null,null,null,null,null,null,null,null,null,null,null,null,null,null,null,null,null,null,null,null,null,null,null,"FORD",8,"MUSTANG",38,"COUPE"]
[null,null,null,null,null,null,null,null,null,null,null,null,null,null,null,null,null,null,null,null,null,null,null,null,null,null,null,"FORD",8,"RANGER 4X2 D/C",40,"PICK-UP"]
[null,null,null,null,null,null,null,null,null,null,null,null,null,null,null,null,null,null,null,null,null,null,null,null,null,null,null,"FORD",8,"RANGER 4X4 D/C",41,"PICK-UP"]
[null,null,null,null,null,null,null,null,null,null,null,null,null,null,null,null,null,null,null,null,null,null,null,null,null,null,null,"FORD",8,"CUSTOM",42,"PICK-UP"]
[null,null,null,null,null,null,null,null,null,null,null,null,null,null,null,null,null,null,null,null,null,null,null,null,null,null,null,"FORD",8,"F-500",45,"PICK-UP"]
[null,null,null,null,null,null,null,null,null,null,null,null,null,null,null,null,null,null,null,null,null,null,null,null,null,null,null,"FORD",8,"F-650",46,"PICK-UP"]
[null,null,null,null,null,null,null,null,null,null,null,null,null,null,null,null,null,null,null,null,null,null,null,null,null,null,null,"FORD",8,"F-750",47,"PICK-UP"]
[null,null,null,null,null,null,null,null,null,null,null,null,null,null,null,null,null,null,null,null,null,null,null,null,null,null,null,"FORD",8,"FIESTA 4P",48,"SEDAN"]
[null,null,null,null,null,null,null,null,null,null,null,null,null,null,null,null,null,null,null,null,null,null,null,null,null,null,null,"FORD",8,"LTD",49,"SEDAN"]
[null,null,null,null,null,null,null,null,null,null,null,null,null,null,null,null,null,null,null,null,null,null,null,null,null,null,null,"FORD",8,"EXCURSION 4X4",50,"JEEP"]
[null,null,null,null,null,null,null,null,null,null,null,null,null,null,null,null,null,null,null,null,null,null,null,null,null,null,null,"FORD",8,"ECOSPORT 4X2",51,"JEEP"]
[null,null,null,null,null,null,null,null,null,null,null,null,null,null,null,null,null,null,null,null,null,null,null,null,null,null,null,"FORD",8,"ECOSPORT 4X4",52,"JEEP"]
[null,null,null,null,null,null,null,null,null,null,null,null,null,null,null,null,null,null,null,null,null,null,null,null,null,null,null,"FORD",8,"FOCUS",53,"SEDAN"]
[null,null,null,null,null,null,null,null,null,null,null,null,null,null,null,null,null,null,null,null,null,null,null,null,null,null,null,"FORD",8,"EXPLORER SPORT TRACK",54,"JEEP"]
[null,null,null,null,null,null,null,null,null,null,null,null,null,null,null,null,null,null,null,null,null,null,null,null,null,null,null,"FORD",8,"GRANADA",55,"SEDAN"]
[null,null,null,null,null,null,null,null,null,null,null,null,null,null,null,null,null,null,null,null,null,null,null,null,null,null,null,"FORD",8,"EXPLORER SPORT TRACK 4X2",56,"JEEP"]
[null,null,null,null,null,null,null,null,null,null,null,null,null,null,null,null,null,null,null,null,null,null,null,null,null,null,null,"FSO",77,"GLE 1600CC",1,"SEDAN"]
[null,null,null,null,null,null,null,null,null,null,null,null,null,null,null,null,null,null,null,null,null,null,null,null,null,null,null,"GMC",70,"SIERRA",1,"JEEP"]
[null,null,null,null,null,null,null,null,null,null,null,null,null,null,null,null,null,null,null,null,null,null,null,null,null,null,null,"GMC",70,"BLAZER",2,"JEEP"]
[null,null,null,null,null,null,null,null,null,null,null,null,null,null,null,null,null,null,null,null,null,null,null,null,null,null,null,"GMC",70,"SAFARY",3,"PICK-UP"]
[null,null,null,null,null,null,null,null,null,null,null,null,null,null,null,null,null,null,null,null,null,null,null,null,null,null,null,"GREAT WALL",108,"CC1020C C/S",1,"PICK-UP"]
[null,null,null,null,null,null,null,null,null,null,null,null,null,null,null,null,null,null,null,null,null,null,null,null,null,null,null,"GREAT WALL",108,"CC1020D",2,"PICK-UP"]
[null,null,null,null,null,null,null,null,null,null,null,null,null,null,null,null,null,null,null,null,null,null,null,null,null,null,null,"HONDA",9,"CRV 4X4",1,"JEEP"]
[null,null,null,null,null,null,null,null,null,null,null,null,null,null,null,null,null,null,null,null,null,null,null,null,null,null,null,"HONDA",9,"CIVIC",2,"SEDAN"]
[null,null,null,null,null,null,null,null,null,null,null,null,null,null,null,null,null,null,null,null,null,null,null,null,null,null,null,"HONDA",9,"ACCORD",3,"SEDAN"]
[null,null,null,null,null,null,null,null,null,null,null,null,null,null,null,null,null,null,null,null,null,null,null,null,null,null,null,"HONDA",9,"INTEGRA",6,"SEDAN"]
[null,null,null,null,null,null,null,null,null,null,null,null,null,null,null,null,null,null,null,null,null,null,null,null,null,null,null,"HONDA",9,"PRELUDE",7,"COUPE"]
[null,null,null,null,null,null,null,null,null,null,null,null,null,null,null,null,null,null,null,null,null,null,null,null,null,null,null,"HONDA",9,"ACURA",9,"SEDAN"]
[null,null,null,null,null,null,null,null,null,null,null,null,null,null,null,null,null,null,null,null,null,null,null,null,null,null,null,"HONDA",9,"ODYSSEY",11,"MINI VAN"]
[null,null,null,null,null,null,null,null,null,null,null,null,null,null,null,null,null,null,null,null,null,null,null,null,null,null,null,"HONDA",9,"CIVIC DEL SOL",14,"COUPE"]
[null,null,null,null,null,null,null,null,null,null,null,null,null,null,null,null,null,null,null,null,null,null,null,null,null,null,null,"HONDA",9,"FIT",17,"SEDAN"]
[null,null,null,null,null,null,null,null,null,null,null,null,null,null,null,null,null,null,null,null,null,null,null,null,null,null,null,"HONDA",9,"PILOT",20,"SEDAN"]
[null,null,null,null,null,null,null,null,null,null,null,null,null,null,null,null,null,null,null,null,null,null,null,null,null,null,null,"HONDA",9,"LEGEND",21,"SEDAN"]
[null,null,null,null,null,null,null,null,null,null,null,null,null,null,null,null,null,null,null,null,null,null,null,null,null,null,null,"HONDA",9,"CRV 4X2",28,"JEEP"]
[null,null,null,null,null,null,null,null,null,null,null,null,null,null,null,null,null,null,null,null,null,null,null,null,null,null,null,"HUMMER",115,"H2 UTILITY WAGON 4WD",1,"JEEP"]
[null,null,null,null,null,null,null,null,null,null,null,null,null,null,null,null,null,null,null,null,null,null,null,null,null,null,null,"HYUNDAI",10,"ACCENT",1,"SEDAN"]
[null,null,null,null,null,null,null,null,null,null,null,null,null,null,null,null,null,null,null,null,null,null,null,null,null,null,null,"HYUNDAI",10,"ACCENT VERNA",2,"SEDAN"]
[null,null,null,null,null,null,null,null,null,null,null,null,null,null,null,null,null,null,null,null,null,null,null,null,null,null,null,"HYUNDAI",10,"SANTA FE 4X4",3,"JEEP"]
[null,null,null,null,null,null,null,null,null,null,null,null,null,null,null,null,null,null,null,null,null,null,null,null,null,null,null,"HYUNDAI",10,"EXCEL 4P",4,"SEDAN"]
[null,null,null,null,null,null,null,null,null,null,null,null,null,null,null,null,null,null,null,null,null,null,null,null,null,null,null,"HYUNDAI",10,"EXCEL 5P",5,"SEDAN"]
[null,null,null,null,null,null,null,null,null,null,null,null,null,null,null,null,null,null,null,null,null,null,null,null,null,null,null,"HYUNDAI",10,"ELANTRA",6,"SEDAN"]
[null,null,null,null,null,null,null,null,null,null,null,null,null,null,null,null,null,null,null,null,null,null,null,null,null,null,null,"HYUNDAI",10,"ATOS",7,"SEDAN"]
[null,null,null,null,null,null,null,null,null,null,null,null,null,null,null,null,null,null,null,null,null,null,null,null,null,null,null,"HYUNDAI",10,"ATOS SEMIFULL",8,"SEDAN"]
[null,null,null,null,null,null,null,null,null,null,null,null,null,null,null,null,null,null,null,null,null,null,null,null,null,null,null,"HYUNDAI",10,"ELANTRA AVANTE",9,"SEDAN"]
[null,null,null,null,null,null,null,null,null,null,null,null,null,null,null,null,null,null,null,null,null,null,null,null,null,null,null,"HYUNDAI",10,"GALLOPER",10,"JEEP"]
[null,null,null,null,null,null,null,null,null,null,null,null,null,null,null,null,null,null,null,null,null,null,null,null,null,null,null,"HYUNDAI",10,"PONNY",14,"COUPE"]
[null,null,null,null,null,null,null,null,null,null,null,null,null,null,null,null,null,null,null,null,null,null,null,null,null,null,null,"HYUNDAI",10,"SCOUPE",15,"COUPE"]
[null,null,null,null,null,null,null,null,null,null,null,null,null,null,null,null,null,null,null,null,null,null,null,null,null,null,null,"HYUNDAI",10,"SONATA",16,"SEDAN"]
[null,null,null,null,null,null,null,null,null,null,null,null,null,null,null,null,null,null,null,null,null,null,null,null,null,null,null,"HYUNDAI",10,"GRAND SALOON",19,"SEDAN"]
[null,null,null,null,null,null,null,null,null,null,null,null,null,null,null,null,null,null,null,null,null,null,null,null,null,null,null,"HYUNDAI",10,"TERRACAN",20,"JEEP"]
[null,null,null,null,null,null,null,null,null,null,null,null,null,null,null,null,null,null,null,null,null,null,null,null,null,null,null,"HYUNDAI",10,"MATRIX",21,"MINI VAN"]
[null,null,null,null,null,null,null,null,null,null,null,null,null,null,null,null,null,null,null,null,null,null,null,null,null,null,null,"HYUNDAI",10,"SANTAMO",24,"SEDAN"]
[null,null,null,null,null,null,null,null,null,null,null,null,null,null,null,null,null,null,null,null,null,null,null,null,null,null,null,"HYUNDAI",10,"GETZ",25,"SEDAN"]
[null,null,null,null,null,null,null,null,null,null,null,null,null,null,null,null,null,null,null,null,null,null,null,null,null,null,null,"HYUNDAI",10,"TRAJET",26,"SEDAN"]
[null,null,null,null,null,null,null,null,null,null,null,null,null,null,null,null,null,null,null,null,null,null,null,null,null,null,null,"HYUNDAI",10,"HI",27,"SEDAN"]
[null,null,null,null,null,null,null,null,null,null,null,null,null,null,null,null,null,null,null,null,null,null,null,null,null,null,null,"HYUNDAI",10,"WINDOW VAN",28,"MINI VAN"]
[null,null,null,null,null,null,null,null,null,null,null,null,null,null,null,null,null,null,null,null,null,null,null,null,null,null,null,"HYUNDAI",10,"SANTA FE 4X2",29,"JEEP"]
[null,null,null,null,null,null,null,null,null,null,null,null,null,null,null,null,null,null,null,null,null,null,null,null,null,null,null,"HYUNDAI",10,"TUCSON",30,"JEEP"]
[null,null,null,null,null,null,null,null,null,null,null,null,null,null,null,null,null,null,null,null,null,null,null,null,null,null,null,"INTERNATIONAL",44,"SCOUT II",3,"JEEP"]
[null,null,null,null,null,null,null,null,null,null,null,null,null,null,null,null,null,null,null,null,null,null,null,null,null,null,null,"ISUZU",34,"NPR NLD",1,"PICK-UP"]
[null,null,null,null,null,null,null,null,null,null,null,null,null,null,null,null,null,null,null,null,null,null,null,null,null,null,null,"ISUZU",34,"RODEO",2,"JEEP"]
[null,null,null,null,null,null,null,null,null,null,null,null,null,null,null,null,null,null,null,null,null,null,null,null,null,null,null,"ISUZU",34,"TROOPER",3,"JEEP"]
[null,null,null,null,null,null,null,null,null,null,null,null,null,null,null,null,null,null,null,null,null,null,null,null,null,null,null,"JAGUAR",35,"J6",1,"SEDAN"]
[null,null,null,null,null,null,null,null,null,null,null,null,null,null,null,null,null,null,null,null,null,null,null,null,null,null,null,"JEEP",71,"WILLYS",1,"JEEP"]
[null,null,null,null,null,null,null,null,null,null,null,null,null,null,null,null,null,null,null,null,null,null,null,null,null,null,null,"JEEP",71,"WRANGLER",2,"JEEP"]
[null,null,null,null,null,null,null,null,null,null,null,null,null,null,null,null,null,null,null,null,null,null,null,null,null,null,null,"JEEP",71,"WRANGLER SAHARA",3,"JEEP"]
[null,null,null,null,null,null,null,null,null,null,null,null,null,null,null,null,null,null,null,null,null,null,null,null,null,null,null,"JEEP",71,"CHEROKEE RENEGADE",4,"JEEP"]
[null,null,null,null,null,null,null,null,null,null,null,null,null,null,null,null,null,null,null,null,null,null,null,null,null,null,null,"JEEP",71,"CHEROKEE",5,"JEEP"]
[null,null,null,null,null,null,null,null,null,null,null,null,null,null,null,null,null,null,null,null,null,null,null,null,null,null,null,"JEEP",71,"GRAND CHEROKEE",6,"JEEP"]
[null,null,null,null,null,null,null,null,null,null,null,null,null,null,null,null,null,null,null,null,null,null,null,null,null,null,null,"JEEP",71,"LIBERTY LIMITED",7,"JEEP"]
[null,null,null,null,null,null,null,null,null,null,null,null,null,null,null,null,null,null,null,null,null,null,null,null,null,null,null,"JEEP",71,"GRAND WAGONER",8,"JEEP"]
[null,null,null,null,null,null,null,null,null,null,null,null,null,null,null,null,null,null,null,null,null,null,null,null,null,null,null,"KIA",11,"SPORTAGE 4X4",1,"JEEP"]
[null,null,null,null,null,null,null,null,null,null,null,null,null,null,null,null,null,null,null,null,null,null,null,null,null,null,null,"KIA",11,"CARENS",2,"MINI VAN"]
[null,null,null,null,null,null,null,null,null,null,null,null,null,null,null,null,null,null,null,null,null,null,null,null,null,null,null,"KIA",11,"RIO 4P",3,"SEDAN"]
[null,null,null,null,null,null,null,null,null,null,null,null,null,null,null,null,null,null,null,null,null,null,null,null,null,null,null,"KIA",11,"CARNIVAL",4,"MINI VAN"]
[null,null,null,null,null,null,null,null,null,null,null,null,null,null,null,null,null,null,null,null,null,null,null,null,null,null,null,"KIA",11,"PRIDE POP",8,"COUPE"]
[null,null,null,null,null,null,null,null,null,null,null,null,null,null,null,null,null,null,null,null,null,null,null,null,null,null,null,"KIA",11,"SHEPIA",9,"SEDAN"]
[null,null,null,null,null,null,null,null,null,null,null,null,null,null,null,null,null,null,null,null,null,null,null,null,null,null,null,"KIA",11,"CERES 4X2",10,"PICK-UP"]
[null,null,null,null,null,null,null,null,null,null,null,null,null,null,null,null,null,null,null,null,null,null,null,null,null,null,null,"KIA",11,"K2700 C/S",11,"PICK-UP"]
[null,null,null,null,null,null,null,null,null,null,null,null,null,null,null,null,null,null,null,null,null,null,null,null,null,null,null,"KIA",11,"K2400 C/S",12,"PICK-UP"]
[null,null,null,null,null,null,null,null,null,null,null,null,null,null,null,null,null,null,null,null,null,null,null,null,null,null,null,"KIA",11,"K3600",13,"PICK-UP"]
[null,null,null,null,null,null,null,null,null,null,null,null,null,null,null,null,null,null,null,null,null,null,null,null,null,null,null,"KIA",11,"SPECTRA",14,"SEDAN"]
[null,null,null,null,null,null,null,null,null,null,null,null,null,null,null,null,null,null,null,null,null,null,null,null,null,null,null,"KIA",11,"SORENTO",17,"JEEP"]
[null,null,null,null,null,null,null,null,null,null,null,null,null,null,null,null,null,null,null,null,null,null,null,null,null,null,null,"KIA",11,"RIO STYLUS",18,"SEDAN"]
[null,null,null,null,null,null,null,null,null,null,null,null,null,null,null,null,null,null,null,null,null,null,null,null,null,null,null,"KIA",11,"PICANTO",19,"SEDAN"]
[null,null,null,null,null,null,null,null,null,null,null,null,null,null,null,null,null,null,null,null,null,null,null,null,null,null,null,"KIA",11,"CERATO",20,"SEDAN"]
[null,null,null,null,null,null,null,null,null,null,null,null,null,null,null,null,null,null,null,null,null,null,null,null,null,null,null,"LADA",13,2107,1,"SEDAN"]
[null,null,null,null,null,null,null,null,null,null,null,null,null,null,null,null,null,null,null,null,null,null,null,null,null,null,null,"LADA",13,"NIVA",2,"JEEP"]
[null,null,null,null,null,null,null,null,null,null,null,null,null,null,null,null,null,null,null,null,null,null,null,null,null,null,null,"LADA",13,2104,3,"SEDAN"]
[null,null,null,null,null,null,null,null,null,null,null,null,null,null,null,null,null,null,null,null,null,null,null,null,null,null,null,"LADA",13,2106,4,"SEDAN"]
[null,null,null,null,null,null,null,null,null,null,null,null,null,null,null,null,null,null,null,null,null,null,null,null,null,null,null,"LADA",13,2109,5,"SEDAN"]
[null,null,null,null,null,null,null,null,null,null,null,null,null,null,null,null,null,null,null,null,null,null,null,null,null,null,null,"LADA",13,1600,6,"SEDAN"]
[null,null,null,null,null,null,null,null,null,null,null,null,null,null,null,null,null,null,null,null,null,null,null,null,null,null,null,"LADA",13,2105,7,"SEDAN"]
[null,null,null,null,null,null,null,null,null,null,null,null,null,null,null,null,null,null,null,null,null,null,null,null,null,null,null,"LADA",13,2101,8,"SEDAN"]
[null,null,null,null,null,null,null,null,null,null,null,null,null,null,null,null,null,null,null,null,null,null,null,null,null,null,null,"LADA",13,"100 SEDAN",9,"SEDAN"]
[null,null,null,null,null,null,null,null,null,null,null,null,null,null,null,null,null,null,null,null,null,null,null,null,null,null,null,"LADA",13,2110,10,"SEDAN"]
[null,null,null,null,null,null,null,null,null,null,null,null,null,null,null,null,null,null,null,null,null,null,null,null,null,null,null,"LADA",13,110,11,"SEDAN"]
[null,null,null,null,null,null,null,null,null,null,null,null,null,null,null,null,null,null,null,null,null,null,null,null,null,null,null,"LADA",13,2112,12,"STATION WAGON"]
[null,null,null,null,null,null,null,null,null,null,null,null,null,null,null,null,null,null,null,null,null,null,null,null,null,null,null,"LADA",13,"100 STATION WAGON",13,"STATION WAGON"]
[null,null,null,null,null,null,null,null,null,null,null,null,null,null,null,null,null,null,null,null,null,null,null,null,null,null,null,"LADA",13,21102,14,"SEDAN"]
[null,null,null,null,null,null,null,null,null,null,null,null,null,null,null,null,null,null,null,null,null,null,null,null,null,null,null,"LADA",13,115,15,"SEDAN"]
[null,null,null,null,null,null,null,null,null,null,null,null,null,null,null,null,null,null,null,null,null,null,null,null,null,null,null,"LADA",13,21122,16,"SEDAN"]
[null,null,null,null,null,null,null,null,null,null,null,null,null,null,null,null,null,null,null,null,null,null,null,null,null,null,null,"LANCIA",36,"AUTOBIANCHI",1,"COUPE"]
[null,null,null,null,null,null,null,null,null,null,null,null,null,null,null,null,null,null,null,null,null,null,null,null,null,null,null,"LAND ROVER",12,"FREELANDER",1,"JEEP"]
[null,null,null,null,null,null,null,null,null,null,null,null,null,null,null,null,null,null,null,null,null,null,null,null,null,null,null,"LAND ROVER",12,"DISCOVERY",2,"JEEP"]
[null,null,null,null,null,null,null,null,null,null,null,null,null,null,null,null,null,null,null,null,null,null,null,null,null,null,null,"LAND ROVER",12,"RANGE ROVER",3,"JEEP"]
[null,null,null,null,null,null,null,null,null,null,null,null,null,null,null,null,null,null,null,null,null,null,null,null,null,null,null,"LAND ROVER",12,"ROVER 400",4,"JEEP"]
[null,null,null,null,null,null,null,null,null,null,null,null,null,null,null,null,null,null,null,null,null,null,null,null,null,null,null,"LAND ROVER",12,"DEFENDER",5,"JEEP"]
[null,null,null,null,null,null,null,null,null,null,null,null,null,null,null,null,null,null,null,null,null,null,null,null,null,null,null,"LAND ROVER",12,"VOGUE",6,"JEEP"]
[null,null,null,null,null,null,null,null,null,null,null,null,null,null,null,null,null,null,null,null,null,null,null,null,null,null,null,"LEXUS",37,"LX 470",1,"JEEP"]
[null,null,null,null,null,null,null,null,null,null,null,null,null,null,null,null,null,null,null,null,null,null,null,null,null,null,null,"LINCOLN",38,"NAVIGATOR",1,"JEEP"]
[null,null,null,null,null,null,null,null,null,null,null,null,null,null,null,null,null,null,null,null,null,null,null,null,null,null,null,"MAHINDRA",101,"SCORPIO LHD",1,"JEEP"]
[null,null,null,null,null,null,null,null,null,null,null,null,null,null,null,null,null,null,null,null,null,null,null,null,null,null,null,"MAZDA",14,"323 3P",1,"COUPE"]
[null,null,null,null,null,null,null,null,null,null,null,null,null,null,null,null,null,null,null,null,null,null,null,null,null,null,null,"MAZDA",14,"323 4P",2,"SEDAN"]
[null,null,null,null,null,null,null,null,null,null,null,null,null,null,null,null,null,null,null,null,null,null,null,null,null,null,null,"MAZDA",14,"323 5P",3,"STATION WAGON"]
[null,null,null,null,null,null,null,null,null,null,null,null,null,null,null,null,null,null,null,null,null,null,null,null,null,null,null,"MAZDA",14,"323 ALLEGRO 4P",4,"SEDAN"]
[null,null,null,null,null,null,null,null,null,null,null,null,null,null,null,null,null,null,null,null,null,null,null,null,null,null,null,"MAZDA",14,"323 ALLEGRO 5P",5,"STATION WAGON"]
[null,null,null,null,null,null,null,null,null,null,null,null,null,null,null,null,null,null,null,null,null,null,null,null,null,null,null,"MAZDA",14,626,6,"SEDAN"]
[null,null,null,null,null,null,null,null,null,null,null,null,null,null,null,null,null,null,null,null,null,null,null,null,null,null,null,"MAZDA",14,"B2200I C/S 4X2",7,"PICK-UP"]
[null,null,null,null,null,null,null,null,null,null,null,null,null,null,null,null,null,null,null,null,null,null,null,null,null,null,null,"MAZDA",14,"B2200I D/C 4X2",8,"PICK-UP"]
[null,null,null,null,null,null,null,null,null,null,null,null,null,null,null,null,null,null,null,null,null,null,null,null,null,null,null,"MAZDA",14,"B2600I C/S 4X4",9,"PICK-UP"]
[null,null,null,null,null,null,null,null,null,null,null,null,null,null,null,null,null,null,null,null,null,null,null,null,null,null,null,"MAZDA",14,"B2600I D/C 4X4",10,"PICK-UP"]
[null,null,null,null,null,null,null,null,null,null,null,null,null,null,null,null,null,null,null,null,null,null,null,null,null,null,null,"MAZDA",14,"B2000 C/S 4X2",11,"PICK-UP"]
[null,null,null,null,null,null,null,null,null,null,null,null,null,null,null,null,null,null,null,null,null,null,null,null,null,null,null,"MAZDA",14,"B2000 D/C 4X2",12,"PICK-UP"]
[null,null,null,null,null,null,null,null,null,null,null,null,null,null,null,null,null,null,null,null,null,null,null,null,null,null,null,"MAZDA",14,"PROTEGE",13,"COUPE"]
[null,null,null,null,null,null,null,null,null,null,null,null,null,null,null,null,null,null,null,null,null,null,null,null,null,null,null,"MAZDA",14,"MATSURI",14,"SEDAN"]
[null,null,null,null,null,null,null,null,null,null,null,null,null,null,null,null,null,null,null,null,null,null,null,null,null,null,null,"MAZDA",14,"MX3",15,"COUPE"]
[null,null,null,null,null,null,null,null,null,null,null,null,null,null,null,null,null,null,null,null,null,null,null,null,null,null,null,"MAZDA",14,"MPV VAN",16,"MINI VAN"]
[null,null,null,null,null,null,null,null,null,null,null,null,null,null,null,null,null,null,null,null,null,null,null,null,null,null,null,"MAZDA",14,"B2500 C/S",17,"PICK-UP"]
[null,null,null,null,null,null,null,null,null,null,null,null,null,null,null,null,null,null,null,null,null,null,null,null,null,null,null,"MAZDA",14,"B2500 C/D",18,"PICK-UP"]
[null,null,null,null,null,null,null,null,null,null,null,null,null,null,null,null,null,null,null,null,null,null,null,null,null,null,null,"MAZDA",14,"TRIBUTE AT SDX",20,"JEEP"]
[null,null,null,null,null,null,null,null,null,null,null,null,null,null,null,null,null,null,null,null,null,null,null,null,null,null,null,"MAZDA",14,"CIAO TEMPO 1.3 CC",21,"SEDAN"]
[null,null,null,null,null,null,null,null,null,null,null,null,null,null,null,null,null,null,null,null,null,null,null,null,null,null,null,"MAZDA",14,929,22,"SEDAN"]
[null,null,null,null,null,null,null,null,null,null,null,null,null,null,null,null,null,null,null,null,null,null,null,null,null,null,null,"MAZDA",14,"B29DCP",23,"PICK-UP"]
[null,null,null,null,null,null,null,null,null,null,null,null,null,null,null,null,null,null,null,null,null,null,null,null,null,null,null,"MAZDA",14,"MIATA MX5",24,"COUPE"]
[null,null,null,null,null,null,null,null,null,null,null,null,null,null,null,null,null,null,null,null,null,null,null,null,null,null,null,"MAZDA",14,"6 2.0",25,"SEDAN"]
[null,null,null,null,null,null,null,null,null,null,null,null,null,null,null,null,null,null,null,null,null,null,null,null,null,null,null,"MAZDA",14,"RX8",26,"COUPE"]
[null,null,null,null,null,null,null,null,null,null,null,null,null,null,null,null,null,null,null,null,null,null,null,null,null,null,null,"MERCEDES BENZ",15,"190E",1,"SEDAN"]
[null,null,null,null,null,null,null,null,null,null,null,null,null,null,null,null,null,null,null,null,null,null,null,null,null,null,null,"MERCEDES BENZ",15,"A160 CLASSIC",2,"SEDAN"]
[null,null,null,null,null,null,null,null,null,null,null,null,null,null,null,null,null,null,null,null,null,null,null,null,null,null,null,"MERCEDES BENZ",15,"C200 KOMPRESOR",3,"SEDAN"]
[null,null,null,null,null,null,null,null,null,null,null,null,null,null,null,null,null,null,null,null,null,null,null,null,null,null,null,"MERCEDES BENZ",15,"C240",4,"SEDAN"]
[null,null,null,null,null,null,null,null,null,null,null,null,null,null,null,null,null,null,null,null,null,null,null,null,null,null,null,"MERCEDES BENZ",15,"C320",5,"SEDAN"]
[null,null,null,null,null,null,null,null,null,null,null,null,null,null,null,null,null,null,null,null,null,null,null,null,null,null,null,"MERCEDES BENZ",15,"E320",6,"SEDAN"]
[null,null,null,null,null,null,null,null,null,null,null,null,null,null,null,null,null,null,null,null,null,null,null,null,null,null,null,"MERCEDES BENZ",15,"ML 320 (4X4)",7,"JEEP"]
[null,null,null,null,null,null,null,null,null,null,null,null,null,null,null,null,null,null,null,null,null,null,null,null,null,null,null,"MERCEDES BENZ",15,"ML 430 (4X4)",8,"JEEP"]
[null,null,null,null,null,null,null,null,null,null,null,null,null,null,null,null,null,null,null,null,null,null,null,null,null,null,null,"MERCEDES BENZ",15,"C230 KOMPRESOR",9,"SEDAN"]
[null,null,null,null,null,null,null,null,null,null,null,null,null,null,null,null,null,null,null,null,null,null,null,null,null,null,null,"MERCEDES BENZ",15,260,10,"SEDAN"]
[null,null,null,null,null,null,null,null,null,null,null,null,null,null,null,null,null,null,null,null,null,null,null,null,null,null,null,"MERCEDES BENZ",15,"SERIE G (4X4) 5P.",11,"SEDAN"]
[null,null,null,null,null,null,null,null,null,null,null,null,null,null,null,null,null,null,null,null,null,null,null,null,null,null,null,"MERCEDES BENZ",15,"C280 - 280",12,"SEDAN"]
[null,null,null,null,null,null,null,null,null,null,null,null,null,null,null,null,null,null,null,null,null,null,null,null,null,null,null,"MERCEDES BENZ",15,"200E",13,"SEDAN"]
[null,null,null,null,null,null,null,null,null,null,null,null,null,null,null,null,null,null,null,null,null,null,null,null,null,null,null,"MERCEDES BENZ",15,"280E",14,"SEDAN"]
[null,null,null,null,null,null,null,null,null,null,null,null,null,null,null,null,null,null,null,null,null,null,null,null,null,null,null,"MERCEDES BENZ",15,"250E",15,"SEDAN"]
[null,null,null,null,null,null,null,null,null,null,null,null,null,null,null,null,null,null,null,null,null,null,null,null,null,null,null,"MERCEDES BENZ",15,"260E",16,"SEDAN"]
[null,null,null,null,null,null,null,null,null,null,null,null,null,null,null,null,null,null,null,null,null,null,null,null,null,null,null,"MERCEDES BENZ",15,"300E",17,"SEDAN"]
[null,null,null,null,null,null,null,null,null,null,null,null,null,null,null,null,null,null,null,null,null,null,null,null,null,null,null,"MERCEDES BENZ",15,"C220",18,"SEDAN"]
[null,null,null,null,null,null,null,null,null,null,null,null,null,null,null,null,null,null,null,null,null,null,null,null,null,null,null,"MERCEDES BENZ",15,430,19,"SEDAN"]
[null,null,null,null,null,null,null,null,null,null,null,null,null,null,null,null,null,null,null,null,null,null,null,null,null,null,null,"MERCEDES BENZ",15,"230 F",20,"SEDAN"]
[null,null,null,null,null,null,null,null,null,null,null,null,null,null,null,null,null,null,null,null,null,null,null,null,null,null,null,"MERCEDES BENZ",15,"300SE",21,"SEDAN"]
[null,null,null,null,null,null,null,null,null,null,null,null,null,null,null,null,null,null,null,null,null,null,null,null,null,null,null,"MERCEDES BENZ",15,"C200",22,"SEDAN"]
[null,null,null,null,null,null,null,null,null,null,null,null,null,null,null,null,null,null,null,null,null,null,null,null,null,null,null,"MERCEDES BENZ",15,"SLK 230",23,"COUPE"]
[null,null,null,null,null,null,null,null,null,null,null,null,null,null,null,null,null,null,null,null,null,null,null,null,null,null,null,"MERCEDES BENZ",15,"C230",24,"SEDAN"]
[null,null,null,null,null,null,null,null,null,null,null,null,null,null,null,null,null,null,null,null,null,null,null,null,null,null,null,"MERCEDES BENZ",15,220,25,"SEDAN"]
[null,null,null,null,null,null,null,null,null,null,null,null,null,null,null,null,null,null,null,null,null,null,null,null,null,null,null,"MERCEDES BENZ",15,"230E",26,"SEDAN"]
[null,null,null,null,null,null,null,null,null,null,null,null,null,null,null,null,null,null,null,null,null,null,null,null,null,null,null,"MERCEDES BENZ",15,"500SEL",28,"SEDAN"]
[null,null,null,null,null,null,null,null,null,null,null,null,null,null,null,null,null,null,null,null,null,null,null,null,null,null,null,"MERCEDES BENZ",15,"240E",29,"SEDAN"]
[null,null,null,null,null,null,null,null,null,null,null,null,null,null,null,null,null,null,null,null,null,null,null,null,null,null,null,"MERCEDES BENZ",15,"ML 500",30,"SEDAN"]
[null,null,null,null,null,null,null,null,null,null,null,null,null,null,null,null,null,null,null,null,null,null,null,null,null,null,null,"MERCEDES BENZ",15,"C230K",31,"SEDAN"]
[null,null,null,null,null,null,null,null,null,null,null,null,null,null,null,null,null,null,null,null,null,null,null,null,null,null,null,"MERCEDES BENZ",15,"ML230",32,"JEEP"]
[null,null,null,null,null,null,null,null,null,null,null,null,null,null,null,null,null,null,null,null,null,null,null,null,null,null,null,"MERCEDES BENZ",15,"C180",35,"SEDAN"]
[null,null,null,null,null,null,null,null,null,null,null,null,null,null,null,null,null,null,null,null,null,null,null,null,null,null,null,"MERCEDES BENZ",15,"ML 350",37,"JEEP"]
[null,null,null,null,null,null,null,null,null,null,null,null,null,null,null,null,null,null,null,null,null,null,null,null,null,null,null,"MERCEDES BENZ",15,"CLK320",38,"SEDAN"]
[null,null,null,null,null,null,null,null,null,null,null,null,null,null,null,null,null,null,null,null,null,null,null,null,null,null,null,"MITSUBISHI",16,"L-200 4X2 C/S",1,"PICK-UP"]
[null,null,null,null,null,null,null,null,null,null,null,null,null,null,null,null,null,null,null,null,null,null,null,null,null,null,null,"MITSUBISHI",16,"L-200 4X2 D/C",2,"PICK-UP"]
[null,null,null,null,null,null,null,null,null,null,null,null,null,null,null,null,null,null,null,null,null,null,null,null,null,null,null,"MITSUBISHI",16,"L-200 4X4 C/S",3,"PICK-UP"]
[null,null,null,null,null,null,null,null,null,null,null,null,null,null,null,null,null,null,null,null,null,null,null,null,null,null,null,"MITSUBISHI",16,"L-200 4X4 D/C",4,"PICK-UP"]
[null,null,null,null,null,null,null,null,null,null,null,null,null,null,null,null,null,null,null,null,null,null,null,null,null,null,null,"MITSUBISHI",16,"LANCER",5,"SEDAN"]
[null,null,null,null,null,null,null,null,null,null,null,null,null,null,null,null,null,null,null,null,null,null,null,null,null,null,null,"MITSUBISHI",16,"SPACE WAGON 5P",6,"MINI VAN"]
[null,null,null,null,null,null,null,null,null,null,null,null,null,null,null,null,null,null,null,null,null,null,null,null,null,null,null,"MITSUBISHI",16,"MONTERO 3P",7,"JEEP"]
[null,null,null,null,null,null,null,null,null,null,null,null,null,null,null,null,null,null,null,null,null,null,null,null,null,null,null,"MITSUBISHI",16,"MONTERO 5P",8,"JEEP"]
[null,null,null,null,null,null,null,null,null,null,null,null,null,null,null,null,null,null,null,null,null,null,null,null,null,null,null,"MITSUBISHI",16,"MONTERO SPORT",9,"JEEP"]
[null,null,null,null,null,null,null,null,null,null,null,null,null,null,null,null,null,null,null,null,null,null,null,null,null,null,null,"MITSUBISHI",16,"GALANT",11,"SEDAN"]
[null,null,null,null,null,null,null,null,null,null,null,null,null,null,null,null,null,null,null,null,null,null,null,null,null,null,null,"MITSUBISHI",16,"ECLIPSE SPYDER",12,"COUPE"]
[null,null,null,null,null,null,null,null,null,null,null,null,null,null,null,null,null,null,null,null,null,null,null,null,null,null,null,"MITSUBISHI",16,"L300 C/D",14,"PICK-UP"]
[null,null,null,null,null,null,null,null,null,null,null,null,null,null,null,null,null,null,null,null,null,null,null,null,null,null,null,"MITSUBISHI",16,"L400 C/S",15,"PICK-UP"]
[null,null,null,null,null,null,null,null,null,null,null,null,null,null,null,null,null,null,null,null,null,null,null,null,null,null,null,"MITSUBISHI",16,"L400 D/C",16,"PICK-UP"]
[null,null,null,null,null,null,null,null,null,null,null,null,null,null,null,null,null,null,null,null,null,null,null,null,null,null,null,"MITSUBISHI",16,"MONTERO IO",17,"JEEP"]
[null,null,null,null,null,null,null,null,null,null,null,null,null,null,null,null,null,null,null,null,null,null,null,null,null,null,null,"MITSUBISHI",16,"OUTLANDER",18,"MINI VAN"]
[null,null,null,null,null,null,null,null,null,null,null,null,null,null,null,null,null,null,null,null,null,null,null,null,null,null,null,"NISSAN",17,"1200 P/U",1,"PICK-UP"]
[null,null,null,null,null,null,null,null,null,null,null,null,null,null,null,null,null,null,null,null,null,null,null,null,null,null,null,"NISSAN",17,"2400 C/S 4X2",2,"PICK-UP"]
[null,null,null,null,null,null,null,null,null,null,null,null,null,null,null,null,null,null,null,null,null,null,null,null,null,null,null,"NISSAN",17,"2400 D/C 4X2",3,"PICK-UP"]
[null,null,null,null,null,null,null,null,null,null,null,null,null,null,null,null,null,null,null,null,null,null,null,null,null,null,null,"NISSAN",17,"2400 D/C 4X4",4,"PICK-UP"]
[null,null,null,null,null,null,null,null,null,null,null,null,null,null,null,null,null,null,null,null,null,null,null,null,null,null,null,"NISSAN",17,"PATHFINDER",5,"JEEP"]
[null,null,null,null,null,null,null,null,null,null,null,null,null,null,null,null,null,null,null,null,null,null,null,null,null,null,null,"NISSAN",17,"PATHFINDER FULL",6,"JEEP"]
[null,null,null,null,null,null,null,null,null,null,null,null,null,null,null,null,null,null,null,null,null,null,null,null,null,null,null,"NISSAN",17,"PATROL 3P",7,"JEEP"]
[null,null,null,null,null,null,null,null,null,null,null,null,null,null,null,null,null,null,null,null,null,null,null,null,null,null,null,"NISSAN",17,"PATROL 5P",8,"JEEP"]
[null,null,null,null,null,null,null,null,null,null,null,null,null,null,null,null,null,null,null,null,null,null,null,null,null,null,null,"NISSAN",17,"SENTRA I",9,"SEDAN"]
[null,null,null,null,null,null,null,null,null,null,null,null,null,null,null,null,null,null,null,null,null,null,null,null,null,null,null,"NISSAN",17,"SENTRA II",10,"SEDAN"]
[null,null,null,null,null,null,null,null,null,null,null,null,null,null,null,null,null,null,null,null,null,null,null,null,null,null,null,"NISSAN",17,"ALMERA",11,"SEDAN"]
[null,null,null,null,null,null,null,null,null,null,null,null,null,null,null,null,null,null,null,null,null,null,null,null,null,null,null,"NISSAN",17,"ALTIMA",12,"SEDAN"]
[null,null,null,null,null,null,null,null,null,null,null,null,null,null,null,null,null,null,null,null,null,null,null,null,null,null,null,"NISSAN",17,"BLUEBIRD",14,"SEDAN"]
[null,null,null,null,null,null,null,null,null,null,null,null,null,null,null,null,null,null,null,null,null,null,null,null,null,null,null,"NISSAN",17,"INFINITY",19,"SEDAN"]
[null,null,null,null,null,null,null,null,null,null,null,null,null,null,null,null,null,null,null,null,null,null,null,null,null,null,null,"NISSAN",17,"LB120",21,"PICK-UP"]
[null,null,null,null,null,null,null,null,null,null,null,null,null,null,null,null,null,null,null,null,null,null,null,null,null,null,null,"NISSAN",17,"MAXIMA",22,"SEDAN"]
[null,null,null,null,null,null,null,null,null,null,null,null,null,null,null,null,null,null,null,null,null,null,null,null,null,null,null,"NISSAN",17,"PRIMERA",23,"SEDAN"]
[null,null,null,null,null,null,null,null,null,null,null,null,null,null,null,null,null,null,null,null,null,null,null,null,null,null,null,"NISSAN",17,"QUEST",24,"MINI VAN"]
[null,null,null,null,null,null,null,null,null,null,null,null,null,null,null,null,null,null,null,null,null,null,null,null,null,null,null,"NISSAN",17,"SUNNY",25,"SEDAN"]
[null,null,null,null,null,null,null,null,null,null,null,null,null,null,null,null,null,null,null,null,null,null,null,null,null,null,null,"NISSAN",17,"1800 C/S",27,"PICK-UP"]
[null,null,null,null,null,null,null,null,null,null,null,null,null,null,null,null,null,null,null,null,null,null,null,null,null,null,null,"NISSAN",17,"1800 D/C",28,"PICK-UP"]
[null,null,null,null,null,null,null,null,null,null,null,null,null,null,null,null,null,null,null,null,null,null,null,null,null,null,null,"NISSAN",17,"TERRANO",29,"JEEP"]
[null,null,null,null,null,null,null,null,null,null,null,null,null,null,null,null,null,null,null,null,null,null,null,null,null,null,null,"NISSAN",17,"X.TRAIL",30,"JEEP"]
[null,null,null,null,null,null,null,null,null,null,null,null,null,null,null,null,null,null,null,null,null,null,null,null,null,null,null,"NISSAN",17,"SENTRA SWA",31,"STATION WAGON"]
[null,null,null,null,null,null,null,null,null,null,null,null,null,null,null,null,null,null,null,null,null,null,null,null,null,null,null,"NISSAN",17,"2000 C/S",32,"PICK-UP"]
[null,null,null,null,null,null,null,null,null,null,null,null,null,null,null,null,null,null,null,null,null,null,null,null,null,null,null,"NISSAN",17,"PICKUP 4X2 D/C",33,"PICK-UP"]
[null,null,null,null,null,null,null,null,null,null,null,null,null,null,null,null,null,null,null,null,null,null,null,null,null,null,null,"NISSAN",17,"FRONTIER C/D 4X4",34,"PICK-UP"]
[null,null,null,null,null,null,null,null,null,null,null,null,null,null,null,null,null,null,null,null,null,null,null,null,null,null,null,"NISSAN",17,"MURANO",36,"JEEP"]
[null,null,null,null,null,null,null,null,null,null,null,null,null,null,null,null,null,null,null,null,null,null,null,null,null,null,null,"NISSAN",17,"FRONTIER C/D 4X2",37,"PICK-UP"]
[null,null,null,null,null,null,null,null,null,null,null,null,null,null,null,null,null,null,null,null,null,null,null,null,null,null,null,"NISSAN",17,"CLD 211 S",38,"PICK-UP"]
[null,null,null,null,null,null,null,null,null,null,null,null,null,null,null,null,null,null,null,null,null,null,null,null,null,null,null,"NISSAN",17,"PICKUP 4X2 C/S",39,"PICK-UP"]
[null,null,null,null,null,null,null,null,null,null,null,null,null,null,null,null,null,null,null,null,null,null,null,null,null,null,null,"OLDSMOBIL",73,"SILHOUETTE",1,"SEDAN"]
[null,null,null,null,null,null,null,null,null,null,null,null,null,null,null,null,null,null,null,null,null,null,null,null,null,null,null,"OLTCIT",40,"CLUB 12TRS",1,"SEDAN"]
[null,null,null,null,null,null,null,null,null,null,null,null,null,null,null,null,null,null,null,null,null,null,null,null,null,null,null,"PEUGEOT",18,"306 5P",1,"SEDAN"]
[null,null,null,null,null,null,null,null,null,null,null,null,null,null,null,null,null,null,null,null,null,null,null,null,null,null,null,"PEUGEOT",18,"206 3P",2,"COUPE"]
[null,null,null,null,null,null,null,null,null,null,null,null,null,null,null,null,null,null,null,null,null,null,null,null,null,null,null,"PEUGEOT",18,"206 5P",3,"SEDAN"]
[null,null,null,null,null,null,null,null,null,null,null,null,null,null,null,null,null,null,null,null,null,null,null,null,null,null,null,"PEUGEOT",18,"406 4P",4,"SEDAN"]
[null,null,null,null,null,null,null,null,null,null,null,null,null,null,null,null,null,null,null,null,null,null,null,null,null,null,null,"PEUGEOT",18,405,5,"SEDAN"]
[null,null,null,null,null,null,null,null,null,null,null,null,null,null,null,null,null,null,null,null,null,null,null,null,null,null,null,"PEUGEOT",18,305,6,"SEDAN"]
[null,null,null,null,null,null,null,null,null,null,null,null,null,null,null,null,null,null,null,null,null,null,null,null,null,null,null,"PEUGEOT",18,504,7,"SEDAN"]
[null,null,null,null,null,null,null,null,null,null,null,null,null,null,null,null,null,null,null,null,null,null,null,null,null,null,null,"PEUGEOT",18,505,8,"SEDAN"]
[null,null,null,null,null,null,null,null,null,null,null,null,null,null,null,null,null,null,null,null,null,null,null,null,null,null,null,"PEUGEOT",18,604,9,"SEDAN"]
[null,null,null,null,null,null,null,null,null,null,null,null,null,null,null,null,null,null,null,null,null,null,null,null,null,null,null,"PEUGEOT",18,605,10,"SEDAN"]
[null,null,null,null,null,null,null,null,null,null,null,null,null,null,null,null,null,null,null,null,null,null,null,null,null,null,null,"PEUGEOT",18,806,11,"SEDAN"]
[null,null,null,null,null,null,null,null,null,null,null,null,null,null,null,null,null,null,null,null,null,null,null,null,null,null,null,"PEUGEOT",18,"BERLINA",12,"SEDAN"]
[null,null,null,null,null,null,null,null,null,null,null,null,null,null,null,null,null,null,null,null,null,null,null,null,null,null,null,"PEUGEOT",18,404,13,"PICK-UP"]
[null,null,null,null,null,null,null,null,null,null,null,null,null,null,null,null,null,null,null,null,null,null,null,null,null,null,null,"PEUGEOT",18,"106 XR",14,"SEDAN"]
[null,null,null,null,null,null,null,null,null,null,null,null,null,null,null,null,null,null,null,null,null,null,null,null,null,null,null,"PEUGEOT",18,"BREAK",15,"SEDAN"]
[null,null,null,null,null,null,null,null,null,null,null,null,null,null,null,null,null,null,null,null,null,null,null,null,null,null,null,"PEUGEOT",18,1600,16,"PICK-UP"]
[null,null,null,null,null,null,null,null,null,null,null,null,null,null,null,null,null,null,null,null,null,null,null,null,null,null,null,"PEUGEOT",18,"BREAK 307",17,"SEDAN"]
[null,null,null,null,null,null,null,null,null,null,null,null,null,null,null,null,null,null,null,null,null,null,null,null,null,null,null,"PEUGEOT",18,"S16 3P",18,"COUPE"]
[null,null,null,null,null,null,null,null,null,null,null,null,null,null,null,null,null,null,null,null,null,null,null,null,null,null,null,"PEUGEOT",18,307,19,"SEDAN"]
[null,null,null,null,null,null,null,null,null,null,null,null,null,null,null,null,null,null,null,null,null,null,null,null,null,null,null,"PEUGEOT",18,"807 ST 2.0 AT",20,"SEDAN"]
[null,null,null,null,null,null,null,null,null,null,null,null,null,null,null,null,null,null,null,null,null,null,null,null,null,null,null,"PLYMOUTH",54,"VOYAGER",1,"MINI VAN"]
[null,null,null,null,null,null,null,null,null,null,null,null,null,null,null,null,null,null,null,null,null,null,null,null,null,null,null,"PLYMOUTH",54,"GRAND VOYAGER",3,"MINI VAN"]
[null,null,null,null,null,null,null,null,null,null,null,null,null,null,null,null,null,null,null,null,null,null,null,null,null,null,null,"PORCHE",56,"BOXSTER 986",1,"COUPE"]
[null,null,null,null,null,null,null,null,null,null,null,null,null,null,null,null,null,null,null,null,null,null,null,null,null,null,null,"PORCHE",56,"CAYENNE",2,"JEEP"]
[null,null,null,null,null,null,null,null,null,null,null,null,null,null,null,null,null,null,null,null,null,null,null,null,null,null,null,"RENAULT",19,"TWINGO",1,"COUPE"]
[null,null,null,null,null,null,null,null,null,null,null,null,null,null,null,null,null,null,null,null,null,null,null,null,null,null,null,"RENAULT",19,"CLIO",2,"SEDAN"]
[null,null,null,null,null,null,null,null,null,null,null,null,null,null,null,null,null,null,null,null,null,null,null,null,null,null,null,"RENAULT",19,"CLIO FULL",3,"SEDAN"]
[null,null,null,null,null,null,null,null,null,null,null,null,null,null,null,null,null,null,null,null,null,null,null,null,null,null,null,"RENAULT",19,"SCENIC",4,"SEDAN"]
[null,null,null,null,null,null,null,null,null,null,null,null,null,null,null,null,null,null,null,null,null,null,null,null,null,null,null,"RENAULT",19,"MEGANE",5,"SEDAN"]
[null,null,null,null,null,null,null,null,null,null,null,null,null,null,null,null,null,null,null,null,null,null,null,null,null,null,null,"RENAULT",19,"KANGOO",6,"STATION WAGON"]
[null,null,null,null,null,null,null,null,null,null,null,null,null,null,null,null,null,null,null,null,null,null,null,null,null,null,null,"RENAULT",19,"LAGUNA",7,"SEDAN"]
[null,null,null,null,null,null,null,null,null,null,null,null,null,null,null,null,null,null,null,null,null,null,null,null,null,null,null,"RENAULT",19,"19 TRICORPS",8,"SEDAN"]
[null,null,null,null,null,null,null,null,null,null,null,null,null,null,null,null,null,null,null,null,null,null,null,null,null,null,null,"RENAULT",19,"SYMBOL",9,"SEDAN"]
[null,null,null,null,null,null,null,null,null,null,null,null,null,null,null,null,null,null,null,null,null,null,null,null,null,null,null,"SAAB",45,900,1,"SEDAN"]
[null,null,null,null,null,null,null,null,null,null,null,null,null,null,null,null,null,null,null,null,null,null,null,null,null,null,null,"SAAB",45,950,2,"SEDAN"]
[null,null,null,null,null,null,null,null,null,null,null,null,null,null,null,null,null,null,null,null,null,null,null,null,null,null,null,"SAEHAN",57,"N/D",1,"SEDAN"]
[null,null,null,null,null,null,null,null,null,null,null,null,null,null,null,null,null,null,null,null,null,null,null,null,null,null,null,"SAMSUNG",74,"SV-110",1,"SEDAN"]
[null,null,null,null,null,null,null,null,null,null,null,null,null,null,null,null,null,null,null,null,null,null,null,null,null,null,null,"SANGYONG",42,"MUSSO",1,"JEEP"]
[null,null,null,null,null,null,null,null,null,null,null,null,null,null,null,null,null,null,null,null,null,null,null,null,null,null,null,"SANGYONG",42,"REXTON RX320",2,"JEEP"]
[null,null,null,null,null,null,null,null,null,null,null,null,null,null,null,null,null,null,null,null,null,null,null,null,null,null,null,"SEAT",105,"COUPE",1,"COUPE"]
[null,null,null,null,null,null,null,null,null,null,null,null,null,null,null,null,null,null,null,null,null,null,null,null,null,null,null,"SKODA",20,"FELICIA",1,"SEDAN"]
[null,null,null,null,null,null,null,null,null,null,null,null,null,null,null,null,null,null,null,null,null,null,null,null,null,null,null,"SKODA",20,"1300 PICK UP",2,"PICK-UP"]
[null,null,null,null,null,null,null,null,null,null,null,null,null,null,null,null,null,null,null,null,null,null,null,null,null,null,null,"SKODA",20,"FABIA",3,"SEDAN"]
[null,null,null,null,null,null,null,null,null,null,null,null,null,null,null,null,null,null,null,null,null,null,null,null,null,null,null,"SKODA",20,"OCTAVIA",4,"SEDAN"]
[null,null,null,null,null,null,null,null,null,null,null,null,null,null,null,null,null,null,null,null,null,null,null,null,null,null,null,"SKODA",20,"FAVORIT",5,"SEDAN"]
[null,null,null,null,null,null,null,null,null,null,null,null,null,null,null,null,null,null,null,null,null,null,null,null,null,null,null,"SKODA",20,"FORMAN",6,"SEDAN"]
[null,null,null,null,null,null,null,null,null,null,null,null,null,null,null,null,null,null,null,null,null,null,null,null,null,null,null,"SKODA",20,"SUPERB COMFORT",7,"SEDAN"]
[null,null,null,null,null,null,null,null,null,null,null,null,null,null,null,null,null,null,null,null,null,null,null,null,null,null,null,"SUBARU",58,"IMPREZA",1,"SEDAN"]
[null,null,null,null,null,null,null,null,null,null,null,null,null,null,null,null,null,null,null,null,null,null,null,null,null,null,null,"SUBARU",58,"LEGACY",2,"STATION WAGON"]
[null,null,null,null,null,null,null,null,null,null,null,null,null,null,null,null,null,null,null,null,null,null,null,null,null,null,null,"SUBARU",58,"GL10",3,"SEDAN"]
[null,null,null,null,null,null,null,null,null,null,null,null,null,null,null,null,null,null,null,null,null,null,null,null,null,null,null,"SUBARU",58,"A22L",4,"SEDAN"]
[null,null,null,null,null,null,null,null,null,null,null,null,null,null,null,null,null,null,null,null,null,null,null,null,null,null,null,"SUBARU",58,"FORESTER",5,"SEDAN"]
[null,null,null,null,null,null,null,null,null,null,null,null,null,null,null,null,null,null,null,null,null,null,null,null,null,null,null,"SUZUKI",60,"FORSA",11,"COUPE"]
[null,null,null,null,null,null,null,null,null,null,null,null,null,null,null,null,null,null,null,null,null,null,null,null,null,null,null,"SUZUKI",60,"GRAND VITARA",12,"JEEP"]
[null,null,null,null,null,null,null,null,null,null,null,null,null,null,null,null,null,null,null,null,null,null,null,null,null,null,null,"SUZUKI",60,"INTRUDER",13,"SEDAN"]
[null,null,null,null,null,null,null,null,null,null,null,null,null,null,null,null,null,null,null,null,null,null,null,null,null,null,null,"SUZUKI",60,"SAMURAI",16,"JEEP"]
[null,null,null,null,null,null,null,null,null,null,null,null,null,null,null,null,null,null,null,null,null,null,null,null,null,null,null,"SUZUKI",60,"SIDERICK",17,"JEEP"]
[null,null,null,null,null,null,null,null,null,null,null,null,null,null,null,null,null,null,null,null,null,null,null,null,null,null,null,"SUZUKI",60,"SJ 413",18,"JEEP"]
[null,null,null,null,null,null,null,null,null,null,null,null,null,null,null,null,null,null,null,null,null,null,null,null,null,null,null,"SUZUKI",60,"VITARA",22,"JEEP"]
[null,null,null,null,null,null,null,null,null,null,null,null,null,null,null,null,null,null,null,null,null,null,null,null,null,null,null,"SUZUKI",60,"LJ80",29,"JEEP"]
[null,null,null,null,null,null,null,null,null,null,null,null,null,null,null,null,null,null,null,null,null,null,null,null,null,null,null,"SUZUKI",60,"JIMNY 4X4",30,"JEEP"]
[null,null,null,null,null,null,null,null,null,null,null,null,null,null,null,null,null,null,null,null,null,null,null,null,null,null,null,"TALBOT",59,"ORIZONT",1,"SEDAN"]
[null,null,null,null,null,null,null,null,null,null,null,null,null,null,null,null,null,null,null,null,null,null,null,null,null,null,null,"TATA",75,"SAFARI",2,"JEEP"]
[null,null,null,null,null,null,null,null,null,null,null,null,null,null,null,null,null,null,null,null,null,null,null,null,null,null,null,"TATA",75,"INDICA",3,"SEDAN"]
[null,null,null,null,null,null,null,null,null,null,null,null,null,null,null,null,null,null,null,null,null,null,null,null,null,null,null,"TOYOTA",21,"TERCEL",1,"SEDAN"]
[null,null,null,null,null,null,null,null,null,null,null,null,null,null,null,null,null,null,null,null,null,null,null,null,null,null,null,"TOYOTA",21,"YARIS",2,"SEDAN"]
[null,null,null,null,null,null,null,null,null,null,null,null,null,null,null,null,null,null,null,null,null,null,null,null,null,null,null,"TOYOTA",21,"YARIS HATCHBACK 1.3",3,"STATION WAGON"]
[null,null,null,null,null,null,null,null,null,null,null,null,null,null,null,null,null,null,null,null,null,null,null,null,null,null,null,"TOYOTA",21,"COROLLA",4,"SEDAN"]
[null,null,null,null,null,null,null,null,null,null,null,null,null,null,null,null,null,null,null,null,null,null,null,null,null,null,null,"TOYOTA",21,"STOUT II",5,"PICK-UP"]
[null,null,null,null,null,null,null,null,null,null,null,null,null,null,null,null,null,null,null,null,null,null,null,null,null,null,null,"TOYOTA",21,"STOUT 2200 CHASIS",6,"PICK-UP"]
[null,null,null,null,null,null,null,null,null,null,null,null,null,null,null,null,null,null,null,null,null,null,null,null,null,null,null,"TOYOTA",21,"HILUX C/S 2.4 4X2",7,"PICK-UP"]
[null,null,null,null,null,null,null,null,null,null,null,null,null,null,null,null,null,null,null,null,null,null,null,null,null,null,null,"TOYOTA",21,"HILUX D/C 2.4 4X2",8,"PICK-UP"]
[null,null,null,null,null,null,null,null,null,null,null,null,null,null,null,null,null,null,null,null,null,null,null,null,null,null,null,"TOYOTA",21,"HILUX D/C 2.4 4X4",9,"PICK-UP"]
[null,null,null,null,null,null,null,null,null,null,null,null,null,null,null,null,null,null,null,null,null,null,null,null,null,null,null,"TOYOTA",21,"HILUX D/C 2.4 4X4 FULL",10,"PICK-UP"]
[null,null,null,null,null,null,null,null,null,null,null,null,null,null,null,null,null,null,null,null,null,null,null,null,null,null,null,"TOYOTA",21,"LAND CRUSIER 3P",11,"JEEP"]
[null,null,null,null,null,null,null,null,null,null,null,null,null,null,null,null,null,null,null,null,null,null,null,null,null,null,null,"TOYOTA",21,"LAND CRUSIER 5P",12,"JEEP"]
[null,null,null,null,null,null,null,null,null,null,null,null,null,null,null,null,null,null,null,null,null,null,null,null,null,null,null,"TOYOTA",21,"LAND CRUSIER PRADO 3P",13,"JEEP"]
[null,null,null,null,null,null,null,null,null,null,null,null,null,null,null,null,null,null,null,null,null,null,null,null,null,null,null,"TOYOTA",21,"LAND CRUSIER PRADO 5P",14,"JEEP"]
[null,null,null,null,null,null,null,null,null,null,null,null,null,null,null,null,null,null,null,null,null,null,null,null,null,null,null,"TOYOTA",21,"4 RUNNER",15,"JEEP"]
[null,null,null,null,null,null,null,null,null,null,null,null,null,null,null,null,null,null,null,null,null,null,null,null,null,null,null,"TOYOTA",21,"RAV4 3P",16,"JEEP"]
[null,null,null,null,null,null,null,null,null,null,null,null,null,null,null,null,null,null,null,null,null,null,null,null,null,null,null,"TOYOTA",21,"RAV4 5P",17,"JEEP"]
[null,null,null,null,null,null,null,null,null,null,null,null,null,null,null,null,null,null,null,null,null,null,null,null,null,null,null,"TOYOTA",21,"CAMRY",20,"SEDAN"]
[null,null,null,null,null,null,null,null,null,null,null,null,null,null,null,null,null,null,null,null,null,null,null,null,null,null,null,"TOYOTA",21,"CORONA",21,"SEDAN"]
[null,null,null,null,null,null,null,null,null,null,null,null,null,null,null,null,null,null,null,null,null,null,null,null,null,null,null,"TOYOTA",21,"CRESSIDA",22,"SEDAN"]
[null,null,null,null,null,null,null,null,null,null,null,null,null,null,null,null,null,null,null,null,null,null,null,null,null,null,null,"TOYOTA",21,"CROWN",23,"SEDAN"]
[null,null,null,null,null,null,null,null,null,null,null,null,null,null,null,null,null,null,null,null,null,null,null,null,null,null,null,"TOYOTA",21,"TACOMA",26,"STATION WAGON"]
[null,null,null,null,null,null,null,null,null,null,null,null,null,null,null,null,null,null,null,null,null,null,null,null,null,null,null,"TOYOTA",21,"STOUT C/S",27,"PICK-UP"]
[null,null,null,null,null,null,null,null,null,null,null,null,null,null,null,null,null,null,null,null,null,null,null,null,null,null,null,"TOYOTA",21,800,28,"PICK-UP"]
[null,null,null,null,null,null,null,null,null,null,null,null,null,null,null,null,null,null,null,null,null,null,null,null,null,null,null,"TOYOTA",21,"HILUX C/S 2.4 4X4",29,"PICK-UP"]
[null,null,null,null,null,null,null,null,null,null,null,null,null,null,null,null,null,null,null,null,null,null,null,null,null,null,null,"TOYOTA",21,"LAND CRUISER FZJ C/S",30,"PICK-UP"]
[null,null,null,null,null,null,null,null,null,null,null,null,null,null,null,null,null,null,null,null,null,null,null,null,null,null,null,"TOYOTA",21,"HIGHLANDER",32,"JEEP"]
[null,null,null,null,null,null,null,null,null,null,null,null,null,null,null,null,null,null,null,null,null,null,null,null,null,null,null,"TOYOTA",21,"1000 P/U",35,"PICK-UP"]
[null,null,null,null,null,null,null,null,null,null,null,null,null,null,null,null,null,null,null,null,null,null,null,null,null,null,null,"TOYOTA",21,"YARIS SPORT",36,"SEDAN"]
[null,null,null,null,null,null,null,null,null,null,null,null,null,null,null,null,null,null,null,null,null,null,null,null,null,null,null,"TOYOTA",21,"NITRO 3P",37,"COUPE"]
[null,null,null,null,null,null,null,null,null,null,null,null,null,null,null,null,null,null,null,null,null,null,null,null,null,null,null,"VOLKSWAGEN",22,"GOL 3P",1,"COUPE"]
[null,null,null,null,null,null,null,null,null,null,null,null,null,null,null,null,null,null,null,null,null,null,null,null,null,null,null,"VOLKSWAGEN",22,"GOL 5P",2,"SEDAN"]
[null,null,null,null,null,null,null,null,null,null,null,null,null,null,null,null,null,null,null,null,null,null,null,null,null,null,null,"VOLKSWAGEN",22,"GOL SPORT",3,"SEDAN"]
[null,null,null,null,null,null,null,null,null,null,null,null,null,null,null,null,null,null,null,null,null,null,null,null,null,null,null,"VOLKSWAGEN",22,"SAVEIRO",4,"PICK-UP"]
[null,null,null,null,null,null,null,null,null,null,null,null,null,null,null,null,null,null,null,null,null,null,null,null,null,null,null,"VOLKSWAGEN",22,"GOLF",5,"SEDAN"]
[null,null,null,null,null,null,null,null,null,null,null,null,null,null,null,null,null,null,null,null,null,null,null,null,null,null,null,"VOLKSWAGEN",22,"POLO HATCHBACK",6,"STATION WAGON"]
[null,null,null,null,null,null,null,null,null,null,null,null,null,null,null,null,null,null,null,null,null,null,null,null,null,null,null,"VOLKSWAGEN",22,"POLO",7,"SEDAN"]
[null,null,null,null,null,null,null,null,null,null,null,null,null,null,null,null,null,null,null,null,null,null,null,null,null,null,null,"VOLKSWAGEN",22,"JETTA 4P",8,"SEDAN"]
[null,null,null,null,null,null,null,null,null,null,null,null,null,null,null,null,null,null,null,null,null,null,null,null,null,null,null,"VOLKSWAGEN",22,"VENTO",9,"SEDAN"]
[null,null,null,null,null,null,null,null,null,null,null,null,null,null,null,null,null,null,null,null,null,null,null,null,null,null,null,"VOLKSWAGEN",22,"PARATI",10,"SEDAN"]
[null,null,null,null,null,null,null,null,null,null,null,null,null,null,null,null,null,null,null,null,null,null,null,null,null,null,null,"VOLKSWAGEN",22,"SANTANA 4P",11,"SEDAN"]
[null,null,null,null,null,null,null,null,null,null,null,null,null,null,null,null,null,null,null,null,null,null,null,null,null,null,null,"VOLKSWAGEN",22,"AMAZON",12,"SEDAN"]
[null,null,null,null,null,null,null,null,null,null,null,null,null,null,null,null,null,null,null,null,null,null,null,null,null,null,null,"VOLKSWAGEN",22,"BRASILIA",13,"SEDAN"]
[null,null,null,null,null,null,null,null,null,null,null,null,null,null,null,null,null,null,null,null,null,null,null,null,null,null,null,"VOLKSWAGEN",22,"ESCARABAJO",15,"COUPE"]
[null,null,null,null,null,null,null,null,null,null,null,null,null,null,null,null,null,null,null,null,null,null,null,null,null,null,null,"VOLKSWAGEN",22,"POLO SPORT",17,"SEDAN"]
[null,null,null,null,null,null,null,null,null,null,null,null,null,null,null,null,null,null,null,null,null,null,null,null,null,null,null,"VOLKSWAGEN",22,"QUAMTUM",18,"STATION WAGON"]
[null,null,null,null,null,null,null,null,null,null,null,null,null,null,null,null,null,null,null,null,null,null,null,null,null,null,null,"VOLKSWAGEN",22,"PASSAT",19,"SEDAN"]
[null,null,null,null,null,null,null,null,null,null,null,null,null,null,null,null,null,null,null,null,null,null,null,null,null,null,null,"VOLKSWAGEN",22,"GOLF GTI",20,"COUPE"]
[null,null,null,null,null,null,null,null,null,null,null,null,null,null,null,null,null,null,null,null,null,null,null,null,null,null,null,"VOLKSWAGEN",22,"BETTLE",21,"COUPE"]
[null,null,null,null,null,null,null,null,null,null,null,null,null,null,null,null,null,null,null,null,null,null,null,null,null,null,null,"VOLKSWAGEN",22,"BORA",22,"SEDAN"]
[null,null,null,null,null,null,null,null,null,null,null,null,null,null,null,null,null,null,null,null,null,null,null,null,null,null,null,"VOLKSWAGEN",22,"FOX SPORT",23,"SEDAN"]
[null,null,null,null,null,null,null,null,null,null,null,null,null,null,null,null,null,null,null,null,null,null,null,null,null,null,null,"VOLKSWAGEN",22,"FOX 2P",24,"COUPE"]
[null,null,null,null,null,null,null,null,null,null,null,null,null,null,null,null,null,null,null,null,null,null,null,null,null,null,null,"VOLKSWAGEN",22,"FOX 4P",25,"SEDAN"]
[null,null,null,null,null,null,null,null,null,null,null,null,null,null,null,null,null,null,null,null,null,null,null,null,null,null,null,"VOLVO",23,460,1,"SEDAN"]
[null,null,null,null,null,null,null,null,null,null,null,null,null,null,null,null,null,null,null,null,null,null,null,null,null,null,null,"VOLVO",23,"V70",2,"SEDAN"]
[null,null,null,null,null,null,null,null,null,null,null,null,null,null,null,null,null,null,null,null,null,null,null,null,null,null,null,"VOLVO",23,"S60",3,"SEDAN"]
[null,null,null,null,null,null,null,null,null,null,null,null,null,null,null,null,null,null,null,null,null,null,null,null,null,null,null,"VOLVO",23,240,4,"SEDAN"]
[null,null,null,null,null,null,null,null,null,null,null,null,null,null,null,null,null,null,null,null,null,null,null,null,null,null,null,"VOLVO",23,850,5,"SEDAN"]
[null,null,null,null,null,null,null,null,null,null,null,null,null,null,null,null,null,null,null,null,null,null,null,null,null,null,null,"VOLVO",23,240,6,"SEDAN"]
[null,null,null,null,null,null,null,null,null,null,null,null,null,null,null,null,null,null,null,null,null,null,null,null,null,null,null,"VOLVO",23,"122 S",7,"SEDAN"]
[null,null,null,null,null,null,null,null,null,null,null,null,null,null,null,null,null,null,null,null,null,null,null,null,null,null,null,"VOLVO",23,244,8,"SEDAN"]
[null,null,null,null,null,null,null,null,null,null,null,null,null,null,null,null,null,null,null,null,null,null,null,null,null,null,null,"VOLVO",23,"940 GL",9,"SEDAN"]
[null,null,null,null,null,null,null,null,null,null,null,null,null,null,null,null,null,null,null,null,null,null,null,null,null,null,null,"VOLVO",23,"430SE",10,"SEDAN"]
[null,null,null,null,null,null,null,null,null,null,null,null,null,null,null,null,null,null,null,null,null,null,null,null,null,null,null,"VOLVO",23,440,11,"SEDAN"]
[null,null,null,null,null,null,null,null,null,null,null,null,null,null,null,null,null,null,null,null,null,null,null,null,null,null,null,"VOLVO",23,740,12,"SEDAN"]
[null,null,null,null,null,null,null,null,null,null,null,null,null,null,null,null,null,null,null,null,null,null,null,null,null,null,null,"VOLVO",23,960,13,"SEDAN"]
[null,null,null,null,null,null,null,null,null,null,null,null,null,null,null,null,null,null,null,null,null,null,null,null,null,null,null,"VOLVO",23,760,14,"SEDAN"]
[null,null,null,null,null,null,null,null,null,null,null,null,null,null,null,null,null,null,null,null,null,null,null,null,null,null,null,"VOLVO",23,"S40",15,"SEDAN"]
[null,null,null,null,null,null,null,null,null,null,null,null,null,null,null,null,null,null,null,null,null,null,null,null,null,null,null,"VOLVO",23,"S80",16,"SEDAN"]
[null,null,null,null,null,null,null,null,null,null,null,null,null,null,null,null,null,null,null,null,null,null,null,null,null,null,null,"VOLVO",23,"S70",17,"SEDAN"]
[null,null,null,null,null,null,null,null,null,null,null,null,null,null,null,null,null,null,null,null,null,null,null,null,null,null,null,"VOLVO",23,"S90",19,"SEDAN"]
[null,null,null,null,null,null,null,null,null,null,null,null,null,null,null,null,null,null,null,null,null,null,null,null,null,null,null,"WORLDSTAR",99,"1300 CC",1,"PICK-UP"]
[null,null,null,null,null,null,null,null,null,null,null,null,null,null,null,null,null,null,null,null,null,null,null,null,null,null,null,"ZASTAVA",61,"SEDAN",1,"SEDAN"]
[null,null,null,null,null,null,null,null,null,null,null,null,null,null,null,null,null,null,null,null,null,null,null,null,null,null,null,"ZASTAVA",61,1100,2,"SEDAN"]

{"sheet":"CERT","index":2,"n_rows":128,"n_cols":9,"rows_kept":128,"cut":false,"hidden":false,"merged":[[61,3,61,8],[65,0,68,8],[69,0,69,8],[127,0,127,8],[55,0,55,1],[56,0,56,8],[57,0,57,8],[58,0,58,8],[60,3,60,8],[38,0,38,5],[40,0,40,5],[41,0,41,5],[60,15,60,17],[42,0,42,5],[43,0,43,5],[44,0,44,5],[45,0,46,8],[47,0,47,8],[54,0,54,3],[54,6,54,8],[31,0,31,5],[32,0,32,5],[33,0,33,5],[34,0,34,5],[37,0,37,7],[26,0,26,5],[27,0,27,5],[28,0,28,5],[29,0,29,5],[30,0,30,5],[22,0,22,1],[22,2,22,5],[22,6,22,7],[24,0,24,7],[25,0,25,5],[20,0,20,1],[20,2,20,5],[20,6,20,7],[21,0,21,1],[21,2,21,5],[21,6,21,7],[18,0,18,1],[18,2,18,5],[18,6,18,7],[19,0,19,1],[19,2,19,5],[19,6,19,7],[16,0,16,1],[16,2,16,5],[16,6,16,7],[17,0,17,1],[17,2,17,5],[17,6,17,7],[14,0,14,1],[14,2,14,5],[14,6,14,7],[15,0,15,1],[15,2,15,5],[15,6,15,7],[8,0,8,1],[8,2,8,5],[8,7,8,8],[10,0,11,8],[13,0,13,1],[13,2,13,5],[13,6,13,7],[6,0,6,1],[6,2,6,5],[6,7,6,8],[7,0,7,1],[7,2,7,5],[7,7,7,8],[1,0,1,8],[3,0,3,2],[3,3,3,5],[3,6,3,8],[5,0,5,1],[5,2,5,5]]}
[]
["CERTIFICADO PROVISIONAL DE SEGURO"]
[]
["VEHÍCULOS",null,null,"PÓLIZA MAESTRA",null,null,"73896 / 71140 / 50393"]
[]
["Contratante:",null,"BANCO DINERS CLUB DEL ECUADOR S.A."]
["Asegurado:",null,{"$f":"FORM!Q37","v":"ANA  CAROLINA DOMINGUEZ RUALES"},null,null,null,"C.I o R.U.C:",{"$f":"+FORM!$F$39","v":"1234567890"}]
["Dirección:",null,{"$f":"+FORM!$F$45","v":"AV PEDRO DE ALVARADO N56-72 Y CARLOS V"},null,null,null,"Teléfono 1:",{"$f":"+FORM!$F$37","v":"3188179"}]
["Ciudad:",null,{"$f":"+FORM!$F$47","v":"PORTOVIEJO"},null,null,null,"Teléfono 2:",{"$f":"+FORM!$L$37","v":"0985352479"}]
[]
["A.I.G. METROPOLITANA COMPAÑÍA DE SEGUROS Y REASEGUROS S.A. hace constar por este medio que la Póliza de Seguro de Vehículos anteriormente mencionada, asegura a la siguiente propiedad:"]
[]
[]
["Conductor:",null,{"$f":"+DAT!$AG$2","v":"DOMINGUEZ RUALES ANA  CAROLINA"},null,null,null,"Valor Asegurado US $:",null,{"$f":"+FORM!$F$100","v":34483.5}]
["Licencia:",null,{"$f":"+DAT!$H$2","v":"1234567890"},null,null,null,"Prima US $:",null,{"$f":"IF(Cotizador!$F$41=\"PESADO HASTA 7.5 TN\",Cotizador!$X$83,VLOOKUP(Cotizador!$F$31,Cotizador!$T$84:$AC$86,5,TRUE))","v":86.21}]
["Marca:",null,{"$f":"+FORM!$F$77","v":"MAZDA"},null,null,null,"Súper de Bancos:",null,{"$f":"IF(Cotizador!$F$41=\"PESADO HASTA 7.5 TN\",Cotizador!$Y$83,VLOOKUP(Cotizador!$F$31,Cotizador!$T$84:$AC$86,6,TRUE))","v":3.02}]
["Modelo:",null,{"$f":"+FORM!$F$79","v":"CX3"},null,null,null,"S.S. Campesino",null,{"$f":"IF(Cotizador!$F$41=\"PESADO HASTA 7.5 TN\",Cotizador!$Z$83,VLOOKUP(Cotizador!$F$31,Cotizador!$T$84:$AC$86,7,TRUE))","v":0.43104999999999999}]
["Tipo:",null,{"$f":"+FORM!$F$84","v":"SEDAN"},null,null,null,"I.V.A.:",null,{"$f":"IF(Cotizador!$F$41=\"PESADO HASTA 7.5 TN\",Cotizador!$AA$83,VLOOKUP(Cotizador!$F$31,Cotizador!$T$84:$AC$86,8,TRUE))","v":10.759325999999998}]
["Año:",null,{"$f":"+FORM!$F$86","v":2019},null,null,null,"D / Emisión US $:",null,{"$f":"IF(Cotizador!$F$41=\"PESADO HASTA 7.5 TN\",Cotizador!$AB$83,VLOOKUP(Cotizador!$F$31,Cotizador!$T$84:$AC$86,9,TRUE))","v":0.04}]
["Color:",null,{"$f":"+FORM!$F$88","v":"ROJO"},null,null,null,"Prima Total:",null,{"$f":"IF(Cotizador!$F$41=\"PESADO HASTA 7.5 TN\",Cotizador!$AC$83,VLOOKUP(Cotizador!$F$31,Cotizador!$T$84:$AC$86,10,TRUE))","v":100.460376}]
["Placa:",null,"S / P",null,null,null,"Fecha Inicio:",null,{"$f":"+FORM!$F$8","v":"2018-05-21"}]
["Número Motor:",null,{"$f":"+FORM!$F$90","v":"BU456792826RE7"},null,null,null,"Fecha de Aniversario:",null,{"$f":"+SOLIC!$C$44","v":"2022-05-20"}]
["Número Chasis:",null,{"$f":"+FORM!$F$92","v":"CG5342892U"},null,null,null,"Vigencia del Certificado:",null,"MENSUAL"]
[]
["AMPAROS BÁSICOS",null,null,null,null,null,null,null,"LIMITES"]
["1. Responsabilidad Civil Extracontractual",null,null,null,null,null,null,null,{"$f":"IF(FORM!$F$100>=25000,30000,IF(FORM!$F$100<25000,\"           \"))","v":30000}]
["   1.1. Lesiones Corporales",null,null,null,null,null,null,null,{"$f":"IF(FORM!$F$100>=25000,\"         \",IF(FORM!$F$100<25000,15000))","v":"         "}]
["   1.2. Daños a la Propiedad Ajena",null,null,null,null,null,null,null,{"$f":"IF(FORM!$F$100>=25000,\"         \",IF(FORM!$F$100<25000,15000))","v":"         "}]
["2. Perdida Total del Vehículo por Daños",null,null,null,null,null,null,null,{"$f":"+I14","v":34483.5}]
["3. Pérdida Parcial del Vehículo por Daños",null,null,null,null,null,null,null,{"$f":"+I14","v":34483.5}]
["4. Pérdida Total del vehículo por Robo",null,null,null,null,null,null,null,{"$f":"+I14","v":34483.5}]
["5. Pérdida Parcial del vehículo por Robo",null,null,null,null,null,null,null,{"$f":"+I14","v":34483.5}]
["6. Lesiones a Ocupantes del vehículo"]
["    6.1. Gastos Médicos por ocupante",null,null,null,null,null,null,null,{"$f":"IF(FORM!$F$100>=25000,3000,IF(FORM!$F$100<25000,2000))","v":3000}]
["    6.2. Accidentes Personales por ocupante",null,null,null,null,null,null,null,{"$f":"IF(FORM!$F$100>=25000,5000,IF(FORM!$F$100<25000,4000))","v":5000}]
["7. Gastos de Grúa, Transporte y Protección del vehículos",null,null,null,null,null,null,null,200]
[]
["AMPAROS ADICIONALES",null,null,null,null,null,null,null,"LIMITES"]
["Perdida o robo de la llave del vehiculo máximo 1 evento al año",null,null,null,null,null,null,null,150]
["Perdida o robo de documentos (Soat, Licencia, Matricula, Cédula de identidad) 1 evento al año",null,null,null,null,null,null,null,100]
["Gastos de Transporte para el Asegurado / US$ 10,oo diarios",null,null,null,null,null,null,null,600]
["Amparo jurídico en proceso penal",null,null,null,null,null,null,null,1000]
["Cobertura para Conductores menores de 25 años",null,null,null,null,null,null,null,{"$f":"+I14","v":34483.5}]
["Deducible: "]
["10% del valor del siniestro, mínimo 1% del valor asegurado, no inferior a US$",null,null,null,null,null,{"$f":"IF(I14>=25000,350,200)","v":350},"por evento"]
["EL PRESENTE CERTIFICADO TIENE VIGENCIA MENSUAL Y PERMANECERÁ VIGENTE MIENTRAS EL CREDITO DEL CLIENTE CON DINERS CLUB ESTE CON VIGENCIA"]
[]
[]
[]
[]
[]
[]
[]
[]
["EL ASEGURADO",null,null,null,null,null,"LA COMPAÑÍA"]
["FECHA DE EMISIÓN:",null,{"$f":"+SOLIC!A44","v":"2018-05-21"}]
["Quito: Av. Brasil 293 y Antonio Granda Centeno 5to piso Telef. (593-2) 395-5000 / 1800-AIG-AIG / fax: 2924-424\nGuayaquil: Av. Rodrigo Chávez Gonzalez. Parque empresarial Colón, Edf. Corporativo II, 2do piso of. 203 - Telf. (593-4) 390-4177 / 390-4179 / 390-4180\nCuenca: Av. Ordoñez Lazo 5-42 y Laureles (Frente a Produbanco) - PBX: (593-7) 407-5814 / 407-5818"]
[]
[]
[]
[]
[]
[]
[]
[]
["En caso que necesite información adicional puede comunicarse con nuestras oficinas, nos será muy grato el poderle atender o directamente a: Banco Diners Club del Ecuador S.A."]
[]
[]
[]
["CONDICIONES GENERALES"]
[]
[]
[]
[]
[]
[]
[]
[]
[]
[]
[]
[]
[]
[]
[]
[]
[]
[]
[]
[]
[]
[]
[]
[]
[]
[]
[]
[]
[]
[]
[]
[]
[]
[]
[]
[]
[]
[]
[]
[]
[]
[]
[]
[]
[]
[]
[]
[]
[]
[]
[]
[]
[]
[]
[]
[]
[]
["El presente certificado es un resumen de las Condiciones Generales de la Póliza, en caso de existir una diferencia entre el presente certificado y las Condiciones Generales, regirán las existentes en la Póliza"]

{"sheet":"COB","index":3,"n_rows":34,"n_cols":3,"rows_kept":34,"cut":false,"hidden":false,"merged":[[20,0,20,5],[34,0,34,5],[35,0,35,5],[35,6,35,8],[22,0,22,5],[24,0,24,1],[29,0,29,5],[30,0,30,5],[32,0,32,5],[33,0,33,5],[5,0,5,1],[5,2,5,4],[12,0,12,5],[18,0,18,5],[19,0,19,5]]}
[]
[]
[]
[]
[]
[{"$f":"FORM!F25","v":"PORTOVIEJO"},null,{"$f":"+CERT!C56","v":"2018-05-21"}]
[]
["Señor (a).-",{"$f":"FORM!Q37","v":"ANA  CAROLINA DOMINGUEZ RUALES"}]
[]
["Presente."]
[]
[]
["GRACIAS POR DEPOSITAR SU CONFIANZA EN NOSOTROS!"]
[]
[]
["Estimado Cliente"]
[]
[]
["Porque sabemos lo importante que es para usted su seguridad,  AIG Metropolitana se complace en entregarle su certificado provisional de seguro, el mismo que le servirá como respaldo en una eventualidad.\n\nDesde este momento usted se encuentra respaldado con la protección que AIG Metropolitana ha diseñado exclusivamente para usted, las 24 horas del día, los 365 días del año dentro del Pacto Andino, la cobertura que usted tiene ampara a su vehículo tanto por robo total, robo parcial, choque o pérdida total por choque además de lesiones a los ocupantes de su vehículo. \n\nEn caso de accidente o daño de su vehículo por favor comuníquese a nuestra central de reclamos 2-990-711, estaremos gustosos de poder servirle y solventar cualquier inquietud.\n\nSi el valor del vehículo es igual o mayor a US$ 20.000, se deberá mantener instalado y en funcionamiento el dispositivo de seguridad requerido, para contar con la cobertura de PERDIDA TOTAL POR ROBO."]
["Las coberturas de su seguro tiene validez durante el período de vigencia del crédito contratado y será extendido automáticamente de manera indefinida hasta que usted manifieste su voluntad de no seguir con el mismo o no esté al día en sus pagos."]
["Confiamos que la tranquilidad y el respaldo que este seguro brindará a su familia y a su patrimonio, será de su completo agrado."]
[]
["Una vez más agradecemos su preferencia y lo invitamos a seguir disfrutando de sus beneficios como cliente de AIG Metropolitana; oportunamente le haremos llegar el certificado de seguro definitivo."]
[]
["ATENTAMENTE"]
[]
[]
[]
[]
["FRANKLIN VALDIVIESO"]
["GERENTE DE VEHICULOS"]
[]
[]
["Quito: Av. Brasil 293 y Antonio Granda Centeno 5to piso Telef. (593-2) 395-5000 / 1800-AIG-AIG / fax: 2924-424\nGuayaquil: Av. Rodrigo Chávez Gonzalez. Parque empresarial Colón, Edf. Corporativo II, 2do piso of. 203 - Telf. (593-4) 390-4177 / 390-4179 / 390-4180\nCuenca: Av. Ordoñez Lazo 5-42 y Laureles (Frente a Produbanco) - PBX: (593-7) 407-5814 / 407-5818"]

{"sheet":"SOLIC","index":4,"n_rows":82,"n_cols":17,"rows_kept":82,"cut":false,"hidden":false,"merged":[[72,0,72,3],[72,5,72,9],[74,0,74,3],[74,5,74,9],[83,0,83,14],[74,11,74,14],[75,11,75,14],[77,0,78,14],[80,0,80,14],[81,0,81,14],[82,0,82,14],[64,0,64,14],[65,0,65,14],[66,0,66,14],[69,6,69,8],[70,6,70,8],[53,12,53,14],[60,0,60,14],[61,0,61,14],[62,0,62,14],[63,0,63,14],[55,6,55,8],[55,10,55,14],[56,6,56,8],[56,10,56,14],[59,0,59,14],[49,6,51,8],[45,2,45,4],[45,8,45,10],[45,13,45,14],[47,2,47,4],[47,8,47,10],[47,13,47,14],[49,0,49,4],[49,12,49,14],[50,0,50,3],[51,12,51,14],[41,2,41,4],[41,8,41,10],[41,13,41,14],[43,2,43,4],[43,8,43,10],[43,13,43,14],[34,1,34,4],[34,12,34,14],[36,1,36,4],[36,12,36,14],[39,0,39,4],[39,6,39,14],[30,0,30,4],[30,6,30,8],[30,10,30,14],[32,1,32,4],[32,12,32,14],[28,1,28,3],[28,4,28,7],[28,9,28,10],[28,11,28,12],[28,13,28,14],[27,1,27,3],[27,4,27,7],[27,9,27,10],[27,11,27,12],[27,13,27,14],[26,1,26,3],[26,4,26,7],[26,9,26,10],[26,11,26,12],[26,13,26,14],[25,1,25,3],[25,4,25,7],[25,9,25,10],[25,11,25,12],[25,13,25,14],[24,1,24,3],[24,4,24,7],[24,9,24,10],[24,11,24,12],[24,13,24,14],[18,1,18,8],[18,12,18,14],[20,0,20,14],[22,0,23,0],[22,1,23,3],[22,4,23,7],[22,8,23,8],[22,9,23,10],[22,11,23,12],[22,13,23,14],[12,1,12,8],[12,12,12,14],[14,1,14,8],[14,12,14,14],[16,1,16,8],[16,12,16,14],[2,10,2,11],[4,10,4,11],[8,0,8,14],[10,1,10,8],[10,12,10,14]]}
[]
[]
[]
[]
[null,null,null,null,null,null,null,null,null,null,"POLIZA MAESTRA:",null,{"$f":"+CERT!G4","v":"73896 / 71140 / 50393"}]
[]
[]
[]
["SOLICITUD DE SEGURO DE VEHÍCULOS FINANCIADOS"]
[]
["ASEGURADO:",{"$f":"FORM!Q37","v":"ANA  CAROLINA DOMINGUEZ RUALES"},null,null,null,null,null,null,null,null,"C.I / R.U.C.:",null,{"$f":"FORM!$F$39","v":"1234567890"}]
[]
["DIRECCIÓN:",{"$f":"FORM!$F$45","v":"AV PEDRO DE ALVARADO N56-72 Y CARLOS V"},null,null,null,null,null,null,null,null,"TELÉFONO:",null,{"$f":"+FORM!$F$37","v":"3188179"}]
[]
["CIUDAD:",{"$f":"FORM!$F$47","v":"PORTOVIEJO"},null,null,null,null,null,null,null,null,"TELFONO ADICIONAL:",null,{"$f":"+FORM!$L$37","v":"0985352479"}]
[]
["TIPO LICENCIA:",null,null,null,null,null,null,null,null,null,"FAX:"]
[]
["No. LICENCIA:",{"$f":"+FORM!$F$39","v":"1234567890"},null,null,null,null,null,null,null,null,"CADUCA. LIC.:"]
[]
["DATOS DEL USUARIO (INCLUIR SOLICITANTE Y CUALQUIER DEPENDIENTE MAYOR DE 18 AÑOS DE EDAD)"]
[]
["NOMBRE","FECHA NACMTO",null,null,"SEXO (M/F)",null,null,null,"ESTADO CIVIL","PARENTESCO",null,"AÑOS VIGENCIA LICENCIA",null,"% DE USO"]
[]
[{"$f":"IF(FORM!C122=0,\" \",FORM!C122)","v":"ANA DOMINGUEZ"},{"$f":"IF(FORM!F122=0,\" \",FORM!F122)","v":"1974-06-25"},null,null,{"$f":"IF(FORM!I122=0,\" \",FORM!I122)","v":"FEMENINO"},null,null,null,{"$f":"IF(FORM!L122=0,\" \",FORM!L122)","v":"CASADO"},null,null,null,null,{"$f":"IF(FORM!O122=0,\" \",FORM!O122)","v":20}]
[{"$f":"IF(FORM!C123=0,\" \",FORM!C123)","v":"PEDRO CALVACHE"},{"$f":"IF(FORM!F123=0,\" \",FORM!F123)","v":"2004-03-31"},null,null,{"$f":"IF(FORM!I123=0,\" \",FORM!I123)","v":"MASCULINO"},null,null,null,{"$f":"IF(FORM!L123=0,\" \",FORM!L123)","v":"SOLTERO"},null,null,null,null,{"$f":"IF(FORM!O123=0,\" \",FORM!O123)","v":30}]
[{"$f":"IF(FORM!C124=0,\" \",FORM!C124)","v":"DAVID CALVACHE"},{"$f":"IF(FORM!F124=0,\" \",FORM!F124)","v":"1972-08-30"},null,null,{"$f":"IF(FORM!I124=0,\" \",FORM!I124)","v":"MASCULINO"},null,null,null,{"$f":"IF(FORM!L124=0,\" \",FORM!L124)","v":"CASADO"},null,null,null,null,{"$f":"IF(FORM!O124=0,\" \",FORM!O124)","v":50}]
[{"$f":"IF(FORM!C125=0,\" \",FORM!C125)","v":" "},{"$f":"IF(FORM!F125=0,\" \",FORM!F125)","v":" "},null,null,{"$f":"IF(FORM!I125=0,\" \",FORM!I125)","v":" "},null,null,null,{"$f":"IF(FORM!L125=0,\" \",FORM!L125)","v":" "},null,null,null,null,{"$f":"IF(FORM!O125=0,\" \",FORM!O125)","v":" "}]
[{"$f":"IF(FORM!C126=0,\" \",FORM!C126)","v":" "},{"$f":"IF(FORM!F126=0,\" \",FORM!F126)","v":" "},null,null,{"$f":"IF(FORM!I126=0,\" \",FORM!I126)","v":" "},null,null,null,{"$f":"IF(FORM!L126=0,\" \",FORM!L126)","v":" "},null,null,null,null,{"$f":"IF(FORM!O126=0,\" \",FORM!O126)","v":" "}]
[]
["LUGAR DE TRAB. DEL USUARIO PRINCIPAL",null,null,null,null,null,"USO PRINCIPAL DEL VEHIC.",null,null,null,"KILOMETRAJE VEHÍCULO"]
[]
["LUGAR TRABAJO:",{"$f":"FORM!$F$51","v":"INTERDIN"},null,null,null,null,"OF / TRAB:",null,null,null,"KM. IDA Y VUELTA:"]
[]
["CARGO:",{"$f":"+FORM!$F$57","v":"INGENIRA"},null,null,null,null,"PLACER:",null,null,null,"KM. ANUAL:"]
[]
["TIEMPO FCTO (AÑOS):",{"$f":"+FORM!$F$104","v":4},null,null,null,null,"OTRO:",null,null,null,"KM. ANUAL:"]
[]
[]
["VIGENCIA",null,null,null,null,null,"DESCRIPCIÓN DEL VEHÍCULO"]
[]
["DESDE",null,"HASTA",null,null,null,"MARCA:",null,{"$f":"+CONCATENATE(FORM!$F$77,\"-\",FORM!$F$79,\"-\",FORM!$F$84)","v":"MAZDA-CX3-SEDAN"},null,null,null,"VALOR:",{"$f":"FORM!$F$100","v":34483.5}]
[]
[{"$f":"+FORM!F8","v":"2018-05-21"},null,{"$f":"IF(FORM!F104=1,'TAB AMORT'!B32)+IF(FORM!F104=2,'TAB AMORT'!B44)+IF(FORM!F104=3,'TAB AMORT'!B56)+IF(FORM!F104=4,'TAB AMORT'!B68)+IF(FORM!F104=5,'TAB AMORT'!B80)","v":"2022-05-20"},null,null,null,"AÑO FAB.:",null,{"$f":"FORM!$F$86","v":2019},null,null,null,"TASA:",{"$f":"IF(Cotizador!$F$41=\"PESADO HASTA 7.5 TN\",Cotizador!$V$83,VLOOKUP(Cotizador!$F$31,Cotizador!$T$84:$AC$86,3,TRUE))%","v":0.03}]
[]
["USO / DESTINO:",null,null,null,null,null,"# MOTOR:",null,{"$f":"FORM!$F$90","v":"BU456792826RE7"},null,null,null,"COLOR:",{"$f":"FORM!$F$88","v":"ROJO"}]
[]
["SEGURIDADES:",null,null,null,null,null,"# CHASIS:",null,{"$f":"FORM!$F$92","v":"CG5342892U"},null,null,null,"Prima Mensual",{"$f":"+CERT!I20","v":100.460376}]
[]
["BENEFICIARIO ACREEDOR A FAVOR DE:",null,null,null,null,null,"BANCO DINERS CLUB DEL ECUADOR S.A.",null,null,null,"CONCESIONARIO:",null,{"$f":"FORM!$F$13","v":"AUTOMOTORES CONTINENTAL"}]
[]
[null,null,null,null,null,null,null,null,null,null,"VENDEDOR",null,{"$f":"Cotizador!F13","v":"PEDRO SALINAS"}]
[]
[null,null,null,null,null,null,null,null,null,null,"CI. VENDEDOR",null,{"$f":"FORM!F29","v":"1524885547"}]
[]
[null,null,null,null,null,null,"NUMERO DE TARJETA:",null,null,null,{"$f":"DAT!AR2","v":"36502325370040"}]
[null,null,null,null,null,null,"FECHA DE EXPIRACIÓN",null,null,null,{"$f":"+FORM!F148","v":"2022-05-01"}]
[]
[]
["Declaro Conocer y Aceptar que El Seguro del Vehículo  Permanece Vigente durante el Tiempo de Crédito y que el vehículo aquí detallado y asegurado sea endosado a favor de Banco Diners Club S.A. mientras esté vigente el crédito."]
["Todo vehículo tipo camioneta y todo vehículo cuyo valor sea igual o superior a  US $20.000,00,  deberá mantener instalado y en funcionamiento el dispositivo de seguridad, para contar con la cobertura de robo total."]
["Adicionalmente La Compañía de Seguros acepta los vehículos que vengan instalados de fábrica,los dispositivos Chevystar Silver,Gold o Platinum y Maresa Satelital."]
["Autorizo a AIG Metropolitana  Renovar Automaticamente el Seguro de mi Vehículo cuando Finalice el Crédito.",null,null,null,null,null,null,null,null,null,null,null,null,null,null,null,"  "]
[]
[" Debo  y pagaré  incondicionalmente y sin protesto al Emisor el total de esta Orden de Cargo más los intereses impuestos legales así como los intereses y cargos por servicio, en el lugar y fecha que se convenga ."]
[" En caso  de mora pagaré la tasa máxima autorizada por el Emisor. Desde ya renuncio a cualquier reclamación y a iniciar cualquier acción legal en contral del emisor, el mismo que no requerirá de otro instrumento o documento para procesar en mi tarjeta de crédito, los valores generados, los mismos que desde ya los acepto y reconozco como obligación."]
["De igual manera autorizo que en caso de pérdida, hurto, robo o cualquier circunstancia por el que fuera cambiado el número de la tarjeta de crédito antes singularizada, se cuenta con el nuevo número que se me asigne para efectuar todos los pagos de manera incondicional dentro del período correspondiente, de tal manera que el cambio del número indicado no sea causa para no cancelar los valores que adeude."]
[]
[]
[]
[null,null,null,null,null,null,"FIRMA"]
[]
["FECHA",null,null,null,null,"CIUDAD"]
[]
[{"$f":"+FORM!F8","v":"2018-05-21"},null,null,null,null,{"$f":"+FORM!F25","v":"PORTOVIEJO"}]
[]
[null,null,null,null,null,null,null,null,null,null,null,null,null,null,null," "]
[]
[]
[]
["ESTA SOLICITUD ES PARTE INTEGRANTE DE LA PÓLIZA"]
["Quito: Av. Brasil 293 y Antonio Granda Centeno 5to piso Telef. (593-2) 395-5000 / 1800-AIG-AIG / fax: 2924-424\nGuayaquil: Av. Rodrigo Chávez Gonzalez. Parque empresarial Colón, Edf. Corporativo II, 2do piso of. 203 - Telf. (593-4) 390-4177 / 390-4179 / 390-4180\nCuenca: Av. Ordoñez Lazo 5-42 y Laureles (Frente a Produbanco) - PBX: (593-7) 407-5814 / 407-5818"]

{"sheet":"DECLARACION","index":5,"n_rows":36,"n_cols":27,"rows_kept":36,"cut":false,"hidden":false,"merged":[[24,0,24,33],[25,0,25,33],[22,0,22,33],[21,24,21,25],[20,0,20,9],[20,11,20,24],[20,25,20,33],[21,0,21,14],[19,0,19,4],[19,5,19,20],[19,24,19,27],[19,28,19,33],[21,15,21,23],[21,26,21,32],[27,0,27,13],[32,0,32,11],[33,0,33,26],[34,0,34,14],[35,0,35,31],[17,28,17,33],[18,0,18,4],[18,5,18,20],[18,24,18,27],[18,28,18,33],[17,0,17,4],[17,5,17,20],[17,24,17,27],[12,0,12,34],[14,0,14,1],[14,2,14,24],[14,25,14,34],[15,19,15,34],[15,0,15,4],[15,5,15,18],[9,0,9,34],[1,0,1,34],[3,0,3,8],[3,10,3,25],[7,0,7,34],[8,0,8,34]]}
[]
["DECLARACION"]
[]
[{"$f":"+FORM!F25","v":"PORTOVIEJO"},null,null,null,null,null,null,null,null,",",{"$f":"+FORM!F8","v":"2018-05-21"}]
[]
[]
[]
["Señores:"]
["BANCO DINERS CLUB DEL ECUADOR S.A."]
["Presente"]
[]
[]
["De mis consideraciones:"]
[]
["Yo,",null,{"$f":"FORM!Q37","v":"ANA  CAROLINA DOMINGUEZ RUALES"},null,null,null,null,null,null,null,null,null,null,null,null,null,null,null,null,null,null,null,null,null,null,", portador de la cédula de "]
["ciudadanía No. ",null,null,null,null,{"$f":"+FORM!F39","v":"1234567890"},null,null,null,null,null,null,null,null,null,null,null,null,null,", declaro que el vehículo:"]
[]
["Marca:",null,null,null,null,{"$f":"+FORM!F77","v":"MAZDA"}]
["Modelo:",null,null,null,null,{"$f":"+FORM!F79","v":"CX3"}]
["Año:",null,null,null,null,{"$f":"+FORM!F86","v":2019}]
["Que he adquirido a la compañía:",null,null,null,null,null,null,null,null,null,null,{"$f":"+FORM!F13","v":"AUTOMOTORES CONTINENTAL"},null,null,null,null,null,null,null,null,null,null,null,null,null,"mediante contrato de venta"]
["con Reserva de Dominio suscrito con fecha: ",null,null,null,null,null,null,null,null,null,null,null,null,null,null,{"$f":"+K4","v":"2018-05-21"},null,null,null,null,null,null,null,null,{"$f":"CONCATENATE(\",\",\" \",+FORM!F59)","v":", Si"},null,"es el único de uso "]
["personal o familiar."]
[]
["Declaro asimismo que la información aquí consignada es veraz y exacta, sobre lo cual asumo toda la respon-"]
["sabilidad que fuere del caso."]
[]
["Atentamente, "]
[]
[]
[]
[]
[]
[{"$f":"+C15","v":"ANA  CAROLINA DOMINGUEZ RUALES"}]
["No. CEDULA"]
[{"$f":"+FORM!F39","v":"1234567890"}]

{"sheet":"AUT CAR","index":6,"n_rows":35,"n_cols":29,"rows_kept":35,"cut":false,"hidden":false,"merged":[[21,0,21,34],[16,0,16,23],[16,24,16,27],[16,28,16,33],[15,0,15,12],[15,13,15,18],[15,19,15,34],[19,10,19,20],[17,0,17,34],[1,0,1,34],[7,0,7,34],[8,0,8,34],[9,0,9,34],[3,0,3,8],[14,2,14,24],[14,25,14,34],[14,0,14,1],[3,10,3,25],[12,0,12,34],[33,0,33,14],[31,0,31,11],[26,0,26,13],[32,0,32,26],[34,0,34,31]]}
[]
["AUTORIZACIÓN DE CARGO"]
[]
[{"$f":"+FORM!F25","v":"PORTOVIEJO"},null,null,null,null,null,null,null,null,",",{"$f":"+FORM!F8","v":"2018-05-21"}]
[]
[]
[]
["Señores:"]
["BANCO DINERS CLUB DEL ECUADOR S.A."]
["Presente"]
[]
[]
["De mis consideraciones:"]
[]
["Yo,",null,{"$f":"FORM!Q37","v":"ANA  CAROLINA DOMINGUEZ RUALES"},null,null,null,null,null,null,null,null,null,null,null,null,null,null,null,null,null,null,null,null,null,null,", en  calidad  de  titular principal "]
["de la tarjeta de crédito Diners Club No. ",null,null,null,null,null,null,null,null,null,null,null,null,{"$f":"CONCATENATE(FORM!F146,FORM!L146)","v":"36502325370040"},null,null,null,null,null,", autorizo  libre  y  voluntariamente a BANCO DINERS"]
["CLUB DEL ECUADOR S.A., se cargue a mi señalada tarjeta el valor de US$",null,null,null,null,null,null,null,null,null,null,null,null,null,null,null,null,null,null,null,null,null,null,null,{"$f":"+FORM!$F$132","v":419.8175},null,null,null,"que corresponde"]
["al costo de inscripción del contrato de venta con Reserva de Dominio que he suscrito, y al trámite de levantamiento del respectivo gravamen, una vez que la obligación contraída en virtud del mismo haya sido cancelada en su totalidad, valor que me  comprometo a cancelar de manera incondicional en la siguiente forma:"]
[]
[null,null,null,null,null,null,null,null,null,"X",{"$f":"+FORM!F134","v":"3 MESES SIN INTERESES"}]
[]
["Expresamente me obligo a  no  revocar  la  presente autorización, y a la vez libero de toda responsabilidad a BANCO DINERS CLUB  DEL  ECUADOR  S.A. por los cargos efectuados en base a la presente autorización. De igual manera autorizo que en caso de pérdida,  hurto,  robo o cualquier otra circunstancia, que merezca ser cambiado mi actual número de tarjeta,   se cuente con el nuevo que se me asigne para cancelar todos mis consumos de manera incondicional,  de tal forma que mis obligaciones no  queden en mora por los conceptos antes mencionados y hasta su total cancelación."]
[]
[]
[]
[]
["Atentamente, "]
[]
[]
[]
[]
[]
[{"$f":"+C15","v":"ANA  CAROLINA DOMINGUEZ RUALES"}]
["No. CEDULA"]
[{"$f":"+FORM!F39","v":"1234567890"}]

{"sheet":"Adhesión","index":7,"n_rows":126,"n_cols":36,"rows_kept":126,"cut":false,"hidden":false,"merged":[[93,0,93,36],[102,0,102,8],[102,9,102,36],[15,22,15,26],[15,27,15,28],[16,0,77,36],[78,0,78,25],[79,0,92,36],[6,21,6,41],[0,0,1,36],[5,0,5,36],[3,0,3,33],[4,0,4,15],[4,16,4,36],[6,0,6,10],[6,11,6,20],[103,0,103,8],[103,9,103,36],[105,0,105,36],[104,0,104,7],[104,9,104,36],[115,0,115,36],[112,0,112,8],[112,9,112,36],[113,0,113,8],[113,9,113,36],[114,0,114,7],[114,9,114,36],[124,9,124,255],[122,0,122,8],[122,9,122,35],[123,0,123,8],[123,9,123,36],[7,19,7,16383],[8,0,8,36],[9,0,14,36],[15,0,15,14],[15,17,15,21],[15,29,15,36],[7,1,7,18],[125,0,125,36],[94,32,94,34],[94,0,94,6],[94,7,94,13],[94,18,94,23],[94,29,94,31],[94,16,94,17],[94,14,94,15],[95,30,95,34],[95,35,95,36],[95,0,95,5],[95,6,95,15],[95,16,95,17],[95,19,95,24],[94,24,94,28],[124,0,124,8]]}
["CONTRATO DE ADHESIÓN A ENCARGO FIDUCIARIO"]
[]
[]
["CLÁUSULA PRIMERA: COMPARECIENTES.- Comparecen a la celebración del presente contrato: a)"]
[{"$f":"VLOOKUP(H95,FORM!K167:M175,2,FALSE)","v":"ERNEST FERDINAND VALLEJO COBOS"},null,null,null,null,null,null,null,null,null,null,null,null,null,null,null,", en calidad de Apoderado Especial de la compañía FIDEVAL S.A."]
["ADMINISTRADORA DE FONDOS Y FIDEICOMISOS, parte a la que en adelante se la denominará “FIDEVAL”"]
[" o la “FIDUCIARIA”; y, ",null,null,null,null,null,null,null,null,null,null,"b) el(la-los) señor(ita-a-es) ",null,null,null,null,null,null,null,null,null,{"$f":"+'CO RE DOM 48'!A11","v":"ANA  CAROLINA DOMINGUEZ RUALES"}]
["y",{"$f":"+'CO RE DOM 48'!T11","v":"DAVID EDUARDO CLVACHE ONTANEDA"},null,null,null,null,null,null,null,null,null,null,null,null,null,null,null,null,null,", por sus propios y personales derechos, parte a la que se"]
["la denominará el “DEUDOR” y/o “CONSTITUYENTE ADHERENTE”. "]
["CLÁUSULA SEGUNDA: ANTECEDENTES.- a) Con fecha 29 de junio de 2018 se suscribió un contrato de Encargo Fiduciario denominado “ENCARGO FIDUCIARIO DINERS-FDV”, en virtud del cual el Banco Diners Club del Ecuador S.A. encargó a la FIDUCIARIA la administración e instrumentación operativa CONTRATOS DE GARANTIA para créditos por financiamiento vehicular. b) El referido contrato de ENCARGO FIDUCIARIO prevé la posibilidad de que terceras personas se adhieran al mismo en calidad de CONSTITUYENTES ADHERENTES, con el objeto de sumarse al objeto e instrucciones establecidas en dicho contrato, aceptando y ratificando todas y cada una de las "]
[]
[]
[]
[]
[]
["cláusulas contenidas en el mismo. c) Con fecha:",null,null,null,null,null,null,null,null,null,null,null,null,null,null,{"$f":"+'CO RE DOM 48'!S4","v":"2018-05-21"},"de",{"$f":"+'CO RE DOM 48'!Z4","v":"2018-05-21"},null,null,null,null,"del año ",null,null,null,null,{"$f":"+'CO RE DOM 48'!AJ4","v":"2018-05-21"},null,", el DEUDOR adquirió "]
["un vehículo mediante la suscripción de un CONTRATO DE GARANTIA (Venta con Reserva de Dominio/Prenda Industrial), a fin de garantizar las OBLIGACIONES contraídas para este fin con el Banco Diners Club del Ecuador S.A. en su calidad de ACREEDOR. Las características del vehículo se hallan detalladas en la respectiva cláusula del CONTRATO DE GARANTÍA.\nCLÁUSULA TERCERA: ADHESION Y MANDATO IRREVOCABLE.- Con los antecedentes expuestos, el DEUDOR se adhiere al ENCARGO FIDUCIARIO en calidad de CONSTITUYENTE ADHERENTE, a efectos de sumarse y aceptar el objeto e instrucciones contenidas en el referido contrato de ENCARGO, específicamente otorga mandato expreso e irrevocable a la FIDUCIARIA para que a su nombre y representación proceda a: UNO.- En caso de ser necesario, suscribir a su nombre y representación el respectivo CONTRATO DE GARANTIA (Venta con Reserva de Dominio/Prenda Industrial), así como las cesiones de derechos o contratos accesorios que de este contrato, de ser el caso, se requieran. Asimismo, la FIDUCIARIA queda facultada a comparecer a nombre y en representación del CONSTITUYENTE ADHERENTE al respectivo reconocimiento de firmas del CONTRATO DE GARANTIA ante un Notario Público o Juez, según corresponda. DOS.- Inscribir, por su cuenta y por cuenta del ACREEDOR, el CONTRATO DE GARANTIA, y las cesiones que del mismo se hagan, en el Registro Mercantil del cantón correspondiente, para lo cual realizará la coordinación integral y los trámites legales que sean del caso para el perfeccionamiento e inscripción del CONTRATO DE GARANTIA, hasta su entrega al DEUDOR y/o al ACREEDOR. TRES.- Aceptar a nombre y en representación del CONSTITUYENTE ADHERENTE la notificación de las cesiones de derechos que llegaren a hacerse del CONTRATO DE GARANTÍA. CUATRO.- Una vez cancelada la totalidad de las OBLIGACIONES contraídas con el ACREEDOR, y previa instrucción expresa de éste, realizar y suscribir todos los documentos que se requieran para dar por terminado el CONTRATO DE GARANTÍA y cancelar o levantar el respectivo gravamen o limitación al dominio impuesto al VEHICULO, así como llevar a cabo la inscripción y registro de los mismos. CINCO.- De manera general, el DEUDOR se suma a las instrucciones establecidas en la presente cláusula, está de acuerdo y acepta que la FIDUCIARIA lleve un control, manejo y administración del CONTRATO DE GARANTIA, en los términos expuestos.\nCLÁUSULA CUARTA: VIGENCIA DEL ENCARGO.- El presente encargo  otorgado por el DEUDOR se mantendrá mientras se encuentre vigente el CONTRATO DE GARANTIA. Una vez canceladas las OBLIGACIONES contraídas con el ACREEDOR, el presente mandato se entenderá terminado por haberse cumplido su objeto. En este caso la FIDUCIARIA terminará el mandato respecto al CONSTITUYENTE ADHERENTE, y rendirá cuentas finales de su gestión.\nCLÁUSULA QUINTA: HONORARIOS DE LA FIDUCIARIA.- Por el cumplimiento del presente encargo, la FIDUCIARIA tendrá derecho a percibir los honorarios que se hallan detallados en la cláusula décimo quinta del contrato de ENCARGO FIDUCIARIO, y que serán cancelados por el CONSTITUYENTE ADHERENTE. \nCLÁUSULA SEXTA: DECLARACIONES.- Las partes de manera expresa efectúan las siguientes declaraciones: UNO.- EL CONSTITUYENTE ADHERENTE declara bajo juramento que en virtud de la constitución del presente encargo fiduciario no intenta perjudicar o causar daños a terceros. DOS.- el CONSTITUYENTE ADHERENTE declara bajo juramento que los recursos que entregue para el desarrollo del presente contrato no provienen de actividades relacionadas o vinculadas al tráfico de sustancias psicotrópicas o estupefacientes, ni están relacionados con delitos de lavado de activos y financiamiento del terrorismo, obligándose a mantener indemne a la FIDUCIARIA y al ENCARGO FIDUCIARIO contra cualquier reclamo o acción que a este respecto se iniciare en contra suya. TRES.- EL CONSTITUYENTE ADHERENTE declara expresamente conocer que la naturaleza del ENCARGO FIDUCIARIO es de medio y no de resultado, y que podrían existir eventos y/o circunstancias ajenas que impidan o compliquen su cumplimiento, todo lo cual ha sido debidamente comunicado y expuesto a las partes, por lo que éstas no podrán alegar desconocimiento o reclamos en tal sentido. El presente ENCARGO FIDUCIARIO no constituye garantía o mecanismo de pago de las OBLIGACIONES contraídas por el CONSTITUYENTE ADHERENTE con el ACREEDOR, ni establece procesos judiciales o extrajudiciales para el cobro o ejecución de garantías, todo lo cual es expresamente conocido y aceptado por el CONSTITUYENTE ADHERENTE. CUATRO.- La suscripción del presente contrato no implica responsabilidad alguna ni garantía sobre el objetivo y finalidad del contrato por parte de la Superintendencia de Compañías y de los miembros del Consejo Nacional de Valores.- CINCO.- EL CONSTITUYENTE ADHERENTE declara conocer el contenido del contrato de ENCARGO FIDUCIARIO, sus estipulaciones y los derechos y obligaciones establecidos el mismo, a los cuales se somete expresamente. SEIS.- EL CONSTITUYENTE ADHERENTE instruye a la FIDUCIARIA mantener las rendiciones de cuentas que le correspondan en las oficinas de la FIDUCIARIA para que pueda retirarlos en cualquier momento. SIETE.- La FIDUCIARIA asume la calidad de mandataria irrevocable del CONSTITUYENTE ADHERENTE con la finalidad de dar cumplimiento a las instrucciones irrevocables impartidas por éste, por lo cual el CONSTITUYENTE ADHERENTE no podrá oponerse ni impedir que la FIDUCIARIA dé cumplimiento al presente contrato.\nCLÁUSULA SÉPTIMA: TÉRMINOS Y DEFINICIONES.- Los términos en mayúscula y frases utilizadas en el presente contrato se entienden e interpretan de conformidad con las definiciones señaladas en el glosario de términos del contrato de ENCARGO FIDUCIARIO.\nCLÁUSULA OCTAVA: DOMICILIO.- Para los propósitos y efectos del presente contrato las partes señalan como domicilio la ciudad de Quito, en las siguientes direcciones: UNO: FIDUCIARIA.- Avenida Coruña y Manuel Iturrey, Edificio Torre Santa Fe, Piso 3, Quito. DOS: CONSTITUYENTE ADHERENTE.- \n"]
[]
[]
[]
[]
[]
[]
[]
[]
[]
[]
[]
[]
[]
[]
[]
[]
[]
[]
[]
[]
[]
[]
[]
[]
[]
[]
[]
[]
[]
[]
[]
[]
[]
[]
[]
[]
[]
[]
[]
[]
[]
[]
[]
[]
[]
[]
[]
[]
[]
[]
[]
[]
[]
[]
[]
[]
[]
[]
[]
[]
[]
[{"$f":"+'CO RE DOM 48'!K59","v":"AV PEDRO DE ALVARADO N56-72 Y CARLOS V"}]
["CLÁUSULA NOVENA: CONTROVERSIAS.- Toda controversia o diferencia derivada de este contrato será resuelta con la asistencia de un mediador del Centro de Arbitraje y Mediación de la Cámara de Comercio de Quito. Si el procedimiento de mediación no diere resultado favorable para cualquiera de las partes en el plazo de diez días calendario a contarse desde su inicio, pudiendo prorrogarse por mutuo acuerdo este plazo, entonces las partes renuncian fuero y domicilio, y acuerdan someter sus controversias a la resolución de un Tribunal de Arbitraje que se sujetará a lo dispuesto en la Ley de Arbitraje y Mediación, el Reglamento del Centro de Arbitraje y Mediación de la Cámara de Comercio de Quito y las siguientes normas: a) Los árbitros serán seleccionados conforme a lo establecido en la Ley de Arbitraje y Mediación; b) Las partes renuncian a la jurisdicción ordinaria, se obligan a acatar el laudo que expida el Tribunal Arbitral y se comprometen a no interponer ningún tipo de recurso en contra del laudo arbitral; c) Para la ejecución de medidas cautelares el Tribunal Arbitral está facultado para solicitar el auxilio de los funcionarios públicos judiciales, policiales y administrativos sin que sea necesario recurrir a juez ordinario alguno; d) El Tribunal Arbitral estará integrado por tres árbitros; e) El procedimiento arbitral será confidencial; f) Los árbitros deberán decidir en derecho y el arbitraje será administrado; y, g) El lugar del arbitraje será en las instalaciones del Centro de Arbitraje y Mediación de la Cámara de Comercio de Quito. La reconvención, de haberla, se someterá igualmente al arbitraje."]
[]
[]
[]
[]
[]
[]
[]
[]
[]
[]
[]
[]
[]
["Para constancia de lo convenido, las partes firman el presente instrumento en tres ejemplares del mismo tenor y valor"]
["legal, en la ciudad de",null,null,null,null,null,null,{"$f":"+'CO RE DOM 48'!G4","v":"PORTOVIEJO"},null,null,null,null,null,null,", a los ",null,{"$f":"+'CO RE DOM 48'!S4","v":"2018-05-21"},null,"días del mes de ",null,null,null,null,null,{"$f":"+'CO RE DOM 48'!Z4","v":"2018-05-21"},null,null,null,null,"del año",null,null,{"$f":"+'CO RE DOM 48'!AJ4","v":"2018-05-21"},null,null,"."]
[]
[]
[]
[]
[]
["f.)"]
[]
["NOMBRE:",null,null,null,null,null,null,null,null,{"$f":"VLOOKUP(H95,FORM!K167:M175,2,FALSE)","v":"ERNEST FERDINAND VALLEJO COBOS"}]
["CARGO:",null,null,null,null,null,null,null,null,"APODERADO ESPECIAL"]
["C.C.",null,null,null,null,null,null,null,null,{"$f":"VLOOKUP(H95,FORM!K167:M175,3,FALSE)","v":"0926201138"}]
["FIDEVAL S.A. ADMINISTRADORA DE FONDOS Y FIDEICOMISOS"]
[]
[]
[]
[]
["f.)"]
[]
["NOMBRE:",null,null,null,null,null,null,null,null,{"$f":"CONCATENATE(FORM!Q35,\" \",FORM!Q33)","v":"ANA  CAROLINA DOMINGUEZ RUALES"}]
["DIREC.:",null,null,null,null,null,null,null,null,{"$f":"+FORM!F45","v":"AV PEDRO DE ALVARADO N56-72 Y CARLOS V"}]
["C.C.",null,null,null,null,null,null,null,null,{"$f":"+FORM!F39","v":"1234567890"}]
["CONSTITUYENTE ADHERENTE"]
[]
[]
[]
[]
["f.)"]
[]
["NOMBRE CÓNYUGE:",null,null,null,null,null,null,null,null,{"$f":"+'CO RE DOM 48'!J123:AJ123","v":"DAVID EDUARDO CLVACHE ONTANEDA"}]
["DIREC.:",null,null,null,null,null,null,null,null,{"$f":"IF(FORM!F63=0,\"\",J114)","v":"AV PEDRO DE ALVARADO N56-72 Y CARLOS V"}]
["C.C.",null,null,null,null,null,null,null,null,{"$f":"IF(FORM!F63=0,\"\",FORM!F67)","v":"1239876589"}]
["CONSTITUYENTE ADHERENTE"]

{"sheet":"CE DER","index":8,"n_rows":34,"n_cols":26,"rows_kept":34,"cut":false,"hidden":false,"merged":[[0,0,0,10],[21,0,21,35],[3,30,3,35],[2,0,2,35],[12,23,12,31],[6,0,6,2],[3,18,3,28],[8,0,8,23],[6,3,6,20],[6,21,6,35],[9,10,9,35],[10,10,10,35],[7,0,7,23],[5,6,5,13],[5,15,5,27],[7,24,7,35],[16,25,16,32],[12,0,12,11],[13,23,13,35],[24,0,24,35],[22,21,22,35],[19,0,19,13],[14,5,14,18],[14,27,14,35],[15,26,15,35],[35,0,35,35],[17,10,17,35],[25,0,25,35],[22,0,22,20],[31,24,31,35],[31,3,31,18],[23,0,23,6]]}
["CESIÓN DE DERECHOS"]
[]
["En  virtud  de  este documento cedemos y traspasamos por valor recibido y sin nuestra responsabilidad a favor de BANCO DINERS CLUB DEL ECUADOR S.A. todos los derechos y acciones sin reserva de ninguna clase que nos corresponde y emanan del Contrato de Compra Venta con reserva de Dominio suscrito."]
["en la ciudad de ",null,null,null,null,null,{"$f":"+'CO RE DOM 48'!G4","v":"PORTOVIEJO"},null,null,null,null,null,null,null,"con fecha ",null,null,null,{"$f":"+FORM!F8","v":"2018-05-21"}]
[]
["Lugar y Fecha:",null,null,null,null,null,{"$f":"+G4","v":"PORTOVIEJO"},null,null,null,null,null,null,null,",",{"$f":"+S4","v":"2018-05-21"}]
[]
[]
[]
[]
[]
[]
["CEDENTE",null,null,null,null,null,null,null,null,null,null,null,null,null,null,null,null,null,null,null,null,null,null,"CESIONARIO"]
[null,{"$f":"+A23","v":"AUTOMOTORES CONTINENTAL"},null,null,null,null,null,null,null,null,null,null,null,null,null,null,null,null,null,null,null,null,null,"BANCO DINERS CLUB DEL ECUADOR S.A."]
[null,"Nombre:",null,null,null,{"$f":"FORM!F15","v":"GERARDO DORFFLINGER"},null,null,null,null,null,null,null,null,null,null,null,null,null,null,null,null,null,"Nombre:"]
[null,"Cargo:",null,null,null,{"$f":"FORM!F19","v":"GERENTE GENERAL"},null,null,null,null,null,null,null,null,null,null,null,null,null,null,null,null,null,"Cargo:"]
[null,"Ruc:",null,null,null,{"$f":"FORM!F21","v":"1713882247001"},null,null,null,null,null,null,null,null,null,null,null,null,null,null,null,null,null,"Ruc:",null,"179028338000-1"]
[]
[]
["NOTIFICACIÓN Y ACEPTACIÓN"]
[]
["Hemos sido debidamente notificados y aceptamos plenamente la cesión de derechos del Contrato de Compraventa con reserva de Dominio que antecede de conformidad con el artículo 11 y 1842 del Código Civil realizado por :"]
[{"$f":"FORM!F13","v":"AUTOMOTORES CONTINENTAL"},null,null,null,null,null,null,null,null,null,null,null,null,null,null,null,null,null,null,null,null,"a favor de BANCO DINERS CLUB DEL"]
[" ECUADOR S.A"]
["Declaramos adicionalmente que DINERS no será responsable del saneamiento por evicción ni por los vicios redhibitorios del bien adquirido en virtud del Contrato de Compraventa con Reserva de Dominio mencionado."]
[]
[]
[]
[]
[]
[]
["Nombre:",null,null,{"$f":"FORM!Q37","v":"ANA  CAROLINA DOMINGUEZ RUALES"},null,null,null,null,null,null,null,null,null,null,null,null,null,null,null,null,null,"Nombre:",null,null,{"$f":"IF(FORM!F63=0,\"\",CONCATENATE(FORM!Q65,\" \",FORM!Q63))","v":"DAVID EDUARDO CLVACHE ONTANEDA"}]
["COMPRADOR(A) Y/O DEUDOR(A)",null,null,null,null,null,null,null,null,null,null,null,null,null,null,null,null,null,null,null,null,"COMPRADOR(A) Y/O DEUDOR(A)"]
["Cédula:",null,null,{"$f":"FORM!F39","v":"1234567890"},null,null,null,null,null,null,null,null,null,null,null,null,null,null,null,null,null,"Cédula:",null,null,{"$f":"IF(FORM!F63=0,\"\",FORM!F67)","v":"1239876589"}]

{"sheet":"TAB AMORT","index":9,"n_rows":92,"n_cols":26,"rows_kept":92,"cut":false,"hidden":false,"merged":[[88,5,88,6],[89,1,89,2],[89,5,89,6],[88,1,88,3],[17,0,17,6],[86,1,86,2],[86,4,86,5],[9,0,9,1],[9,3,9,4],[9,5,9,6],[7,0,7,1],[7,3,7,4],[7,5,7,6],[8,0,8,1],[8,5,8,6],[8,3,8,4],[0,0,0,6],[4,0,5,6],[6,0,6,1],[6,3,6,4],[6,5,6,6],[1,0,1,6],[2,0,2,6],[3,0,3,6]]}
["FINANCIAMIENTO DE  VEHÍCULOS - Tabla de amortización",null,null,null,null,null,null,null,null,null,null,null,null,null,null,null,null,null,null,null,null,null,null,null,364171,1]
["Tabla simple de amortizaciones que cubre n períodos de pago de un préstamo.",null,null,null,null,null,null,null,null,null,null,null,null,null,null,null,null,null,null,null,null,null,null,null,365166,1]
["1) Para usar la tabla, simplemente cambie cualquiera de los valores en el área \"Datos iniciales\".",null,null,null,null,null,null,null,null,null,null,null,null,null,null,null,null,null,null,null,null,null,null,null,365167,1]
["2) Para imprimir la tabla, elija Imprimir en el menú Archivo. El área de impresión ya está definida.",null,null,null,null,null,null,null,null,null,null,null,null,null,null,null,null,null,null,null,null,null,null,null,365169,1]
["Datos iniciales",null,null,null,null,null,null,null,null,null,null,null,null,null,null,null,null,null,null,null,null,null,null,null,365181,1]
[null,null,null,null,null,null,null,null,null,null,null,null,null,null,null,null,null,null,null,null,null,null,null,null,365420,1]
["Monto:",null,{"$f":"+FORM!F100-FORM!F102","v":26483.5},"Nombre del Cliente:",null,{"$f":"CONCATENATE(FORM!Q35,\" \",FORM!Q33)","v":"ANA  CAROLINA DOMINGUEZ RUALES"},null,null,null,null,null,null,null,null,null,null,null,null,null,null,null,null,null,null,365422,1]
["Tasa de interés anual:",null,{"$f":"+FORM!F106","v":0.16059999999999999},"Cédula de Identidad:",null,{"$f":"+FORM!F39","v":"1234567890"},null,null,null,null,null,null,null,null,null,null,null,null,null,null,null,null,null,null,365425,1]
["Plazo, en años:",null,{"$f":"+FORM!F104","v":4},"Fecha del crédito:",null,{"$f":"+FORM!F8","v":"2018-05-21"},null,null,null,null,null,null,null,null,null,null,null,null,null,null,null,null,null,null,365427,1]
["Pagos por año:",null,12,"Vencimiento primer pago:",null,{"$f":"+F9+30","v":"2018-06-20"},null,null,null,null,null,null,null,null,null,null,null,null,null,null,null,null,null,null,365428,1]
[null,null,null,null,null,null,null,null,null,null,null,null,null,null,1,null,null,null,null,null,null,null,null,null,365023,1]
[null,null,null,null,null,null,null,null,null,null,null,null,null,null,1.5,null,null,null,null,null,null,null,null,null,365025,1]
[null,null,null,null,null,null,null,null,null,null,null,null,null,null,2,null,null,null,null,null,null,null,null,null,365026,1]
[null,"CUOTA MENSUAL",{"$f":"PMT(ROUNDDOWN((Tasa_interés_anual/360*365),4)/12,Plazo_en_años*Pagos_por_año,-Monto_préstamo)","v":754.35305704893517},null,"NUMERO DE CUOTAS:",{"$f":"Pagos_por_año*Plazo_en_años","v":48},null,null,{"$f":"+Pago_calculado*Pagos_por_año","v":9052.236684587222},null,null,null,null,null,3,null,null,null,null,null,null,null,null,null,364173,1]
[null,null,null,null,null,null,null,null,null,null,null,null,null,null,null,null,null,null,null,null,null,null,null,null,362620,1]
[null,"Usar el pago:",{"$f":"(IF(Pago_introducido=0,Pago_calculado,Pago_introducido))","v":754.35305704893517},null,null,{"$f":"\"Saldo inicial antes del pago: \"&TEXT(Núm_primer_pago,\"0\")&\":\"","v":"Saldo inicial antes del pago: 1:"},{"$f":"FV(Tasa_interés_anual/Pagos_por_año,Núm_primer_pago-1,Pago_a_usar,-Monto_préstamo)","v":26483.5},null,{"$f":"SUM(Saldo_inicial_tabla+G44)","v":33469.017394037073},null,{"$f":"+Pago_a_usar*Pagos_por_año*Plazo_en_años","v":36208.946738348888},null,null,null,null,null,null,null,null,null,null,null,null,null,362621,1]
[null,"Primer pago en la tabla:",1,null,null,{"$f":"\"Interés acumulado antes del pago: \"&TEXT(Núm_primer_pago,\"0\")&\":\"","v":"Interés acumulado antes del pago: 1:"},{"$f":"Pago_a_usar*(Núm_primer_pago-1)-(Monto_préstamo-Saldo_inicial_tabla)","v":0},null,null,null,{"$f":"+K16-Saldo_inicial_tabla","v":9725.4467383488882},null,null,null,"15 de c/mes",null,null,null,null,null,null,null,null,null,362062,1]
["Tabla",null,null,null,null,null,null,null,null,null,null,null,null,null,"30 de c/mes",null,null,null,null,null,null,null,null,null,364444,1]
[null,"Fecha de","Saldo",null,null,"Saldo","Interés",null,null,null,null,null,null,null,{"$f":"+B21-$F$9","v":30},{"$f":"+B21-F9","v":30},null,null,null,null,null,null,null,null,361349,1]
["Nº","Pago*","inicial","Interés","Capital","final","acumulado",null,null,null,null,null,null,null,30,30,null,null,null,null,null,null,null,null,364700,1]
[{"$f":"IF(Núm_primer_pago<Total_de_pagos,Núm_primer_pago,\"\")","v":1},{"$f":"Mostrar.fecha","v":"2018-06-20"},{"$f":"IF(A21<>\"\",IF(Saldo_inicial_tabla<0,0,Saldo_inicial_tabla),\"\")","v":26483.5},{"$f":"Interés","v":359.29281666666662},{"$f":"Capital","v":395.06024038226855},{"$f":"Saldo.final","v":26088.439759617733},{"$f":"IF(A21<>\"\",D21+Interés_previo_tabla,\"\")","v":359.29281666666662},null,{"$f":"+Pago_a_usar*25000","v":18858826.426223379},null,null,null,null,null,{"$f":"+O20-O19","v":0},{"$f":"+P20-P19","v":0},null,null,null,null,null,null,null,null,364703,1]
[{"$f":"Núm.pago","v":2},"2018-07-20",{"$f":"Saldo.inicial","v":26088.439759617733},{"$f":"Interés","v":353.93316607214723},{"$f":"Capital","v":400.41989097678794},25688.019868640946,{"$f":"Interés.acumulado","v":713.22598273881385},null,null,null,"ene",2001,null,null,{"$f":"+Monto_préstamo","v":26483.5},{"$f":"Monto_préstamo","v":26483.5},null,null,null,null,null,null,null,null,364717,1]
[3,"2018-08-20",25688.019868640946,{"$f":"Interés","v":348.50080288456212},405.85225416437305,25282.167614476573,1061.7267856233759,null,null,null,"feb",null,null,null,{"$f":"+Tasa_interés_anual","v":0.16059999999999999},{"$f":"Tasa_interés_anual","v":0.16059999999999999},null,null,null,null,null,null,null,null,364716,1]
[4,"2018-09-20",{"$f":"Saldo.inicial","v":25282.167614476573},{"$f":"Interés","v":342.99474063639883},411.35831641253634,24870.809298064036,1404.7215262597747,null,null,null,"mar",null,null,null,360,360,null,null,null,null,null,null,null,null,360138,1]
[5,"2018-10-20",24870.809298064036,{"$f":"Interés","v":337.41397947706872},416.93907757186645,24453.870220492168,1742.1355057368435,null,null,null,"abr",null,null,null,null,null,null,null,null,null,null,null,null,null,360218,1]
[6,"2018-11-20",24453.870220492168,{"$f":"Interés","v":331.75750599134375},422.59555105759142,24031.274669434577,2073.893011728187,null,null,null,"abr",null,null,null,null,null,null,null,null,null,null,null,null,null,360219,1]
[7,"2018-12-20",24031.274669434577,{"$f":"Interés","v":326.02429301532908},428.32876403360609,23602.945905400971,2399.9173047435161,null,null,null,"may",null,null,null,null,null,null,null,null,null,null,null,null,null,364170,16]
[8,"2019-01-20",23602.945905400971,{"$f":"Interés","v":320.21329944993983},434.13975759899535,23168.806147801977,2720.1306041934558,null,null,null,"jun",null,null,null,null,null,null,null,null,null,null,null,null,null,364234,16]
[9,"2019-02-20",23168.806147801977,{"$f":"Interés","v":314.32347007184683},440.02958697708834,22728.776560824888,3034.4540742653026,null,null,null,"jul",null,null,null,null,null,null,null,null,null,null,null,null,null,365147,16]
[10,"2019-03-20",22728.776560824888,{"$f":"Interés","v":308.35373534185766},445.99932170707751,22282.777239117811,3342.8078096071604,null,null,null,"jul",null,null,null,null,null,null,null,null,null,null,null,null,null,365168,16]
[11,"2019-04-20",22282.777239117811,{"$f":"Interés","v":302.30301121069834},452.05004583823683,21830.727193279574,3645.1108208178589,null,null,null,"ago",null,null,null,null,null,null,null,null,null,null,null,null,null,365421,16]
[12,"2019-05-20",21830.727193279574,{"$f":"Interés","v":296.17019892215956},458.18285812677561,21372.544335152797,3941.2810197400186,null,null,null,"sep",null,null,null,null,null,null,null,null,null,null,null,null,null,365423,16]
[13,"2019-06-20",21372.544335152797,{"$f":"Interés","v":289.95418481357297},464.39887223536221,20908.145462917437,4231.2352045535918,null,null,null,"oct",null,null,null,null,null,null,null,null,null,null,null,null,null,365424,16]
[14,"2019-07-20",20908.145462917437,{"$f":"Interés","v":283.65384011357986},470.69921693535531,20437.446245982082,4514.8890446671712,null,null,null,"nov",null,null,null,null,null,null,null,null,null,null,null,null,null,365429,16]
[15,"2019-08-20",20437.446245982082,{"$f":"Interés","v":277.26802073715692},477.08503631177825,19960.361209670304,4792.157065404328,null,null,null,"dic",null,null,null,null,null,null,null,null,null,null,null,null,null,365453,16]
[16,"2019-09-20",19960.361209670304,{"$f":"Interés","v":270.79556707786043},483.55748997107474,19476.80371969923,5062.9526324821882,null,null,null,"dic",null,null,null,null,null,null,null,null,null,null,null,null,null,365454,16]
[17,"2019-10-20",19476.80371969923,{"$f":"Interés","v":264.23530379725293},490.11775325168225,18986.685966447549,5327.1879362794407,null,null,null,"ene",2002,null,null,null,null,null,null,null,null,null,null,null,null,365001,16]
[18,"2019-11-20",18986.685966447549,{"$f":"Interés","v":257.58603961147173},496.76701743746344,18489.918949010083,5584.773975890912,null,null,null,"ene",null,null,null,null,null,null,null,null,null,null,null,null,null,365256,16]
[19,"2019-12-20",18489.918949010083,{"$f":"Interés","v":250.84656707490345},503.50648997403175,17986.412459036052,5835.6205429658157,null,null,null,"feb",null,null,null,null,null,null,null,null,null,null,null,null,null,364172,16]
[20,"2020-01-20",17986.412459036052,{"$f":"Interés","v":244.01566236092242},510.33739468801275,17476.075064348039,6079.6362053267385,null,null,null,"mar",null,null,null,null,null,null,null,null,null,null,null,null,null,364261,16]
[21,"2020-02-20",17476.075064348039,{"$f":"Interés","v":237.09208503965507},517.26097200928007,16958.814092338758,6316.7282903663936,null,null,null,"abr",null,null,null,null,null,null,null,null,null,null,null,null,null,363999,16]
[22,"2020-03-20",16958.814092338758,{"$f":"Interés","v":230.07457785272913},524.27847919620604,16434.535613142551,6546.8028682191225,null,null,null,"abr",null,null,null,null,null,null,null,null,null,null,null,null,null,362622,16]
[23,"2020-04-20",16434.535613142551,{"$f":"Interés","v":222.96186648496726},531.39119056396794,15903.144422578582,6769.7647347040902,null,null,null,"may",null,null,null,null,null,null,null,null,null,null,null,null,null,361329,16]
[24,"2020-05-20",15903.144422578582,{"$f":"Interés","v":215.75265933298274},538.60039771595245,15364.544024862629,6985.5173940370732,null,null,null,"jun",null,null,null,null,null,null,null,null,null,null,null,null,null,364701,16]
[25,"2020-06-20",15364.544024862629,{"$f":"Interés","v":208.44564727063633},545.90740977829887,14818.63661508433,7193.9630413077093,null,null,null,"jul",null,null,null,null,null,null,null,null,null,null,null,null,null,364702,16]
[26,"2020-07-20",14818.63661508433,{"$f":"Interés","v":201.03950341131073},553.31355363762441,14265.323061446705,7395.0025447190201,null,null,null,"jul",null,null,null,null,null,null,null,null,null,null,null,null,null,364719,16]
[27,"2020-08-20",14265.323061446705,{"$f":"Interés","v":193.53288286696031},560.82017418197483,13704.502887264731,7588.53542758598,null,null,null,"ago",null,null,null,null,null,null,null,null,null,null,null,null,null,364190,16]
[28,"2020-09-20",13704.502887264731,{"$f":"Interés","v":185.92442250389152},568.42863454504368,13136.074252719687,7774.4598500898719,null,null,null,"sep",null,null,null,null,null,null,null,null,null,null,null,null,null,364522,16]
[29,"2020-10-20",13136.074252719687,{"$f":"Interés","v":178.21274069523042},576.14031635370475,12559.933936365982,7952.6725907851023,null,null,null,"oct",null,null,null,null,null,null,null,null,null,null,null,null,null,360041,16]
[30,"2020-11-20",12559.933936365982,{"$f":"Interés","v":170.39643707003182},583.95661997890329,11975.977316387078,8123.0690278551338,null,null,null,"nov",null,null,null,null,null,null,null,null,null,null,null,null,null,361868,16]
[31,"2020-12-20",11975.977316387078,{"$f":"Interés","v":162.47409225898468},591.87896478995049,11384.098351597127,8285.5431201141182,null,null,null,"dic"]
[32,"2021-01-20",11384.098351597127,{"$f":"Interés","v":154.44426763666769},599.90878941226742,10784.18956218486,8439.9873877507853,null,null,null,"dic"]
[33,"2021-02-20",10784.18956218486,{"$f":"Interés","v":146.30550506030792},608.04755198862722,10176.142010196232,8586.2928928110923,null,null,null,"ene",2003]
[34,"2021-03-20",10176.142010196232,{"$f":"Interés","v":138.05632660499555},616.29673044393962,9559.8452797522932,8724.3492194160881,null,null,null,"ene"]
[35,"2021-04-20",9559.8452797522932,{"$f":"Interés","v":129.69523429530611},624.65782275362903,8935.1874569986649,8854.0444537113945,null,null,null,"feb"]
[36,"2021-05-20",8935.1874569986649,{"$f":"Interés","v":121.22070983328189},633.13234721565323,8302.0551097830121,8975.2651635446764,null,null,null,"mar"]
[37,"2021-06-20",8302.0551097830121,{"$f":"Interés","v":112.63121432272287},641.72184272621234,7660.3332670567997,9087.8963778673988]
[38,"2021-07-20",7660.3332670567997,{"$f":"Interés","v":103.92518798973725},650.42786905919797,7009.9053979976015,9191.8215658571353]
[39,"2021-08-20",7009.9053979976015,{"$f":"Interés","v":95.101049899500808},659.25200714943435,6350.653390848167,9286.9226157566354]
[40,"2021-09-20",6350.653390848167,{"$f":"Interés","v":86.157197669173456},668.19585937976171,5682.4575314684053,9373.0798134258093]
[41,"2021-10-20",5682.4575314684053,{"$f":"Interés","v":77.092007176921371},677.26104987201381,5005.1964815963911,9450.1718206027308]
[42,"2021-11-20",5005.1964815963911,{"$f":"Interés","v":67.903832266991046},686.44922478194417,4318.7472568144467,9518.075652869722]
[43,"2021-12-20",4318.7472568144467,{"$f":"Interés","v":58.591004450782663},695.76205259815254,3622.9852042162943,9576.6666573205039]
[44,"2022-01-20",3622.9852042162943,{"$f":"Interés","v":49.151832603867724},705.2012244450674,2917.7839797712268,9625.8184899243715]
[45,"2022-02-20",2917.7839797712268,{"$f":"Interés","v":39.584602658896308},714.76845439003887,2203.0155253811881,9665.4030925832685]
[46,"2022-03-20",2203.0155253811881,{"$f":"Interés","v":29.887577294338119},724.46547975459703,1478.5500456265911,9695.290669877606]
[47,"2022-04-20",1478.5500456265911,{"$f":"Interés","v":20.058995619000751},734.29406142993446,744.25598419665664,9715.3496654966075]
[48,"2022-05-20",744.25598419665664,{"$f":"Interés","v":10.097072852267976},744.25598419665664,0,9725.4467383488754]
["","","",{"$f":"Interés","v":""},"","",""]
["","","",{"$f":"Interés","v":""},"","",""]
["","","",{"$f":"Interés","v":""},"","",""]
["","","",{"$f":"Interés","v":""},"","",""]
["","","",{"$f":"Interés","v":""},"","",""]
["","","",{"$f":"Interés","v":""},"","",""]
["","","",{"$f":"Interés","v":""},"","",""]
["","","",{"$f":"Interés","v":""},"","",""]
["","","",{"$f":"Interés","v":""},"","",""]
["","","",{"$f":"Interés","v":""},"","",""]
["","","",{"$f":"Interés","v":""},"","",""]
["","","",{"$f":"Interés","v":""},"","",""]
[]
[]
[]
[]
[]
[]
[null,"FIRMA CLIENTE",null,null,"FIRMA CÓNYUGE"]
[]
["Nombre:",{"$f":"+F7","v":"ANA  CAROLINA DOMINGUEZ RUALES"},null,null,"Nombre:",{"$f":"IF(FORM!F63=0,\"\",CONCATENATE(FORM!Q65,\" \",FORM!Q63,\" \"))","v":"DAVID EDUARDO CLVACHE ONTANEDA "}]
["C.C.:",{"$f":"+FORM!F39","v":"1234567890"},null,null,"C.C.:",{"$f":"IF(FORM!F63=0,\"\",FORM!F67)","v":"1239876589"},null,null,null,null,"sep"]
[]
[null,"* Fecha a ser facturada en su estado de cuenta de la Tarjeta Diners Club."]

{"sheet":"COM VEND","index":10,"n_rows":33,"n_cols":2,"rows_kept":33,"cut":false,"hidden":false,"merged":[[32,0,32,1],[11,0,11,1],[17,0,31,0],[12,0,16,0]]}
[null,"FORMULARIO DE COMISIÓN PARA VENDEDORES"]
["Tipo de Compra","VEHÍCULO NUEVO"]
["Fecha de Compra",{"$f":"+FORM!F8","v":"2018-05-21"}]
["Nombre del Vendedor",{"$f":"+FORM!F27","v":"PEDRO SALINAS"}]
["Cédula de Identidad del Vendedor",{"$f":"+FORM!F29","v":"1524885547"}]
["Concesionario",{"$f":"+FORM!F13","v":"AUTOMOTORES CONTINENTAL"}]
["Ciudad",{"$f":"+FORM!F25","v":"PORTOVIEJO"}]
["Nro. de tarjeta del socio",{"$f":"CONCATENATE(FORM!F146,FORM!L146)","v":"36502325370040"}]
["Nombre del Socio",{"$f":"FORM!Q37","v":"ANA  CAROLINA DOMINGUEZ RUALES"}]
["Valor del Vale",{"$f":"+'PAG ORD'!D5","v":36208.946738348888}]
["Plazo",{"$f":"+FORM!F104*12","v":48}]
["CHECK LIST DE DOCUMENTOS (Confirme que esté enviando completa la documentación)"]
["Documentos para entregar al Socio","Carta AIG"]
[null,"Certificado de Cobertura Provisional"]
[null,"Certificado de Seguro Colectivo Vida Deudores"]
[null,"1 Solicitud - Certificado Seguro de Desgravamen"]
[null,"Orden de instalación de dispositivos de rastreo (si aplica)"]
["Documentos para entregar Diners Club","4 Contratos de Reserva de Dominio"]
[null,"4 Cesiones de Derecho"]
[null,"1 Pagaré"]
[null,"1 Declaración Unico Vehículo  Uso familiar."]
[null,"3 Autorización de Cargo "]
[null,"3 Contrato de Adhesión"]
[null,"4 Tabla de Amortización"]
[null,"Solicitud de Seguro Vehículo"]
[null,"Solicitud de Seguro Desgravamen"]
[null,"3 Fiel Copia de la Factura del Vehículo"]
[null,"3 Copia de Cédula del Socio"]
[null,"3 Copia de Cédula del Cónyuge"]
[null,"Voucher lleno con el número de autorización y Recap."]
[null,"1 Solicitud - Certificado Seguro de Desgravamen"]
[null,"Formulario de dispositivo de rastreo (si aplica)"]
["POR FAVOR ADJUNTE ESTE FORMULARIO A LOS CONTRATOS Y DEMÁS DOCUMENTOS QUE REMITE A DINERS CLUB."]

{"sheet":"CO RE DOM 48","index":11,"n_rows":126,"n_cols":36,"rows_kept":126,"cut":false,"hidden":false,"merged":[[9,0,9,36],[6,0,6,14],[6,15,6,36],[7,0,7,18],[7,20,7,27],[12,0,12,36],[10,19,10,35],[11,0,11,4],[7,28,7,36],[8,21,8,36],[0,0,1,36],[3,0,3,5],[3,6,3,15],[3,16,3,17],[3,35,3,36],[3,30,3,34],[3,25,3,29],[3,19,3,24],[8,0,8,20],[4,0,4,9],[4,10,4,28],[4,29,4,36],[5,0,5,7],[5,8,5,31],[5,32,5,36],[20,0,20,36],[22,0,22,9],[22,11,22,36],[23,0,23,9],[23,11,23,36],[24,0,24,9],[24,11,24,36],[10,0,10,17],[18,0,18,36],[11,28,11,36],[13,0,13,17],[11,5,11,15],[11,17,11,27],[16,0,16,36],[13,18,13,25],[13,27,13,36],[14,0,14,18],[14,19,14,27],[14,28,14,36],[15,0,15,19],[15,20,15,36],[25,0,25,9],[25,11,25,36],[26,0,26,9],[26,11,26,36],[27,0,27,9],[27,11,27,36],[28,0,28,9],[28,11,28,36],[29,0,29,9],[29,11,29,36],[37,0,37,36],[30,0,30,9],[30,11,30,36],[31,0,31,9],[31,11,31,36],[32,0,32,9],[32,11,32,36],[34,0,34,36],[36,0,36,36],[47,0,47,36],[52,0,52,36],[51,0,51,7],[38,0,38,1],[38,2,38,6],[38,8,38,36],[39,0,39,7],[39,8,39,9],[39,10,39,36],[40,0,40,36],[42,0,42,29],[42,30,42,34],[42,35,42,36],[43,0,43,29],[43,30,43,32],[43,33,43,36],[44,0,44,6],[45,30,45,36],[46,0,46,36],[45,0,45,10],[45,11,45,13],[45,14,45,24],[45,25,45,29],[62,0,62,36],[59,0,59,5],[59,6,59,14],[61,0,61,36],[58,10,58,36],[58,0,58,9],[48,0,48,36],[50,0,50,36],[51,8,51,16],[51,17,51,21],[57,0,57,36],[55,0,55,36],[53,0,53,36],[49,0,49,19],[49,20,49,21],[51,22,51,36],[122,9,122,35],[94,0,94,36],[86,0,86,36],[92,0,92,36],[85,0,85,36],[82,0,82,36],[91,0,91,36],[93,0,93,7],[93,8,93,36],[125,0,125,8],[123,9,123,36],[124,9,124,255],[125,9,125,36],[122,0,122,8],[84,0,84,36],[124,0,124,8],[115,0,115,8],[101,9,101,36],[102,9,102,36],[103,9,103,36],[113,9,113,36],[101,0,101,8],[104,0,104,36],[103,0,103,8],[102,0,102,8],[123,0,123,8],[105,0,105,36],[112,9,112,36],[115,9,115,36],[114,9,114,36],[112,0,112,8],[113,0,113,8],[114,0,114,7],[79,0,79,36],[76,0,76,36],[49,22,49,36],[54,0,54,36],[90,0,90,36],[88,0,88,36],[81,0,81,36],[80,0,80,36],[89,0,89,36],[87,0,87,36],[78,0,78,36],[77,0,77,36],[73,0,73,36],[74,0,74,36],[75,0,75,36],[70,0,70,36],[71,0,71,36],[72,0,72,36],[68,0,68,36],[69,0,69,36],[63,0,63,36],[67,0,67,36],[64,0,64,36],[65,0,65,36]]}
["CONTRATO DE  VENTA CON RESERVA DE DOMINIO"]
[]
[]
["En la ciudad de",null,null,null,null,null,{"$f":"+FORM!F25","v":"PORTOVIEJO"},null,null,null,null,null,null,null,null,null,", a los ",null,{"$f":"+FORM!F8","v":"2018-05-21"},"días del mes de ",null,null,null,null,null,{"$f":"+S4","v":"2018-05-21"},null,null,null,null,"del año ",null,null,null,null,{"$f":"+Z4","v":"2018-05-21"}]
["comparecen, por una parte,",null,null,null,null,null,null,null,null,null,{"$f":"+FORM!F13","v":"AUTOMOTORES CONTINENTAL"},null,null,null,null,null,null,null,null,null,null,null,null,null,null,null,null,null,null,", legalmente  representada"]
["por  el (la) señor(ita-a)",null,null,null,null,null,null,null,{"$f":"+FORM!F15","v":"GERARDO DORFFLINGER"},null,null,null,null,null,null,null,null,null,null,null,null,null,null,null,null,null,null,null,null,null,null,null,", de nacionalidad"]
[{"$f":"FORM!F17","v":"ECUATORIANO"},null,null,null,null,null,null,null,null,null,null,null,null,null,null,", en su calidad de Representante  Legal  y/o   Apoderado  Especial del"]
["Representante  Legal, con  domicilio  principal  en  la  ciudad de",null,null,null,null,null,null,null,null,null,null,null,null,null,null,null,null,null,null,null,{"$f":"FORM!F25","v":"PORTOVIEJO"},null,null,null,null,null,null,null,", en la dirección "]
[{"$f":"FORM!F23","v":"AV 10 DE AGOSTO Y AV GASPAR DE VILLAROEL ESQUINA"},null,null,null,null,null,null,null,null,null,null,null,null,null,null,null,null,null,null,null,null,", parte  a la  que  en  adelante y para efectos de este"]
["contrato  se  podrá  denominar  también  como  “VENDEDORA”  o “ACREEDORA”; y por otra, el(la-los) señor(ita-a-es)  "]
[{"$f":"FORM!Q37","v":"ANA  CAROLINA DOMINGUEZ RUALES"},null,null,null,null,null,null,null,null,null,null,null,null,null,null,null,null,null,"y",{"$f":"IF(FORM!$F$65=0,\" \",CONCATENATE(FORM!F65,\" \",FORM!L65,\" \",FORM!F63,\" \",FORM!L63))","v":"DAVID EDUARDO CLVACHE ONTANEDA"}]
["de nacionalidad ",null,null,null,null,{"$f":"FORM!F41","v":"ECUATORIANA"},null,null,null,null,null,null,null,null,null,null,"y",{"$f":"FORM!F69","v":"COLOMBIANO"},null,null,null,null,null,null,null,null,null,null,"respectivamente,"]
["por sus propios y personales derechos y (por los que representan en la sociedad conyugal  que tienen  formada por el"]
["vínculo del matrimonio),  de profesión  u  ocupación ",null,null,null,null,null,null,null,null,null,null,null,null,null,null,null,null,null,{"$f":"FORM!F57","v":"INGENIRA"},null,null,null,null,null,null,null," y ",{"$f":"FORM!F73","v":"INGENIERO"}]
["respectivamente,    domiciliado (a-o-s)    en    la    ciudad    de",null,null,null,null,null,null,null,null,null,null,null,null,null,null,null,null,null,null,{"$f":"FORM!F47","v":"PORTOVIEJO"},null,null,null,null,null,null,null,null,", en la dirección"]
[{"$f":"FORM!F45","v":"AV PEDRO DE ALVARADO N56-72 Y CARLOS V"},null,null,null,null,null,null,null,null,null,null,null,null,null,null,null,null,null,null,null,"a  quien(es) en adelante y para los  efectos de este"]
["contrato se podrá denominar también como “DEUDOR(A-ES)” O “COMPRADOR(A-ES)”."]
[]
["PRIMERA.- ANTECEDENTES: a) La VENDEDORA, es una sociedad legalmente constituida bajo el amparo de  las  leyes ecuatorianas, dedicada  a la venta  y  distribución de vehículos,  y es legítima  y  única propietaria del vehículo  cuyas características se detallan más adelante. b) El (La-Los) COMPRADOR(A-ES),  ha(n) manifestado su deseo de adquirir  el vehículo descrito en  este instrumento,  mediante compra a plazo,  por el cual la propiedad del mismo  se  la  reservará la  VENDEDORA hasta  la  total  cancelación  de  las  obligaciones  adquiridas  por  el(la-los) COMPRADOR(A-ES)."]
[]
["SEGUNDA.-  OBJETO:  La VENDEDORA,  reservándose el dominio para sí,  vende en virtud de este contrato en favor de(l) (la-los) COMPRADOR(A-ES), quien(es) a su vez compra(n) y recibe(n) en esta fecha a su entera y total satisfacción, el VEHÍCULO de las características que se detallan a continuación:"]
[]
["MARCA:                   ",null,null,null,null,null,null,null,null,null,null,{"$f":"+FORM!F77","v":"MAZDA"}]
["CLASE:",null,null,null,null,null,null,null,null,null,null,{"$f":"+FORM!F81","v":"AUTOMOVIL"}]
["TIPO:",null,null,null,null,null,null,null,null,null,null,{"$f":"+FORM!F84","v":"SEDAN"}]
["AÑO DE FABRICACIÓN:",null,null,null,null,null,null,null,null,null,null,{"$f":"+FORM!F86","v":2019}]
["MODELO:",null,null,null,null,null,null,null,null,null,null,{"$f":"+FORM!F79","v":"CX3"}]
["PAÍS DE ORIGEN:",null,null,null,null,null,null,null,null,null,null,{"$f":"+FORM!F94","v":"KOREA"}]
["MOTOR:",null,null,null,null,null,null,null,null,null,null,{"$f":"+FORM!F90","v":"BU456792826RE7"}]
["CHASIS:",null,null,null,null,null,null,null,null,null,null,{"$f":"+FORM!F92","v":"CG5342892U"}]
["COLOR:",null,null,null,null,null,null,null,null,null,null,{"$f":"+FORM!F88","v":"ROJO"}]
["TONELAJE:",null,null,null,null,null,null,null,null,null,null,{"$f":"+FORM!F96","v":"0,45"}]
["CILINDRAJE:",null,null,null,null,null,null,null,null,null,null,{"$f":"+FORM!F98","v":"2000"}]
[]
["Al  bien anteriormente  especificado,  para  los  efectos  del  presente contrato,  se lo podrá denominar simplemente el “VEHICULO”.  La indicada reserva de dominio subsistirá  para  asegurar el pago de la  deuda contraída  en atención de este  contrato por el(la-los) DEUDOR(A-ES) a favor de la VENDEDORA por la compra del VEHICULO,  y  luego asegurará  el pago de dichos valores a BANCO DINERS CLUB DEL ECUADOR S.A., a favor de la cual  la VENDEDORA cederá oportunamente este contrato.  La reserva de dominio se mantendrá vigente  hasta que  se haya cancelado la totalidad del precio,  impuestos,  intereses correspondientes  y  demás valores que llegare(n) el(la-los) COMPRADOR(A-ES) a  adeudar a la VENDEDORA."]
[]
["Cedido el presente contrato a BANCO DINERS CLUB DEL ECUADOR S.A.,  asumirá todos los derechos y  obligaciones de la VENDEDORA, en consecuencia cuando en este contrato se estipule o se mencione a la VENDEDORA,  una vez cedido el presente contrato,   se entenderá como  BANCO DINERS CLUB DEL ECUADOR S.A."]
["TERCERA.-    PRECIO:    El  precio al contado del  VEHICULO,     especificado en la cláusula precedente es de "]
["US$ ",null,{"$f":"+FORM!F100","v":34483.5},null,null,null,null,".","Como el(la-los) COMPRADOR(A-ES) no puede(n) satisfacerlo de contado, conviene(n) en "]
["pagarlo  en  el  plazo de",null,null,null,null,null,null,null,{"$f":"+FORM!F104*12","v":48},null,"meses, acudiendo a la intermediación financiera de BANCO DINERS CLUB DEL"]
["ECUADOR S.A., en adelante “DINERS”,  por lo cual la cancelación del precio, se realizará de la siguiente forma:"]
[]
["a)  A la suscripción del presente contrato, por concepto de la cuota inicial, la suma de US$",null,null,null,null,null,null,null,null,null,null,null,null,null,null,null,null,null,null,null,null,null,null,null,null,null,null,null,null,null,{"$f":"+FORM!F102","v":8000},null,null,null,null,"que la "]
["VENDEDORA  declara  recibirlos  a  su  entera  satisfacción,  dicha  suma  corresponde  al ",null,null,null,null,null,null,null,null,null,null,null,null,null,null,null,null,null,null,null,null,null,null,null,null,null,null,null,null,null,{"$f":"+Cotizador!$AU$83","v":0.23199501210723969},null,null,"del valor total "]
["del VEHICULO;"]
["b) Al saldo,  que  comprende  al ",null,null,null,null,null,null,null,null,null,null,{"$f":"+Cotizador!$AV$83","v":0.76800498789276028},null,null,"restante, esto es el valor de US$",null,null,null,null,null,null,null,null,null,null,{"$f":"+Cotizador!$AW$83","v":26483.5},null,null,null,null,",   se  le   sumarán  los"]
["intereses legales acorde a la tasa dispuesta por la Autoridad Monetaria pertinente, por lo que no habrá reajustes de "]
["intereses a la tabla de amortización correspondiente."]
["c) El pago incondicional e irrevocable del presente crédito, al que se obliga el(la-los) COMPRADOR(A-ES) a través de este"]
["instrumento, a favor de la VENDEDORA, se hará mediante",null,null,null,null,null,null,null,null,null,null,null,null,null,null,null,null,null,null,null,{"$f":"+FORM!F104*12","v":48},null,"dividendos  mensuales  de  conformidad  con la"]
["tabla de amortización adjunta, la misma que suscrita por  los comparecientes, formará parte integrante de este contrato, "]
["venciendo la primera el",null,null,null,null,null,null,null,{"$f":"+'TAB AMORT'!F10","v":"2018-06-20"},null,null,null,null,null,null,null,null,"y la última el ",null,null,null,null,{"$f":"IF(FORM!F104=1,'TAB AMORT'!B32)+IF(FORM!F104=2,'TAB AMORT'!B44)+IF(FORM!F104=3,'TAB AMORT'!B56)+IF(FORM!F104=4,'TAB AMORT'!B68)+IF(FORM!F104=5,'TAB AMORT'!B80)","v":"2022-05-20"}]
["y para el efecto suscribirá el correspondiente pagaré a la orden."]
[]
["Los gastos  legales,   administrativos y del seguro del vehículo,  deberán ser cancelados por el (la-los) COMPRADOR"]
[" (A-ES) al VENDEDOR. \""]
[]
["CUARTA.-   RECEPCION  Y  UBICACION  DEL  BIEN  VENDIDO: La  VENDEDORA  entrega  al(los) COMPRADOR(A-ES),  el VEHICULO objeto de este contrato en perfecto estado de funcionamiento,  mecánico y pintura.   Sin perjuicio de la indicada reserva de dominio,   el (la-los)  COMPRADOR(A-ES)  asume(n)  desde  este momento de manera incondicional e irrevocable los riesgos generados por el uso,   conservación,   mantenimiento y tenencia del VEHICULO. El(La-Los) COMPRADOR(A-ES) declaran que ha(n) recibido el VEHICULO materia del presente contrato en perfectas condiciones y a su entera satisfacción y se obliga(n) a conservarlo en buen estado, salvo los deterioros normales  por el uso particular, normal y ordinario al que se destina este tipo de bienes y a mantenerlo en su domicilio, en la siguiente dirección: "]
["su domicilio, situado en las calles",null,null,null,null,null,null,null,null,null,{"$f":"+FORM!F45","v":"AV PEDRO DE ALVARADO N56-72 Y CARLOS V"}]
["en la ciudad de ",null,null,null,null,null,{"$f":"+FORM!F47","v":"PORTOVIEJO"}]
[]
["QUINTA.-   OBLIGACIONES  DEL (LA-LOS)   COMPRADOR(A-ES):   Sin perjuicio de las obligaciones del (la-los)   COMPRADOR(A-ES)   previstas   en   el   presente   contrato,  éste(os)   se   obliga(n)   incondicional   e irrevocablemente a lo siguiente:\na) A notificar debidamente por escrito a la VENDEDORA,  el cambio de domicilio o residencia,  a más tardar, dentro de ocho días posteriores a dicho hecho;\nb) A comunicar a la VENDEDORA,  cualquier medida preventiva o de ejecución que judicialmente se intentare sobre el VEHICULO, con el objeto de que la VENDEDORA pueda hacer valer sus derechos;"]
["c) A no verificar contrato alguno de venta,   permuta,   arrendamiento,  prenda o comodato sobre el VEHICULO,  sin haber pagado la totalidad del precio y todos los valores que llegue(n) a adeudar a la VENDEDORA, salvo el caso de que la VENDEDORA por intermedio de su representante legal, le(s) autorizare(n) expresamente por escrito para ello; el incumplimiento a esta obligación acarreará las consecuencias previstas en el artículo octavo innumerado, Sección V, de la Venta con Reserva de Dominio, Título Segundo del Código de Comercio;"]
["d) A no sacar en ningún caso fuera del país el VEHICULO objeto de este contrato,   ni entregarlo a terceras personas, sin autorización expresa del Representante Legal de la VENDEDORA;"]
["e) A permitir y brindar facilidades para que la VENDEDORA, inspeccione el VEHICULO cuando lo crea conveniente con cargo y costa del (la-los) COMPRADOR(A-ES); y,"]
["f) Las  demás obligaciones constantes en la Sección V, de la Venta con Reserva de Dominio, Título Segundo del Código de Comercio."]
[]
["SEXTA.- RESERVA DE DOMINIO.-  La VENDEDORA  se  reserva  el  dominio del VEHICULO  vendido  en virtud de este contrato hasta que el(la-los)  COMPRADOR(A-ES)  haya(n)  pagado la totalidad de las obligaciones contraídas.  El(La-Los) COMPRADOR(A-ES) adquirirá(n) el dominio,  esto es,  será(n) dueño(s) de la cosa vendida, únicamente cuando haya(n)  pagado la totalidad de las obligaciones, y podrá(n) entonces solicitar a la VENDEDORA le(s) otorgue el correspondiente título de propiedad. Sin embargo, el(la- los)  COMPRADOR(A-ES) asume(n)  los riesgos de la cosa a partir de la presente fecha por haberla recibido de la VENDEDORA."]
["SEPTIMA.-  VENCIMIENTO DEL PLAZO.-  La VENDEDORA tendrá pleno derecho para dar por vencido el plazo del presente contrato y exigir el pago de la totalidad de las obligaciones de  el(la-los) COMPRADOR(A-ES) y/o solicitar la devolución del VEHICULO.   El(Los-La)  COMPRADOR(A-ES)  renuncia(n) al   beneficio  de  plazo  que  se  le(s)  haya  otorgado,   reservándose la VENDEDORA el derecho de proceder como si toda la deuda se encontrare de plazo vencido, en los siguientes casos:"]
["a) Si el(la-los) COMPRADOR(A-ES), vendiere(n) o enajenare(n) o gravare(n) u ocultare(n) su tenencia a terceros, bien por su propia voluntad o  por  disposición  de  otras  personas,  o si el VEHICULO sufriere daños o deterioros, no cumpliere(n) con el compromiso de pago que asume(n) en virtud de las cláusulas de este contrato;"]
["b) Si alguno de los acreedores de(l)  (la-los) COMPRADOR(A-ES),  llegare(n) a constituir sobre uno cualesquiera de sus bienes providencias  precautorias o de ejecución, tales como embargos,   secuestros,   retenciones  o  prohibiciones de enajenar, o les iniciare(n) juicio de insolvencia o se le(s) declarare en quiebra;"]
["c) Si el(las-los)  COMPRADOR(A-ES)  dejare(n)  de  pagar,  a la fecha exacta  del  vencimiento,  una o parte de una cualesquiera de las cuotas;"]
["d) Si el(la-los) COMPRADOR(A-ES) adeudare(n) a personas naturales o jurídicas que gocen, de acuerdo con la ley, de mejor privilegio en la prelación de créditos,   de tal suerte que a juicio de la VENDEDORA se ponga en peligro la efectividad de la preferencia del crédito a favor de la VENDEDORA;"]
["e) Si el(la-los) COMPRADOR(A-ES) no cumpliere(n) o retardare(n) el cumplimiento de cualquiera de las obligaciones estipuladas en las cláusulas de este contrato;"]
["f) Si el(la-los)  COMPRADOR(A-ES)  se constituye(n) en fiador(es) o deudor(es) de personas sujetas a jurisdicción coactiva;"]
["g) Si  el(la-los)  COMPRADOR(A-ES)  suspendiere(n)  los  trabajos a los que actualmente se dedica(n),  bien por su voluntad o por disposición de terceros; \nh) Si  un  conflicto  individual  o  colectivo  de  trabajo  amenazare,   a  criterio  de  la  VENDEDORA,   el  normal desenvolvimiento de los negocios de el(la-los) COMPRADOR(A-ES);\ni) Si se iniciare acción judicial en contra del(la-los) COMPRADOR(A-ES), en relación con el vehículo objeto del presente contrato; "]
["j) Si, al solo criterio de la VENDEDORA, el(la-los) COMPRADOR(A-ES) estuvieren en riesgo de ser declarado(s) en quiebra, insolvencia o liquidación;\nk) Si el (la-los) COMPRADOR(A-ES), de estar casados o tener unión de hecho, disolviere(n) la sociedad conyugal o de bienes que tienen formada entre sí;\nl) Si el (la-los) COMPRADOR(A-ES) fuere(n) puesto(s) en interdicción de administrar sus bienes;"]
["m) Si el(la-los)  COMPRADOR(A-ES)  no usare(n)  o  conservare(n)  el VEHICULO con el debido cuidado, o si se apartare(n) de las instrucciones que para el efecto le(s) ha dado la VENDEDORA; \nn) Si el (la-los) COMPRADOR(A-ES) se viere(n) involucrado(s) en tráfico de sustancias psicotrópicas y estupefacientes o en lavado de activos;\no) Si el (la-los) COMPRADOR(A-ES) no estuviere(n) al día en sus obligaciones con el Instituto Ecuatoriano de Seguridad Social;"]
["p) Si se comprobare que hubo falsedad por parte del (la-los) COMPRADOR(A-ES) en los estados financieros, si los tuviere(n);\nq) La VENDEDORA podrá además iniciar su acción de cobro contra el (la-los) COMPRADOR(A-ES) en caso de que este (a-os) sea(n) admitido (a-os) a concurso preventivo;  \nr) En los demás casos establecidos en la legislación  u  otros que en su oportunidad la VENDEDORA determine unilateralmente."]
["En todos estos casos,  la VENDEDORA podrá en cualquier momento ejercer cualquier acción o acciones legales que le competen para el cobro de la totalidad de las obligaciones que le correspondan."]
["OCTAVA.- SEGURO.- El (La-Los) COMPRADOR(A-ES) está(n) obligado(s) a contratar un seguro sobre el VEHÍCULO objeto de este contrato, así como un seguro de vida o de desgravamen por cuenta, cargo, riesgo y orden del tarjetahabiente principal, y cuya contratación la podrá hacer por intermedio de BANCO DINERS CLUB DEL ECUADOR S.A. o por cuenta propia. Dichos  seguros tendrán como beneficiario a BANCO DINERS CLUB DEL ECUADOR S.A. Si eventualmente llegare a reclamarse el pago de los montos asegurados, los valores correspondientes se imputarán al crédito de financiamiento vehicular otorgado por  BANCO DINERS CLUB DEL ECUADOR S.A., y cubrirán incluso los valores pendientes de pago de los consumos corrientes y diferidos realizados con su tarjeta de crédito Diners Club. En el caso de haber remanente, éste será entregado a los sucesores o herederos declarados como tales mediante los documentos legales correspondientes."]
["Las pólizas deberán permanecer vigentes hasta la cancelación total de las obligaciones contraídas por el (la-los) COMPRADOR(A-ES). Los gastos en que incurra BANCO DINERS CLUB DEL ECUADOR S.A. por la consecución de los antedichos seguros serán cubiertos por el (la-los) COMPRADOR(A-ES) en forma mensual, conjuntamente con la cuota que le(es) corresponda cancelar por el VEHÍCULO, obligándose además a pagar los intereses de mora en caso de retraso a partir de la fecha de vencimiento de la obligación, según las liquidaciones que para el efecto elaborará BANCO DINERS CLUB DEL ECUADOR S.A. (la-los) COMPRADOR(A-ES) autorizará(n) incondicional e irrevocablemente para que, en caso de siniestro, su valor se abone a las obligaciones que por este contrato adquiere(n)."]
["NOVENA.- MATRÍCULA: El (La-Los) COMPRADOR(A-ES) se obliga(n) a  matricular de conformidad con las disposiciones legales vigentes el VEHICULO  materia del  presente contrato, en el  plazo de treinta días a partir  de la presente fecha, y a entregar en forma inmediata una copia de la matrícula a la VENDEDORA y al CESIONARIO de este contrato, y hará lo propio en los años siguientes hasta el pago total de las obligaciones contraídas."]
[]
["DECIMA.-  INDEMNIZACION:  En cualquiera de los casos especificados en las cláusulas anteriores,  cuando la VENDEDORA  dé por terminado anticipadamente el plazo del presente contrato,   quedarán en beneficio de la VENDEDORA las cuotas parciales canceladas por el(la-los)  COMPRADOR(A-ES), cuyo valor  no  podrá  exceder  de  la tercera parte del precio a crédito del VEHICULO,  incluida la cuota de contado. Se estipula asimismo que quedarán en beneficio de la VENDEDORA  los  aumentos o mejoras que por cualquier concepto se hubieren adherido o incorporado al VEHICULO, todo lo cual de conformidad con los artículos innumerados noveno y décimo primero de la Sección V, de la Venta con Reserva de Dominio, Título Segundo del Código de Comercio, pudiendo también la VENDEDORA pedir que se disponga y proceda con el remate del VEHICULO, o que se disponga su adjudicación."]
["DECIMA PRIMERA.- NOTIFICACIÓN Y ACEPTACIÓN DE CESIÓN: El(Los) DEUDOR(ES) o COMPRADOR(ES), según corresponda, y su(s) Garante(s), de haberlo(s), que suscriben el presente contrato, acepta(n) desde luego que el VENDEDOR o ACREEDOR pueda realizar la(s) cesión(es) del presente Contrato de Venta con Reserva de Dominio a su sola discreción y conveniencia, por lo cual se da(n) por notificado(s) de la(s) misma(s). En tal virtud, la(s) cesión(es) que se realice(n) surtirá(n) pleno efecto respecto al DEUDOR(ES) o COMPRADOR(ES) y su(s) Garante(s) y contra terceros, y será(n) informada(s) al DEUDOR(ES) o COMPRADOR(ES) por los medios que el VENDEDOR o ACREEDOR considere apropiado."]
["DECIMA SEGUNDA.- CONSIDERACIONES ADICIONALES"]
["1. APLICABILIDAD: Si alguna estipulación de este contrato o su aplicación llegare a ser considerada como  inválida,  inoperativa,  o  inaplicable,  esto no  significará la inaplicabilidad de todo el contrato,  sino únicamente de la estipulación que corresponda."]
["2. ENCABEZAMIENTOS: Los  títulos o encabezamientos  contenidos en este contrato   son únicamente referenciales, y no afectarán en ningún modo el contenido o interpretación de cada cláusula o del contrato en general."]
["3. LEGISLACION APLICABLE:  En todo lo que no se encuentre estipulado en este contrato,  las partes convienen en que sean aplicadas las disposiciones pertinentes del Código de Comercio,   Código Civil,   Código Orgánico Integral Penal, y demás disposiciones orgánicas y ordinarias de la legislación de la República del Ecuador."]
["4. DECLARACION LICITA DE FONDOS: Todos los valores que destine(n) el(los) COMPRADOR(A-ES)(ES) para  cumplir  las  obligaciones  que  emanan  del  presente  contrato,   provendrán de actividades lícitas o morales,   y en consecuencia no  serán  de  ninguna  actividad  relacionada  con  la  producción,    consumo,  comercialización, transporte  de  sustancias  estupefacientes  y  psicotrópicas,  o cualquier otra actividad tipificada en la Ley de Sustancias Estupefacientes y Psicotrópicas."]
["DECIMA TERCERA.- JURISDICCION Y COMPETENCIA: Para el caso de controversia relacionadas con la "]
["interpretación  o  cumplimiento  del  presente  contrato,  las  partes  renuncian  domicilio  y fijan el suyo en la ciudad de "]
[{"$f":"G4","v":"PORTOVIEJO"},null,null,null,null,null,null,null,"y  se someten a  la  jurisdicción  de  sus  jueces  y  al trámite legal que escoja el actor de la acción."]
["DECIMA CUARTA.-   ACEPTACION:   Las partes aceptan y ratifican en todos sus términos las estipulaciones constantes en las cláusulas precedentes, en razón de lo cual firman en unidad de acto, en cuatro ejemplares de igual tenor y valor, en la ciudad y fecha indicadas, comprometiéndose a reconocer sus firmas y rúbricas al pie del presente contrato."]
[]
[]
[]
[]
["f.)"]
[]
["NOMBRE:",null,null,null,null,null,null,null,null,{"$f":"+FORM!F15","v":"GERARDO DORFFLINGER"}]
["CARGO:",null,null,null,null,null,null,null,null,{"$f":"+FORM!F19","v":"GERENTE GENERAL"}]
["RUC:",null,null,null,null,null,null,null,null,{"$f":"+FORM!F21","v":"1713882247001"}]
["REPRESENTANTE LEGAL Y/O "]
["APODERADO ESPECIAL DEL REPRESENTANTE LEGAL"]
[]
[]
[]
[]
["f.)"]
[]
["NOMBRE:",null,null,null,null,null,null,null,null,{"$f":"CONCATENATE(FORM!Q35,\" \",FORM!Q33)","v":"ANA  CAROLINA DOMINGUEZ RUALES"}]
["DIREC.:",null,null,null,null,null,null,null,null,{"$f":"+FORM!F45","v":"AV PEDRO DE ALVARADO N56-72 Y CARLOS V"}]
["C.C.",null,null,null,null,null,null,null,null,{"$f":"+FORM!F39","v":"1234567890"}]
["COMPRADOR"]
[]
[]
[]
[]
["f.)"]
[]
["NOMBRE CÓNYUGE:",null,null,null,null,null,null,null,null,{"$f":"+T11","v":"DAVID EDUARDO CLVACHE ONTANEDA"}]
["DIREC.:",null,null,null,null,null,null,null,null,{"$f":"IF(FORM!F63=0,\"\",J114)","v":"AV PEDRO DE ALVARADO N56-72 Y CARLOS V"}]
["C.C.",null,null,null,null,null,null,null,null,{"$f":"IF(FORM!F63=0,\"\",FORM!F67)","v":"1239876589"}]
["COMPRADOR"]

{"sheet":"PAG ORD","index":12,"n_rows":51,"n_cols":26,"rows_kept":51,"cut":false,"hidden":false,"merged":[[48,4,48,12],[48,14,48,25],[42,12,42,19],[47,4,47,12],[47,14,47,25],[42,7,42,11],[33,4,33,12],[33,14,33,25],[32,4,32,12],[20,0,20,25],[24,0,24,25],[22,0,22,25],[32,14,32,25],[21,1,21,4],[26,11,26,16],[13,0,13,25],[16,0,16,25],[15,0,15,25],[18,0,18,25],[8,23,8,25],[9,13,9,15],[10,15,10,19],[10,22,10,24],[11,19,11,20],[11,13,11,16],[1,0,1,25],[2,0,2,25],[4,3,4,8],[6,0,6,25],[7,4,7,8],[7,21,7,25]]}
[]
["PAGARE A LA ORDEN"]
["(Con vencimientos sucesivos)"]
[]
["POR: USD$",null,null,{"$f":"(X9*N10)","v":36208.946738348888}]
[]
["Debo (emos) y pagaré (mos) solidaria e incondicionalmente a la orden de BANCO DINERS CLUB DEL ECUADOR S.A.,"]
["en la ciudad de",null,null,null,{"$f":"+H27","v":"PORTOVIEJO"},null,null,null,null,",o en el lugar donde me(nos) reconvenga, la cantidad de",null,null,null,null,null,null,null,null,null,null,null,{"$f":"+D5","v":36208.946738348888}]
["DOLARES DE LOS ESTADOS UNIDOS DE AMERICA obligándome(nos) a pagar irrevocablemente",null,null,null,null,null,null,null,null,null,null,null,null,null,null,null,null,null,null,null,null,"en",null,{"$f":"+FORM!F104*12","v":48}]
["cuotas mensuales cuotas mensuales iguales y sucesivas de US$",null,null,null,null,null,null,null,null,null,null,null,null,{"$f":"+'TAB AMORT'!C16","v":754.35305704893517},null,null,"DOLARES DE LOS ESTADOS"]
["UNIDOS DE AMERICA, cada una, y que serán pagadas a partir del ",null,null,null,null,null,null,null,null,null,null,null,null,{"$f":"+DAY('TAB AMORT'!F10)","v":20},"de",{"$f":"+'TAB AMORT'!F10","v":"2018-06-20"},null,null,null,null,"del",null,{"$f":"+P11","v":"2018-06-20"},null,null,"y asi"]
["sucesivamente hasta su pago total, esto es hasta el",null,null,null,null,null,null,null,null,null,null,{"$f":"IF(FORM!F104=1,'TAB AMORT'!B32)+IF(FORM!F104=2,'TAB AMORT'!B44)+IF(FORM!F104=3,'TAB AMORT'!B56)+IF(FORM!F104=4,'TAB AMORT'!B68)+IF(FORM!F104=5,'TAB AMORT'!B80)","v":"2022-05-20"},"de ",{"$f":"+L12","v":"2022-05-20"},null,null,null,"del ",null,{"$f":"+N12","v":"2022-05-20"},null,"."]
[]
["Declaro(amos) que la falta de pago oportuno de cualquiera de las cuotas mensuales  antes detalladas o de parte de alguna de ellas, permitirá al Acreedor anticipar y declarar de plazo vencido las cuotas posteriores y exigir al(los) Deudor(es) y/o Aval(es) el pago total de la obligación contenida en este pagaré, más los gastos y costas a que hubiere lugar."]
[]
["En caso de mora, pagaré (mos) desde su vencimiento hasta su total cancelación, sobre los valores no pagados, la máxima tasa de interés de mora que para el efecto haya dispuesto la Autoridad Monetaria correspondiente, vigentes a la respectiva fecha de vencimiento."]
["Además, pagaré (mos)  todos los gastos judiciales, extra judiciales, y honorarios profesionales que ocasione el cobro, bastando para determinar el monto de tales gastos, la sola aseveración del Acreedor."]
[]
["Se deja constancia que BANCO DINERS CLUB DEL ECUADOR S.A a su sola decisión podrá ceder todos los derechos emanados de este Pagaré a la Orden a cualquier persona natural y/o jurídica, por los que el (la/los) suscriptor (es) desde ya acepta (n) la pertinente cesión de derechos, incluso se da(n) por notificado(s) del traspaso del crédito. En tal virtud, la o las cesiones que se realicen, surtirán pleno efecto respecto al deudor (es),  sus avalistas solidarios y respecto de terceros."]
[]
["Renuncio (amos) fuero y domicilio y quedo (amos) expresamente sometido (s) a los jueces competentes de la ciudad"]
["de ",{"$f":"+E8","v":"PORTOVIEJO"},null,null,null,"o  del  lugar  en  que  se  nos  reconvenga, y al trámite legal correspondiente, a elección del "]
["demandante; obligándome (nos) irrevocablemente al fiel cumplimiento de lo aquí estipulado con todos mis (nuestros) bienes  presentes y futuros. El pago no podrá hacerse por partes ni aún por mis (nuestros) herederos."]
[]
["Sin protesto. Exímese al Acreedor de este Pagaré a la Orden, de su presentación para el pago al (los) suscriptor(es) del mismo, así como realizar los avisos por falta de pago."]
[]
["Lugar y Fecha de suscripción:",null,null,null,null,null,null,{"$f":"+'CO RE DOM 48'!G4","v":"PORTOVIEJO"},null,null,null,{"$f":"+'TAB AMORT'!F9","v":"2018-05-21"}]
[]
[]
[]
[]
["f) ",null,null,null,null,null,null,null,null,null,null,null,null,null,"f) "]
["NOMBRES:",null,null,null,{"$f":"CONCATENATE(FORM!Q35,\" \",FORM!Q33)","v":"ANA  CAROLINA DOMINGUEZ RUALES"},null,null,null,null,null,null,null,null,null,{"$f":"IF(FORM!F63=0,\"\",CONCATENATE(FORM!Q65,\" \",FORM!Q63))","v":"DAVID EDUARDO CLVACHE ONTANEDA"}]
["Dirección:",null,null,null,{"$f":"FORM!F45","v":"AV PEDRO DE ALVARADO N56-72 Y CARLOS V"},null,null,null,null,null,null,null,null,null,{"$f":"IF(FORM!F63=0,\"\",'PAG ORD'!E34)","v":"AV PEDRO DE ALVARADO N56-72 Y CARLOS V"}]
["RUC o CC",null,null,null,{"$f":"FORM!F39","v":"1234567890"},null,null,null,null,null,null,null,null,null,{"$f":"IF(FORM!F63=0,\"\",FORM!F67)","v":"1239876589"}]
["Teléfono:",null,null,null,{"$f":"+FORM!F37","v":"3188179"},null,null,null,null,null,null,null,null,null,{"$f":"IF(FORM!F63=0,\"\",'PAG ORD'!E36)","v":"3188179"}]
[]
[]
[]
[]
["VISTO BUENO"]
[]
["Lugar y Fecha de suscripción:",null,null,null,null,null,null,{"$f":"+H27","v":"PORTOVIEJO"},null,null,null,null,{"$f":"+L27","v":"2018-05-21"}]
[]
[]
[]
["f) ",null,null,null,null,null,null,null,null,null,null,null,null,null,"f) "]
["NOMBRES:",null,null,null,{"$f":"+E33","v":"ANA  CAROLINA DOMINGUEZ RUALES"},null,null,null,null,null,null,null,null,null,{"$f":"+O33","v":"DAVID EDUARDO CLVACHE ONTANEDA"}]
["Dirección:",null,null,null,{"$f":"+E34","v":"AV PEDRO DE ALVARADO N56-72 Y CARLOS V"},null,null,null,null,null,null,null,null,null,{"$f":"+O34","v":"AV PEDRO DE ALVARADO N56-72 Y CARLOS V"}]
["RUC o CC",null,null,null,{"$f":"+E35","v":"1234567890"},null,null,null,null,null,null,null,null,null,{"$f":"+O35","v":"1239876589"}]
["Teléfono:",null,null,null,{"$f":"+E36","v":"3188179"},null,null,null,null,null,null,null,null,null,{"$f":"+O36","v":"3188179"}]

{"sheet":"HUNTER","index":13,"n_rows":64,"n_cols":245,"rows_kept":64,"cut":false,"hidden":false,"merged":[[0,0,0,31],[4,0,7,31],[8,0,8,31],[9,0,9,4],[9,5,9,14],[9,15,9,21],[9,22,9,31],[10,0,10,4],[10,5,10,31],[11,0,11,4],[11,5,11,31],[12,0,12,4],[12,5,12,16],[12,17,12,20],[12,21,12,31],[34,0,34,10],[34,11,34,13],[34,14,34,31],[17,0,17,2],[17,3,17,8],[17,9,17,12],[17,13,17,18],[17,19,17,21],[17,22,17,31],[13,0,13,6],[13,7,13,31],[14,3,14,30],[15,0,15,31],[16,0,16,2],[16,3,16,8],[16,9,16,12],[16,13,16,18],[16,19,16,21],[16,22,16,31],[19,0,21,31],[25,5,25,9],[25,21,25,25],[27,0,27,31],[28,0,28,10],[28,12,28,31],[18,0,18,2],[18,3,18,8],[18,9,18,12],[18,13,18,18],[18,19,18,21],[18,22,18,31],[31,0,31,31],[30,140,30,146],[30,147,30,158],[30,159,30,171],[30,172,30,178],[30,179,30,190],[30,191,30,203],[30,76,30,82],[30,83,30,94],[30,95,30,107],[30,108,30,114],[30,115,30,126],[30,127,30,139],[30,0,30,13],[30,14,30,19],[30,44,30,50],[30,51,30,62],[30,63,30,75],[33,79,33,81],[33,82,33,83],[33,84,33,94],[30,211,30,222],[30,223,30,235],[30,236,30,242],[30,243,30,254],[30,204,30,210],[33,239,33,241],[33,242,33,243],[33,244,33,254],[33,191,33,203],[33,204,33,206],[33,207,33,209],[32,0,32,4],[32,5,32,7],[32,11,32,13],[33,44,33,46],[33,47,33,49],[33,50,33,51],[32,14,32,31],[33,13,33,31],[33,236,33,238],[33,140,33,142],[33,143,33,145],[33,146,33,147],[33,148,33,158],[33,159,33,171],[33,172,33,174],[33,175,33,177],[33,178,33,179],[33,180,33,190],[33,95,33,107],[33,108,33,110],[33,111,33,113],[33,114,33,115],[33,116,33,126],[33,127,33,139],[35,0,35,31],[33,210,33,211],[33,212,33,222],[33,223,33,235],[33,52,33,62],[45,0,45,31],[50,0,53,31],[54,0,57,31],[59,0,59,7],[37,223,37,254],[37,0,37,31],[37,63,37,94],[37,95,37,126],[37,127,37,158],[37,159,37,190],[37,191,37,222],[36,63,36,94],[36,95,36,126],[36,127,36,158],[36,159,36,190],[36,191,36,222],[36,223,36,254],[33,63,33,75],[33,76,33,78],[62,0,62,31],[36,0,36,31],[47,26,47,31],[63,0,63,31],[38,223,38,237],[39,0,39,7],[42,0,42,31],[43,0,43,31],[44,0,44,7],[44,8,44,11],[38,0,38,14],[38,63,38,77],[38,95,38,109],[38,127,38,141],[38,159,38,173],[38,191,38,205]]}
["PLAN EXCLUSIVO PARA SOCIOS DINERS CLUB"]
[]
[]
[]
["GUAYAQUIL :  Cdla. Vernaza Norte MZ 21 Solar 2,6,7 y 8 Telef.  ( 04) 2291065. QUITO : Av. 10 de Agosto 5023 y Los Cedros. Esq. PBX : (02) 805170-805180. TUMBACO : CC. Ventura Mall. Local 5 B. PBX : (02) 2375308. MACHALA : Marcel Laniado 105 y Circunvalación Norte. PBX : (07) 2980379. MANTA : Av. 113 y Calle 119 esq. PBX : (05) 2925584. QUEVEDO :   Malecón 302 y Tercera Esq. (05)2761370.  STO. DOMINGO : Av. Quevedo. Km. 3/12 No. 1516 y Av. Bombolí. AMBATO : Montalvo 0236 y Los Capulíes. PBX : 2829941.  LOJA: 24 de Mayo y Azuay. Esq. PBX : 2574291. CUENCA:  Circunvalación Sur y J. Núñez. PBX : (07) 2819080. IBARRA :  Av. Cristóbal de Troya 661 y J. M. Lequerica. PBX : (06) 2955517. SALINAS :  Calle Segunda ( Junto a Mi Comisariato Jr.) PBX : 2761370."]
[]
[]
[]
["ORDEN DE INSTALACIÓN DEL SISTEMA HUNTER "]
["FECHA:",null,null,null,null,{"$f":"FORM!F8","v":"2018-05-21"},null,null,null,null,null,null,null,null,null,"VALOR VEHICULO:",null,null,null,null,null,null,{"$f":"FORM!F100","v":34483.5}]
["NOMBRE:",null,null,null,null,{"$f":"FORM!Q37","v":"ANA  CAROLINA DOMINGUEZ RUALES"}]
["DIRECCIÓN:",null,null,null,null,{"$f":"FORM!F45","v":"AV PEDRO DE ALVARADO N56-72 Y CARLOS V"}]
["TELEFONOS:",null,null,null,null,{"$f":"CONCATENATE(FORM!F37,\" \",FORM!L37)","v":"3188179 0985352479"},null,null,null,null,null,null,null,null,null,null,null,"CIUDAD:",null,null,null,{"$f":"+FORM!F25","v":"PORTOVIEJO"}]
["CONCESIONARIO:",null,null,null,null,null,null,{"$f":"+FORM!F13","v":"AUTOMOTORES CONTINENTAL"}]
["PLAN",null,null,{"$f":"+A34","v":"MARESA SATELITAL BY HUNTER"}]
["DATOS DEL VEHICULO"]
["MARCA:",null,null,{"$f":"+FORM!F77","v":"MAZDA"},null,null,null,null,null,"MODELO:",null,null,null,{"$f":"+FORM!F79","v":"CX3"},null,null,null,null,null,"TIPO:",null,null,{"$f":"+FORM!F84","v":"SEDAN"}]
["COLOR:",null,null,{"$f":"+FORM!F88","v":"ROJO"},null,null,null,null,null,"AÑO:",null,null,null,{"$f":"+FORM!F86","v":2019},null,null,null,null,null,"PLACA:",null,null,"N/A"]
["MOTOR:",null,null,{"$f":"+FORM!F90","v":"BU456792826RE7"},null,null,null,null,null,"CHASIS:",null,null,null,{"$f":"+FORM!F92","v":"CG5342892U"},null,null,null,null,null,"USO:",null,null,"PERSONAL/FAMILIAR"]
["El asegurado deberá llevar el vehículo para la instalación del sistema Hunter, en un plazo de 8 días posteriores a la compra del vehículo. De no hacerlo, pierde el derecho a indemnización en el caso de un eventual robo total."]
[]
[]
[]
[]
[]
[null,null,null,null,null,"CONCESIONARIO",null,null,null,null,null,null,null,null,null,null,null,null,null,null,null,"TARJETAHABIENTE"]
[]
["AUTORIZACIÓN ORDEN DE CARGO"]
[{"$f":"+FORM!F25","v":"PORTOVIEJO"},null,null,null,null,null,null,null,null,null,null,",",{"$f":"+F10","v":"2018-05-21"}]
[]
["En mi calidad de socio Diners Club No.",null,null,null,null,null,null,null,null,null,null,null,null,null,{"$f":"CONCATENATE(FORM!F146,FORM!L146)","v":"36502325370040"},null,null,null,null,null,null,null,"autorizo  libre y  voluntariamente",null,null,null,null,null,null,null,null,null,null,null,null,null,null,null,null,null,null,null,null,null,{"$f":"CONCATENATE([4]FORM!AL147,[4]FORM!AR147)","v":""},null,null,null,null,null,null,"autorizo libre y voluntariamente a ",null,null,null,null,null,null,null,null,null,null,null,"En mi calidad de socio Diners Club No.",null,null,null,null,null,null,null,null,null,null,null,null,{"$f":"CONCATENATE([4]FORM!BR147,[4]FORM!BX147)","v":""},null,null,null,null,null,null,"autorizo libre y voluntariamente a ",null,null,null,null,null,null,null,null,null,null,null,"En mi calidad de socio Diners Club No.",null,null,null,null,null,null,null,null,null,null,null,null,{"$f":"CONCATENATE([4]FORM!CX147,[4]FORM!DD147)","v":""},null,null,null,null,null,null,"autorizo libre y voluntariamente a ",null,null,null,null,null,null,null,null,null,null,null,"En mi calidad de socio Diners Club No.",null,null,null,null,null,null,null,null,null,null,null,null,{"$f":"CONCATENATE([4]FORM!ED147,[4]FORM!EJ147)","v":""},null,null,null,null,null,null,"autorizo libre y voluntariamente a ",null,null,null,null,null,null,null,null,null,null,null,"En mi calidad de socio Diners Club No.",null,null,null,null,null,null,null,null,null,null,null,null,{"$f":"CONCATENATE([4]FORM!FJ147,[4]FORM!FP147)","v":""},null,null,null,null,null,null,"autorizo libre y voluntariamente a ",null,null,null,null,null,null,null,null,null,null,null,"En mi calidad de socio Diners Club No.",null,null,null,null,null,null,null,null,null,null,null,null,{"$f":"CONCATENATE([4]FORM!GP147,[4]FORM!GV147)","v":""},null,null,null,null,null,null,"autorizo libre y voluntariamente a ",null,null,null,null,null,null,null,null,null,null,null,"En mi calidad de socio Diners Club No.",null,null,null,null,null,null,null,null,null,null,null,null,{"$f":"CONCATENATE([4]FORM!HV147,[4]FORM!IB147)","v":""},null,null,null,null,null,null,"autorizo libre y voluntariamente a "]
["a BANCO DINERS CLUB DEL ECUADOR S.A., se cargue a mi señalada tarjeta de manera mensual el"]
["valor de US$",null,null,null,null,{"$f":"+FORM!F138","v":35.583333333333336},null,null,"durante",null,null,{"$f":"+FORM!F104*12","v":48},null,null,"meses, que  corresponde  a  la  compra  de  un  sistema"]
[{"$f":"+FORM!F112","v":"MARESA SATELITAL BY HUNTER"},null,null,null,null,null,null,null,null,null,null,null,null,"de  conformidad  al  acuerdo que he llegado con CARSEG S.A.",null,null,null,null,null,null,null,null,null,null,null,null,null,null,null,null,null,null,null,null,null,null,null,null,null,null,null,null,null,null,null,null,null,"durante",null,null,{"$f":"+[4]FORM!AL107*12","v":0},null,"meses, que corresponde a la ",null,null,null,null,null,null,null,null,null,null,"de manera mensual el valor de US$",null,null,null,null,null,null,null,null,null,null,null,null,null,null,null,"durante",null,null,{"$f":"+[4]FORM!BR107*12","v":0},null,"meses, que corresponde a la ",null,null,null,null,null,null,null,null,null,null,"de manera mensual el valor de US$",null,null,null,null,null,null,null,null,null,null,null,null,null,null,null,"durante",null,null,{"$f":"+[4]FORM!CX107*12","v":0},null,"meses, que corresponde a la ",null,null,null,null,null,null,null,null,null,null,"de manera mensual el valor de US$",null,null,null,null,null,null,null,null,null,null,null,null,null,null,null,"durante",null,null,{"$f":"+[4]FORM!ED107*12","v":0},null,"meses, que corresponde a la ",null,null,null,null,null,null,null,null,null,null,"de manera mensual el valor de US$",null,null,null,null,null,null,null,null,null,null,null,null,null,null,null,"durante",null,null,{"$f":"+[4]FORM!FJ107*12","v":0},null,"meses, que corresponde a la ",null,null,null,null,null,null,null,null,null,null,"de manera mensual el valor de US$",null,null,null,null,null,null,null,null,null,null,null,null,null,null,null,"durante",null,null,{"$f":"+[4]FORM!GP107*12","v":0},null,"meses, que corresponde a la ",null,null,null,null,null,null,null,null,null,null,"de manera mensual el valor de US$",null,null,null,null,null,null,null,null,null,null,null,null,null,null,null,"durante",null,null,{"$f":"+[4]FORM!HV107*12","v":0},null,"meses, que corresponde a la "]
["esto es, un crédito diferido a",null,null,null,null,null,null,null,null,null,null,{"$f":"+L33","v":48},null,null,"meses plazo sin intereses, valores que me comprometo a"]
["cancelar de manera incondicional y dentro de los plazos estipulados."]
["Asímismo, expresamente me obligo a no revocar la presente autorización, sin previo consentimiento por escrito de CARSEG S.A, por lo que libero de toda responsabilidad a BANCO DINERS CLUB DEL ECUADOR S.A. por los cargos efectuados en base a la presente autorización.",null,null,null,null,null,null,null,null,null,null,null,null,null,null,null,null,null,null,null,null,null,null,null,null,null,null,null,null,null,null,null,null,null,null,null,null,null,null,null,null,null,null,null,null,null,null,null,null,null,null,null,null,null,null,null,null,null,null,null,null,null,null,"Asímismo, expresamente me obligo a no revocar la presente autorización, sin previo consentimiento por ",null,null,null,null,null,null,null,null,null,null,null,null,null,null,null,null,null,null,null,null,null,null,null,null,null,null,null,null,null,null,null,"Asímismo, expresamente me obligo a no revocar la presente autorización, sin previo consentimiento por ",null,null,null,null,null,null,null,null,null,null,null,null,null,null,null,null,null,null,null,null,null,null,null,null,null,null,null,null,null,null,null,"Asímismo, expresamente me obligo a no revocar la presente autorización, sin previo consentimiento por ",null,null,null,null,null,null,null,null,null,null,null,null,null,null,null,null,null,null,null,null,null,null,null,null,null,null,null,null,null,null,null,"Asímismo, expresamente me obligo a no revocar la presente autorización, sin previo consentimiento por ",null,null,null,null,null,null,null,null,null,null,null,null,null,null,null,null,null,null,null,null,null,null,null,null,null,null,null,null,null,null,null,"Asímismo, expresamente me obligo a no revocar la presente autorización, sin previo consentimiento por ",null,null,null,null,null,null,null,null,null,null,null,null,null,null,null,null,null,null,null,null,null,null,null,null,null,null,null,null,null,null,null,"Asímismo, expresamente me obligo a no revocar la presente autorización, sin previo consentimiento por "]
["De igual manera,  autorizo en caso de pérdida,  hurto,  robo o cualquier otra circunstancia que merezca ser cambiado mi actual número de tarjeta,   se  cuenta  con el nuevo que se me  asigne  para  cancelar todos mis consumos de manera incondicional dentro del periodo respectivo,  de  tal  forma  de  que mis obligaciones no queden en mora por los conceptos antes mencionados y hasta su total cancelación.",null,null,null,null,null,null,null,null,null,null,null,null,null,null,null,null,null,null,null,null,null,null,null,null,null,null,null,null,null,null,null,null,null,null,null,null,null,null,null,null,null,null,null,null,null,null,null,null,null,null,null,null,null,null,null,null,null,null,null,null,null,null,"De igual manera,  autorizo en caso de pérdida,  hurto,  robo o cualquier otra circunstancia que merezca ",null,null,null,null,null,null,null,null,null,null,null,null,null,null,null,null,null,null,null,null,null,null,null,null,null,null,null,null,null,null,null,"De igual manera,  autorizo en caso de pérdida,  hurto,  robo o cualquier otra circunstancia que merezca ",null,null,null,null,null,null,null,null,null,null,null,null,null,null,null,null,null,null,null,null,null,null,null,null,null,null,null,null,null,null,null,"De igual manera,  autorizo en caso de pérdida,  hurto,  robo o cualquier otra circunstancia que merezca ",null,null,null,null,null,null,null,null,null,null,null,null,null,null,null,null,null,null,null,null,null,null,null,null,null,null,null,null,null,null,null,"De igual manera,  autorizo en caso de pérdida,  hurto,  robo o cualquier otra circunstancia que merezca ",null,null,null,null,null,null,null,null,null,null,null,null,null,null,null,null,null,null,null,null,null,null,null,null,null,null,null,null,null,null,null,"De igual manera,  autorizo en caso de pérdida,  hurto,  robo o cualquier otra circunstancia que merezca ",null,null,null,null,null,null,null,null,null,null,null,null,null,null,null,null,null,null,null,null,null,null,null,null,null,null,null,null,null,null,null,"De igual manera,  autorizo en caso de pérdida,  hurto,  robo o cualquier otra circunstancia que merezca "]
[null,null,null,null,null,null,null,null,null,null,null,null,null,null,null,null,null,null,null,null,null,null,null,null,null,null,null,null,null,null,null,null,null,null,null,null,null,null,null,null,null,null,null,null,null,null,null,null,null,null,null,null,null,null,null,null,null,null,null,null,null,null,null,"hasta su total cancelación.",null,null,null,null,null,null,null,null,null,null,null,null,null,null,null,null,null,null,null,null,null,null,null,null,null,null,null,null,null,null,null,"hasta su total cancelación.",null,null,null,null,null,null,null,null,null,null,null,null,null,null,null,null,null,null,null,null,null,null,null,null,null,null,null,null,null,null,null,"hasta su total cancelación.",null,null,null,null,null,null,null,null,null,null,null,null,null,null,null,null,null,null,null,null,null,null,null,null,null,null,null,null,null,null,null,"hasta su total cancelación.",null,null,null,null,null,null,null,null,null,null,null,null,null,null,null,null,null,null,null,null,null,null,null,null,null,null,null,null,null,null,null,"hasta su total cancelación.",null,null,null,null,null,null,null,null,null,null,null,null,null,null,null,null,null,null,null,null,null,null,null,null,null,null,null,null,null,null,null,"hasta su total cancelación."]
["Atentamente,"]
[]
[]
[{"$f":"+F11","v":"ANA  CAROLINA DOMINGUEZ RUALES"}]
[{"$f":"+FORM!F39","v":"1234567890"}]
["Caducidad Tarjeta:",null,null,null,null,null,null,null,{"$f":"+FORM!F148","v":"2022-05-01"}]
["DECLARACION ADICIONAL"]
[]
[{"$f":"A43","v":"ANA  CAROLINA DOMINGUEZ RUALES"},null,null,null,null,null,null,null,null,null,null,null,null,null,null,", mayor de edad, de estado civil",null,null,null,null,null,null,null,null,null,null,{"$f":"+IF(FORM!F63<>\"\",\"CASADO\",\"SOLTERO\")","v":"CASADO"}]
[", portador de la cédula de ciudadanía o pasaporte No.",null,null,null,null,null,null,null,null,null,null,null,null,null,null,null,null,null,null,{"$f":"+A44","v":"1234567890"},null,null,null,", por medio de la presente"]
["realizo la siguiente declaración:"]
["Declaro de manera expresa que autorizo a la compañía CARSEG S.A,  para que en el evento de que la compañía Banco Diners Club del Ecuador S.A., lo requiera, haga conocer la información en relación a la ubicación del vehículo, así mismo podrá bloquear el vehículo a la sola solicitud de Banco Diners Club del Ecuador S.A."]
[]
[]
[]
["Por tratarse de una autorización realizada de manera libre y voluntaria, declaro que no interpondré contra Banco Diners Club del Ecuador S.A., o la compañía Hunter, ningún tipo de acción judicial o administrativa  por la ejecución de las acciones descritas en el presente documento."]
[]
[]
[]
[]
["Atentamente,"]
[]
[]
[{"$f":"A43","v":"ANA  CAROLINA DOMINGUEZ RUALES"}]
[{"$f":"A44","v":"1234567890"}]

{"sheet":"DAT","index":14,"n_rows":2,"n_cols":69,"rows_kept":2,"cut":false,"hidden":true,"merged":[]}
["PÓLIZA","CERTIFICADO","CONTRATANTE","FECHA INGRESO","APELLIDO 1","APELLIDO 2","NOMBRES","CEDULA/RUC","DIRECCIÓN DOMICILIO","TELÉFONO 1","CODIGO TELEF","TELÉFONO 2","CODIGO TELEF","PAIS","CODIGO PAIS","PROVINCIA","CODIGO PROVINCIA","CIUDAD ","CODIGO CIUDAD","LUGAR DE TRABAJO","CARGO","MARCA","marca sise","MODELO ","modelo sise","TIPO","AÑO","COLOR","color sise","MOTOR ","CHASIS","PLACA","CONDUCTOR","VIGENCIA INICIAL","ANIVERSARIO","VALOR AUTO","TASA","PRIMA NETA","SÚPER BANCOS","DERECHOS EMISIÓN","IVA","PRIMA TOTAL","FECHA DE EMISIÓN","NUMERO DE TARJETA","CONCESIONARIO","STATUS","FECHA DE CANCELACIÓN","MOTIVOS","MARCA EXTRAS 1","MODELO EXTRAS 1","VALOR EXTRAS 1","MARCA EXTRAS 2","MODELO EXTRAS 2","VALOR EXTRAS 2","MARCA EXTRAS 3","MODELO EXTRAS 3","VALOR EXTRAS 3","MARCA EXTRAS 4","MODELO EXTRAS 4","VALOR EXTRAS 4","MARCA EXTRAS 5","MODELO EXTRAS 5","VALOR EXTRAS 5","MARCA EXTRAS 6","MODELO EXTRAS 6","VALOR EXTRAS 6","TOTAL EXTRAS","PRIMA EXTRAS","FECHA FIN FINANCTO"]
[51237,1,"DINERS CLUB DEL ECUADOR",{"$f":"CONCATENATE(FORM!F9,\" \",FORM!J9,\" \",FORM!M9)","v":"  "},{"$f":"+FORM!$F$33","v":"DOMINGUEZ"},{"$f":"+FORM!L33","v":"RUALES"},{"$f":"+FORM!Q35","v":"ANA  CAROLINA"},{"$f":"+FORM!F39","v":"1234567890"},{"$f":"+FORM!F45","v":"AV PEDRO DE ALVARADO N56-72 Y CARLOS V"},{"$f":"+FORM!F37","v":"3188179"},2,{"$f":"+FORM!L37","v":"0985352479"},1,"ECUADOR",1,null,null,{"$f":"+FORM!F47","v":"PORTOVIEJO"},null,{"$f":"+FORM!#REF!","v":{"$error":"#REF!"}},{"$f":"+FORM!#REF!","v":{"$error":"#REF!"}},{"$f":"+FORM!F77","v":"MAZDA"},{"$f":"VLOOKUP(V2,FORM!#REF!,2)","v":{"$error":"#REF!"}},{"$f":"+FORM!F79","v":"CX3"},null,{"$f":"+FORM!F84","v":"SEDAN"},{"$f":"+FORM!F86","v":2019},{"$f":"+FORM!F88","v":"ROJO"},null,{"$f":"+FORM!F90","v":"BU456792826RE7"},{"$f":"+FORM!F92","v":"CG5342892U"},"S / N",{"$f":"CONCATENATE(FORM!Q33,\" \",FORM!F35,\" \",FORM!L35)","v":"DOMINGUEZ RUALES ANA  CAROLINA"},{"$f":"CONCATENATE(FORM!J9,\" \",FORM!F9,\" \",FORM!M9)","v":"  "},{"$f":"+AH2+365","v":{"$error":"#VALUE!"}},{"$f":"+ROUND(FORM!F100,0)","v":34484},{"$f":"+FORM!#REF!","v":{"$error":"#REF!"}},{"$f":"+FORM!#REF!","v":{"$error":"#REF!"}},{"$f":"+FORM!#REF!","v":{"$error":"#REF!"}},{"$f":"+FORM!#REF!","v":{"$error":"#REF!"}},{"$f":"+FORM!#REF!","v":{"$error":"#REF!"}},{"$f":"+FORM!#REF!","v":{"$error":"#REF!"}},{"$f":"+D2","v":"  "},{"$f":"CONCATENATE(FORM!F146,,FORM!L146)","v":"36502325370040"},{"$f":"+FORM!F13","v":"AUTOMOTORES CONTINENTAL"},null,null,null,null,null,null,null,null,null,null,null,null,null,null,null,null,null,null,null,null,null,null,null,{"$f":"IF(FORM!F104=1,'TAB AMORT'!B32,IF(FORM!F104=1.5,'TAB AMORT'!B38,IF(FORM!F104=2,'TAB AMORT'!B44,IF(FORM!F104=3,'TAB AMORT'!B56))))","v":false}]

{"sheet":"TRACKLINK CONTROL","index":15,"n_rows":65,"n_cols":26,"rows_kept":65,"cut":false,"hidden":false,"merged":[[45,8,45,10],[45,0,45,7],[63,0,63,31],[64,0,64,31],[46,0,46,31],[51,0,54,31],[55,0,58,31],[60,0,60,7],[48,25,48,31],[0,0,0,31],[4,0,7,31],[8,0,8,31],[9,0,9,4],[9,5,9,14],[9,15,9,21],[9,22,9,31],[10,0,10,4],[10,5,10,31],[11,0,11,4],[11,5,11,31],[16,22,16,31],[12,0,12,4],[12,5,12,16],[15,0,15,31],[16,0,16,2],[16,3,16,8],[12,17,12,20],[12,21,12,31],[14,0,14,2],[14,3,14,30],[13,0,13,6],[13,7,13,31],[16,13,16,18],[17,9,17,12],[17,0,17,2],[17,22,17,31],[28,0,28,10],[28,12,28,31],[17,3,17,8],[18,0,18,2],[18,3,18,8],[18,9,18,12],[17,13,17,18],[16,19,16,21],[17,19,17,21],[16,9,16,12],[43,0,43,31],[44,0,44,31],[40,0,40,7],[25,5,25,9],[25,21,25,25],[27,0,27,31],[38,0,38,31],[36,0,36,31],[34,17,34,18],[34,19,34,31],[32,0,32,5],[32,6,32,8],[32,12,32,13],[33,0,33,11],[34,0,34,16],[37,0,37,31],[30,0,30,13],[30,14,30,19],[30,20,30,31],[31,0,31,31],[18,13,18,18],[18,19,18,21],[18,22,18,31],[19,0,21,31]]}
["PLAN EXCLUSIVO PARA SOCIOS DINERS CLUB"]
[]
[]
[]
["QUITO : Av. Gaspar de Villaroel E9-39 y Av. de los Shyris. PBX : (02) 2439920-2439945. GUAYAQUIL : Av. Juan Tanca Marengo km. 2.5 (frente a EICA). PBX : (04) 2610338. CUENCA : Av. Miguel Cordero 167 y Av. Paucarbamba. PBX : (07) 2812773-2885560. MACHALA : Av. Juan Montalvo 2309 entre Pichincha y Arízaga. PBX : (07) 2938008. AMBATO : AV. Cevallos 2328 y Filomentor Cuesta. PBX : (03) 2424104. MANTA : Av. 4 de Noviembre y Calle 313 frente a Solca. PBX : (05) 2924287-2922699."]
[]
[]
[]
["ORDEN DE INSTALACIÓN DEL SISTEMA TRACKLINK CONTROL"]
["FECHA:",null,null,null,null,{"$f":"+HUNTER!F10","v":"2018-05-21"},null,null,null,null,null,null,null,null,null,"VALOR VEHICULO:",null,null,null,null,null,null,{"$f":"FORM!F100","v":34483.5}]
["NOMBRE:",null,null,null,null,{"$f":"FORM!Q37","v":"ANA  CAROLINA DOMINGUEZ RUALES"}]
["DIRECCIÓN:",null,null,null,null,{"$f":"+HUNTER!F12","v":"AV PEDRO DE ALVARADO N56-72 Y CARLOS V"}]
["TELEFONOS:",null,null,null,null,{"$f":"+HUNTER!F13","v":"3188179 0985352479"},null,null,null,null,null,null,null,null,null,null,null,"CIUDAD:",null,null,null,{"$f":"+HUNTER!V13","v":"PORTOVIEJO"}]
["CONCESIONARIO:",null,null,null,null,null,null,{"$f":"+HUNTER!H14","v":"AUTOMOTORES CONTINENTAL"}]
["PLAN:",null,null,{"$f":"+A34","v":"MARESA SATELITAL BY HUNTER"}]
["DATOS DEL VEHICULO"]
["MARCA:",null,null,{"$f":"+HUNTER!D17","v":"MAZDA"},null,null,null,null,null,"MODELO:",null,null,null,{"$f":"+HUNTER!N17","v":"CX3"},null,null,null,null,null,"TIPO:",null,null,{"$f":"+HUNTER!W17","v":"SEDAN"}]
["COLOR:",null,null,{"$f":"+HUNTER!D18","v":"ROJO"},null,null,null,null,null,"AÑO:",null,null,null,{"$f":"+HUNTER!N18","v":2019},null,null,null,null,null,"PLACA:",null,null,"N/A"]
["MOTOR:",null,null,{"$f":"+HUNTER!D19","v":"BU456792826RE7"},null,null,null,null,null,"CHASIS:",null,null,null,{"$f":"+HUNTER!N19","v":"CG5342892U"},null,null,null,null,null,"USO:",null,null,"PERSONAL/FAMILIAR"]
["El asegurado deberá llevar el vehículo para la instalación del sistema Tracklink Control, en un plazo de 8 días posteriores a la compra del vehículo. De no hacerlo, pierde el derecho a indemnización en el caso de un eventual robo total."]
[]
[]
[]
[]
[]
[null,null,null,null,null,"CONCESIONARIO",null,null,null,null,null,null,null,null,null,null,null,null,null,null,null,"TARJETAHABIENTE"]
[]
["AUTORIZACIÓN ORDEN DE CARGO"]
[{"$f":"+FORM!F25","v":"PORTOVIEJO"},null,null,null,null,null,null,null,null,null,null,",",{"$f":"+F10","v":"2018-05-21"}]
[]
["En mi calidad de socio Diners Club No.",null,null,null,null,null,null,null,null,null,null,null,null,null,{"$f":"CONCATENATE(FORM!F146,FORM!L146)","v":"36502325370040"},null,null,null,null,null,"autorizo  libre y  voluntariamente"]
["a BANCO DINERS CLUB DEL ECUADOR S.A., se cargue a mi señalada tarjeta de manera mensual"]
["el valor de US$",null,null,null,null,null,{"$f":"+FORM!F138","v":35.583333333333336},null,null,"durante",null,null,{"$f":"+FORM!F104*12","v":48},null,"meses, que corresponde a la compra de un sistema"]
[{"$f":"+FORM!F112","v":"MARESA SATELITAL BY HUNTER"},null,null,null,null,null,null,null,null,null,null,null,"de  conformidad  al  acuerdo  que  he  llegado  con"]
["AUDIOAUTO S.A. esto es, un crédito diferido a ",null,null,null,null,null,null,null,null,null,null,null,null,null,null,null,null,{"$f":"+M33","v":48},null,"meses  plazo  sin intereses, valores"]
["que me comprometo a cancelar de manera incondicional y dentro de los plazos estipulados."]
["Asímismo,  expresamente  me  obligo  a  no  revocar  la  presente autorización, sin previo consentimiento por escrito  de AUDIOAUTO S.A, por lo que libero de toda responsabilidad a BANCO DINERS CLUB DEL ECUADOR S.A. por  los cargos efectuados en base a la presente autorización."]
["De igual manera,  autorizo en caso de pérdida,  hurto,  robo o cualquier otra circunstancia que merezca ser cambiado mi actual número de tarjeta, se cuenta con el nuevo que se me asigne para cancelar todos mis consumos de manera incondicional dentro del periodo respectivo, de tal forma de que mis obligaciones no queden en mora por los conceptos antes mencionados y hasta su total cancelación."]
[]
[]
["Atentamente,"]
[]
[]
[{"$f":"F11","v":"ANA  CAROLINA DOMINGUEZ RUALES"}]
[{"$f":"+FORM!F39","v":"1234567890"}]
["Caducidad Tarjeta:",null,null,null,null,null,null,null,{"$f":"+FORM!F148","v":"2022-05-01"}]
["DECLARACION ADICIONAL"]
[]
[{"$f":"A44","v":"ANA  CAROLINA DOMINGUEZ RUALES"},null,null,null,null,null,null,null,null,null,null,null,null,null,", mayor de edad, de estado civil",null,null,null,null,null,null,null,null,null,null,{"$f":"+IF(FORM!F63<>\"\",\"CASADO\",\"SOLTERO\")","v":"CASADO"}]
[", portador de la cédula de ciudadanía o pasaporte No.",null,null,null,null,null,null,null,null,null,null,null,null,null,null,null,{"$f":"A45","v":"1234567890"},null,null,null,null,", por medio de la presente"]
["realizo la siguiente declaración:"]
["Declaro de manera expresa que autorizo a la compañía AUDIOAUTO S.A  para que en el evento de que la compañía Diners Club del Ecuador S.A., lo requiera, haga conocer la información en relación a la ubicación del vehículo, así mismo podrá bloquear el vehículo a la sola solicitud de Banco Diners Club del Ecuador S.A."]
[]
[]
[]
["Por tratarse de una autorización realizada de manera libre y voluntaria, declaro que no interpondré contra Banco Diners Club del Ecuador S.A., o la compañía AUDIOAUTO S.A.  ningún tipo de acción judicial o administrativa  por la ejecución de las acciones descritas en el presente documento."]
[]
[]
[]
[]
["Atentamente,"]
[]
[]
[{"$f":"A44","v":"ANA  CAROLINA DOMINGUEZ RUALES"}]
[{"$f":"A45","v":"1234567890"}]

{"sheet":"MARESA SATELITAL","index":16,"n_rows":64,"n_cols":246,"rows_kept":64,"cut":false,"hidden":false,"merged":[[63,0,63,31],[58,0,58,7],[62,0,62,31],[44,0,44,31],[49,0,52,31],[53,0,56,31],[46,25,46,31],[30,12,30,13],[31,13,31,31],[37,0,37,7],[42,0,42,31],[32,0,32,14],[33,0,33,31],[30,0,30,5],[30,6,30,8],[32,15,32,16],[41,0,41,31],[32,17,32,31],[36,0,36,14],[43,8,43,10],[43,0,43,7],[34,0,34,31],[36,64,36,78],[34,224,34,255],[31,237,31,239],[35,96,35,127],[31,240,31,242],[31,173,31,175],[31,176,31,178],[31,179,31,180],[31,181,31,191],[36,224,36,238],[36,192,36,206],[36,96,36,110],[36,128,36,142],[36,160,36,174],[35,224,35,255],[34,96,34,127],[34,128,34,159],[34,160,34,191],[34,192,34,223],[35,192,35,223],[35,128,35,159],[31,112,31,114],[35,160,35,191],[31,149,31,159],[31,243,31,244],[28,244,28,255],[28,224,28,236],[28,180,28,191],[28,173,28,179],[31,245,31,255],[28,237,28,243],[28,205,28,211],[28,212,28,223],[31,192,31,204],[31,205,31,207],[31,213,31,223],[31,224,31,236],[31,208,31,210],[31,211,31,212],[31,115,31,116],[31,80,31,82],[31,83,31,84],[31,85,31,95],[31,96,31,108],[31,109,31,111],[28,192,28,204],[31,117,31,127],[31,128,31,140],[31,141,31,143],[31,144,31,146],[31,147,31,148],[28,160,28,172],[28,148,28,159],[31,160,31,172],[28,96,28,108],[28,141,28,147],[28,109,28,115],[28,116,28,127],[28,128,28,140],[34,64,34,95],[35,0,35,31],[35,64,35,95],[28,45,28,51],[28,52,28,63],[28,0,28,13],[28,14,28,19],[28,20,28,31],[28,77,28,83],[28,84,28,95],[29,0,29,31],[31,45,31,47],[31,48,31,50],[31,51,31,52],[31,53,31,63],[31,64,31,76],[31,77,31,79],[28,64,28,76],[17,0,19,31],[23,5,23,9],[23,21,23,25],[25,0,25,31],[26,0,26,10],[26,12,26,31],[16,0,16,2],[16,3,16,8],[16,9,16,12],[16,13,16,18],[16,19,16,21],[16,22,16,31],[15,0,15,2],[15,3,15,8],[15,9,15,12],[15,13,15,18],[15,19,15,21],[15,22,15,31],[11,0,11,6],[11,7,11,31],[12,3,12,30],[13,0,13,31],[14,0,14,2],[14,3,14,8],[14,9,14,12],[14,13,14,18],[14,19,14,21],[14,22,14,31],[8,0,8,4],[8,5,8,31],[9,0,9,4],[9,5,9,31],[10,0,10,4],[10,5,10,16],[10,17,10,20],[10,21,10,31],[0,0,0,31],[4,0,5,31],[6,0,6,31],[7,0,7,4],[7,5,7,14],[7,15,7,21],[7,22,7,31]]}
["PLAN EXCLUSIVO PARA SOCIOS DINERS CLUB"]
[]
[]
[]
["QUITO: Calle Francisco Andrade Marín  E 6-101 y Av. Eloy Alfaro.\nTelf.  600-9390"]
[]
["ORDEN DE INSTALACIÓN DEL SISTEMA MARESA SATELITAL"]
["FECHA:",null,null,null,null,{"$f":"+FORM!F8","v":"2018-05-21"},null,null,null,null,null,null,null,null,null,"VALOR VEHICULO:",null,null,null,null,null,null,{"$f":"FORM!F100","v":34483.5}]
["NOMBRE:",null,null,null,null,{"$f":"FORM!Q37","v":"ANA  CAROLINA DOMINGUEZ RUALES"}]
["DIRECCIÓN:",null,null,null,null,{"$f":"+FORM!F45","v":"AV PEDRO DE ALVARADO N56-72 Y CARLOS V"}]
["TELEFONOS:",null,null,null,null,{"$f":"CONCATENATE(FORM!F37,\" \",FORM!L37)","v":"3188179 0985352479"},null,null,null,null,null,null,null,null,null,null,null,"CIUDAD:",null,null,null,{"$f":"+FORM!F25","v":"PORTOVIEJO"}]
["CONCESIONARIO:",null,null,null,null,null,null,{"$f":"+FORM!F13","v":"AUTOMOTORES CONTINENTAL"}]
["PLAN",null,null,{"$f":"+A32","v":"MARESA SATELITAL BY HUNTER"}]
["DATOS DEL VEHICULO"]
["MARCA:",null,null,{"$f":"+FORM!F77","v":"MAZDA"},null,null,null,null,null,"MODELO:",null,null,null,{"$f":"+FORM!F79","v":"CX3"},null,null,null,null,null,"TIPO:",null,null,{"$f":"+FORM!F84","v":"SEDAN"}]
["COLOR:",null,null,{"$f":"+FORM!F88","v":"ROJO"},null,null,null,null,null,"AÑO:",null,null,null,{"$f":"+FORM!F86","v":2019},null,null,null,null,null,"PLACA:",null,null,"N/A"]
["MOTOR:",null,null,{"$f":"+FORM!F90","v":"BU456792826RE7"},null,null,null,null,null,"CHASIS:",null,null,null,{"$f":"+FORM!F92","v":"CG5342892U"},null,null,null,null,null,"USO:",null,null,"PERSONAL/FAMILIAR"]
["El asegurado deberá llevar el vehículo para la instalación del sistema Maresa Satelital, en un plazo de 8 días posteriores a la compra del vehículo. De no hacerlo, pierde el derecho a indemnización en el caso de un eventual robo total."]
[]
[]
[]
[]
[]
[null,null,null,null,null,"CONCESIONARIO",null,null,null,null,null,null,null,null,null,null,null,null,null,null,null,"TARJETAHABIENTE"]
[]
["AUTORIZACIÓN ORDEN DE CARGO"]
[{"$f":"+FORM!F25","v":"PORTOVIEJO"},null,null,null,null,null,null,null,null,null,null,",",{"$f":"+F8","v":"2018-05-21"}]
[]
["En mi calidad de socio Diners Club No.",null,null,null,null,null,null,null,null,null,null,null,null,null,{"$f":"CONCATENATE(FORM!F146,FORM!L146)","v":"36502325370040"},null,null,null,null,null,"autorizo  libre y  voluntariamente",null,null,null,null,null,null,null,null,null,null,null,null,null,null,null,null,null,null,null,null,null,null,null,null,{"$f":"CONCATENATE(FORM!AP142,FORM!AV142)","v":""},null,null,null,null,null,null,"autorizo libre y voluntariamente a ",null,null,null,null,null,null,null,null,null,null,null,"En mi calidad de socio Diners Club No.",null,null,null,null,null,null,null,null,null,null,null,null,{"$f":"CONCATENATE(FORM!BV142,FORM!CB142)","v":""},null,null,null,null,null,null,"autorizo libre y voluntariamente a ",null,null,null,null,null,null,null,null,null,null,null,"En mi calidad de socio Diners Club No.",null,null,null,null,null,null,null,null,null,null,null,null,{"$f":"CONCATENATE(FORM!DB142,FORM!DH142)","v":""},null,null,null,null,null,null,"autorizo libre y voluntariamente a ",null,null,null,null,null,null,null,null,null,null,null,"En mi calidad de socio Diners Club No.",null,null,null,null,null,null,null,null,null,null,null,null,{"$f":"CONCATENATE(FORM!EH142,FORM!EN142)","v":""},null,null,null,null,null,null,"autorizo libre y voluntariamente a ",null,null,null,null,null,null,null,null,null,null,null,"En mi calidad de socio Diners Club No.",null,null,null,null,null,null,null,null,null,null,null,null,{"$f":"CONCATENATE(FORM!FN142,FORM!FT142)","v":""},null,null,null,null,null,null,"autorizo libre y voluntariamente a ",null,null,null,null,null,null,null,null,null,null,null,"En mi calidad de socio Diners Club No.",null,null,null,null,null,null,null,null,null,null,null,null,{"$f":"CONCATENATE(FORM!GT142,FORM!GZ142)","v":""},null,null,null,null,null,null,"autorizo libre y voluntariamente a ",null,null,null,null,null,null,null,null,null,null,null,"En mi calidad de socio Diners Club No.",null,null,null,null,null,null,null,null,null,null,null,null,{"$f":"CONCATENATE(FORM!HZ142,FORM!IF142)","v":""},null,null,null,null,null,null,"autorizo libre y voluntariamente a "]
["a BANCO DINERS CLUB DEL ECUADOR S.A., se cargue a mi señalada tarjeta de manera mensual"]
["el valor de US$",null,null,null,null,null,{"$f":"+FORM!F138","v":35.583333333333336},null,null,"durante",null,null,{"$f":"+FORM!F104*12","v":48},null,"meses, que corresponde a la compra de un sistema"]
[{"$f":"+FORM!F112","v":"MARESA SATELITAL BY HUNTER"},null,null,null,null,null,null,null,null,null,null,null,null,"de  conformidad  al  acuerdo  que  he  llegado  con",null,null,null,null,null,null,null,null,null,null,null,null,null,null,null,null,null,null,null,null,null,null,null,null,null,null,null,null,null,null,null,null,null,null,"durante",null,null,{"$f":"+FORM!AP102*12","v":0},null,"meses, que corresponde a la ",null,null,null,null,null,null,null,null,null,null,"de manera mensual el valor de US$",null,null,null,null,null,null,null,null,null,null,null,null,null,null,null,"durante",null,null,{"$f":"+FORM!BV102*12","v":0},null,"meses, que corresponde a la ",null,null,null,null,null,null,null,null,null,null,"de manera mensual el valor de US$",null,null,null,null,null,null,null,null,null,null,null,null,null,null,null,"durante",null,null,{"$f":"+FORM!DB102*12","v":0},null,"meses, que corresponde a la ",null,null,null,null,null,null,null,null,null,null,"de manera mensual el valor de US$",null,null,null,null,null,null,null,null,null,null,null,null,null,null,null,"durante",null,null,{"$f":"+FORM!EH102*12","v":0},null,"meses, que corresponde a la ",null,null,null,null,null,null,null,null,null,null,"de manera mensual el valor de US$",null,null,null,null,null,null,null,null,null,null,null,null,null,null,null,"durante",null,null,{"$f":"+FORM!FN102*12","v":0},null,"meses, que corresponde a la ",null,null,null,null,null,null,null,null,null,null,"de manera mensual el valor de US$",null,null,null,null,null,null,null,null,null,null,null,null,null,null,null,"durante",null,null,{"$f":"+FORM!GT102*12","v":0},null,"meses, que corresponde a la ",null,null,null,null,null,null,null,null,null,null,"de manera mensual el valor de US$",null,null,null,null,null,null,null,null,null,null,null,null,null,null,null,"durante",null,null,{"$f":"+FORM!HZ102*12","v":0},null,"meses, que corresponde a la "]
["CARSEG S.A. esto es, un crédito diferido a",null,null,null,null,null,null,null,null,null,null,null,null,null,null,{"$f":"+M31","v":48},null,"meses plazo sin intereses, valores que me"]
["comprometo a cancelar de manera incondicional y dentro de los plazos estipulados."]
["Asímismo, expresamente me obligo a no revocar la presente autorización, sin previo consentimiento por escrito de CARSEG S.A., por lo que libero de toda responsabilidad a BANCO DINERS CLUB DEL ECUADOR S.A. por los cargos efectuados en base a la presente autorización.",null,null,null,null,null,null,null,null,null,null,null,null,null,null,null,null,null,null,null,null,null,null,null,null,null,null,null,null,null,null,null,null,null,null,null,null,null,null,null,null,null,null,null,null,null,null,null,null,null,null,null,null,null,null,null,null,null,null,null,null,null,null,null,"Asímismo, expresamente me obligo a no revocar la presente autorización, sin previo consentimiento por ",null,null,null,null,null,null,null,null,null,null,null,null,null,null,null,null,null,null,null,null,null,null,null,null,null,null,null,null,null,null,null,"Asímismo, expresamente me obligo a no revocar la presente autorización, sin previo consentimiento por ",null,null,null,null,null,null,null,null,null,null,null,null,null,null,null,null,null,null,null,null,null,null,null,null,null,null,null,null,null,null,null,"Asímismo, expresamente me obligo a no revocar la presente autorización, sin previo consentimiento por ",null,null,null,null,null,null,null,null,null,null,null,null,null,null,null,null,null,null,null,null,null,null,null,null,null,null,null,null,null,null,null,"Asímismo, expresamente me obligo a no revocar la presente autorización, sin previo consentimiento por ",null,null,null,null,null,null,null,null,null,null,null,null,null,null,null,null,null,null,null,null,null,null,null,null,null,null,null,null,null,null,null,"Asímismo, expresamente me obligo a no revocar la presente autorización, sin previo consentimiento por ",null,null,null,null,null,null,null,null,null,null,null,null,null,null,null,null,null,null,null,null,null,null,null,null,null,null,null,null,null,null,null,"Asímismo, expresamente me obligo a no revocar la presente autorización, sin previo consentimiento por "]
["De igual manera,  autorizo en caso de pérdida,  hurto,  robo o cualquier otra circunstancia que merezca ser cambiado mi actual número de tarjeta, se cuenta con el nuevo que se me  asigne para cancelar todos mis consumos de manera incondicional dentro del periodo respectivo, de tal forma de que mis obligaciones no queden en mora por los conceptos antes mencionados y hasta su total cancelación.",null,null,null,null,null,null,null,null,null,null,null,null,null,null,null,null,null,null,null,null,null,null,null,null,null,null,null,null,null,null,null,null,null,null,null,null,null,null,null,null,null,null,null,null,null,null,null,null,null,null,null,null,null,null,null,null,null,null,null,null,null,null,null,"De igual manera,  autorizo en caso de pérdida,  hurto,  robo o cualquier otra circunstancia que merezca ",null,null,null,null,null,null,null,null,null,null,null,null,null,null,null,null,null,null,null,null,null,null,null,null,null,null,null,null,null,null,null,"De igual manera,  autorizo en caso de pérdida,  hurto,  robo o cualquier otra circunstancia que merezca ",null,null,null,null,null,null,null,null,null,null,null,null,null,null,null,null,null,null,null,null,null,null,null,null,null,null,null,null,null,null,null,"De igual manera,  autorizo en caso de pérdida,  hurto,  robo o cualquier otra circunstancia que merezca ",null,null,null,null,null,null,null,null,null,null,null,null,null,null,null,null,null,null,null,null,null,null,null,null,null,null,null,null,null,null,null,"De igual manera,  autorizo en caso de pérdida,  hurto,  robo o cualquier otra circunstancia que merezca ",null,null,null,null,null,null,null,null,null,null,null,null,null,null,null,null,null,null,null,null,null,null,null,null,null,null,null,null,null,null,null,"De igual manera,  autorizo en caso de pérdida,  hurto,  robo o cualquier otra circunstancia que merezca ",null,null,null,null,null,null,null,null,null,null,null,null,null,null,null,null,null,null,null,null,null,null,null,null,null,null,null,null,null,null,null,"De igual manera,  autorizo en caso de pérdida,  hurto,  robo o cualquier otra circunstancia que merezca "]
[null,null,null,null,null,null,null,null,null,null,null,null,null,null,null,null,null,null,null,null,null,null,null,null,null,null,null,null,null,null,null,null,null,null,null,null,null,null,null,null,null,null,null,null,null,null,null,null,null,null,null,null,null,null,null,null,null,null,null,null,null,null,null,null,"hasta su total cancelación.",null,null,null,null,null,null,null,null,null,null,null,null,null,null,null,null,null,null,null,null,null,null,null,null,null,null,null,null,null,null,null,"hasta su total cancelación.",null,null,null,null,null,null,null,null,null,null,null,null,null,null,null,null,null,null,null,null,null,null,null,null,null,null,null,null,null,null,null,"hasta su total cancelación.",null,null,null,null,null,null,null,null,null,null,null,null,null,null,null,null,null,null,null,null,null,null,null,null,null,null,null,null,null,null,null,"hasta su total cancelación.",null,null,null,null,null,null,null,null,null,null,null,null,null,null,null,null,null,null,null,null,null,null,null,null,null,null,null,null,null,null,null,"hasta su total cancelación.",null,null,null,null,null,null,null,null,null,null,null,null,null,null,null,null,null,null,null,null,null,null,null,null,null,null,null,null,null,null,null,"hasta su total cancelación."]
["Atentamente,"]
[]
[]
[]
[{"$f":"F9","v":"ANA  CAROLINA DOMINGUEZ RUALES"}]
[{"$f":"S48","v":"1234567890"}]
["Caducidad Tarjeta:",null,null,null,null,null,null,null,{"$f":"+FORM!F148","v":"2022-05-01"}]
["DECLARACION ADICIONAL"]
[]
[{"$f":"A42","v":"ANA  CAROLINA DOMINGUEZ RUALES"},null,null,null,null,null,null,null,null,null,null,null,null,null,", mayor de edad, de estado civil ",null,null,null,null,null,null,null,null,null,null,{"$f":"+IF(FORM!F63<>\"\",\"CASADO\",\"SOLTERO\")","v":"CASADO"}]
[", portador de la cédula de ciudadanía o pasaporte No.",null,null,null,null,null,null,null,null,null,null,null,null,null,null,null,null,null,{"$f":"FORM!F39","v":"1234567890"},null,null,null,null,", por medio de la presente"]
["realizo la siguiente declaración:"]
["Declaro de manera expresa que autorizo a la compañía CARSEG S.A., para que en el evento de que la compañía Banco Diners Club del Ecuador S.A., lo requiera, haga conocer la información en relación a la ubicación del vehículo, así mismo podrá bloquear el vehículo a la sola solicitud de Banco Diners Club del Ecuador S.A."]
[]
[]
[]
["Por tratarse de una autorización realizada de manera libre y voluntaria, declaro que no interpondré contra Banco Diners Club del Ecuador S.A., o la compañía CARSEG S.A., ningún tipo de acción judicial o administrativa  por la ejecución de las acciones descritas en el presente documento."]
[]
[]
[]
[]
["Atentamente,"]
[]
[]
[]
[{"$f":"A42","v":"ANA  CAROLINA DOMINGUEZ RUALES"}]
[{"$f":"A43","v":"1234567890"}]

{"sheet":"SHERLOC","index":17,"n_rows":64,"n_cols":246,"rows_kept":64,"cut":false,"hidden":false,"merged":[[30,0,30,6],[30,8,30,12],[63,0,63,31],[38,0,38,7],[42,0,42,31],[43,0,43,31],[44,0,44,7],[44,8,44,10],[33,0,33,31],[31,0,31,5],[31,6,31,10],[31,11,31,31],[32,0,32,10],[45,0,45,31],[50,0,53,31],[54,0,57,31],[59,0,59,7],[36,0,36,31],[36,64,36,95],[36,96,36,127],[36,128,36,159],[62,0,62,31],[36,160,36,191],[32,11,32,12],[32,13,32,31],[35,224,35,255],[35,0,35,31],[35,64,35,95],[35,96,35,127],[35,128,35,159],[35,160,35,191],[35,192,35,223],[36,192,36,223],[36,224,36,255],[31,243,31,244],[31,245,31,255],[31,208,31,210],[31,211,31,212],[31,213,31,223],[31,224,31,236],[34,0,34,31],[31,237,31,239],[31,240,31,242],[31,173,31,175],[31,176,31,178],[31,179,31,180],[31,181,31,191],[31,192,31,204],[31,149,31,159],[31,80,31,82],[34,64,34,95],[34,96,34,127],[34,128,34,159],[34,160,34,191],[34,192,34,223],[34,224,34,255],[31,128,31,140],[31,141,31,143],[31,144,31,146],[31,147,31,148],[31,160,31,172],[28,173,28,179],[31,83,31,84],[31,85,31,95],[31,96,31,108],[31,109,31,111],[31,112,31,114],[28,141,28,147],[28,84,28,95],[28,96,28,108],[28,109,28,115],[28,116,28,127],[28,237,28,243],[28,244,28,255],[29,0,29,31],[30,15,30,17],[31,45,31,47],[31,48,31,50],[31,51,31,52],[28,160,28,172],[28,45,28,51],[28,52,28,63],[28,180,28,191],[28,192,28,204],[28,205,28,211],[28,212,28,223],[28,224,28,236],[31,53,31,63],[31,64,31,76],[31,77,31,79],[28,64,28,76],[28,77,28,83],[28,148,28,159],[31,205,31,207],[31,115,31,116],[31,117,31,127],[25,0,25,31],[26,0,26,10],[26,12,26,31],[28,0,28,13],[28,14,28,19],[28,20,28,31],[28,128,28,140],[16,0,16,2],[16,3,16,8],[16,9,16,12],[16,13,16,18],[16,19,16,21],[16,22,16,31],[17,0,19,31],[23,5,23,9],[23,21,23,25],[15,0,15,2],[15,3,15,8],[15,9,15,12],[15,13,15,18],[15,19,15,21],[15,22,15,31],[11,0,11,6],[11,7,11,31],[12,3,12,30],[13,0,13,31],[14,0,14,2],[14,3,14,8],[14,9,14,12],[14,13,14,18],[14,19,14,21],[14,22,14,31],[8,0,8,4],[8,5,8,31],[9,0,9,4],[9,5,9,31],[10,0,10,4],[10,5,10,16],[10,17,10,20],[10,21,10,31],[0,0,0,31],[4,0,5,31],[6,0,6,31],[7,0,7,4],[7,5,7,14],[7,15,7,21],[7,22,7,31]]}
["PLAN EXCLUSIVO PARA SOCIOS DINERS CLUB"]
[]
[]
[]
["Av. Colon 1740 y Av. 10 de Agosto\nTelf.  290-4290"]
[]
["ORDEN DE INSTALACIÓN DEL SISTEMA SHERLOC "]
["FECHA:",null,null,null,null,{"$f":"+FORM!F8","v":"2018-05-21"},null,null,null,null,null,null,null,null,null,"VALOR VEHICULO:",null,null,null,null,null,null,{"$f":"FORM!F100","v":34483.5}]
["NOMBRE:",null,null,null,null,{"$f":"FORM!Q37","v":"ANA  CAROLINA DOMINGUEZ RUALES"}]
["DIRECCIÓN:",null,null,null,null,{"$f":"+FORM!F45","v":"AV PEDRO DE ALVARADO N56-72 Y CARLOS V"}]
["TELEFONOS:",null,null,null,null,{"$f":"CONCATENATE(FORM!F37,\" \",FORM!L37)","v":"3188179 0985352479"},null,null,null,null,null,null,null,null,null,null,null,"CIUDAD:",null,null,null,{"$f":"+FORM!F25","v":"PORTOVIEJO"}]
["CONCESIONARIO:",null,null,null,null,null,null,{"$f":"+FORM!F13","v":"AUTOMOTORES CONTINENTAL"}]
["PLAN",null,null,{"$f":"+G32","v":"MARESA SATELITAL BY HUNTER"}]
["DATOS DEL VEHICULO"]
["MARCA:",null,null,{"$f":"+FORM!F77","v":"MAZDA"},null,null,null,null,null,"MODELO:",null,null,null,{"$f":"+FORM!F79","v":"CX3"},null,null,null,null,null,"TIPO:",null,null,{"$f":"+FORM!F84","v":"SEDAN"}]
["COLOR:",null,null,{"$f":"+FORM!F88","v":"ROJO"},null,null,null,null,null,"AÑO:",null,null,null,{"$f":"+FORM!F86","v":2019},null,null,null,null,null,"PLACA:",null,null,"N/A"]
["MOTOR:",null,null,{"$f":"+FORM!F90","v":"BU456792826RE7"},null,null,null,null,null,"CHASIS:",null,null,null,{"$f":"+FORM!F92","v":"CG5342892U"},null,null,null,null,null,"USO:",null,null,"PERSONAL/FAMILIAR"]
["El asegurado deberá llevar el vehículo para la instalación del sistema Sherloc, en un plazo de 8 días posteriores a la compra del vehículo. De no hacerlo, pierde el derecho a indemnización en el caso de un eventual robo total."]
[]
[]
[]
[]
[]
[null,null,null,null,null,"CONCESIONARIO",null,null,null,null,null,null,null,null,null,null,null,null,null,null,null,"TARJETAHABIENTE"]
[]
["AUTORIZACIÓN ORDEN DE CARGO"]
[{"$f":"+FORM!F25","v":"PORTOVIEJO"},null,null,null,null,null,null,null,null,null,null,",",{"$f":"+F8","v":"2018-05-21"}]
[]
["En mi calidad de socio Diners Club No.",null,null,null,null,null,null,null,null,null,null,null,null,null,{"$f":"CONCATENATE(FORM!F146,FORM!L146)","v":"36502325370040"},null,null,null,null,null,"autorizo  libre y  voluntariamente",null,null,null,null,null,null,null,null,null,null,null,null,null,null,null,null,null,null,null,null,null,null,null,null,{"$f":"CONCATENATE(FORM!AP142,FORM!AV142)","v":""},null,null,null,null,null,null,"autorizo libre y voluntariamente a ",null,null,null,null,null,null,null,null,null,null,null,"En mi calidad de socio Diners Club No.",null,null,null,null,null,null,null,null,null,null,null,null,{"$f":"CONCATENATE(FORM!BV142,FORM!CB142)","v":""},null,null,null,null,null,null,"autorizo libre y voluntariamente a ",null,null,null,null,null,null,null,null,null,null,null,"En mi calidad de socio Diners Club No.",null,null,null,null,null,null,null,null,null,null,null,null,{"$f":"CONCATENATE(FORM!DB142,FORM!DH142)","v":""},null,null,null,null,null,null,"autorizo libre y voluntariamente a ",null,null,null,null,null,null,null,null,null,null,null,"En mi calidad de socio Diners Club No.",null,null,null,null,null,null,null,null,null,null,null,null,{"$f":"CONCATENATE(FORM!EH142,FORM!EN142)","v":""},null,null,null,null,null,null,"autorizo libre y voluntariamente a ",null,null,null,null,null,null,null,null,null,null,null,"En mi calidad de socio Diners Club No.",null,null,null,null,null,null,null,null,null,null,null,null,{"$f":"CONCATENATE(FORM!FN142,FORM!FT142)","v":""},null,null,null,null,null,null,"autorizo libre y voluntariamente a ",null,null,null,null,null,null,null,null,null,null,null,"En mi calidad de socio Diners Club No.",null,null,null,null,null,null,null,null,null,null,null,null,{"$f":"CONCATENATE(FORM!GT142,FORM!GZ142)","v":""},null,null,null,null,null,null,"autorizo libre y voluntariamente a ",null,null,null,null,null,null,null,null,null,null,null,"En mi calidad de socio Diners Club No.",null,null,null,null,null,null,null,null,null,null,null,null,{"$f":"CONCATENATE(FORM!HZ142,FORM!IF142)","v":""},null,null,null,null,null,null,"autorizo libre y voluntariamente a "]
["a BANCO DINERS CLUB DEL ECUADOR  S.A., se cargue a mi señalada tarjeta de manera mensual"]
["el valor de US",null,null,null,null,null,null,null,{"$f":"+FORM!F138","v":35.583333333333336},null,null,null,null,"durante",null,{"$f":"+FORM!F104*12","v":48},null,null,"meses,  que  corresponde  a  la compra"]
["de un sistema",null,null,null,null,null,{"$f":"+FORM!F112","v":"MARESA SATELITAL BY HUNTER"},null,null,null,null,"de  conformidad  al  acuerdo  que he  llegado  con SHERLOC,",null,null,null,null,null,null,null,null,null,null,null,null,null,null,null,null,null,null,null,null,null,null,null,null,null,null,null,null,null,null,null,null,null,null,null,null,"durante",null,null,{"$f":"+FORM!AP102*12","v":0},null,"meses, que corresponde a la ",null,null,null,null,null,null,null,null,null,null,"de manera mensual el valor de US$",null,null,null,null,null,null,null,null,null,null,null,null,null,null,null,"durante",null,null,{"$f":"+FORM!BV102*12","v":0},null,"meses, que corresponde a la ",null,null,null,null,null,null,null,null,null,null,"de manera mensual el valor de US$",null,null,null,null,null,null,null,null,null,null,null,null,null,null,null,"durante",null,null,{"$f":"+FORM!DB102*12","v":0},null,"meses, que corresponde a la ",null,null,null,null,null,null,null,null,null,null,"de manera mensual el valor de US$",null,null,null,null,null,null,null,null,null,null,null,null,null,null,null,"durante",null,null,{"$f":"+FORM!EH102*12","v":0},null,"meses, que corresponde a la ",null,null,null,null,null,null,null,null,null,null,"de manera mensual el valor de US$",null,null,null,null,null,null,null,null,null,null,null,null,null,null,null,"durante",null,null,{"$f":"+FORM!FN102*12","v":0},null,"meses, que corresponde a la ",null,null,null,null,null,null,null,null,null,null,"de manera mensual el valor de US$",null,null,null,null,null,null,null,null,null,null,null,null,null,null,null,"durante",null,null,{"$f":"+FORM!GT102*12","v":0},null,"meses, que corresponde a la ",null,null,null,null,null,null,null,null,null,null,"de manera mensual el valor de US$",null,null,null,null,null,null,null,null,null,null,null,null,null,null,null,"durante",null,null,{"$f":"+FORM!HZ102*12","v":0},null,"meses, que corresponde a la "]
["esto es, un crédito diferido a ",null,null,null,null,null,null,null,null,null,null,{"$f":"+P31","v":48},null,"meses plazo sin intereses, valores que me comprometo "]
["a cancelar de manera incondicional y dentro de los plazos estipulados."]
["Asímismo,  expresamente  me  obligo  a  no  revocar  la  presente autorización,  sin previo consentimiento por escrito  de SHERLOC S.A., por lo que libero de toda responsabilidad a  BANCO DINERS CLUB DEL ECUADOR S.A. por  los cargos efectuados en base a la  presente  autorización.",null,null,null,null,null,null,null,null,null,null,null,null,null,null,null,null,null,null,null,null,null,null,null,null,null,null,null,null,null,null,null,null,null,null,null,null,null,null,null,null,null,null,null,null,null,null,null,null,null,null,null,null,null,null,null,null,null,null,null,null,null,null,null,"Asímismo, expresamente me obligo a no revocar la presente autorización, sin previo consentimiento por ",null,null,null,null,null,null,null,null,null,null,null,null,null,null,null,null,null,null,null,null,null,null,null,null,null,null,null,null,null,null,null,"Asímismo, expresamente me obligo a no revocar la presente autorización, sin previo consentimiento por ",null,null,null,null,null,null,null,null,null,null,null,null,null,null,null,null,null,null,null,null,null,null,null,null,null,null,null,null,null,null,null,"Asímismo, expresamente me obligo a no revocar la presente autorización, sin previo consentimiento por ",null,null,null,null,null,null,null,null,null,null,null,null,null,null,null,null,null,null,null,null,null,null,null,null,null,null,null,null,null,null,null,"Asímismo, expresamente me obligo a no revocar la presente autorización, sin previo consentimiento por ",null,null,null,null,null,null,null,null,null,null,null,null,null,null,null,null,null,null,null,null,null,null,null,null,null,null,null,null,null,null,null,"Asímismo, expresamente me obligo a no revocar la presente autorización, sin previo consentimiento por ",null,null,null,null,null,null,null,null,null,null,null,null,null,null,null,null,null,null,null,null,null,null,null,null,null,null,null,null,null,null,null,"Asímismo, expresamente me obligo a no revocar la presente autorización, sin previo consentimiento por "]
["De igual manera, autorizo en caso de pérdida, hurto, robo o cualquier otra circunstancia que merezca ser cambiado mi actual número de tarjeta, se cuenta con el nuevo que se me  asigne para cancelar todos mis consumos de manera incondicional dentro del periodo respectivo, de tal  forma de que mis obligaciones no queden en mora por los conceptos antes mencionados y hasta su total cancelación.",null,null,null,null,null,null,null,null,null,null,null,null,null,null,null,null,null,null,null,null,null,null,null,null,null,null,null,null,null,null,null,null,null,null,null,null,null,null,null,null,null,null,null,null,null,null,null,null,null,null,null,null,null,null,null,null,null,null,null,null,null,null,null,"De igual manera,  autorizo en caso de pérdida,  hurto,  robo o cualquier otra circunstancia que merezca ",null,null,null,null,null,null,null,null,null,null,null,null,null,null,null,null,null,null,null,null,null,null,null,null,null,null,null,null,null,null,null,"De igual manera,  autorizo en caso de pérdida,  hurto,  robo o cualquier otra circunstancia que merezca ",null,null,null,null,null,null,null,null,null,null,null,null,null,null,null,null,null,null,null,null,null,null,null,null,null,null,null,null,null,null,null,"De igual manera,  autorizo en caso de pérdida,  hurto,  robo o cualquier otra circunstancia que merezca ",null,null,null,null,null,null,null,null,null,null,null,null,null,null,null,null,null,null,null,null,null,null,null,null,null,null,null,null,null,null,null,"De igual manera,  autorizo en caso de pérdida,  hurto,  robo o cualquier otra circunstancia que merezca ",null,null,null,null,null,null,null,null,null,null,null,null,null,null,null,null,null,null,null,null,null,null,null,null,null,null,null,null,null,null,null,"De igual manera,  autorizo en caso de pérdida,  hurto,  robo o cualquier otra circunstancia que merezca ",null,null,null,null,null,null,null,null,null,null,null,null,null,null,null,null,null,null,null,null,null,null,null,null,null,null,null,null,null,null,null,"De igual manera,  autorizo en caso de pérdida,  hurto,  robo o cualquier otra circunstancia que merezca "]
[null,null,null,null,null,null,null,null,null,null,null,null,null,null,null,null,null,null,null,null,null,null,null,null,null,null,null,null,null,null,null,null,null,null,null,null,null,null,null,null,null,null,null,null,null,null,null,null,null,null,null,null,null,null,null,null,null,null,null,null,null,null,null,null,"forma de que mis obligaciones no queden en mora por los conceptos antes mencionados y ",null,null,null,null,null,null,null,null,null,null,null,null,null,null,null,null,null,null,null,null,null,null,null,null,null,null,null,null,null,null,null,"forma de que mis obligaciones no queden en mora por los conceptos antes mencionados y ",null,null,null,null,null,null,null,null,null,null,null,null,null,null,null,null,null,null,null,null,null,null,null,null,null,null,null,null,null,null,null,"forma de que mis obligaciones no queden en mora por los conceptos antes mencionados y ",null,null,null,null,null,null,null,null,null,null,null,null,null,null,null,null,null,null,null,null,null,null,null,null,null,null,null,null,null,null,null,"forma de que mis obligaciones no queden en mora por los conceptos antes mencionados y ",null,null,null,null,null,null,null,null,null,null,null,null,null,null,null,null,null,null,null,null,null,null,null,null,null,null,null,null,null,null,null,"forma de que mis obligaciones no queden en mora por los conceptos antes mencionados y ",null,null,null,null,null,null,null,null,null,null,null,null,null,null,null,null,null,null,null,null,null,null,null,null,null,null,null,null,null,null,null,"forma de que mis obligaciones no queden en mora por los conceptos antes mencionados y "]
[]
["Atentamente,"]
[]
[]
[]
[{"$f":"F9","v":"ANA  CAROLINA DOMINGUEZ RUALES"}]
[{"$f":"S49","v":"1234567890"}]
["Caducidad Tarjeta:",null,null,null,null,null,null,null,{"$f":"+FORM!F148","v":"2022-05-01"}]
["DECLARACION ADICIONAL"]
[]
[{"$f":"A43","v":"ANA  CAROLINA DOMINGUEZ RUALES"},null,null,null,null,null,null,null,null,null,null,null,null,null,", mayor de edad, de estado civil ",null,null,null,null,null,null,null,null,null,null,null,{"$f":"+IF(FORM!F63<>\"\",\"CASADO\",\"SOLTERO\")","v":"CASADO"}]
[", portador de la cédula de ciudadanía o pasaporte No.",null,null,null,null,null,null,null,null,null,null,null,null,null,null,null,null,null,{"$f":"FORM!F39","v":"1234567890"},null,null,null,null,", por medio de la presente"]
["realizo la siguiente declaración:"]
["Declaro de manera expresa que autorizo a la compañía SHERLOC, para que en el evento de que la compañía Banco Diners Club del Ecuador S.A., lo requiera, haga conocer la información en relación a la ubicación del vehículo, así mismo podrá bloquear el vehículo a la sola solicitud de Banco Diners Club del Ecuador S.A."]
[]
[]
[]
["Por tratarse de una autorización realizada de manera libre y voluntaria, declaro que no interpondré contra Banco Diners Club del Ecuador S.A., o la compañía SHERLOC, ningún tipo de acción judicial o administrativa  por la ejecución de las acciones descritas en el presente documento."]
[]
[]
[]
[]
["Atentamente,"]
[]
[]
[{"$f":"A43","v":"ANA  CAROLINA DOMINGUEZ RUALES"}]
[{"$f":"A44","v":"1234567890"}]

{"sheet":"DESGRAV","index":18,"n_rows":50,"n_cols":26,"rows_kept":50,"cut":false,"hidden":false,"merged":[[1,0,1,7],[1,8,1,25],[2,0,2,1],[2,2,2,25],[3,0,3,12],[3,14,3,15],[3,20,3,22],[3,24,3,25],[4,2,4,11],[4,12,4,15],[4,16,4,25],[5,0,5,1],[5,3,5,5],[5,6,5,7],[5,8,5,9],[5,10,5,11],[5,12,5,15],[5,16,5,19],[5,20,5,21],[6,18,6,21],[6,23,6,25],[7,0,7,2],[7,3,7,8],[7,9,7,14],[7,15,7,20],[7,21,7,22],[7,23,7,25],[6,0,6,1],[6,2,6,4],[6,5,6,7],[6,8,6,11],[6,12,6,17],[8,22,8,23],[8,24,8,25],[9,0,9,10],[9,12,9,13],[9,18,9,20],[9,22,9,25],[8,0,8,3],[8,4,8,8],[8,9,8,13],[8,14,8,16],[8,17,8,19],[8,20,8,21],[21,1,21,11],[21,12,21,16],[21,17,21,24],[10,2,10,11],[10,12,10,15],[10,16,10,25],[11,0,11,1],[11,3,11,5],[11,6,11,7],[11,8,11,9],[11,10,11,25],[12,1,12,9],[12,10,12,24],[13,0,13,25],[19,0,19,25],[20,1,20,24],[22,1,22,11],[22,12,22,16],[22,17,22,24],[23,1,23,11],[23,12,23,16],[23,17,23,24],[31,0,31,25],[32,0,32,25],[33,0,33,25],[34,0,34,25],[35,0,35,25],[25,0,25,25],[26,0,26,25],[27,0,27,25],[28,0,28,25],[29,0,29,25],[14,4,14,5],[14,14,14,17],[49,0,49,25],[37,0,37,25],[38,0,38,25],[39,0,39,25],[40,0,40,25],[41,0,41,25],[42,0,42,25],[43,0,43,25],[44,0,44,25],[45,0,45,25],[47,0,47,15],[47,16,47,25],[36,0,36,25],[24,0,24,25]]}
[]
[null,null,null,null,null,null,null,null,"SEGURO DE VIDA MULTIRIESGO PERSONAL\nPAGO DE DEUDAS A LOS ACREEDORES DEL ASEGURADO POR MUERTE, INCAPACIDAD TOTAL Y PERMANENTE Y ENFERMEDADES CATASTRÓFICAS\n\nSOLICITUD - CERTIFICADO "]
["Poliza: Nª 5754"]
["DATOS DEL ASEGURADO TITULAR PRINCIPAL-DEUDOR",null,null,null,null,null,null,null,null,null,null,null,null,"CI",null,null,"Pasaporte ",null,null,null,null,null,null,"Nº",{"$f":"+FORM!F39","v":"1234567890"}]
["Apellidos:",null,{"$f":"CONCATENATE(Cotizador!F17,\" \",Cotizador!L17)","v":"DOMINGUEZ RUALES"},null,null,null,null,null,null,null,null,null,"Nombres:   ",null,null,null,{"$f":"CONCATENATE(Cotizador!F19,\" \",Cotizador!L19)","v":"ANA  CAROLINA"}]
["Día nacimiento: ",null,null,"Mes:      ",null,null,null,null,"Año:",null,null,null,"Estado civil:",null,null,null,null,null,null,null,"Género:   ",null,"F","M","Ocupación:",{"$f":"+FORM!F57","v":"INGENIRA"}]
["Celular 1:",null,{"$f":"+FORM!F37","v":"3188179"},null,null,"Celular 2:",null,null,null,null,null,null,"Teléfono Particular:",null,null,null,null,null,null,null,null,null,"Mail: ",{"$f":"+FORM!F49","v":"ANADOMINGE@HOTMAIL.COM"}]
["Dirección del domicilio:",null,null,null,null,null,null,null,null,"Calle Principal Nº:",null,null,null,null,null,null,null,null,null,null,null,"Transversal:"]
[" Nº casa/ Departamento:",null,null,null,null,null,null,null,null,"Barrio/ Sector:",null,null,null,null,null,null,null,"Ciudad:",null,null,null,null,"Provincia:"]
["DATOS DEL TARJETA HABIENTE ADICIONAL",null,null,null,null,null,null,null,null,null,null,"CI",null,null,"Pasaporte ",null,null,null,null,null,null,"Nº"]
["Apellidos:",null,null,null,null,null,null,null,null,null,null,null,"Nombres:   "]
["Día nacimiento: ",null,null,"Mes:      ",null,null,null,null,"Año:"]
["Yo,",{"$f":"CONCATENATE(Q5,C5)","v":"ANA  CAROLINADOMINGUEZ RUALES"},null,null,null,null,null,null,null,null,"identificado(a) con la cédula de identidad   o pasaporte   número:",null,null,null,null,null,null,null,null,null,null,null,null,null,null,{"$f":"+FORM!F39","v":"1234567890"}]
["Autorizo a Seguros del Pichincha debitar mensualmente de mi tarjeta de Crédito la prima correspondiente al producto Desgravamen Saldos:"]
[null,"Diners","No.",null,{"$f":"LEFT(FORM!F146,2)","v":"36"},null,"x","x","x","x","x","x","x","x",{"$f":"RIGHT(FORM!L146,4)","v":"0040"}]
[]
[null,"Discover","No.",null,null,null,"x","x","x","x","x","x","x","x","x","x"]
[]
[null,"Visa Titanium","No.",null,null,null,"x","x","x","x","x","x","x","x","x","x"]
["Cualquier instrucción para que se deje sin efecto esta autorización la presentaré a Seguros del Pichincha, con treinta (30) días de antelación al siguiente cobro y con copia al Asegurado establecido más adelante, adjuntando a dicha petición el recibido de la misma por parte del Asegurado. En caso que sea titular en más de una tarjeta, autorizo a que el valor total de la prima se cobre proporcionalmente al saldo de cada tarjeta."]
[null,"TABLA DE COBERTURAS"]
[null,"COBERTURAS",null,null,null,null,null,null,null,null,null,null,"ASEGURADO",null,null,null,null,"VALOR ASEGURADO"]
[null,"Muerte por cualquier causa No excluida",null,null,null,null,null,null,null,null,null,null,"Tarjeta habiente",null,null,null,null,"Saldo insoluto de la deuda, máximo $60.000"]
[null,"Incapacidad total y permanente – (Enfermedades Catastróficas)",null,null,null,null,null,null,null,null,null,null,"Tarjeta habiente ",null,null,null,null,"Saldo insoluto de la deuda, máximo $60.000"]
["CONDICIONES DEL SEGURO"]
["OBJETO DEL SEGURO:\nProteger el saldo insoluto de la tarjeta habiente ante la entidad financiera cubriendo el riesgo que no pueda ser reembolsado a consecuencia de muerte por cualquier causa o incapacidad total y permanente o enfermedades catastróficas de la tarjeta habiente y/o sus adicionales en caso que los tuviera."]
["COBERTURAS:\nMUERTE POR CUALQUIER CAUSA: \nPor la muerte del Asegurado, originada por cualquier causa, a excepción del suicidio voluntario o involuntario del Asegurado el cual se cubrirá transcurrido el primer año de vigencia del contrato, la Compañía pagará a la persona jurídica que tenga la calidad de beneficiario acreedor el saldo adeudado que el Asegurado mantenga con la tarjeta de crédito emitida por Banco Diners Club S.A. (Diners, Discover, Visa Titanium)."]
["INCAPACIDAD TOTAL Y PERMANENTE – ENFERMEDADES CATASTRÓFICAS\nPor la Incapacidad Total y Permanente por cualquier causa no excluida, sufrida por el Asegurado durante la vigencia de este seguro, la Compañía pagará a la persona jurídica que tenga la calidad de beneficiario acreedor el saldo adeudado que el Asegurado mantenga con la tarjeta de crédito emitida por Banco Diners Club S.A. (Diners, Visa Titanium, Discover).\nPara efectos de este seguro se entiende que se presenta incapacidad total y permanente, cuando el Asegurado de acuerdo a lo estipulado en el literal de límites de edad, sufra alteraciones funcionales, comprobables desde el punto de vista médico, que de por vida le impidan desempeñar cualquier actividad, ocupación o trabajo remunerativo o lucrativo para los cuales se encuentra razonablemente calificado en razón de su educación, entrenamiento o experiencia, siempre que dicha incapacidad haya existido por un período continuo no menor a ciento ochenta (180) días y no haya sido provocada por el Asegurado y sea superior al 50% calificada por la entidad de control."]
["Enfermedades catastróficas:\nCon el diagnóstico médico que evidencie que el Asegurado sufre por primera ocasión durante la vigencia de la póliza, cualquiera de las siguientes enfermedades descritas a continuación y una vez certificado por la Institución médica autorizada y reconocida legalmente para ese fin, la Compañía pagará al beneficiario acreedor el saldo adeudado que el Asegurado mantenga con la tarjeta de crédito emitida por Banco Diners Club S.A. (Diners, Discover, Visa Titanium). \nPara efectos de esta cobertura se definen las enfermedades catastróficas o de alta complejidad así: \n• Todo tipo de malformaciones congénitas de corazón y todo tipo de valvulopatías cardiacas, Todo tipo de cáncer, Tumor cerebral en cualquier estado y de cualquier tipo, Insuficiencia renal crónica, Tumores en la piel; cáncer in situ no invasivo en cualquier órgano, Tumores cerebrales superficiales benignos, Acontecimientos catastróficos originados por reacciones nucleares, Quemaduras de primer y segundo grado, Trasplante de órganos (riñón, hígado, médula ósea.), Secuelas de quemaduras graves, Malformaciones arterio venosas cerebrales, Síndrome de Klippel Trenaunay, Aneurisma tóraco-abdominaI. \nEXCLUSIONES DE INCAPACIDAD TOTAL Y PERMANENTE: \nPara la cobertura de Incapacidad Total y Permanente aplican las siguientes exclusiones:\n• Cualquier enfermedad o accidente preexistente a la contratación del seguro.\n• Suicidio, tentativa de suicidio, o lesión intencionalmente causada a sí mismo, ya sea en estado de cordura o demencia \n• Guerra civil o internacional, motín, huelga, movimientos subversivos o en general conmociones civiles de cualquier clase.\n• Acontecimientos catastróficos originados por reacciones nucleares\nPara la cobertura de enfermedades catastróficas aplican las siguientes exclusiones: \n• Cualquier enfermedad preexistente a la contratación del seguro. \nDEFINICIONES:\nASEGURADO PRINCIPAL. - El titular de la tarjeta de crédito otorgado por la entidad financiera y sus tarjetahabientes adicionales.\nBENEFICIARIO ACREEDOR.- La entidad financiera, con la cual el asegurado ha generado una obligación económica, en este caso hasta el saldo insoluto de la deuda.\nSALDO INSOLUTO.- La sumatoria de capital más intereses corrientes."]
["PAGO DE PRIMAS: \nEl presente seguro se mantendrá vigente siempre y cuando exista el pago respectivo y mientras tenga una deuda con la entidad financiera.  En caso de presentarse un siniestro que afecte a la cobertura de muerte por cualquier causa de este certificado, el pago de primas se dará por terminado.\nVIGENCIA:\nEsta póliza adquiere fuerza legal desde el día y hora indicados en este certificado como comienzo de su vigencia y permanecerá en vigor por el período que se mantenga la deuda."]
[]
["AVISO Y COMPROBACION DEL SINIESTRO:\nCorresponde al Asegurado o al (o los) beneficiario (s) instituido (s):"]
["a) Denunciar la muerte, accidente, incapacidad, lesión corporal o enfermedad cubiertos por esta póliza dentro de los quince (15) días de la fecha en que haya ocurrido, salvo caso fortuito, fuerza mayor o imposibilidad de hecho, sin culpa o negligencia, so pena de perder todo derecho a la indemnización, de acuerdo con el artículo 24 de la sección 4ª del capítulo I, del Título XVII del Código de Comercio Ecuatoriano.\nb) Suministrar pruebas sobre la fecha y las causas del reclamo, como acerca de la manera y el lugar en que se produjo el hecho.\nc) Presentar a la Compañía el diagnóstico de la enfermedad, confirmado mediante evidencias médicas, exámenes de laboratorio clínico, químico o patológico efectuados por un profesional médico o médico legista (para muerte accidental), autorizado legalmente para el ejercicio de su profesión.\nd) Facilitar cualquier comprobación o aclaración, incluso hasta dos exámenes médicos por facultativos designados por la Compañía con gastos a cargo de ésta.\ne) Adoptar todas las medidas posibles conducentes a disminuir las consecuencias del  accidente, enfermedad o lesión.\nLa Compañía, en caso de muerte del Asegurado, se reserva el derecho de gestionar la exhumación del cadáver y practicar la autopsia en presencia de uno de sus facultativos, con gastos a cargo de la misma. El beneficiario prestará su conformidad y su concurso para la obtención de las correspondientes autorizaciones para realizarla."]
["DOCUMENTACION MÍNIMA EN CASO DE SINIESTRO:\nDentro del término legal, la Compañía pagará por conducto del Contratante al Asegurado o a los beneficiarios, o directamente a estos, la indemnización a que está obligada por esta póliza y sus amparos adicionales si los hubiere, al acreditar la ocurrencia del siniestro y la cuantía del mismo; para el efecto podrá utilizar todos los medios probatorios admitidos en la Ley ecuatoriana, y en especial la documentación mínima relacionada en el cuadro de documentos mínimos requeridos en caso de siniestro.\nPara que la Compañía pague la indemnización correspondiente a los diferentes amparos, el Asegurado y/o los Beneficiarios deberán presentar pruebas fehacientes que determinen la existencia del hecho amparado, de acuerdo con los términos de esta póliza.\nLa Compañía se reserva el derecho de comprobar la veracidad y la exactitud de tales pruebas.\nLa Compañía podrá hacer examinar al Asegurado tantas veces como lo estime conveniente, mientras se encuentre pendiente un reclamo bajo el presente amparo."]
["PLAZO DE PRUEBA:\nLa Compañía dentro de los treinta (30) días calendario de recibido el aviso y/o la respectiva prueba de la ocurrencia del siniestro y su cuantía, contados desde la fecha que sea posterior, deberá hacer saber al Asegurado la aceptación, postergación o rechazo del otorgamiento del beneficio. Si las comprobaciones a que se refiere el artículo vigésimo segundo no resultaran concluyentes, la Compañía podrá ampliar el plazo de prueba por un término no mayor de tres (3) meses, a fin de confirmar el diagnóstico."]
["DUPLICADO DE POLIZA Y DE CERTIFICADOS – COPIAS:\nEn caso de robo, pérdida o destrucción de esta póliza o de cualquier certificado individual, el Asegurado,  podrá obtener su sustitución por un duplicado. Las modificaciones o suplementos que se incluyan en el duplicado,  del Asegurado, serán los únicos válidos.\nEl  Asegurado tiene derecho a que se le entregue copia de su declaración efectuada con motivo de este contrato y copia no negociable de esta póliza o del correspondiente certificado individual.\nSerán por cuenta de los solicitantes los gastos que origine la extensión de duplicados y copias"]
["TERMINACION  DEL SEGURO INDIVIDUAL:\nEl seguro de cada Asegurado terminará en los siguientes casos:"]
["a) Por cancelación por parte del Asegurado;\nb) Por vencimiento de la vigencia de esta póliza o por caducidad del efecto vinculante;\nc) Por cumplir el Asegurado la edad señalada en la tabla de edades máximas;\nd) Por falta de pago de la prima o su contribución."]
["La cancelación a que se refiere el punto a) deberá ser comunicada por escrito a la Compañía por intermedio del Contratante o por el propio Asegurado con cinco (5) días hábiles de antelación a la fecha en que se deba hacer el pago de prima correspondiente y tendrá efecto a partir de esa fecha de pago. En caso de que el aviso de cancelación no se reciba en el período establecido, la cancelación se hará efectiva a partir de la siguiente fecha de pago.\nEn los casos previstos en los puntos b) y c) el seguro quedará rescindido a las veinticuatro (24) horas en que se haya producido la renuncia, o rescisión o caducidad, o el Asegurado haya cumplido la edad señalada en la tabla de edades máximas.\nSe presumirá que un Asegurado ha cancelado el seguro, sin admitirse prueba en contrario, cuando no pague la prima de este seguro o su contribución en la forma y plazo previsto en estas condiciones generales.\nEn cualquier caso de vencimiento o caducidad de esta póliza, terminarán simultáneamente todos los seguros individuales cubiertos por ella salvo las obligaciones pendientes a cargo de la Compañía."]
["DECLARACIONES Y AUTORIZACIONES DEL ASEGURADO PRINCIPAL:\nA. En el evento en que SEGUROS DEL PICHINCHA S.A. COMPAÑÍA DE SEGUROSY REASEGUROS otorgue el seguro de desgravamen, de acuerdo con la información suministrada en este tipo de seguro, la cobertura amparará a la persona que firma esta declaración.\nB. Acepto el valor de la prima del presente seguro sea cargado en el estado de cuenta de mi tarjeta. El valor de la prima se realizará en base al cálculo del 0.099% sobre mi deuda con Banco Diners Club del Ecuador."]
["C. DECLARACIÓN DE INFORMACIÓN\nDeclaro que la información contenida en el presente formulario es verdadera, completa y actualizada. Declaro conocer y aceptar que es mi obligación actualizar anualmente mis datos personales, comunicar y documentar de manera inmediata a SEGUROS DEL PICHINCHA S.A. COMPAÑÍA DE SEGUROSY REASEGUROS cualquier cambio en la información o documentación que he proporcionado. Durante la vigencia de la relación contractual con SEGUROS DEL PICHINCHA S.A. COMPAÑÍA DE SEGUROS Y REASEGUROS, me comprometo "]
["a proveer la información y la documentación que me sea solicitada. Así mismo entiendo que esta información podrá ser requerida por las autoridades de control respectivas para los efectos legales correspondientes.\nD. DECLARACIÓN DE LICITUD DE FONDOS\nDeclaro que el dinero utilizado para realizar las transacciones con SEGUROS DEL PICHINCHA S.A. COMPAÑÍA DE SEGUROS Y REASEGUROS no proviene de ninguna actividad relacionada con el lavado de activos, el financiamiento del terrorismo, el financiamiento de otros delitos, ni es producto de algún delito. Así mismo declaro que realizo y realizaré operaciones lícitas con SEGUROS DEL PICHINCHA S.A. COMPAÑÍA DE SEGUROS Y REASEGUROS desde el inicio de la relación comercial hasta la finalización del contrato.\nE. AUTORIZACION\nAdemás, autorizo a SEGUROS DEL PICHINCHA S.A. COMPAÑÍA DE SEGUROS Y REASEGUROS a utilizar mi información personal proporcionada a la aseguradora o cualquier  información que sea de conocimiento público conforme a la ley,  con el objetivo de   contactarme, por medio de  llamada telefónica, mensaje de texto vía telefónica, correo electrónico, correo directo u otro medio.\nF. DECLARO HABER RECIBIDO LAS EXPLICACIONES CORRESPONDIENTES SOBRE ESTE SEGURO Y ACEPTO DE MANERA VOLUNTARIA EL MISMO."]
["El Contratante y/o Asegurado podrá solicitar a la Superintendencia de Compañías, Valores y Seguros la verificación de este texto."]
[]
[]
[]
[]
["Seguros del Pichincha  S.A",null,null,null,null,null,null,null,null,null,null,null,null,null,null,null,"Asegurado Principal"]
[]
["IMPORTANTE: \nLea cuidadosamente el extracto de las condiciones generales entregado; si tuviese alguna inquietud comuníquese al 1800-400-400 de SEGUROS DEL PICHINCHA."]